Workbook

Sheet Information
A10: High needs national funding formula - illustrative allocations to local authorities (LAs)
A12: High needs funding reform consultation
A14:  | B14: The government is consulting on proposals for a new national funding formula for high needs. The current funding system does not support our aspiration that all children and young people reach their full potential and succeed in adult life. Similar local areas receive very different levels of funding, with little or no justification.
A15:  | B15: The consultation will run until Wednesday 22 March 2017. You can find the consultation documents at:
B16: https://consult.education.gov.uk/funding-policy-unit/high-needs-funding-reform-2/
A18: What this spreadsheet shows
A20:  | B20: This spreadsheet shows how local authorities' high needs illustrative allocations have been calculated, as outlined in the national funding formula consultation and technical note. The figures in here are not actual allocations for any specific year: they are illustrations based on the data available up to November 2016, to help inform the consultation. Actual allocations for future years will reflect the final formula (following this consultation) and will be updated using the latest available data.
A21:  | B21: If you have queries about the data or calculation for particular local authorities, or about the data we have used, you will find more information in the technical note. If this does not answer your query, please contact the department through:
B22: HighNeedsFundingReform.CONSULTATION@education.gov.uk
B23: Please include ‘NFF data query’ in the subject line. We will be unable to deal with any data queries that are submitted as part of consultation responses.
A25: Contents
A27: The contents of each sheet in this workbook are as follows:
A29: - Information: High level overview of contents with glossary of abbreviations.
A30: - National details: Calculation of the total high needs block of funding at national level, used for illustrative allocations to LAs.
A31: - HN NFF illustrative allocations: Detailed calculation of the high needs national funding formula illustrative allocations for every local authority in England.
A32: - Individual LA: High needs national funding formula illustrative allocation calculated for a single LA.
A33: - Baselines+historic spend factor: Calculation of the spending baselines used in the historic spend factor, funding floor factor and gains calculation for the first year; and calculation of the historic spend factor.
A34: - Import|export adjustments data: Breakdown of the figures used to produce the individual local authority adjustments made to reflect the balance of pupils and students attending provision outside their LA area, and those from outside attending provision in their LA area.
A36: Glossary
A38: The following terms are used in this workbook;
B40: ACA | C40: Area cost adjustment
B41: DLA | C41: Disability living allowance
B42: EFA | C42: Education Funding Agency
B43: FE institutions | C43: Post-16 institutions that are not schools or academies, i.e. further education (FE) colleges, sixth form colleges and commercial and charitable providers (CCPs); not school sixth forms. Although this definition normally includes special post-16 institutions, in this workbook we have excluded these from this category of provider.
B44: FSM | C44: Free school meals
B45: HN | C45: High needs
B46: IDACI | C46: Income deprivation affecting children index
B47: KS2 | C47: Key stage two
B48: KS4 | C48: Key stage four
B49: LA | C49: Local authority
B50: ND[x] | C50: Item [x] in the 'National details' sheet.
B51: NFF | C51: National funding formula
B52: NMSS | C52: Non-maintained special school
B53: Provider LA | C53: The local authority from whose high needs funding allocation the costs of the high needs place funding are met, usually the authority in whose area the provider (e.g. school or college) is located.
B54: Resident LA | C54: The local authority in whose area a pupil resides. This LA is responsible for securing the provision for the pupil and paying any associated top-up funding.
B55: SPI | C55: Special post-16 institution

Sheet National details
B3: High needs national funding formula (HN NFF): National details
B4: This page explains: | I4: Cell colour guide
B5: - how the total national high needs funding is calculated | I5: Input data
B6: - how the funding is distributed through the HN NFF factors | I6: Calculation
I7: Explanation
F9: Explanation of amounts and calculations
B10: LA baselines total [a] | E10: 5694074633 | F10: This is the total 2016-17 baselines (which form the basis of local authorities’ 2017-18 high needs allocations), as published in July 2016. This total excludes funding for City of London and Isles of Scilly.
B11: NMSS and SPI place funding baseline [b] | E11: 39664000 | F11: This is the total amount of £6,000 per place paid in 2016-17 to NMSS and SPIs that we transfer in to the total high needs funding for distribution through the formula so that local authorities are funded for the placements they make in these institutions.
B12: Transfer of funding to schools block [c] | E12: -91875459.93 | F12: This is a transfer to the schools national funding formula to reflect the change in the funding of pupils in special units or resourced provision in mainstream schools.
B13: Total high needs funding [d] = [a] + [b] + [c] | E13: =SUM(E10:E12) -> 5641863173 | F13: This is the total quantum of funding for the HN NFF that is used in these illustrative allocations.
B15: Basic entitlement factor funding [e] | E15: ='HN NFF illustrative allocations'!H8 -> 472744600.9 | F15: This is the total funding allocated through the basic entitlement factor.
B16: Historic spend factor funding [f] | E16: ='HN NFF illustrative allocations'!I8 -> 2548694578 | F16: This is the total funding allocated through the historic spend factor.
B17: Hospital education funding [g] | E17: ='HN NFF illustrative allocations'!$AY$8 -> 72649416.22 | F17: Hospital education funding is included in these illustrative allocations on the basis of local authorities’ most recent section 251 budget return, which shows planned spending on hospital education in 2016-17. This amount is deducted from the total and added back to each local authority's national funding formula allocations after the rest of the formula has been calculated.
B18: Remaining funding to be distributed through proxy factors [h] = [d] - [e] - [f] - [g] | E18: =E13-E17-E16-E15 -> 2547774578 | F18: This is the total funding remaining to be distributed through the proxy factors, as detailed below.
B20: Factor | D20: Weight | E20: Factor total | F20: Description of measure used For further details refer to the technical note
B21: Population [i] = 50% * [h] | D21: 0.5 | E21: =D21*$E$18 -> 1273887289 | F21: This is the total local authority age 2-18 population projection for mid-2018 as published by ONS.
B22: Deprivation factor: FSM [j] = 10% * [h] | D22: 0.1 | E22: =D22*$E$18 -> 254777457.8 | F22: This is the number of pupils eligible for free school meals known to be resident in each local authority in the January 2016 school census data.
B23: Deprivation factor: IDACI [k] = 10% * [h] | D23: 0.1 | E23: =D23*$E$18 -> 254777457.8 | F23: This factor is split into subtotals for IDACI bands A-F totalling 10%. These are Band A: 1.2%, Band B: 2.3%, Band C: 1.6%, Band D: 1.9%, Band E: 1.6%, Band F: 1.4%. The pupils numbers are constructed from the ONS 2-18 mid-2014 population estimates.
B24: Health and disability factor: Children in bad health [l] = 7.5% * [h] | D24: 0.075 | E24: 191083093.3 | F24: This is the number of children in each local authority identified in the 2011 Census as having bad or very bad health.
B25: Health and disability factor: Disability [m] = 7.5% * [h] | D25: 0.075 | E25: 191083093.3 | F25: This is the number of children in each local authority identified as receiving disability living allowance (DLA) as at February 2016 (published August 2016), rounded to the nearest ten.
B26: Low attainment factor: KS2 low attainment [n] = 7.5% * [h] | D26: 0.075 | E26: 191083093.3 | F26: This is the total number of pupils resident in each local authority not attaining level 3 in the KS2 reading test in the years 2011-2015.
B27: Low attainment factor: KS4 low attainment [o] = 7.5% * [h] | D27: 0.075 | E27: 191083093.3 | F27: This is the total number of pupils resident in each local authority not attaining five or more A* to G grades in the years 2011-2015.
B28: Total of proxy factors [p] (= [h]) = [i] + [j] + [k] + [l] + [m] + [n] + [o] | D28: =SUM(D21:D27) -> 1 | E28: =SUM(E21:E27) -> 2547774578

Sheet HN NFF illustrative allocations
B1: High needs national funding formula - illustrative allocations to local authorities (LAs)
B3: Step-by-step guide for LAs to understand the calculation of the high needs block illustrative allocations
F5: These columns calculate the basic entitlement factor funding for each LA | J5: These columns distribute the remaining funding to LAs through the proxy factors. For each proxy factor the calculation is: for each local authority multiply the number of children by the ACA to give an ACA-weighted number of children; work out the national total of ACA-weighted children; split the total factor funding between local authorities using their proportion of the national total of ACA-weighted numbers of children. | BB5: Illustrative high needs NFF allocations
B6: Region | C6: LA code | D6: LA name | F6: (A) Basic entitlement factor | I6: (B) Historic spend factor (from column Q in 'Baselines+historic spend factor') [e] | J6: (C) Population factor | M6: (D) FSM factor | P6: IDACI band F factor | S6: IDACI band E factor | V6: IDACI band D factor | Y6: IDACI band C factor | AB6: IDACI band B factor | AE6: IDACI band A factor | AH6: (E) IDACI factor | AI6: (F) Bad health factor | AL6: (G) Disability factor | AO6: (H) KS2 low attainment factor | AR6: (I) KS4 low attainment factor | AU6: Total historic spend and proxy factor allocation (sum of (B) - (I)) [aq] | AV6: (J) Funding floor factor | AY6: (K) Hospital education funding | AZ6: (L) Import/export adjustment | BB6: Illustrative high needs NFF final allocations [ax] = [d] + [aq] + [at] + [au] + [aw] | BC6: Illustrative high needs NFF year 1 allocations
E7: Area cost adjustment ('ACA') [a] | F7: Number of pupils in special schools/academies [b] | G7: ACA-weighted basic entitlement unit rate (£4k per pupil) [c] | H7: Basic entitlement factor [d] = [b] x [c] | J7: 2018 2-18 population projection for LA [f] | K7: ACA-weighted population [g] | L7: Population factor [h] = [g]% x ND[i] | M7: Number of FSM pupils resident in LA [i] | N7: ACA-weighted FSM pupils [j] | O7: FSM factor [k] = [i]% * ND[j] | P7: IDACI band F population [l] | Q7: ACA-weighted IDACI band F population [m] | R7: IDACI band F factor [n] = [m]% x (ND[k] x 14%) | S7: IDACI band E population [o] | T7: ACA-weighted IDACI band E population [p] | U7: IDACI band E factor [q] = [p]% x (ND[k] x 16%) | V7: IDACI band D population [r] | W7: ACA-weighted IDACI band D population [s] | X7: IDACI band D factor [t] = [s]% x (ND[k] x 19%) | Y7: IDACI band C population [u] | Z7: ACA-weighted IDACI band C population [v] | AA7: IDACI band C factor [w] = [v]% x (ND[k] x 16%) | AB7: IDACI band B population [x] | AC7: ACA-weighted IDACI band B population [y] | AD7: IDACI band B factor [z] = [y]% x (ND[k] x 23%) | AE7: IDACI band A population [aa] | AF7: ACA-weighted IDACI band A population [ab] | AG7: IDACI band A factor [ac] = [ab]% x (ND[k] x 12%) | AH7: IDACI factor [ad] = (ND[k]) = [n]+ [q] + [t] + [w] + [z] + [ac] | AI7: Number of children in bad health resident in LA [ae] | AJ7: ACA-weighted number of children in bad health [af] | AK7: Bad health factor [ag] = [af]% x ND[l] | AL7: Number of children resident in LA for whom DLA claimed [ah] | AM7: ACA-weighted number of children for whom DLA claimed [ai] | AN7: Disability factor [aj] = [ai]% x ND[m] | AO7: Number of pupils resident in LA not attaining level 3 in KS2 reading (5 year total) [ak] | AP7: ACA-weighted number of pupils resident in LA not attaining level 3 in KS2 reading (5 year total) [al] | AQ7: KS2 factor [am] = [al]% x ND[n] | AR7: Number of pupils resident in LA not attaining 5 GCSEs A*-G (5 year total) [an] | AS7: ACA-weighted number of pupils not attaining 5 GCSEs A*-G (5 year total) [ao] | AT7: KS4 factor [ap] = [ao]% x ND[o] | AV7: Baseline for funding floor and year 1 gains (from column P in 'Baselines+historic spend factor') [ar] | AW7: Difference between historic spend/proxy factors allocation and funding floor baseline [as] = [aq] - [ar] | AX7: Funding floor factor [at] | AY7: Hospital education funding [au] | AZ7: Net number of imported/exported pupils/students (from column Q in 'Import|export adjustments data') [av] | BA7: Import/export adjustments [aw] = [av] x £6k | BC7: Total gains due under the high needs NFF [ay] | BD7: Year 1 gains available, up to 3% [az] | BE7: Illustrative high needs NFF year 1 allocations [ba] = [d] + [aq] + [at] + [au] + [aw] + ([az] - [ay])
B8: England total | F8: =SUM(F9:F158) -> 114781 | H8: =SUM(H9:H158) -> 472744600.9 | I8: 2548694578 | J8: 11192790.73 | K8: 11558351.38 | L8: ='National details'!$E$21 -> 1273887289 | M8: 1144662 | N8: 1185416.369 | O8: ='National details'!$E$22 -> 254777457.8 | P8: 1066262 | Q8: 1103198.993 | R8: =14%*$AH$8 -> 35668844.09 | S8: 929550 | T8: 967386.6467 | U8: =16%*$AH$8 -> 40764393.25 | V8: 786227 | W8: 818540.5023 | X8: =19%*$AH$8 -> 48407716.98 | Y8: 670459 | Z8: 703388.6852 | AA8: =16%*$AH$8 -> 40764393.25 | AB8: 829630 | AC8: 865356.5788 | AD8: =23%*$AH$8 -> 58598815.29 | AE8: 311358 | AF8: =SUM(AF9:AF158) -> 318345.635 | AG8: =12%*$AH$8 -> 30573294.93 | AH8: ='National details'!$E$23 -> 254777457.8 | AI8: 64495 | AJ8: 66812.28316 | AK8: ='National details'!$E$24 -> 191083093.3 | AL8: 357750 | AM8: 367701.2521 | AN8: ='National details'!$E$25 -> 191083093.3 | AO8: 142518 | AP8: 146266.661 | AQ8: ='National details'!$E$26 -> 191083093.3 | AR8: 138620 | AS8: 141997.6766 | AT8: ='National details'!$E$27 -> 191083093.3 | AU8: 5096469156 | AV8: 5097389156 | AY8: =SUM(AY9:AY158) -> 72649416.22 | AZ8: -6764 | BA8: -40584000 | BB8: =SUM(BB9:BB158) -> 5792243453 | BE8: 5667950676
A9: =IFERROR(INDEX($D$9:$D$158,MATCH(ROW(INDIRECT("1:"&ROWS($D$9:$D$158)))-1,COUNTIF($D$9:$D$158,"<" & $D$9:$D$158),0)),"") -> Barking and Dagenham | B9: EAST MIDLANDS | C9: 831 | D9: Derby | E9: 1 | F9: 659 | G9: =4000 * E9 -> 4000 | H9: =F9*G9 -> 2636000 | I9: =INDEX('Baselines+historic spend factor'!$Q$9:$Q$158, MATCH('HN NFF illustrative allocations'!$C9, 'Baselines+historic spend factor'!$C$9:$C$158, 0)) -> 15416973.62 | J9: 55748.5 | K9: =J9 * E9 -> 55748.5 | L9: =(K9 /$K$8) * L$8 -> 6144241.784 | M9: 6887 | N9: =M9 * E9 -> 6887 | O9: =(N9 /N$8) * O$8 -> 1480199.192 | P9: 5421 | Q9: =P9 * E9 -> 5421 | R9: =(Q9/Q$8)*R$8 -> 175272.8248 | S9: 4587 | T9: =S9 * E9 -> 4587 | U9: =(T9/T$8)*U$8 -> 193290.1105 | V9: 5168 | W9: =V9 * E9 -> 5168 | X9: =(W9/W$8)*X$8 -> 305630.669 | Y9: 6448 | Z9: =Y9 * E9 -> 6448 | AA9: =(Z9/Z$8)*AA$8 -> 373689.2747 | AB9: 7995 | AC9: =AB9 * E9 -> 7995 | AD9: =(AC9/AC$8)*AD$8 -> 541392.4615 | AE9: 2730 | AF9: =AE9 * E9 -> 2730 | AG9: =(AF9/AF$8)*AG$8 -> 262183.8844 | AH9: =R9+U9+X9+AA9+AD9+AG9 -> 1851459.225 | AI9: 341 | AJ9: =AI9 * E9 -> 341 | AK9: =(AJ9/AJ$8)*AK$8 -> 975259.8137 | AL9: 1990 | AM9: =AL9 * E9 -> 1990 | AN9: =(AM9 / $AM$8) * 'National details'!$E$25 -> 1034142.129 | AO9: 1051 | AP9: =AO9 * E9 -> 1051 | AQ9: =(AP9 / $AP$8) * 'National details'!$E$26 -> 1373028.753 | AR9: 815 | AS9: =AR9 * E9 -> 815 | AT9: =(AS9/AS$8) *'National details'!$E$27 -> 1096727.248 | AU9: =I9+L9+O9+AH9+AK9+AN9+AQ9+AT9 -> 29372031.76 | AV9: =INDEX('Baselines+historic spend factor'!$P$9:$P$158, MATCH($C9, 'Baselines+historic spend factor'!$C$9:$C$158, 0)) -> 30833947.24 | AW9: =AU9-AV9 -> -1461915.475 | AX9: =MAX(0, -AW9) -> 1461915.475 | AY9: 239371 | AZ9: =INDEX('Import|export adjustments data'!$Q$9:$Q$158, MATCH($C9, 'Import|export adjustments data'!$C$9:$C$158, 0)) -> -31 | BA9: =AZ9 * 6000 -> -186000 | BB9: =H9+AU9+AX9+AY9+BA9 -> 33523318.24 | BC9: =MAX(AW9, 0) -> 0 | BD9: =MIN(BC9, 3% * AV9) -> 0 | BE9: =H9+AU9+AX9+AY9+BA9+(BD9-BC9) -> 33523318.24
A10: Barnet | B10: EAST MIDLANDS | C10: 830 | D10: Derbyshire | E10: 1 | F10: 978 | G10: 4000 | H10: 3912000 | I10: =INDEX('Baselines+historic spend factor'!$Q$9:$Q$158, MATCH('HN NFF illustrative allocations'!$C10, 'Baselines+historic spend factor'!$C$9:$C$158, 0)) -> 32292934.07 | J10: 145476.115 | K10: 145476.115 | L10: 16033443.49 | M10: 13406 | N10: 13406 | O10: 2881305.411 | P10: 15381 | Q10: 15381 | R10: 497301.4791 | S10: 7658 | T10: 7658 | U10: 322697.9869 | V10: 8798 | W10: 8798 | X10: 520305.4617 | Y10: 8162 | Z10: 8162 | AA10: 473022.9312 | AB10: 8035 | AC10: 8035 | AD10: 544101.1167 | AE10: 765 | AF10: 765 | AG10: 73469.11048 | AH10: 2430898.086 | AI10: 670 | AJ10: 670 | AK10: 1916199.634 | AL10: 4840 | AM10: 4840 | AN10: =(AM10 / $AM$8) * 'National details'!$E$25 -> 2515199.953 | AO10: 1660 | AP10: 1660 | AQ10: =(AP10 / $AP$8) * 'National details'!$E$26 -> 2168627.716 | AR10: 1951 | AS10: 1951 | AT10: =(AS10/AS$8) *'National details'!$E$27 -> 2625417.007 | AU10: 62864025.37 | AV10: =INDEX('Baselines+historic spend factor'!$P$9:$P$158, MATCH($C10, 'Baselines+historic spend factor'!$C$9:$C$158, 0)) -> 64585868.15 | AW10: -1721842.776 | AX10: 1721842.776 | AY10: 50000 | AZ10: =INDEX('Import|export adjustments data'!$Q$9:$Q$158, MATCH($C10, 'Import|export adjustments data'!$C$9:$C$158, 0)) -> -241 | BA10: -1446000 | BB10: =H10+AU10+AX10+AY10+BA10 -> 67101868.15 | BC10: 0 | BD10: 0 | BE10: =H10+AU10+AX10+AY10+BA10+(BD10-BC10) -> 67101868.15
A11: Barnsley | B11: EAST MIDLANDS | C11: 856 | D11: Leicester | E11: 1 | F11: 992 | G11: 4000 | H11: 3968000 | I11: =INDEX('Baselines+historic spend factor'!$Q$9:$Q$158, MATCH('HN NFF illustrative allocations'!$C11, 'Baselines+historic spend factor'!$C$9:$C$158, 0)) -> 21014912.98 | J11: 77950.18 | K11: 77950.18 | L11: 8591168.427 | M11: 10021 | N11: 10021 | O11: 2153779.019 | P11: 9208 | Q11: 9208 | R11: 297714.8442 | S11: 9428 | T11: 9428 | U11: 397283.4449 | V11: 5776 | W11: 5776 | X11: 341587.2183 | Y11: 9210 | Z11: 9210 | AA11: 533759.0292 | AB11: 10363 | AC11: 10363 | AD11: 701744.8503 | AE11: 6480 | AF11: 6480 | AG11: 622326.5829 | AH11: 2894415.97 | AI11: 596 | AJ11: 596 | AK11: 1704559.674 | AL11: 2250 | AM11: 2250 | AN11: =(AM11 / $AM$8) * 'National details'!$E$25 -> 1169256.176 | AO11: 1303 | AP11: 1303 | AQ11: =(AP11 / $AP$8) * 'National details'!$E$26 -> 1702242.117 | AR11: 1278 | AS11: 1278 | AT11: =(AS11/AS$8) *'National details'!$E$27 -> 1719775.979 | AU11: 40950110.34 | AV11: =INDEX('Baselines+historic spend factor'!$P$9:$P$158, MATCH($C11, 'Baselines+historic spend factor'!$C$9:$C$158, 0)) -> 42029825.96 | AW11: -1079715.62 | AX11: 1079715.62 | AY11: 750000 | AZ11: =INDEX('Import|export adjustments data'!$Q$9:$Q$158, MATCH($C11, 'Import|export adjustments data'!$C$9:$C$158, 0)) -> -10 | BA11: -60000 | BB11: 46687825.96 | BC11: 0 | BD11: 0 | BE11: 46687825.96
A12: Bath and North East Somerset | B12: EAST MIDLANDS | C12: 855 | D12: Leicestershire | E12: 1 | F12: 1371 | G12: 4000 | H12: 5484000 | I12: =INDEX('Baselines+historic spend factor'!$Q$9:$Q$158, MATCH('HN NFF illustrative allocations'!$C12, 'Baselines+historic spend factor'!$C$9:$C$158, 0)) -> 27592708.63 | J12: 131451.626 | K12: 131451.626 | L12: 14487754.34 | M12: 6978 | N12: 6978 | O12: 1499757.508 | P12: 8981 | Q12: 8981 | R12: 290375.4362 | S12: 4022 | T12: 4022 | U12: 169481.7581 | V12: 3769 | W12: 3769 | X12: 222895.1222 | Y12: 1656 | Z12: 1656 | AA12: 95972.30753 | AB12: 1302 | AC12: 1302 | AD12: 88166.72731 | AE12: 741 | AF12: 741 | AG12: 71164.19721 | AH12: 938055.5485 | AI12: 580 | AJ12: 580 | AK12: 1658799.683 | AL12: 3780 | AM12: 3780 | AN12: =(AM12 / $AM$8) * 'National details'!$E$25 -> 1964350.376 | AO12: 1567 | AP12: 1567 | AQ12: =(AP12 / $AP$8) * 'National details'!$E$26 -> 2047132.308 | AR12: 1609 | AS12: 1609 | AT12: =(AS12/AS$8) *'National details'!$E$27 -> 2165195.267 | AU12: 52353753.67 | AV12: =INDEX('Baselines+historic spend factor'!$P$9:$P$158, MATCH($C12, 'Baselines+historic spend factor'!$C$9:$C$158, 0)) -> 55185417.26 | AW12: -2831663.596 | AX12: 2831663.596 | AY12: 754669 | AZ12: =INDEX('Import|export adjustments data'!$Q$9:$Q$158, MATCH($C12, 'Import|export adjustments data'!$C$9:$C$158, 0)) -> -87 | BA12: -522000 | BB12: 60902086.26 | BC12: 0 | BD12: 0 | BE12: 60902086.26
A13: Bedford Borough | B13: EAST MIDLANDS | C13: 925 | D13: Lincolnshire | E13: 1 | F13: 1771 | G13: 4000 | H13: 7084000 | I13: =INDEX('Baselines+historic spend factor'!$Q$9:$Q$158, MATCH('HN NFF illustrative allocations'!$C13, 'Baselines+historic spend factor'!$C$9:$C$158, 0)) -> 33143411.53 | J13: 137173.168 | K13: 137173.168 | L13: 15118345.97 | M13: 12748 | N13: 12748 | O13: 2739883.737 | P13: 13301 | Q13: 13301 | R13: 430050.5151 | S13: 10272 | T13: 10272 | U13: 432848.4881 | V13: 6624 | W13: 6624 | X13: 391737.1424 | Y13: 5798 | Z13: 5798 | AA13: 336018.985 | AB13: 5611 | AC13: 5611 | AD13: 379956.6106 | AE13: 2171 | AF13: 2171 | AG13: 208498.6129 | AH13: 2179110.354 | AI13: 722 | AJ13: 722 | AK13: 2064919.606 | AL13: 5210 | AM13: 5210 | AN13: =(AM13 / $AM$8) * 'National details'!$E$25 -> 2707477.635 | AO13: 1897 | AP13: 1897 | AQ13: =(AP13 / $AP$8) * 'National details'!$E$26 -> 2478245.047 | AR13: 1849 | AS13: 1849 | AT13: =(AS13/AS$8) *'National details'!$E$27 -> 2488157.892 | AU13: 62919551.77 | AV13: =INDEX('Baselines+historic spend factor'!$P$9:$P$158, MATCH($C13, 'Baselines+historic spend factor'!$C$9:$C$158, 0)) -> 66286823.05 | AW13: -3367271.282 | AX13: 3367271.282 | AY13: 1322890 | AZ13: =INDEX('Import|export adjustments data'!$Q$9:$Q$158, MATCH($C13, 'Import|export adjustments data'!$C$9:$C$158, 0)) -> -82 | BA13: -492000 | BB13: 74201713.05 | BC13: 0 | BD13: 0 | BE13: 74201713.05
A14: Bexley | B14: EAST MIDLANDS | C14: 928 | D14: Northamptonshire | E14: 1.004888139 | F14: 1562 | G14: 4019.552554 | H14: 6278541.09 | I14: =INDEX('Baselines+historic spend factor'!$Q$9:$Q$158, MATCH('HN NFF illustrative allocations'!$C14, 'Baselines+historic spend factor'!$C$9:$C$158, 0)) -> 27959772.77 | J14: 156587.81 | K14: 157353.2329 | L14: 17342463.18 | M14: 13661 | N14: 13727.77686 | O14: 2950463.804 | P14: 11077 | Q14: 11131.14591 | R14: 359894.3713 | S14: 10630 | T14: 10681.96091 | U14: 450123.6985 | V14: 11238 | W14: 11292.9329 | X14: 667853.4517 | Y14: 7963 | Z14: 8001.924248 | AA14: 463745.8543 | AB14: 6031 | AC14: 6060.480364 | AD14: 410393.7939 | AE14: 2116 | AF14: 2126.343301 | AG14: 204209.8705 | AH14: 2556221.04 | AI14: 749 | AJ14: 752.6612158 | AK14: 2152610.666 | AL14: 5140 | AM14: 5165.125032 | AN14: =(AM14 / $AM$8) * 'National details'!$E$25 -> 2684157.487 | AO14: 2244 | AP14: 2254.968983 | AQ14: =(AP14 / $AP$8) * 'National details'!$E$26 -> 2945896.527 | AR14: 2050 | AS14: 2060.020684 | AT14: =(AS14/AS$8) *'National details'!$E$27 -> 2772123.701 | AU14: 61363709.18 | AV14: =INDEX('Baselines+historic spend factor'!$P$9:$P$158, MATCH($C14, 'Baselines+historic spend factor'!$C$9:$C$158, 0)) -> 55919545.55 | AW14: 5444163.629 | AX14: 0 | AY14: 1221320 | AZ14: =INDEX('Import|export adjustments data'!$Q$9:$Q$158, MATCH($C14, 'Import|export adjustments data'!$C$9:$C$158, 0)) -> -59 | BA14: -354000 | BB14: 68509570.27 | BC14: 5444163.629 | BD14: 1677586.366 | BE14: 64742993.01
A15: Birmingham | B15: EAST MIDLANDS | C15: 892 | D15: Nottingham | E15: 1.004115668 | F15: 496 | G15: 4016.462673 | H15: 1992165.486 | I15: =INDEX('Baselines+historic spend factor'!$Q$9:$Q$158, MATCH('HN NFF illustrative allocations'!$C15, 'Baselines+historic spend factor'!$C$9:$C$158, 0)) -> 12799825.07 | J15: 63361.076 | K15: 63621.84916 | L15: 7011991.785 | M15: 11060 | N15: 11105.51929 | O15: 2386871.015 | P15: 4735 | Q15: 4754.487689 | R15: 153723.0193 | S15: 4790 | T15: 4809.714051 | U15: 202674.9859 | V15: 7198 | W15: 7227.624579 | X15: 427434.9334 | Y15: 9873 | Z15: 9913.633992 | AA15: 574537.639 | AB15: 14385 | AC15: 14444.20389 | AD15: 978109.2053 | AE15: 8869 | AF15: 8905.501861 | AG15: 855267.0589 | AH15: 3191746.842 | AI15: 527 | AJ15: 529.1689571 | AK15: 1513422.928 | AL15: 2470 | AM15: 2480.1657 | AN15: =(AM15 / $AM$8) * 'National details'!$E$25 -> 1288866.25 | AO15: 1058 | AP15: 1062.354377 | AQ15: =(AP15 / $AP$8) * 'National details'!$E$26 -> 1387862.136 | AR15: 1390 | AS15: 1395.720779 | AT15: =(AS15/AS$8) *'National details'!$E$27 -> 1878190.195 | AU15: 31458776.22 | AV15: =INDEX('Baselines+historic spend factor'!$P$9:$P$158, MATCH($C15, 'Baselines+historic spend factor'!$C$9:$C$158, 0)) -> 25599650.13 | AW15: 5859126.085 | AX15: 0 | AY15: 1428807 | AZ15: =INDEX('Import|export adjustments data'!$Q$9:$Q$158, MATCH($C15, 'Import|export adjustments data'!$C$9:$C$158, 0)) -> -72 | BA15: -432000 | BB15: 34447748.7 | BC15: 5859126.085 | BD15: 767989.504 | BE15: 29356612.12
A16: Blackburn with Darwen | B16: EAST MIDLANDS | C16: 891 | D16: Nottinghamshire | E16: 1.004115668 | F16: 1039 | G16: 4016.462673 | H16: 4173104.717 | I16: =INDEX('Baselines+historic spend factor'!$Q$9:$Q$158, MATCH('HN NFF illustrative allocations'!$C16, 'Baselines+historic spend factor'!$C$9:$C$158, 0)) -> 27874447.64 | J16: 156195.48 | K16: 156838.3288 | L16: 17285713.75 | M16: 13808 | N16: 13864.82915 | O16: 2979919.979 | P16: 15709 | Q16: 15773.65303 | R16: 509996.8131 | S16: 11885 | T16: 11933.91472 | U16: 502879.3752 | V16: 8848 | W16: 8884.415432 | X16: 525415.9893 | Y16: 9203 | Z16: 9240.876494 | AA16: 535548.4546 | AB16: 6648 | AC16: 6675.360962 | AD16: 452031.2824 | AE16: 1988 | AF16: 1996.181948 | AG16: 191709.4276 | AH16: 2717581.342 | AI16: 816 | AJ16: 819.3583852 | AK16: 2343364.534 | AL16: 5960 | AM16: 5984.529382 | AN16: =(AM16 / $AM$8) * 'National details'!$E$25 -> 3109976.863 | AO16: 1977 | AP16: 1985.136676 | AQ16: =(AP16 / $AP$8) * 'National details'!$E$26 -> 2593386.997 | AR16: 1781 | AS16: 1788.330005 | AT16: =(AS16/AS$8) *'National details'!$E$27 -> 2406515.638 | AU16: 61310906.75 | AV16: =INDEX('Baselines+historic spend factor'!$P$9:$P$158, MATCH($C16, 'Baselines+historic spend factor'!$C$9:$C$158, 0)) -> 55748895.28 | AW16: 5562011.462 | AX16: 0 | AY16: 0 | AZ16: =INDEX('Import|export adjustments data'!$Q$9:$Q$158, MATCH($C16, 'Import|export adjustments data'!$C$9:$C$158, 0)) -> -177 | BA16: -1062000 | BB16: 64422011.46 | BC16: 5562011.462 | BD16: 1672466.858 | BE16: 60532466.86
A17: Blackpool | B17: EAST MIDLANDS | C17: 857 | D17: Rutland | E17: 1 | F17: 27 | G17: 4000 | H17: 108000 | I17: =INDEX('Baselines+historic spend factor'!$Q$9:$Q$158, MATCH('HN NFF illustrative allocations'!$C17, 'Baselines+historic spend factor'!$C$9:$C$158, 0)) -> 1822154.672 | J17: 7597.866 | K17: 7597.866 | L17: 837388.0149 | M17: 230 | N17: 230 | O17: 49433.1079 | P17: 0 | Q17: 0 | R17: 0 | S17: 0 | T17: 0 | U17: 0 | V17: 0 | W17: 0 | X17: 0 | Y17: 0 | Z17: 0 | AA17: 0 | AB17: 0 | AC17: 0 | AD17: 0 | AE17: 0 | AF17: 0 | AG17: 0 | AH17: 0 | AI17: 22 | AJ17: 22 | AK17: 62919.98798 | AL17: 170 | AM17: 170 | AN17: =(AM17 / $AM$8) * 'National details'!$E$25 -> 88343.79999 | AO17: 76 | AP17: 76 | AQ17: =(AP17 / $AP$8) * 'National details'!$E$26 -> 99286.57013 | AR17: 48 | AS17: 48 | AT17: =(AS17/AS$8) *'National details'!$E$27 -> 64592.52504 | AU17: 3024118.678 | AV17: =INDEX('Baselines+historic spend factor'!$P$9:$P$158, MATCH($C17, 'Baselines+historic spend factor'!$C$9:$C$158, 0)) -> 3644309.345 | AW17: -620190.6665 | AX17: 620190.6665 | AY17: 0 | AZ17: =INDEX('Import|export adjustments data'!$Q$9:$Q$158, MATCH($C17, 'Import|export adjustments data'!$C$9:$C$158, 0)) -> -18 | BA17: -108000 | BB17: 3644309.345 | BC17: 0 | BD17: 0 | BE17: 3644309.345
A18: Bolton | B18: EAST OF ENGLAND | C18: 822 | D18: Bedford Borough | E18: 1.023328634 | F18: 356 | G18: 4093.314537 | H18: 1457219.975 | I18: =INDEX('Baselines+historic spend factor'!$Q$9:$Q$158, MATCH('HN NFF illustrative allocations'!$C18, 'Baselines+historic spend factor'!$C$9:$C$158, 0)) -> 9087866.697 | J18: 36855.582 | K18: 37715.3724 | L18: 4156746.226 | M18: 3089 | N18: 3161.062152 | O18: 679396.2019 | P18: 3833 | Q18: 3922.418656 | R18: 126820.4017 | S18: 2928 | T18: 2996.306241 | U18: 126260.3803 | V18: 3685 | W18: 3770.966018 | X18: 223011.3907 | Y18: 2375 | Z18: 2430.405507 | AA18: 140852.4304 | AB18: 918 | AC18: 939.4156864 | AD18: 63613.82999 | AE18: 377 | AF18: 385.7948952 | AG18: 37050.99055 | AH18: 717609.4236 | AI18: 193 | AJ18: 197.5024264 | AK18: 564856.8317 | AL18: 1070 | AM18: 1094.961639 | AN18: =(AM18 / $AM$8) * 'National details'!$E$25 -> 569018.0706 | AO18: 481 | AP18: 492.2210731 | AQ18: =(AP18 / $AP$8) * 'National details'!$E$26 -> 643038.7118 | AR18: 450 | AS18: 460.4978855 | AT18: =(AS18/AS$8) *'National details'!$E$27 -> 619681.6917 | AU18: 17038213.85 | AV18: =INDEX('Baselines+historic spend factor'!$P$9:$P$158, MATCH($C18, 'Baselines+historic spend factor'!$C$9:$C$158, 0)) -> 18175733.39 | AW18: -1137519.539 | AX18: 1137519.539 | AY18: 666000 | AZ18: =INDEX('Import|export adjustments data'!$Q$9:$Q$158, MATCH($C18, 'Import|export adjustments data'!$C$9:$C$158, 0)) -> 31 | BA18: 186000 | BB18: 20484953.37 | BC18: 0 | BD18: 0 | BE18: 20484953.37
A19: Bournemouth | B19: EAST OF ENGLAND | C19: 873 | D19: Cambridgeshire | E19: 1.019104421 | F19: 1118 | G19: 4076.417684 | H19: 4557434.971 | I19: =INDEX('Baselines+historic spend factor'!$Q$9:$Q$158, MATCH('HN NFF illustrative allocations'!$C19, 'Baselines+historic spend factor'!$C$9:$C$158, 0)) -> 28873356.19 | J19: 128979.651 | K19: 131443.7326 | L19: 14486884.38 | M19: 8175 | N19: 8331.178642 | O19: 1790591.534 | P19: 10631 | Q19: 10834.0991 | R19: 350290.1961 | S19: 7010 | T19: 7143.921991 | U19: 301035.4199 | V19: 3491 | W19: 3557.693534 | X19: 210398.6562 | Y19: 984 | Z19: 1002.79875 | AA19: 58116.49158 | AB19: 1515 | AC19: 1543.943198 | AD19: 104550.2449 | AE19: 343 | AF19: 349.5528164 | AG19: 33570.37188 | AH19: 1057961.381 | AI19: 527 | AJ19: 537.0680299 | AK19: 1536014.272 | AL19: 3750 | AM19: 3821.641579 | AN19: =(AM19 / $AM$8) * 'National details'!$E$25 -> 1985990.231 | AO19: 1638 | AP19: 1669.293042 | AQ19: =(AP19 / $AP$8) * 'National details'!$E$26 -> 2180768.166 | AR19: 1792 | AS19: 1826.235122 | AT19: =(AS19/AS$8) *'National details'!$E$27 -> 2457523.706 | AU19: 54369089.86 | AV19: =INDEX('Baselines+historic spend factor'!$P$9:$P$158, MATCH($C19, 'Baselines+historic spend factor'!$C$9:$C$158, 0)) -> 57746712.38 | AW19: -3377622.522 | AX19: 3377622.522 | AY19: 47225 | AZ19: =INDEX('Import|export adjustments data'!$Q$9:$Q$158, MATCH($C19, 'Import|export adjustments data'!$C$9:$C$158, 0)) -> -10 | BA19: -60000 | BB19: 62291372.35 | BC19: 0 | BD19: 0 | BE19: 62291372.35
A20: Bracknell Forest | B20: EAST OF ENGLAND | C20: 823 | D20: Central Bedfordshire | E20: 1.023328634 | F20: 547 | G20: 4093.314537 | H20: 2239043.052 | I20: =INDEX('Baselines+historic spend factor'!$Q$9:$Q$158, MATCH('HN NFF illustrative allocations'!$C20, 'Baselines+historic spend factor'!$C$9:$C$158, 0)) -> 11551455.15 | J20: 58011.409 | K20: 59364.73595 | L20: 6542800.096 | M20: 3516 | N20: 3598.023478 | O20: 773310.795 | P20: 3657 | Q20: 3742.312816 | R20: 120997.1847 | S20: 3955 | T20: 4047.264749 | U20: 170546.3812 | V20: 1569 | W20: 1605.602627 | X20: 94953.83228 | Y20: 2636 | Z20: 2697.49428 | AA20: 156331.3712 | AB20: 0 | AC20: 0 | AD20: 0 | AE20: 0 | AF20: 0 | AG20: 0 | AH20: 542828.7693 | AI20: 230 | AJ20: 235.3655859 | AK20: 673145.4471 | AL20: 1760 | AM20: 1801.058396 | AN20: =(AM20 / $AM$8) * 'National details'!$E$25 -> 935954.9573 | AO20: 686 | AP20: 702.0034432 | AQ20: =(AP20 / $AP$8) * 'National details'!$E$26 -> 917098.8697 | AR20: 726 | AS20: 742.9365886 | AT20: =(AS20/AS$8) *'National details'!$E$27 -> 999753.1292 | AU20: 22936347.21 | AV20: =INDEX('Baselines+historic spend factor'!$P$9:$P$158, MATCH($C20, 'Baselines+historic spend factor'!$C$9:$C$158, 0)) -> 23102910.3 | AW20: -166563.0864 | AX20: 166563.0864 | AY20: 667447 | AZ20: =INDEX('Import|export adjustments data'!$Q$9:$Q$158, MATCH($C20, 'Import|export adjustments data'!$C$9:$C$158, 0)) -> 37 | BA20: 222000 | BB20: 26231400.35 | BC20: 0 | BD20: 0 | BE20: 26231400.35
A21: Bradford | B21: EAST OF ENGLAND | C21: 881 | D21: Essex | E21: 1.018722488 | F21: 2636 | G21: 4074.88995 | H21: 10741409.91 | I21: =INDEX('Baselines+historic spend factor'!$Q$9:$Q$158, MATCH('HN NFF illustrative allocations'!$C21, 'Baselines+historic spend factor'!$C$9:$C$158, 0)) -> 58040015.19 | J21: 291334.015 | K21: 296788.5125 | L21: 32710124.57 | M21: 21679 | N21: 22084.88481 | O21: 4746628.234 | P21: 29116 | Q21: 29661.12395 | R21: 959009.2198 | S21: 21623 | T21: 22027.83635 | U21: 928223.8765 | V21: 12820 | W21: 13060.02229 | X21: 772357.4595 | Y21: 11065 | Z21: 11272.16433 | AA21: 653270.3026 | AB21: 11694 | AC21: 11912.94077 | AD21: 806701.2291 | AE21: 4461 | AF21: 4544.521017 | AG21: 436446.9499 | AH21: 4556009.037 | AI21: 1427 | AJ21: 1453.71699 | AK21: 4157629.796 | AL21: 9650 | AM21: 9830.672005 | AN21: =(AM21 / $AM$8) * 'National details'!$E$25 -> 5108699.537 | AO21: 3790 | AP21: 3860.958228 | AQ21: =(AP21 / $AP$8) * 'National details'!$E$26 -> 5043964.472 | AR21: 4163 | AS21: 4240.941716 | AT21: =(AS21/AS$8) *'National details'!$E$27 -> 5706940.291 | AU21: 120070011.1 | AV21: =INDEX('Baselines+historic spend factor'!$P$9:$P$158, MATCH($C21, 'Baselines+historic spend factor'!$C$9:$C$158, 0)) -> 116080030.4 | AW21: 3989980.745 | AX21: 0 | AY21: 0 | AZ21: =INDEX('Import|export adjustments data'!$Q$9:$Q$158, MATCH($C21, 'Import|export adjustments data'!$C$9:$C$158, 0)) -> -159 | BA21: -954000 | BB21: 129857421 | BC21: 3989980.745 | BD21: 3482400.911 | BE21: 129349841.2
A22: Brent | B22: EAST OF ENGLAND | C22: 919 | D22: Hertfordshire | E22: 1.051953649 | F22: 2231 | G22: 4207.814595 | H22: 9387634.362 | I22: =INDEX('Baselines+historic spend factor'!$Q$9:$Q$158, MATCH('HN NFF illustrative allocations'!$C22, 'Baselines+historic spend factor'!$C$9:$C$158, 0)) -> 43873875.32 | J22: 257962.266 | K22: 271364.347 | L22: 29908036.26 | M22: 14726 | N22: 15491.06943 | O22: 3329442.203 | P22: 22941 | Q22: 24132.86866 | R22: 780268.5962 | S22: 18387 | T22: 19342.27174 | U22: 815057.7375 | V22: 7149 | W22: 7520.416636 | X22: 444750.3808 | Y22: 3580 | Z22: 3765.994063 | AA22: 218255.5195 | AB22: 2015 | AC22: 2119.686602 | AD22: 143537.5043 | AE22: 0 | AF22: 0 | AG22: 0 | AH22: 2401869.738 | AI22: 1113 | AJ22: 1170.824411 | AK22: 3348557.176 | AL22: 6730 | AM22: 7079.648057 | AN22: =(AM22 / $AM$8) * 'National details'!$E$25 -> 3679076.541 | AO22: 2372 | AP22: 2495.234055 | AQ22: =(AP22 / $AP$8) * 'National details'!$E$26 -> 3259779.355 | AR22: 2318 | AS22: 2438.428558 | AT22: =(AS22/AS$8) *'National details'!$E$27 -> 3281338.702 | AU22: 93081975.29 | AV22: =INDEX('Baselines+historic spend factor'!$P$9:$P$158, MATCH($C22, 'Baselines+historic spend factor'!$C$9:$C$158, 0)) -> 87747750.64 | AW22: 5334224.658 | AX22: 0 | AY22: 1328558 | AZ22: =INDEX('Import|export adjustments data'!$Q$9:$Q$158, MATCH($C22, 'Import|export adjustments data'!$C$9:$C$158, 0)) -> 201 | BA22: 1206000 | BB22: 105004167.7 | BC22: 5334224.658 | BD22: 2632432.519 | BE22: 102302375.5
A23: Brighton and Hove | B23: EAST OF ENGLAND | C23: 821 | D23: Luton | E23: 1.023328634 | F23: 446 | G23: 4093.314537 | H23: 1825618.284 | I23: =INDEX('Baselines+historic spend factor'!$Q$9:$Q$158, MATCH('HN NFF illustrative allocations'!$C23, 'Baselines+historic spend factor'!$C$9:$C$158, 0)) -> 11751828.21 | J23: 53273.965 | K23: 54516.77385 | L23: 6008488.835 | M23: 6256 | N23: 6401.943937 | O23: 1375947.763 | P23: 8746 | Q23: 8950.032236 | R23: 289374.1804 | S23: 4432 | T23: 4535.392508 | U23: 191115.439 | V23: 9418 | W23: 9637.709078 | X23: 569965.0684 | Y23: 2717 | Z23: 2780.3839 | AA23: 161135.1804 | AB23: 3637 | AC23: 3721.846243 | AD23: 252029.9561 | AE23: 335 | AF23: 342.8150925 | AG23: 32923.29399 | AH23: 1496543.118 | AI23: 366 | AJ23: 374.5382802 | AK23: 1071179.277 | AL23: 1720 | AM23: 1760.125251 | AN23: =(AM23 / $AM$8) * 'National details'!$E$25 -> 914683.2537 | AO23: 809 | AP23: 827.8728652 | AQ23: =(AP23 / $AP$8) * 'National details'!$E$26 -> 1081534.964 | AR23: 571 | AS23: 584.3206502 | AT23: =(AS23/AS$8) *'National details'!$E$27 -> 786307.2132 | AU23: 24486512.64 | AV23: =INDEX('Baselines+historic spend factor'!$P$9:$P$158, MATCH($C23, 'Baselines+historic spend factor'!$C$9:$C$158, 0)) -> 23503656.43 | AW23: 982856.2099 | AX23: 0 | AY23: 60130 | AZ23: =INDEX('Import|export adjustments data'!$Q$9:$Q$158, MATCH($C23, 'Import|export adjustments data'!$C$9:$C$158, 0)) -> -126 | BA23: -756000 | BB23: 25616260.92 | BC23: 982856.2099 | BD23: 705109.6929 | BE23: 25338514.41
A24: Bristol, City of | B24: EAST OF ENGLAND | C24: 926 | D24: Norfolk | E24: 1 | F24: 1644 | G24: 4000 | H24: 6576000 | I24: =INDEX('Baselines+historic spend factor'!$Q$9:$Q$158, MATCH('HN NFF illustrative allocations'!$C24, 'Baselines+historic spend factor'!$C$9:$C$158, 0)) -> 33075959.09 | J24: 161287.065 | K24: 161287.065 | L24: 17776024.9 | M24: 14504 | N24: 14504 | O24: 3117294.77 | P24: 12633 | Q24: 12633 | R24: 408452.6094 | S24: 9945 | T24: 9945 | U24: 419069.1408 | V24: 8342 | W24: 8342 | X24: 493338.0498 | Y24: 6214 | Z24: 6214 | AA24: 360127.9704 | AB24: 8737 | AC24: 8737 | AD24: 591638.0158 | AE24: 3034 | AF24: 3034 | AG24: 291379.4525 | AH24: 2564005.239 | AI24: 911 | AJ24: 911 | AK24: 2605459.502 | AL24: 6120 | AM24: 6120 | AN24: =(AM24 / $AM$8) * 'National details'!$E$25 -> 3180376.8 | AO24: 2590 | AP24: 2590 | AQ24: =(AP24 / $AP$8) * 'National details'!$E$26 -> 3383581.798 | AR24: 1708 | AS24: 1708 | AT24: =(AS24/AS$8) *'National details'!$E$27 -> 2298417.349 | AU24: 68001119.45 | AV24: =INDEX('Baselines+historic spend factor'!$P$9:$P$158, MATCH($C24, 'Baselines+historic spend factor'!$C$9:$C$158, 0)) -> 66151918.19 | AW24: 1849201.262 | AX24: 0 | AY24: 0 | AZ24: =INDEX('Import|export adjustments data'!$Q$9:$Q$158, MATCH($C24, 'Import|export adjustments data'!$C$9:$C$158, 0)) -> 36 | BA24: 216000 | BB24: 74793119.45 | BC24: 1849201.262 | BD24: 1849201.262 | BE24: 74793119.45
A25: Bromley | B25: EAST OF ENGLAND | C25: 874 | D25: Peterborough | E25: 1.019104421 | F25: 540 | G25: 4076.417684 | H25: 2201265.549 | I25: =INDEX('Baselines+historic spend factor'!$Q$9:$Q$158, MATCH('HN NFF illustrative allocations'!$C25, 'Baselines+historic spend factor'!$C$9:$C$158, 0)) -> 11970415.25 | J25: 45421.182 | K25: 46288.92738 | L25: 5101668.418 | M25: 5348 | N25: 5450.170444 | O25: 1171386.364 | P25: 5481 | Q25: 5585.711332 | R25: 180598.3035 | S25: 6922 | T25: 7054.240802 | U25: 297256.3732 | V25: 4362 | W25: 4445.333485 | X25: 262892.8497 | Y25: 4283 | Z25: 4364.824235 | AA25: 252960.2982 | AB25: 4392 | AC25: 4475.906617 | AD25: 303092.1952 | AE25: 1839 | AF25: 1874.13303 | AG25: 179988.0871 | AH25: 1476788.107 | AI25: 335 | AJ25: 341.399981 | AK25: 976403.7592 | AL25: 1800 | AM25: 1834.387958 | AN25: =(AM25 / $AM$8) * 'National details'!$E$25 -> 953275.3109 | AO25: 834 | AP25: 849.9330871 | AQ25: =(AP25 / $AP$8) * 'National details'!$E$26 -> 1110354.488 | AR25: 726 | AS25: 739.8698097 | AT25: =(AS25/AS$8) *'National details'!$E$27 -> 995626.2335 | AU25: 23755917.93 | AV25: =INDEX('Baselines+historic spend factor'!$P$9:$P$158, MATCH($C25, 'Baselines+historic spend factor'!$C$9:$C$158, 0)) -> 23940830.49 | AW25: -184912.5669 | AX25: 184912.5669 | AY25: 246500 | AZ25: =INDEX('Import|export adjustments data'!$Q$9:$Q$158, MATCH($C25, 'Import|export adjustments data'!$C$9:$C$158, 0)) -> 30 | BA25: 180000 | BB25: 26568596.04 | BC25: 0 | BD25: 0 | BE25: 26568596.04
A26: Buckinghamshire | B26: EAST OF ENGLAND | C26: 882 | D26: Southend-on-Sea | E26: 1.005269219 | F26: 528 | G26: 4021.076877 | H26: 2123128.591 | I26: =INDEX('Baselines+historic spend factor'!$Q$9:$Q$158, MATCH('HN NFF illustrative allocations'!$C26, 'Baselines+historic spend factor'!$C$9:$C$158, 0)) -> 7279468.544 | J26: 36661.425 | K26: 36854.60208 | L26: 4061877.648 | M26: 3700 | N26: 3719.496111 | O26: 799418.4896 | P26: 3660 | Q26: 3679.285342 | R26: 118959.3682 | S26: 5412 | T26: 5440.517014 | U26: 229256.1881 | V26: 2801 | W26: 2815.759083 | X26: 166521.3491 | Y26: 3001 | Z26: 3016.812927 | AA26: 174837.2572 | AB26: 2405 | AC26: 2417.672472 | AD26: 163716.0289 | AE26: 2021 | AF26: 2031.649092 | AG26: 195115.623 | AH26: 1048405.815 | AI26: 224 | AJ26: 225.1803051 | AK26: 644015.5496 | AL26: 1190 | AM26: 1196.270371 | AN26: =(AM26 / $AM$8) * 'National details'!$E$25 -> 621665.1198 | AO26: 539 | AP26: 541.8401092 | AQ26: =(AP26 / $AP$8) * 'National details'!$E$26 -> 707861.1315 | AR26: 683 | AS26: 686.5988767 | AT26: =(AS26/AS$8) *'National details'!$E$27 -> 923940.7321 | AU26: 16086653.03 | AV26: =INDEX('Baselines+historic spend factor'!$P$9:$P$158, MATCH($C26, 'Baselines+historic spend factor'!$C$9:$C$158, 0)) -> 14558937.09 | AW26: 1527715.941 | AX26: 0 | AY26: 32000 | AZ26: =INDEX('Import|export adjustments data'!$Q$9:$Q$158, MATCH($C26, 'Import|export adjustments data'!$C$9:$C$158, 0)) -> 67 | BA26: 402000 | BB26: 18643781.62 | BC26: 1527715.941 | BD26: 436768.1127 | BE26: 17552833.79
A27: Bury | B27: EAST OF ENGLAND | C27: 935 | D27: Suffolk | E27: 1.000035564 | F27: 1176 | G27: 4000.142257 | H27: 4704167.295 | I27: =INDEX('Baselines+historic spend factor'!$Q$9:$Q$158, MATCH('HN NFF illustrative allocations'!$C27, 'Baselines+historic spend factor'!$C$9:$C$158, 0)) -> 24087669.74 | J27: 144233.666 | K27: 144238.7956 | L27: 15897074.09 | M27: 11781 | N27: 11781.41898 | O27: 2532139.808 | P27: 11874 | Q27: 11874.42229 | R27: 383926.1276 | S27: 7191 | T27: 7191.255743 | U27: 303030.0016 | V27: 7719 | W27: 7719.274521 | X27: 456510.6495 | Y27: 4772 | Z27: 4772.169713 | AA27: 276567.717 | AB27: 4112 | AC27: 4112.146241 | AD27: 278459.6592 | AE27: 694 | AF27: 694.0246817 | AG27: 66652.7791 | AH27: 1765146.934 | AI27: 731 | AJ27: 731.0259975 | AK27: 2090733.954 | AL27: 4700 | AM27: 4700.167152 | AN27: =(AM27 / $AM$8) * 'National details'!$E$25 -> 2442533.099 | AO27: 2205 | AP27: 2205.078419 | AQ27: =(AP27 / $AP$8) * 'National details'!$E$26 -> 2880719.383 | AR27: 1916 | AS27: 1916.068141 | AT27: =(AS27/AS$8) *'National details'!$E$27 -> 2578409.988 | AU27: 54274426.99 | AV27: =INDEX('Baselines+historic spend factor'!$P$9:$P$158, MATCH($C27, 'Baselines+historic spend factor'!$C$9:$C$158, 0)) -> 48175339.47 | AW27: 6099087.516 | AX27: 0 | AY27: 0 | AZ27: =INDEX('Import|export adjustments data'!$Q$9:$Q$158, MATCH($C27, 'Import|export adjustments data'!$C$9:$C$158, 0)) -> -95.5 | BA27: -573000 | BB27: 58405594.28 | BC27: 6099087.516 | BD27: 1445260.184 | BE27: 53751766.95
A28: Calderdale | B28: EAST OF ENGLAND | C28: 883 | D28: Thurrock | E28: 1.044805065 | F28: 386 | G28: 4179.220261 | H28: 1613179.021 | I28: =INDEX('Baselines+historic spend factor'!$Q$9:$Q$158, MATCH('HN NFF illustrative allocations'!$C28, 'Baselines+historic spend factor'!$C$9:$C$158, 0)) -> 9678615.03 | J28: 39209.956 | K28: 40966.76064 | L28: 4515093.366 | M28: 3849 | N28: 4021.454697 | O28: 864317.4084 | P28: 5646 | Q28: 5898.969399 | R28: 190726.6242 | S28: 7395 | T28: 7726.333458 | U28: 325577.4684 | V28: 3972 | W28: 4149.96572 | X28: 245425.0773 | Y28: 651 | Z28: 680.1680975 | AA28: 39418.66053 | AB28: 2368 | AC28: 2474.098395 | AD28: 167536.9881 | AE28: 419 | AF28: 437.7733224 | AG28: 42042.8975 | AH28: 1010727.716 | AI28: 205 | AJ28: 214.1850384 | AK28: 612569.0928 | AL28: 1340 | AM28: 1400.038788 | AN28: =(AM28 / $AM$8) * 'National details'!$E$25 -> 727557.3331 | AO28: 544 | AP28: 568.3739556 | AQ28: =(AP28 / $AP$8) * 'National details'!$E$26 -> 742525.0079 | AR28: 439 | AS28: 458.6694237 | AT28: =(AS28/AS$8) *'National details'!$E$27 -> 617221.1716 | AU28: 18768626.13 | AV28: =INDEX('Baselines+historic spend factor'!$P$9:$P$158, MATCH($C28, 'Baselines+historic spend factor'!$C$9:$C$158, 0)) -> 19357230.06 | AW28: -588603.9344 | AX28: 588603.9344 | AY28: 0 | AZ28: =INDEX('Import|export adjustments data'!$Q$9:$Q$158, MATCH($C28, 'Import|export adjustments data'!$C$9:$C$158, 0)) -> -46 | BA28: -276000 | BB28: 20694409.08 | BC28: 0 | BD28: 0 | BE28: 20694409.08
A29: Cambridgeshire | B29: INNER LONDON | C29: 202 | D29: Camden | E29: 1.203818733 | F29: 345 | G29: 4815.274933 | H29: =F29*G29 -> 1661269.852 | I29: =INDEX('Baselines+historic spend factor'!$Q$9:$Q$158, MATCH('HN NFF illustrative allocations'!$C29, 'Baselines+historic spend factor'!$C$9:$C$158, 0)) -> 13972574.7 | J29: 45245.739 | K29: 54467.6682 | L29: 6003076.726 | M29: 6158 | N29: 7413.115759 | O29: 1593275.44 | P29: 3826 | Q29: 4605.810473 | R29: 148915.9587 | S29: 4226 | T29: 5087.337966 | U29: 214373.6903 | V29: 3505 | W29: 4219.38466 | X29: 249530.4482 | Y29: 4701 | Z29: 5659.151864 | AA29: 327972.1396 | AB29: 7886 | AC29: 9493.314529 | AD29: 642852.8981 | AE29: 2797 | AF29: 3367.080997 | AG29: 323367.9029 | AH29: 1907013.038 | AI29: 346 | AJ29: 416.5212817 | AK29: 1191250.638 | AL29: 1030 | AM29: 1239.933295 | AN29: =(AM29 / $AM$8) * 'National details'!$E$25 -> 644355.406 | AO29: 335 | AP29: 403.2792756 | AQ29: =(AP29 / $AP$8) * 'National details'!$E$26 -> 526844.9484 | AR29: 343 | AS29: 412.9098255 | AT29: =(AS29/AS$8) *'National details'!$E$27 -> 555643.505 | AU29: 26394034.4 | AV29: =INDEX('Baselines+historic spend factor'!$P$9:$P$158, MATCH($C29, 'Baselines+historic spend factor'!$C$9:$C$158, 0)) -> 27945149.4 | AW29: -1551114.997 | AX29: 1551114.997 | AY29: 2163266 | AZ29: =INDEX('Import|export adjustments data'!$Q$9:$Q$158, MATCH($C29, 'Import|export adjustments data'!$C$9:$C$158, 0)) -> 77 | BA29: 462000 | BB29: 32231685.25 | BC29: 0 | BD29: 0 | BE29: 32231685.25
A30: Camden | B30: INNER LONDON | C30: 204 | D30: Hackney | E30: 1.203818733 | F30: 574 | G30: 4815.274933 | H30: 2763967.811 | I30: =INDEX('Baselines+historic spend factor'!$Q$9:$Q$158, MATCH('HN NFF illustrative allocations'!$C30, 'Baselines+historic spend factor'!$C$9:$C$158, 0)) -> 18985167.07 | J30: 57358.075 | K30: 69048.72518 | L30: =(K30 /$K$8) * L$8 -> 7610107.221 | M30: 11342 | N30: 13653.71207 | O30: 2934545.313 | P30: 6176 | Q30: 7434.784496 | R30: 240382.8962 | S30: 6921 | T30: 8331.629452 | U30: 351083.8407 | V30: 4850 | W30: 5838.520856 | X30: 345284.6431 | Y30: 11118 | Z30: 13384.05667 | AA30: 775663.5285 | AB30: 13506 | AC30: 16258.77581 | AD30: 1100985.448 | AE30: 1840 | AF30: 2215.026469 | AG30: 212726.8292 | AH30: 3026127.186 | AI30: 513 | AJ30: 617.5590101 | AK30: 1766218.431 | AL30: 1700 | AM30: 2046.491846 | AN30: =(AM30 / $AM$8) * 'National details'!$E$25 -> 1063499.214 | AO30: 594 | AP30: 715.0683275 | AQ30: =(AP30 / $AP$8) * 'National details'!$E$26 -> 934166.8638 | AR30: 550 | AS30: 662.1003032 | AT30: =(AS30/AS$8) *'National details'!$E$27 -> 890973.5504 | AU30: 37210804.85 | AV30: =INDEX('Baselines+historic spend factor'!$P$9:$P$158, MATCH($C30, 'Baselines+historic spend factor'!$C$9:$C$158, 0)) -> 37970334.14 | AW30: -759529.2905 | AX30: 759529.2905 | AY30: 0 | AZ30: =INDEX('Import|export adjustments data'!$Q$9:$Q$158, MATCH($C30, 'Import|export adjustments data'!$C$9:$C$158, 0)) -> -15 | BA30: -90000 | BB30: 40644301.95 | BC30: 0 | BD30: 0 | BE30: 40644301.95
A31: Central Bedfordshire | B31: INNER LONDON | C31: 205 | D31: Hammersmith and Fulham | E31: 1.203818733 | F31: 420 | G31: 4815.274933 | H31: 2022415.472 | I31: =INDEX('Baselines+historic spend factor'!$Q$9:$Q$158, MATCH('HN NFF illustrative allocations'!$C31, 'Baselines+historic spend factor'!$C$9:$C$158, 0)) -> 7927792.264 | J31: 31740.026 | K31: 38209.23789 | L31: 4211176.91 | M31: 4242 | N31: 5106.599066 | O31: 1097543.751 | P31: 2383 | Q31: 2868.700041 | R31: 92751.36684 | S31: 2243 | T31: 2700.165418 | U31: 113781.3979 | V31: 2626 | W31: 3161.227993 | X31: 186952.0562 | Y31: 3671 | Z31: 4419.218569 | AA31: 256112.6833 | AB31: 4884 | AC31: 5879.450693 | AD31: 398135.1198 | AE31: 2395 | AF31: 2883.145866 | AG31: 276891.7152 | AH31: 1324624.339 | AI31: 222 | AJ31: 267.2477588 | AK31: 764328.444 | AL31: 670 | AM31: 806.5585512 | AN31: =(AM31 / $AM$8) * 'National details'!$E$25 -> 419143.8078 | AO31: 248 | AP31: 298.5470458 | AQ31: =(AP31 / $AP$8) * 'National details'!$E$26 -> 390022.529 | AR31: 220 | AS31: 264.8401213 | AT31: =(AS31/AS$8) *'National details'!$E$27 -> 356389.4201 | AU31: 16491021.47 | AV31: =INDEX('Baselines+historic spend factor'!$P$9:$P$158, MATCH($C31, 'Baselines+historic spend factor'!$C$9:$C$158, 0)) -> 15855584.53 | AW31: 635436.9368 | AX31: 0 | AY31: 300000 | AZ31: =INDEX('Import|export adjustments data'!$Q$9:$Q$158, MATCH($C31, 'Import|export adjustments data'!$C$9:$C$158, 0)) -> 244 | BA31: 1464000 | BB31: 20277436.94 | BC31: 635436.9368 | BD31: 475667.5359 | BE31: 20117667.54
A32: Cheshire East | B32: INNER LONDON | C32: 309 | D32: Haringey | E32: 1.123376795 | F32: 433 | G32: 4493.50718 | H32: 1945688.609 | I32: =INDEX('Baselines+historic spend factor'!$Q$9:$Q$158, MATCH('HN NFF illustrative allocations'!$C32, 'Baselines+historic spend factor'!$C$9:$C$158, 0)) -> 16144357.77 | J32: 55570.519 | K32: 62426.63154 | L32: 6880262.571 | M32: 7763 | N32: 8720.774061 | O32: 1874325.935 | P32: 3305 | Q32: 3712.760308 | R32: 120041.6873 | S32: 4377 | T32: 4917.020232 | U32: 207196.7264 | V32: 7461 | W32: 8381.514268 | X32: 495674.8865 | Y32: 11373 | Z32: 12776.16429 | AA32: 740433.5558 | AB32: 10207 | AC32: 11466.30695 | AD32: 776456.8033 | AE32: 1879 | AF32: 2110.824998 | AG32: 202719.5228 | AH32: 2542523.182 | AI32: 496 | AJ32: 557.1948904 | AK32: 1593577.082 | AL32: 1480 | AM32: 1662.597657 | AN32: =(AM32 / $AM$8) * 'National details'!$E$25 -> 864001.1462 | AO32: 773 | AP32: 868.3702626 | AQ32: =(AP32 / $AP$8) * 'National details'!$E$26 -> 1134440.855 | AR32: 683 | AS32: 767.2663511 | AT32: =(AS32/AS$8) *'National details'!$E$27 -> 1032493.146 | AU32: 32065981.69 | AV32: =INDEX('Baselines+historic spend factor'!$P$9:$P$158, MATCH($C32, 'Baselines+historic spend factor'!$C$9:$C$158, 0)) -> 32288715.55 | AW32: -222733.8557 | AX32: 222733.8557 | AY32: 185658.82 | AZ32: =INDEX('Import|export adjustments data'!$Q$9:$Q$158, MATCH($C32, 'Import|export adjustments data'!$C$9:$C$158, 0)) -> 102 | BA32: 612000 | BB32: 35032062.98 | BC32: 0 | BD32: 0 | BE32: 35032062.98
A33: Cheshire West and Chester | B33: INNER LONDON | C33: 206 | D33: Islington | E33: 1.203818733 | F33: 424 | G33: 4815.274933 | H33: 2041676.571 | I33: =INDEX('Baselines+historic spend factor'!$Q$9:$Q$158, MATCH('HN NFF illustrative allocations'!$C33, 'Baselines+historic spend factor'!$C$9:$C$158, 0)) -> 12147155.6 | J33: 38197.482 | K33: 45982.84439 | L33: 5067933.915 | M33: 7430 | N33: 8944.373187 | O33: 1922383.326 | P33: 1970 | Q33: 2371.522904 | R33: 76676.5391 | S33: 3954 | T33: 4759.899271 | U33: 200575.857 | V33: 5693 | W33: 6853.340048 | X33: 405300.0975 | Y33: 5606 | Z33: 6748.607818 | AA33: 391110.788 | AB33: 9640 | AC33: 11604.81259 | AD33: 785835.9039 | AE33: 3900 | AF33: 4694.893059 | AG33: 450888.388 | AH33: 2310387.574 | AI33: 342 | AJ33: 411.7060067 | AK33: 1177478.954 | AL33: 1220 | AM33: 1468.658854 | AN33: =(AM33 / $AM$8) * 'National details'!$E$25 -> 763217.0829 | AO33: 436 | AP33: 524.8649676 | AQ33: =(AP33 / $AP$8) * 'National details'!$E$26 -> 685684.7687 | AR33: 303 | AS33: 364.7570761 | AT33: =(AS33/AS$8) *'National details'!$E$27 -> 490845.4287 | AU33: 24565086.65 | AV33: =INDEX('Baselines+historic spend factor'!$P$9:$P$158, MATCH($C33, 'Baselines+historic spend factor'!$C$9:$C$158, 0)) -> 24294311.2 | AW33: 270775.4471 | AX33: 0 | AY33: 64000 | AZ33: =INDEX('Import|export adjustments data'!$Q$9:$Q$158, MATCH($C33, 'Import|export adjustments data'!$C$9:$C$158, 0)) -> -29 | BA33: -174000 | BB33: 26496763.22 | BC33: 270775.4471 | BD33: 270775.4471 | BE33: 26496763.22
A34: Cornwall | B34: INNER LONDON | C34: 207 | D34: Kensington and Chelsea | E34: 1.203818733 | F34: 144 | G34: 4815.274933 | H34: 693399.5903 | I34: =INDEX('Baselines+historic spend factor'!$Q$9:$Q$158, MATCH('HN NFF illustrative allocations'!$C34, 'Baselines+historic spend factor'!$C$9:$C$158, 0)) -> 6769532.099 | J34: 26242.22 | K34: 31590.87603 | L34: 3481743.554 | M34: 2301 | N34: 2769.986905 | O34: 595343.7459 | P34: 1411 | Q34: 1698.588232 | R34: 54919.08461 | S34: 1121 | T34: 1349.4808 | U34: 56865.33527 | V34: 1700 | W34: 2046.491846 | X34: 121027.6068 | Y34: 1158 | Z34: 1394.022093 | AA34: 80789.56341 | AB34: 3251 | AC34: 3913.614701 | AD34: 265015.8219 | AE34: 816 | AF34: 982.3160862 | AG34: 94339.72426 | AH34: 672957.1364 | AI34: 159 | AJ34: 191.4071786 | AK34: 547424.4261 | AL34: 370 | AM34: 445.4129313 | AN34: =(AM34 / $AM$8) * 'National details'!$E$25 -> 231467.4759 | AO34: 118 | AP34: 142.0506105 | AQ34: =(AP34 / $AP$8) * 'National details'!$E$26 -> 185575.2356 | AR34: 86 | AS34: 103.528411 | AT34: =(AS34/AS$8) *'National details'!$E$27 -> 139315.8642 | AU34: 12623359.54 | AV34: =INDEX('Baselines+historic spend factor'!$P$9:$P$158, MATCH($C34, 'Baselines+historic spend factor'!$C$9:$C$158, 0)) -> 13539064.2 | AW34: -915704.6604 | AX34: 915704.6604 | AY34: 1165000 | AZ34: =INDEX('Import|export adjustments data'!$Q$9:$Q$158, MATCH($C34, 'Import|export adjustments data'!$C$9:$C$158, 0)) -> 9 | BA34: 54000 | BB34: 15451463.79 | BC34: 0 | BD34: 0 | BE34: 15451463.79
A35: Coventry | B35: INNER LONDON | C35: 208 | D35: Lambeth | E35: 1.203818733 | F35: 465 | G35: 4815.274933 | H35: 2239102.844 | I35: =INDEX('Baselines+historic spend factor'!$Q$9:$Q$158, MATCH('HN NFF illustrative allocations'!$C35, 'Baselines+historic spend factor'!$C$9:$C$158, 0)) -> 18480000.3 | J35: 58129.227 | K35: 69977.05241 | L35: 7712421.488 | M35: 9881 | N35: 11894.9329 | O35: 2556536.964 | P35: 4354 | Q35: 5241.426764 | R35: 169466.828 | S35: 8925 | T35: 10744.08219 | U35: 452741.407 | V35: 9988 | W35: 12023.74151 | X35: 711072.7866 | Y35: 10619 | Z35: 12783.35113 | AA35: 740850.0638 | AB35: 10377 | AC35: 12492.02699 | AD35: 845914.8522 | AE35: 761 | AF35: 916.1060559 | AG35: 87981.04187 | AH35: 3008026.98 | AI35: 490 | AJ35: 589.8711792 | AK35: 1687031.25 | AL35: 1690 | AM35: 2034.453659 | AN35: =(AM35 / $AM$8) * 'National details'!$E$25 -> 1057243.336 | AO35: 609 | AP35: 733.1256085 | AQ35: =(AP35 / $AP$8) * 'National details'!$E$26 -> 957756.9361 | AR35: 528 | AS35: 635.6162911 | AT35: =(AS35/AS$8) *'National details'!$E$27 -> 855334.6083 | AU35: 36314351.86 | AV35: =INDEX('Baselines+historic spend factor'!$P$9:$P$158, MATCH($C35, 'Baselines+historic spend factor'!$C$9:$C$158, 0)) -> 36960000.59 | AW35: -645648.7354 | AX35: 645648.7354 | AY35: 192472 | AZ35: =INDEX('Import|export adjustments data'!$Q$9:$Q$158, MATCH($C35, 'Import|export adjustments data'!$C$9:$C$158, 0)) -> -81 | BA35: -486000 | BB35: 38905575.44 | BC35: 0 | BD35: 0 | BE35: 38905575.44
A36: Croydon | B36: INNER LONDON | C36: 209 | D36: Lewisham | E36: 1.203818733 | F36: 629 | G36: 4815.274933 | H36: 3028807.933 | I36: =INDEX('Baselines+historic spend factor'!$Q$9:$Q$158, MATCH('HN NFF illustrative allocations'!$C36, 'Baselines+historic spend factor'!$C$9:$C$158, 0)) -> 22710155.87 | J36: 64124.878 | K36: 77194.7294 | L36: 8507907.511 | M36: 8347 | N36: 10048.27497 | O36: 2159641.133 | P36: 9519 | Q36: 11459.15052 | R36: 370499.4801 | S36: 12290 | T36: 14794.93223 | U36: 623438.8675 | V36: 7710 | W36: 9281.442432 | X36: 548895.7934 | Y36: 10026 | Z36: 12069.48662 | AA36: 699478.5516 | AB36: 10112 | AC36: 12173.01503 | AD36: 824312.5166 | AE36: 967 | AF36: 1164.092715 | AG36: 111797.1978 | AH36: 3178422.407 | AI36: 442 | AJ36: 532.08788 | AK36: 1521771.046 | AL36: 2370 | AM36: 2853.050398 | AN36: =(AM36 / $AM$8) * 'National details'!$E$25 -> 1482643.022 | AO36: 724 | AP36: 871.5647628 | AQ36: =(AP36 / $AP$8) * 'National details'!$E$26 -> 1138614.157 | AR36: 762 | AS36: 917.3098746 | AT36: =(AS36/AS$8) *'National details'!$E$27 -> 1234403.355 | AU36: 41933558.5 | AV36: =INDEX('Baselines+historic spend factor'!$P$9:$P$158, MATCH($C36, 'Baselines+historic spend factor'!$C$9:$C$158, 0)) -> 45420311.73 | AW36: -3486753.236 | AX36: 3486753.236 | AY36: 292855 | AZ36: =INDEX('Import|export adjustments data'!$Q$9:$Q$158, MATCH($C36, 'Import|export adjustments data'!$C$9:$C$158, 0)) -> -15 | BA36: -90000 | BB36: 48651974.67 | BC36: 0 | BD36: 0 | BE36: 48651974.67
A37: Cumbria | B37: INNER LONDON | C37: 316 | D37: Newham | E37: 1.123376795 | F37: 153 | G37: 4493.50718 | H37: 687506.5986 | I37: =INDEX('Baselines+historic spend factor'!$Q$9:$Q$158, MATCH('HN NFF illustrative allocations'!$C37, 'Baselines+historic spend factor'!$C$9:$C$158, 0)) -> 22250862.14 | J37: 78272.093 | K37: 87929.05298 | L37: 9690975.746 | M37: 11683 | N37: 13124.4111 | O37: 2820784.478 | P37: 20445 | Q37: 22967.43858 | R37: 742587.6844 | S37: 18912 | T37: 21245.30195 | U37: 895248.9124 | V37: 14659 | W37: 16467.58044 | X37: 973877.2499 | Y37: 8310 | Z37: 9335.261167 | AA37: 541018.4515 | AB37: 6737 | AC37: 7568.189469 | AD37: 512490.3972 | AE37: 0 | AF37: 0 | AG37: 0 | AH37: 3665222.695 | AI37: 708 | AJ37: 795.3507709 | AK37: 2274702.77 | AL37: 1960 | AM37: 2201.818518 | AN37: =(AM37 / $AM$8) * 'National details'!$E$25 -> 1144217.734 | AO37: 1038 | AP37: 1166.065113 | AQ37: =(AP37 / $AP$8) * 'National details'!$E$26 -> 1523350.074 | AR37: 749 | AS37: 841.4092195 | AT37: =(AS37/AS$8) *'National details'!$E$27 -> 1132265.543 | AU37: 44502381.18 | AV37: =INDEX('Baselines+historic spend factor'!$P$9:$P$158, MATCH($C37, 'Baselines+historic spend factor'!$C$9:$C$158, 0)) -> 44501724.29 | AW37: 656.8981024 | AX37: 0 | AY37: 0 | AZ37: =INDEX('Import|export adjustments data'!$Q$9:$Q$158, MATCH($C37, 'Import|export adjustments data'!$C$9:$C$158, 0)) -> -62 | BA37: -372000 | BB37: 44817887.78 | BC37: 656.8981024 | BD37: 656.8981024 | BE37: 44817887.78
A38: Darlington | B38: INNER LONDON | C38: 210 | D38: Southwark | E38: 1.203818733 | F38: 540 | G38: 4815.274933 | H38: 2600248.464 | I38: =INDEX('Baselines+historic spend factor'!$Q$9:$Q$158, MATCH('HN NFF illustrative allocations'!$C38, 'Baselines+historic spend factor'!$C$9:$C$158, 0)) -> 20008841.32 | J38: 58187.227 | K38: 70046.87389 | L38: 7720116.764 | M38: 9740 | N38: 11725.19446 | O38: 2520055.665 | P38: 2818 | Q38: 3392.36119 | R38: 109682.4808 | S38: 6676 | T38: 8036.693862 | U38: 338655.6452 | V38: 10979 | W38: 13216.72587 | X38: 781624.7621 | Y38: 14822 | Z38: 17843.00126 | AA38: 1034078.505 | AB38: 8735 | AC38: 10515.35663 | AD38: 712061.8901 | AE38: 571 | AF38: 687.3804966 | AG38: 66014.6845 | AH38: 3042117.968 | AI38: 436 | AJ38: 524.8649676 | AK38: 1501113.521 | AL38: 1880 | AM38: 2263.179218 | AN38: =(AM38 / $AM$8) * 'National details'!$E$25 -> 1176105.013 | AO38: 631 | AP38: 759.6096206 | AQ38: =(AP38 / $AP$8) * 'National details'!$E$26 -> 992355.7088 | AR38: 557 | AS38: 670.5270344 | AT38: =(AS38/AS$8) *'National details'!$E$27 -> 902313.2137 | AU38: 37863019.17 | AV38: =INDEX('Baselines+historic spend factor'!$P$9:$P$158, MATCH($C38, 'Baselines+historic spend factor'!$C$9:$C$158, 0)) -> 40017682.64 | AW38: -2154663.466 | AX38: 2154663.466 | AY38: 2120311 | AZ38: =INDEX('Import|export adjustments data'!$Q$9:$Q$158, MATCH($C38, 'Import|export adjustments data'!$C$9:$C$158, 0)) -> -177.5 | BA38: -1065000 | BB38: 43673242.1 | BC38: 0 | BD38: 0 | BE38: 43673242.1
A39: Derby | B39: INNER LONDON | C39: 211 | D39: Tower Hamlets | E39: 1.203818733 | F39: 543 | G39: 4815.274933 | H39: 2614694.288 | I39: =INDEX('Baselines+historic spend factor'!$Q$9:$Q$158, MATCH('HN NFF illustrative allocations'!$C39, 'Baselines+historic spend factor'!$C$9:$C$158, 0)) -> 20123299.97 | J39: 63859.324 | K39: 76875.05052 | L39: 8472674.557 | M39: 15830 | N39: 19056.45055 | O39: 4095737.287 | P39: 1166 | Q39: 1403.652643 | R39: 45383.16984 | S39: 1617 | T39: 1946.574891 | U39: 82026.09022 | V39: 8740 | W39: 10521.37573 | X39: 622224.2846 | Y39: 12074 | Z39: 14534.90738 | AA39: 842360.2666 | AB39: 23628 | AC39: 28443.82903 | AD39: 1926113.147 | AE39: 6455 | AF39: 7770.649922 | AG39: 746278.0884 | AH39: 4264385.047 | AI39: 652 | AJ39: 784.889814 | AK39: 2244784.439 | AL39: 1980 | AM39: 2383.561092 | AN39: =(AM39 / $AM$8) * 'National details'!$E$25 -> 1238663.79 | AO39: 656 | AP39: 789.7050889 | AQ39: =(AP39 / $AP$8) * 'National details'!$E$26 -> 1031672.496 | AR39: 411 | AS39: 494.7694993 | AT39: =(AS39/AS$8) *'National details'!$E$27 -> 665800.2349 | AU39: 42137017.82 | AV39: =INDEX('Baselines+historic spend factor'!$P$9:$P$158, MATCH($C39, 'Baselines+historic spend factor'!$C$9:$C$158, 0)) -> 40246599.93 | AW39: 1890417.885 | AX39: 0 | AY39: 460000 | AZ39: =INDEX('Import|export adjustments data'!$Q$9:$Q$158, MATCH($C39, 'Import|export adjustments data'!$C$9:$C$158, 0)) -> -36 | BA39: -216000 | BB39: 44995712.11 | BC39: 1890417.885 | BD39: 1207397.998 | BE39: 44312692.22
A40: Derbyshire | B40: INNER LONDON | C40: 212 | D40: Wandsworth | E40: 1.203818733 | F40: 913 | G40: 4815.274933 | H40: 4396346.013 | I40: =INDEX('Baselines+historic spend factor'!$Q$9:$Q$158, MATCH('HN NFF illustrative allocations'!$C40, 'Baselines+historic spend factor'!$C$9:$C$158, 0)) -> 16464495.05 | J40: 55791.248 | K40: 67162.54949 | L40: 7402225.044 | M40: 5857 | N40: 7050.76632 | O40: 1515396.923 | P40: 7106 | Q40: 8554.335918 | R40: 276580.4502 | S40: 6480 | T40: 7800.745391 | U40: 328713.0888 | V40: 3220 | W40: 3876.296321 | X40: 229240.5259 | Y40: 2614 | Z40: 3146.782168 | AA40: 182369.5326 | AB40: 7524 | AC40: 9057.532148 | AD40: 613343.2926 | AE40: 565 | AF40: 680.1575842 | AG40: 65321.01006 | AH40: 1695567.9 | AI40: 351 | AJ40: 422.5403753 | AK40: 1208465.243 | AL40: 1520 | AM40: 1829.804474 | AN40: =(AM40 / $AM$8) * 'National details'!$E$25 -> 950893.4147 | AO40: 383 | AP40: 461.0625748 | AQ40: =(AP40 / $AP$8) * 'National details'!$E$26 -> 602333.1798 | AR40: 410 | AS40: 493.5656806 | AT40: =(AS40/AS$8) *'National details'!$E$27 -> 664180.283 | AU40: 30503557.04 | AV40: =INDEX('Baselines+historic spend factor'!$P$9:$P$158, MATCH($C40, 'Baselines+historic spend factor'!$C$9:$C$158, 0)) -> 32928990.11 | AW40: -2425433.065 | AX40: 2425433.065 | AY40: 1713760 | AZ40: =INDEX('Import|export adjustments data'!$Q$9:$Q$158, MATCH($C40, 'Import|export adjustments data'!$C$9:$C$158, 0)) -> 269.5 | BA40: 1617000 | BB40: 40656096.12 | BC40: 0 | BD40: 0 | BE40: 40656096.12
A41: Devon | B41: INNER LONDON | C41: 213 | D41: Westminster | E41: 1.203818733 | F41: 235 | G41: =4000 * E41 -> 4815.274933 | H41: =F41*G41 -> 1131589.609 | I41: =INDEX('Baselines+historic spend factor'!$Q$9:$Q$158, MATCH('HN NFF illustrative allocations'!$C41, 'Baselines+historic spend factor'!$C$9:$C$158, 0)) -> 10984330.83 | J41: 41943.481 | K41: =J41 * E41 -> 50492.34816 | L41: 5564942.471 | M41: 5293 | N41: =M41 * E41 -> 6371.812554 | O41: =(N41 /N$8) * O$8 -> 1369471.728 | P41: 2121 | Q41: =P41 * E41 -> 2553.299533 | R41: =(Q41/Q$8)*R$8 -> 82553.77636 | S41: 2561 | T41: =S41 * E41 -> 3082.979776 | U41: =(T41/T$8)*U$8 -> 129912.6883 | V41: 3692 | W41: =V41 * E41 -> 4444.498763 | X41: =(W41/W$8)*X$8 -> 262843.485 | Y41: 3238 | Z41: =Y41 * E41 -> 3897.965058 | AA41: =(Z41/Z$8)*AA$8 -> 225903.8051 | AB41: 8544 | AC41: =AB41 * E41 -> 10285.42726 | AD41: =(AC41/AC$8)*AD$8 -> 696491.9049 | AE41: 3741 | AF41: =AE41 * E41 -> 4503.485881 | AG41: =(AF41/AF$8)*AG$8 -> 432506.0153 | AH41: =R41+U41+X41+AA41+AD41+AG41 -> 1830211.675 | AI41: 315 | AJ41: =AI41 * E41 -> 379.2029009 | AK41: =(AJ41/AJ$8)*AK$8 -> 1084520.089 | AL41: 780 | AM41: =AL41 * E41 -> 938.9786118 | AN41: =(AM41 / $AM$8) * 'National details'!$E$25 -> 487958.4628 | AO41: 303 | AP41: =AO41 * E41 -> 364.7570761 | AQ41: =(AP41 / $AP$8) * 'National details'!$E$26 -> 476519.4608 | AR41: 192 | AS41: =AR41 * E41 -> 231.1331968 | AT41: =(AS41/AS$8) *'National details'!$E$27 -> 311030.7667 | AU41: =I41+L41+O41+AH41+AK41+AN41+AQ41+AT41 -> 22108985.49 | AV41: =INDEX('Baselines+historic spend factor'!$P$9:$P$158, MATCH($C41, 'Baselines+historic spend factor'!$C$9:$C$158, 0)) -> 21968661.66 | AW41: =AU41-AV41 -> 140323.8218 | AX41: =MAX(0, -AW41) -> 0 | AY41: 297100 | AZ41: =INDEX('Import|export adjustments data'!$Q$9:$Q$158, MATCH($C41, 'Import|export adjustments data'!$C$9:$C$158, 0)) -> 17 | BA41: =AZ41 * 6000 -> 102000 | BB41: =H41+AU41+AX41+AY41+BA41 -> 23639675.1 | BC41: =MAX(AW41, 0) -> 140323.8218 | BD41: =MIN(BC41, 3% * AV41) -> 140323.8218 | BE41: =H41+AU41+AX41+AY41+BA41+(BD41-BC41) -> 23639675.1
A42: Doncaster | B42: NORTH EAST | C42: 841 | D42: Darlington | E42: 1 | F42: 260 | G42: 4000 | H42: 1040000 | I42: =INDEX('Baselines+historic spend factor'!$Q$9:$Q$158, MATCH('HN NFF illustrative allocations'!$C42, 'Baselines+historic spend factor'!$C$9:$C$158, 0)) -> 5162239.363 | J42: 21159.366 | K42: 21159.366 | L42: 2332049.485 | M42: 2786 | N42: 2786 | O42: 598785.3853 | P42: 3317 | Q42: 3317 | R42: 107245.8882 | S42: 2035 | T42: 2035 | U42: 85752.20729 | V42: 1409 | W42: 1409 | X42: 83326.93744 | Y42: 1837 | Z42: 1837 | AA42: 106462.0344 | AB42: 1611 | AC42: 1611 | AD42: 109091.0889 | AE42: 835 | AF42: 835 | AG42: 80191.77418 | AH42: 572069.9303 | AI42: 133 | AJ42: 133 | AK42: 380379.9273 | AL42: 750 | AM42: 750 | AN42: =(AM42 / $AM$8) * 'National details'!$E$25 -> 389752.0588 | AO42: 293 | AP42: 293 | AQ42: =(AP42 / $AP$8) * 'National details'!$E$26 -> 382775.8559 | AR42: 295 | AS42: 295 | AT42: =(AS42/AS$8) *'National details'!$E$27 -> 396974.8935 | AU42: 10215026.9 | AV42: =INDEX('Baselines+historic spend factor'!$P$9:$P$158, MATCH($C42, 'Baselines+historic spend factor'!$C$9:$C$158, 0)) -> 10324478.73 | AW42: -109451.8273 | AX42: 109451.8273 | AY42: 100850 | AZ42: =INDEX('Import|export adjustments data'!$Q$9:$Q$158, MATCH($C42, 'Import|export adjustments data'!$C$9:$C$158, 0)) -> 20 | BA42: 120000 | BB42: 11585328.73 | BC42: 0 | BD42: 0 | BE42: 11585328.73
A43: Dorset | B43: NORTH EAST | C43: 840 | D43: Durham | E43: 1 | F43: 1346 | G43: 4000 | H43: 5384000 | I43: =INDEX('Baselines+historic spend factor'!$Q$9:$Q$158, MATCH('HN NFF illustrative allocations'!$C43, 'Baselines+historic spend factor'!$C$9:$C$158, 0)) -> 20991349.29 | J43: 95754.581 | K43: 95754.581 | L43: 10553455.21 | M43: 13661 | N43: 13661 | O43: 2936111.683 | P43: 11860 | Q43: 11860 | R43: 383459.8233 | S43: 13571 | T43: 13571 | U43: 571863.9828 | V43: 10532 | W43: 10532 | X43: 622852.5941 | Y43: 6781 | Z43: 6781 | AA43: 392988.054 | AB43: 6993 | AC43: 6993 | AD43: 473540.6483 | AE43: 4740 | AF43: 4740 | AG43: 455220.3708 | AH43: 2899925.473 | AI43: 659 | AJ43: 659 | AK43: 1884739.64 | AL43: 3840 | AM43: 3840 | AN43: =(AM43 / $AM$8) * 'National details'!$E$25 -> 1995530.541 | AO43: 1381 | AP43: 1381 | AQ43: =(AP43 / $AP$8) * 'National details'!$E$26 -> 1804141.491 | AR43: 1344 | AS43: 1344 | AT43: =(AS43/AS$8) *'National details'!$E$27 -> 1808590.701 | AU43: 44873844.03 | AV43: =INDEX('Baselines+historic spend factor'!$P$9:$P$158, MATCH($C43, 'Baselines+historic spend factor'!$C$9:$C$158, 0)) -> 41982698.58 | AW43: 2891145.448 | AX43: 0 | AY43: 965720 | AZ43: =INDEX('Import|export adjustments data'!$Q$9:$Q$158, MATCH($C43, 'Import|export adjustments data'!$C$9:$C$158, 0)) -> -89 | BA43: -534000 | BB43: 50689564.03 | BC43: 2891145.448 | BD43: 1259480.957 | BE43: 49057899.53
A44: Dudley | B44: NORTH EAST | C44: 390 | D44: Gateshead | E44: 1 | F44: 566 | G44: 4000 | H44: 2264000 | I44: =INDEX('Baselines+historic spend factor'!$Q$9:$Q$158, MATCH('HN NFF illustrative allocations'!$C44, 'Baselines+historic spend factor'!$C$9:$C$158, 0)) -> 9306674.307 | J44: 37930.044 | K44: 37930.044 | L44: 4180405.952 | M44: 4421 | N44: 4421 | O44: 950190.3045 | P44: 4460 | Q44: 4460 | R44: 144201.5862 | S44: 4847 | T44: 4847 | U44: 204246.1664 | V44: 5072 | W44: 5072 | X44: 299953.3192 | Y44: 1557 | Z44: 1557 | AA44: 90234.83263 | AB44: 2374 | AC44: 2374 | AD44: 160758.6871 | AE44: 1498 | AF44: 1498 | AG44: 143865.0033 | AH44: 1043259.595 | AI44: 250 | AJ44: 250 | AK44: 714999.8634 | AL44: 1360 | AM44: 1360 | AN44: =(AM44 / $AM$8) * 'National details'!$E$25 -> 706750.3999 | AO44: 452 | AP44: 452 | AQ44: =(AP44 / $AP$8) * 'National details'!$E$26 -> 590493.8118 | AR44: 592 | AS44: 592 | AT44: =(AS44/AS$8) *'National details'!$E$27 -> 796641.1422 | AU44: 18289415.38 | AV44: =INDEX('Baselines+historic spend factor'!$P$9:$P$158, MATCH($C44, 'Baselines+historic spend factor'!$C$9:$C$158, 0)) -> 18613348.61 | AW44: -323933.2381 | AX44: 323933.2381 | AY44: 550000 | AZ44: =INDEX('Import|export adjustments data'!$Q$9:$Q$158, MATCH($C44, 'Import|export adjustments data'!$C$9:$C$158, 0)) -> -41 | BA44: -246000 | BB44: 21181348.61 | BC44: 0 | BD44: 0 | BE44: 21181348.61
A45: Durham | B45: NORTH EAST | C45: 805 | D45: Hartlepool | E45: 1 | F45: 215 | G45: 4000 | H45: 860000 | I45: =INDEX('Baselines+historic spend factor'!$Q$9:$Q$158, MATCH('HN NFF illustrative allocations'!$C45, 'Baselines+historic spend factor'!$C$9:$C$158, 0)) -> 4628587.524 | J45: 18804.484 | K45: 18804.484 | L45: 2072509.508 | M45: 3372 | N45: 3372 | O45: 724732.3472 | P45: 317 | Q45: 317 | R45: 10249.30556 | S45: 1181 | T45: 1181 | U45: 49765.7773 | V45: 1417 | W45: 1417 | X45: 83800.04993 | Y45: 1274 | Z45: 1274 | AA45: 73833.76799 | AB45: 4207 | AC45: 4207 | AD45: 284882.8124 | AE45: 3078 | AF45: 3078 | AG45: 295605.1269 | AH45: 798136.8401 | AI45: 110 | AJ45: 110 | AK45: 314599.9399 | AL45: 770 | AM45: 770 | AN45: =(AM45 / $AM$8) * 'National details'!$E$25 -> 400145.447 | AO45: 212 | AP45: 212 | AQ45: =(AP45 / $AP$8) * 'National details'!$E$26 -> 276957.2746 | AR45: 324 | AS45: 324 | AT45: =(AS45/AS$8) *'National details'!$E$27 -> 435999.544 | AU45: 9651668.425 | AV45: =INDEX('Baselines+historic spend factor'!$P$9:$P$158, MATCH($C45, 'Baselines+historic spend factor'!$C$9:$C$158, 0)) -> 9257175.047 | AW45: 394493.3774 | AX45: 0 | AY45: 136918 | AZ45: =INDEX('Import|export adjustments data'!$Q$9:$Q$158, MATCH($C45, 'Import|export adjustments data'!$C$9:$C$158, 0)) -> -40 | BA45: -240000 | BB45: 10408586.42 | BC45: 394493.3774 | BD45: 277715.2514 | BE45: 10291808.3
A46: Ealing | B46: NORTH EAST | C46: 806 | D46: Middlesbrough | E46: 1 | F46: 507 | G46: 4000 | H46: 2028000 | I46: =INDEX('Baselines+historic spend factor'!$Q$9:$Q$158, MATCH('HN NFF illustrative allocations'!$C46, 'Baselines+historic spend factor'!$C$9:$C$158, 0)) -> 8826174.834 | J46: 30156.215 | K46: 30156.215 | L46: 3323624.425 | M46: 6732 | N46: 6732 | O46: 1446885.576 | P46: 2124 | Q46: 2124 | R46: 68673.58049 | S46: 1496 | T46: 1496 | U46: 63039.46049 | V46: 1172 | W46: 1172 | X46: 69310.9799 | Y46: 669 | Z46: 669 | AA46: 38771.42134 | AB46: 5296 | AC46: 5296 | AD46: 358625.9507 | AE46: 9595 | AF46: 9595 | AG46: 921485.1177 | AH46: 1519906.511 | AI46: 260 | AJ46: 260 | AK46: 743599.8579 | AL46: 1270 | AM46: 1270 | AN46: =(AM46 / $AM$8) * 'National details'!$E$25 -> 659980.1528 | AO46: 577 | AP46: 577 | AQ46: =(AP46 / $AP$8) * 'National details'!$E$26 -> 753794.0917 | AR46: 595 | AS46: 595 | AT46: =(AS46/AS$8) *'National details'!$E$27 -> 800678.175 | AU46: 18074643.62 | AV46: =INDEX('Baselines+historic spend factor'!$P$9:$P$158, MATCH($C46, 'Baselines+historic spend factor'!$C$9:$C$158, 0)) -> 17652349.67 | AW46: 422293.9544 | AX46: 0 | AY46: 1174537 | AZ46: =INDEX('Import|export adjustments data'!$Q$9:$Q$158, MATCH($C46, 'Import|export adjustments data'!$C$9:$C$158, 0)) -> 82.5 | BA46: 495000 | BB46: 21772180.62 | BC46: 422293.9544 | BD46: 422293.9544 | BE46: 21772180.62
A47: East Riding of Yorkshire | B47: NORTH EAST | C47: 391 | D47: Newcastle upon Tyne | E47: 1 | F47: 659 | G47: 4000 | H47: 2636000 | I47: =INDEX('Baselines+historic spend factor'!$Q$9:$Q$158, MATCH('HN NFF illustrative allocations'!$C47, 'Baselines+historic spend factor'!$C$9:$C$158, 0)) -> 14310728.88 | J47: 55175.802 | K47: 55175.802 | L47: 6081122.687 | M47: 9308 | N47: 9308 | O47: 2000536.384 | P47: 4429 | Q47: 4429 | R47: 143199.2881 | S47: 3195 | T47: 3195 | U47: 134633.0724 | V47: 5006 | W47: 5006 | X47: 296050.1411 | Y47: 3532 | Z47: 3532 | AA47: 204694.5593 | AB47: 11192 | AC47: 11192 | AD47: 757881.7297 | AE47: 4876 | AF47: 4876 | AG47: 468281.546 | AH47: 2004740.337 | AI47: 454 | AJ47: 454 | AK47: 1298439.752 | AL47: 1960 | AM47: 1960 | AN47: =(AM47 / $AM$8) * 'National details'!$E$25 -> 1018552.047 | AO47: 796 | AP47: 796 | AQ47: =(AP47 / $AP$8) * 'National details'!$E$26 -> 1039896.182 | AR47: 813 | AS47: 813 | AT47: =(AS47/AS$8) *'National details'!$E$27 -> 1094035.893 | AU47: 28848052.16 | AV47: =INDEX('Baselines+historic spend factor'!$P$9:$P$158, MATCH($C47, 'Baselines+historic spend factor'!$C$9:$C$158, 0)) -> 28621457.76 | AW47: 226594.4004 | AX47: 0 | AY47: 3013672 | AZ47: =INDEX('Import|export adjustments data'!$Q$9:$Q$158, MATCH($C47, 'Import|export adjustments data'!$C$9:$C$158, 0)) -> 13 | BA47: 78000 | BB47: 34575724.16 | BC47: 226594.4004 | BD47: 226594.4004 | BE47: 34575724.16
A48: East Sussex | B48: NORTH EAST | C48: 392 | D48: North Tyneside | E48: 1 | F48: 541 | G48: 4000 | H48: 2164000 | I48: =INDEX('Baselines+historic spend factor'!$Q$9:$Q$158, MATCH('HN NFF illustrative allocations'!$C48, 'Baselines+historic spend factor'!$C$9:$C$158, 0)) -> 8361740.117 | J48: 38370.874 | K48: 38370.874 | L48: 4228991.405 | M48: 4022 | N48: 4022 | O48: 864434.6086 | P48: 3512 | Q48: 3512 | R48: 113550.666 | S48: 3332 | T48: 3332 | U48: 140406.0711 | V48: 3741 | W48: 3741 | X48: 221239.2285 | Y48: 4385 | Z48: 4385 | AA48: 254129.5704 | AB48: 2082 | AC48: 2082 | AD48: 140985.504 | AE48: 1258 | AF48: 1258 | AG48: 120815.8706 | AH48: 991126.9106 | AI48: 222 | AJ48: 222 | AK48: 634919.8787 | AL48: 1520 | AM48: 1520 | AN48: =(AM48 / $AM$8) * 'National details'!$E$25 -> 789897.5058 | AO48: 440 | AP48: 440 | AQ48: =(AP48 / $AP$8) * 'National details'!$E$26 -> 574816.985 | AR48: 453 | AS48: 453 | AT48: =(AS48/AS$8) *'National details'!$E$27 -> 609591.9551 | AU48: 17055519.37 | AV48: =INDEX('Baselines+historic spend factor'!$P$9:$P$158, MATCH($C48, 'Baselines+historic spend factor'!$C$9:$C$158, 0)) -> 16723480.23 | AW48: 332039.1312 | AX48: 0 | AY48: 0 | AZ48: =INDEX('Import|export adjustments data'!$Q$9:$Q$158, MATCH($C48, 'Import|export adjustments data'!$C$9:$C$158, 0)) -> -16 | BA48: -96000 | BB48: 19123519.37 | BC48: 332039.1312 | BD48: 332039.1312 | BE48: 19123519.37
A49: Enfield | B49: NORTH EAST | C49: 929 | D49: Northumberland | E49: 1 | F49: 682 | G49: 4000 | H49: 2728000 | I49: =INDEX('Baselines+historic spend factor'!$Q$9:$Q$158, MATCH('HN NFF illustrative allocations'!$C49, 'Baselines+historic spend factor'!$C$9:$C$158, 0)) -> 14699631.24 | J49: 56025.776 | K49: 56025.776 | L49: 6174801.365 | M49: 5511 | N49: 5511 | O49: 1184460.251 | P49: 5086 | Q49: 5086 | R49: 164441.5397 | S49: 3892 | T49: 3892 | U49: 164003.7301 | V49: 1031 | W49: 1031 | X49: 60972.37225 | Y49: 5163 | Z49: 5163 | AA49: 299218.0095 | AB49: 5664 | AC49: 5664 | AD49: 383545.5787 | AE49: 1194 | AF49: 1194 | AG49: 114669.4352 | AH49: 1186850.666 | AI49: 296 | AJ49: 296 | AK49: 846559.8383 | AL49: 2190 | AM49: 2190 | AN49: =(AM49 / $AM$8) * 'National details'!$E$25 -> 1138076.012 | AO49: 735 | AP49: 735 | AQ49: =(AP49 / $AP$8) * 'National details'!$E$26 -> 960205.6454 | AR49: 1040 | AS49: 1040 | AT49: =(AS49/AS$8) *'National details'!$E$27 -> 1399504.709 | AU49: 27590089.72 | AV49: =INDEX('Baselines+historic spend factor'!$P$9:$P$158, MATCH($C49, 'Baselines+historic spend factor'!$C$9:$C$158, 0)) -> 29399262.48 | AW49: -1809172.753 | AX49: 1809172.753 | AY49: 0 | AZ49: =INDEX('Import|export adjustments data'!$Q$9:$Q$158, MATCH($C49, 'Import|export adjustments data'!$C$9:$C$158, 0)) -> -139 | BA49: -834000 | BB49: 31293262.48 | BC49: 0 | BD49: 0 | BE49: 31293262.48
A50: Essex | B50: NORTH EAST | C50: 807 | D50: Redcar and Cleveland | E50: 1 | F50: 377 | G50: 4000 | H50: 1508000 | I50: =INDEX('Baselines+historic spend factor'!$Q$9:$Q$158, MATCH('HN NFF illustrative allocations'!$C50, 'Baselines+historic spend factor'!$C$9:$C$158, 0)) -> 7049769.076 | J50: 25562.677 | K50: 25562.677 | L50: 2817354.155 | M50: 3796 | N50: 3796 | O50: 815861.207 | P50: 3075 | Q50: 3075 | R50: 99421.49718 | S50: 1744 | T50: 1744 | U50: 73489.85234 | V50: 1675 | W50: 1675 | X50: 99057.92776 | Y50: 2197 | Z50: 2197 | AA50: 127325.5795 | AB50: 2853 | AC50: 2853 | AD50: 193194.8333 | AE50: 3404 | AF50: 3404 | AG50: 326913.5321 | AH50: 919403.2222 | AI50: 196 | AJ50: 196 | AK50: 560559.8929 | AL50: 1110 | AM50: 1110 | AN50: =(AM50 / $AM$8) * 'National details'!$E$25 -> 576833.047 | AO50: 375 | AP50: 375 | AQ50: =(AP50 / $AP$8) * 'National details'!$E$26 -> 489900.8395 | AR50: 500 | AS50: 500 | AT50: =(AS50/AS$8) *'National details'!$E$27 -> 672838.8025 | AU50: 13902520.24 | AV50: =INDEX('Baselines+historic spend factor'!$P$9:$P$158, MATCH($C50, 'Baselines+historic spend factor'!$C$9:$C$158, 0)) -> 14099538.15 | AW50: -197017.9091 | AX50: 197017.9091 | AY50: 166350 | AZ50: =INDEX('Import|export adjustments data'!$Q$9:$Q$158, MATCH($C50, 'Import|export adjustments data'!$C$9:$C$158, 0)) -> -31.5 | BA50: -189000 | BB50: 15584888.15 | BC50: 0 | BD50: 0 | BE50: 15584888.15
A51: Gateshead | B51: NORTH EAST | C51: 393 | D51: South Tyneside | E51: 1 | F51: 483 | G51: 4000 | H51: 1932000 | I51: =INDEX('Baselines+historic spend factor'!$Q$9:$Q$158, MATCH('HN NFF illustrative allocations'!$C51, 'Baselines+historic spend factor'!$C$9:$C$158, 0)) -> 7090349.039 | J51: 27659.009 | K51: 27659.009 | L51: 3048398.411 | M51: 4167 | N51: 4167 | O51: 895598.9593 | P51: 2957 | Q51: 2957 | R51: 95606.29827 | S51: 2109 | T51: 2109 | U51: 88870.46937 | V51: 3900 | W51: 3900 | X51: 230642.3393 | Y51: 4283 | Z51: 4283 | AA51: 248218.2326 | AB51: 4160 | AC51: 4160 | AD51: 281700.1426 | AE51: 1427 | AF51: 1427 | AG51: 137046.3015 | AH51: 1082083.784 | AI51: 178 | AJ51: 178 | AK51: 509079.9027 | AL51: 1160 | AM51: 1160 | AN51: =(AM51 / $AM$8) * 'National details'!$E$25 -> 602816.5176 | AO51: 359 | AP51: 359 | AQ51: =(AP51 / $AP$8) * 'National details'!$E$26 -> 468998.4037 | AR51: 373 | AS51: 373 | AT51: =(AS51/AS$8) *'National details'!$E$27 -> 501937.7467 | AU51: 14199262.76 | AV51: =INDEX('Baselines+historic spend factor'!$P$9:$P$158, MATCH($C51, 'Baselines+historic spend factor'!$C$9:$C$158, 0)) -> 14180698.08 | AW51: 18564.68514 | AX51: 0 | AY51: 133000 | AZ51: =INDEX('Import|export adjustments data'!$Q$9:$Q$158, MATCH($C51, 'Import|export adjustments data'!$C$9:$C$158, 0)) -> -12 | BA51: -72000 | BB51: 16192262.76 | BC51: 18564.68514 | BD51: 18564.68514 | BE51: 16192262.76
A52: Gloucestershire | B52: NORTH EAST | C52: 808 | D52: Stockton-on-Tees | E52: 1 | F52: 550 | G52: 4000 | H52: 2200000 | I52: =INDEX('Baselines+historic spend factor'!$Q$9:$Q$158, MATCH('HN NFF illustrative allocations'!$C52, 'Baselines+historic spend factor'!$C$9:$C$158, 0)) -> 10674484 | J52: 40731.983 | K52: 40731.983 | L52: 4489217.681 | M52: 5627 | N52: 5627 | O52: 1209391.731 | P52: 1784 | Q52: 1784 | R52: 57680.63446 | S52: 3206 | T52: 3206 | U52: 135096.5978 | V52: 2900 | W52: 2900 | X52: 171503.2779 | Y52: 3240 | Z52: 3240 | AA52: 187771.906 | AB52: 4700 | AC52: 4700 | AD52: 318266.988 | AE52: 2932 | AF52: 2932 | AG52: 281583.5711 | AH52: 1151902.975 | AI52: 289 | AJ52: 289 | AK52: 826539.8421 | AL52: 1600 | AM52: 1600 | AN52: =(AM52 / $AM$8) * 'National details'!$E$25 -> 831471.0587 | AO52: 567 | AP52: 567 | AQ52: =(AP52 / $AP$8) * 'National details'!$E$26 -> 740730.0693 | AR52: 636 | AS52: 636 | AT52: =(AS52/AS$8) *'National details'!$E$27 -> 855850.9568 | AU52: 20779588.31 | AV52: =INDEX('Baselines+historic spend factor'!$P$9:$P$158, MATCH($C52, 'Baselines+historic spend factor'!$C$9:$C$158, 0)) -> 21348968 | AW52: -569379.6831 | AX52: 569379.6831 | AY52: 25000 | AZ52: =INDEX('Import|export adjustments data'!$Q$9:$Q$158, MATCH($C52, 'Import|export adjustments data'!$C$9:$C$158, 0)) -> -110 | BA52: -660000 | BB52: 22913968 | BC52: 0 | BD52: 0 | BE52: 22913968
A53: Greenwich | B53: NORTH EAST | C53: 394 | D53: Sunderland | E53: 1 | F53: 695 | G53: 4000 | H53: 2780000 | I53: =INDEX('Baselines+historic spend factor'!$Q$9:$Q$158, MATCH('HN NFF illustrative allocations'!$C53, 'Baselines+historic spend factor'!$C$9:$C$158, 0)) -> 9717746.226 | J53: 51323.521 | K53: 51323.521 | L53: 5656549.006 | M53: 8028 | N53: 8028 | O53: 1725430.392 | P53: 5996 | Q53: 5996 | R53: 193863.8365 | S53: 4199 | T53: 4199 | U53: 176940.3039 | V53: 6654 | W53: 6654 | X53: 393511.3142 | Y53: 6478 | Z53: 6478 | AA53: 375427.9035 | AB53: 6538 | AC53: 6538 | AD53: 442729.6952 | AE53: 2569 | AF53: 2569 | AG53: 246721.7579 | AH53: 1829194.811 | AI53: 328 | AJ53: 328 | AK53: 938079.8208 | AL53: 2260 | AM53: 2260 | AN53: =(AM53 / $AM$8) * 'National details'!$E$25 -> 1174452.87 | AO53: 724 | AP53: 724 | AQ53: =(AP53 / $AP$8) * 'National details'!$E$26 -> 945835.2207 | AR53: 848 | AS53: 848 | AT53: =(AS53/AS$8) *'National details'!$E$27 -> 1141134.609 | AU53: 23128422.96 | AV53: =INDEX('Baselines+historic spend factor'!$P$9:$P$158, MATCH($C53, 'Baselines+historic spend factor'!$C$9:$C$158, 0)) -> 19435492.45 | AW53: 3692930.504 | AX53: 0 | AY53: 0 | AZ53: =INDEX('Import|export adjustments data'!$Q$9:$Q$158, MATCH($C53, 'Import|export adjustments data'!$C$9:$C$158, 0)) -> -54 | BA53: -324000 | BB53: 25584422.96 | BC53: 3692930.504 | BD53: 583064.7736 | BE53: 22474557.23
A54: Hackney | B54: NORTH WEST | C54: 889 | D54: Blackburn with Darwen | E54: 1 | F54: 269 | G54: 4000 | H54: 1076000 | I54: =INDEX('Baselines+historic spend factor'!$Q$9:$Q$158, MATCH('HN NFF illustrative allocations'!$C54, 'Baselines+historic spend factor'!$C$9:$C$158, 0)) -> 9200200.068 | J54: 35456.219 | K54: 35456.219 | L54: 3907756.842 | M54: 4170 | N54: 4170 | O54: 896243.7389 | P54: 6279 | Q54: 6279 | R54: 203013.8474 | S54: 4100 | T54: 4100 | U54: 172768.5749 | V54: 2730 | W54: 2730 | X54: 161449.6375 | Y54: 1876 | Z54: 1876 | AA54: 108722.2518 | AB54: 2995 | AC54: 2995 | AD54: 202810.5594 | AE54: 2203 | AF54: 2203 | AG54: 211571.8306 | AH54: 1060336.701 | AI54: 250 | AJ54: 250 | AK54: 714999.8634 | AL54: 1090 | AM54: 1090 | AN54: =(AM54 / $AM$8) * 'National details'!$E$25 -> 566439.6587 | AO54: 572 | AP54: 572 | AQ54: =(AP54 / $AP$8) * 'National details'!$E$26 -> 747262.0805 | AR54: 433 | AS54: 433 | AT54: =(AS54/AS$8) *'National details'!$E$27 -> 582678.403 | AU54: 17675917.36 | AV54: =INDEX('Baselines+historic spend factor'!$P$9:$P$158, MATCH($C54, 'Baselines+historic spend factor'!$C$9:$C$158, 0)) -> 18400400.14 | AW54: -724482.7805 | AX54: 724482.7805 | AY54: 158400 | AZ54: =INDEX('Import|export adjustments data'!$Q$9:$Q$158, MATCH($C54, 'Import|export adjustments data'!$C$9:$C$158, 0)) -> 0 | BA54: 0 | BB54: 19634800.14 | BC54: 0 | BD54: 0 | BE54: 19634800.14
A55: Halton | B55: NORTH WEST | C55: 890 | D55: Blackpool | E55: 1 | F55: 394 | G55: 4000 | H55: 1576000 | I55: =INDEX('Baselines+historic spend factor'!$Q$9:$Q$158, MATCH('HN NFF illustrative allocations'!$C55, 'Baselines+historic spend factor'!$C$9:$C$158, 0)) -> 7739765.949 | J55: 26964.112 | K55: 26964.112 | L55: 2971811.324 | M55: 4858 | N55: 4858 | O55: 1044113.21 | P55: 3829 | Q55: 3829 | R55: 123799.9716 | S55: 1893 | T55: 1893 | U55: 79768.51518 | V55: 1853 | W55: 1853 | X55: 109584.6807 | Y55: 2705 | Z55: 2705 | AA55: 156766.3598 | AB55: 3015 | AC55: 3015 | AD55: 204164.887 | AE55: 5256 | AF55: 5256 | AG55: 504776.0061 | AH55: 1178860.42 | AI55: 187 | AJ55: 187 | AK55: 534819.8978 | AL55: 1060 | AM55: 1060 | AN55: =(AM55 / $AM$8) * 'National details'!$E$25 -> 550849.5764 | AO55: 420 | AP55: 420 | AQ55: =(AP55 / $AP$8) * 'National details'!$E$26 -> 548688.9402 | AR55: 471 | AS55: 471 | AT55: =(AS55/AS$8) *'National details'!$E$27 -> 633814.152 | AU55: 15202723.47 | AV55: =INDEX('Baselines+historic spend factor'!$P$9:$P$158, MATCH($C55, 'Baselines+historic spend factor'!$C$9:$C$158, 0)) -> 15479531.9 | AW55: -276808.428 | AX55: 276808.428 | AY55: 1143750 | AZ55: =INDEX('Import|export adjustments data'!$Q$9:$Q$158, MATCH($C55, 'Import|export adjustments data'!$C$9:$C$158, 0)) -> 29 | BA55: 174000 | BB55: 18373281.9 | BC55: 0 | BD55: 0 | BE55: 18373281.9
A56: Hammersmith and Fulham | B56: NORTH WEST | C56: 350 | D56: Bolton | E56: 1.008123131 | F56: 758 | G56: 4032.492525 | H56: 3056629.334 | I56: =INDEX('Baselines+historic spend factor'!$Q$9:$Q$158, MATCH('HN NFF illustrative allocations'!$C56, 'Baselines+historic spend factor'!$C$9:$C$158, 0)) -> 14082494.53 | J56: 62928.459 | K56: 63439.63513 | L56: 6991909.323 | M56: 7917 | N56: 7981.310829 | O56: 1715395.65 | P56: 8335 | Q56: 8402.706298 | R56: 271677.9319 | S56: 11454 | T56: 11547.04234 | U56: 486577.0853 | V56: 5043 | W56: 5083.96495 | X56: 300660.9151 | Y56: 4168 | Z56: 4201.857211 | AA56: 243515.6597 | AB56: 4583 | AC56: 4620.22831 | AD56: 312865.1379 | AE56: 2984 | AF56: 3008.239423 | AG56: 288905.4569 | AH56: 1904202.187 | AI56: 385 | AJ56: 388.1274055 | AK56: 1110044.168 | AL56: 2060 | AM56: 2076.73365 | AN56: =(AM56 / $AM$8) * 'National details'!$E$25 -> 1079214.954 | AO56: 804 | AP56: 810.5309975 | AQ56: =(AP56 / $AP$8) * 'National details'!$E$26 -> 1058879.51 | AR56: 876 | AS56: 883.1158629 | AT56: =(AS56/AS$8) *'National details'!$E$27 -> 1188389.239 | AU56: 29130529.56 | AV56: =INDEX('Baselines+historic spend factor'!$P$9:$P$158, MATCH($C56, 'Baselines+historic spend factor'!$C$9:$C$158, 0)) -> 28164989.07 | AW56: 965540.4967 | AX56: 0 | AY56: 0 | AZ56: =INDEX('Import|export adjustments data'!$Q$9:$Q$158, MATCH($C56, 'Import|export adjustments data'!$C$9:$C$158, 0)) -> 17.5 | BA56: 105000 | BB56: 32292158.9 | BC56: 965540.4967 | BD56: 844949.672 | BE56: 32171568.07
A57: Hampshire | B57: NORTH WEST | C57: 351 | D57: Bury | E57: 1.008123131 | F57: 402 | G57: 4032.492525 | H57: 1621061.995 | I57: =INDEX('Baselines+historic spend factor'!$Q$9:$Q$158, MATCH('HN NFF illustrative allocations'!$C57, 'Baselines+historic spend factor'!$C$9:$C$158, 0)) -> 13477993.91 | J57: 40839.557 | K57: 41171.30208 | L57: 4537636.61 | M57: 4206 | N57: 4240.16589 | O57: 911324.252 | P57: 4387 | Q57: 4422.636176 | R57: 142993.5318 | S57: 3585 | T57: 3614.121425 | U57: 152294.2947 | V57: 4554 | W57: 4590.992739 | X57: 271507.0013 | Y57: 1487 | Z57: 1499.079096 | AA57: 86878.06765 | AB57: 1582 | AC57: 1594.850794 | AD57: 107997.5231 | AE57: 930 | AF57: 937.554512 | AG57: 90040.90983 | AH57: 851711.3282 | AI57: 211 | AJ57: 212.7139807 | AK57: 608361.8685 | AL57: 1380 | AM57: 1391.209921 | AN57: =(AM57 / $AM$8) * 'National details'!$E$25 -> 722969.2412 | AO57: 487 | AP57: 490.9559649 | AQ57: =(AP57 / $AP$8) * 'National details'!$E$26 -> 641385.9716 | AR57: 290 | AS57: 292.355708 | AT57: =(AS57/AS$8) *'National details'!$E$27 -> 393416.529 | AU57: 22144799.71 | AV57: =INDEX('Baselines+historic spend factor'!$P$9:$P$158, MATCH($C57, 'Baselines+historic spend factor'!$C$9:$C$158, 0)) -> 26955987.81 | AW57: -4811188.106 | AX57: 4811188.106 | AY57: 0 | AZ57: =INDEX('Import|export adjustments data'!$Q$9:$Q$158, MATCH($C57, 'Import|export adjustments data'!$C$9:$C$158, 0)) -> -7 | BA57: -42000 | BB57: 28535049.81 | BC57: 0 | BD57: 0 | BE57: 28535049.81
A58: Haringey | B58: NORTH WEST | C58: 895 | D58: Cheshire East | E58: 1.005398882 | F58: 366 | G58: 4021.595529 | H58: 1471903.963 | I58: =INDEX('Baselines+historic spend factor'!$Q$9:$Q$158, MATCH('HN NFF illustrative allocations'!$C58, 'Baselines+historic spend factor'!$C$9:$C$158, 0)) -> 15734330.51 | J58: 71553.667 | K58: 71939.97682 | L58: 7928762.415 | M58: 4096 | N58: 4118.113821 | O58: 885092.0212 | P58: 4265 | Q58: 4288.026232 | R58: 138641.2969 | S58: 4945 | T58: 4971.697472 | U58: 209500.7529 | V58: 3003 | W58: 3019.212843 | X58: 178553.4136 | Y58: 2577 | Z58: 2590.912919 | AA58: 150154.5238 | AB58: 821 | AC58: 825.4324823 | AD58: 55895.29998 | AE58: 412 | AF58: 414.2243395 | AG58: 39781.29903 | AH58: 772526.5862 | AI58: 270 | AJ58: 271.4576982 | AK58: 776368.8685 | AL58: 1980 | AM58: 1990.689787 | AN58: =(AM58 / $AM$8) * 'National details'!$E$25 -> 1034500.59 | AO58: 689 | AP58: 692.7198298 | AQ58: =(AP58 / $AP$8) * 'National details'!$E$26 -> 904970.7364 | AR58: 733 | AS58: 736.9573806 | AT58: =(AS58/AS$8) *'National details'!$E$27 -> 991707.043 | AU58: 29028258.77 | AV58: =INDEX('Baselines+historic spend factor'!$P$9:$P$158, MATCH($C58, 'Baselines+historic spend factor'!$C$9:$C$158, 0)) -> 31468661.01 | AW58: -2440402.245 | AX58: 2440402.245 | AY58: 0 | AZ58: =INDEX('Import|export adjustments data'!$Q$9:$Q$158, MATCH($C58, 'Import|export adjustments data'!$C$9:$C$158, 0)) -> -158 | BA58: -948000 | BB58: 31992564.97 | BC58: 0 | BD58: 0 | BE58: 31992564.97
A59: Harrow | B59: NORTH WEST | C59: 896 | D59: Cheshire West and Chester | E59: 1.005398882 | F59: 877 | G59: 4021.595529 | H59: 3526939.279 | I59: =INDEX('Baselines+historic spend factor'!$Q$9:$Q$158, MATCH('HN NFF illustrative allocations'!$C59, 'Baselines+historic spend factor'!$C$9:$C$158, 0)) -> 15567730.79 | J59: 62820.332 | K59: 63159.49157 | L59: 6961033.699 | M59: 4961 | N59: 4987.783854 | O59: 1072007.206 | P59: 4130 | Q59: 4152.297383 | R59: 134252.8854 | S59: 2370 | T59: 2382.795351 | U59: 100407.8432 | V59: 2953 | W59: 2968.942899 | X59: 175580.4962 | Y59: 3723 | Z59: 3743.100038 | AA59: 216928.7126 | AB59: 3625 | AC59: 3644.570948 | AD59: 246797.1528 | AE59: 1371 | AF59: 1378.401867 | AG59: 132379.0315 | AH59: 1006346.122 | AI59: 302 | AJ59: 303.6304624 | AK59: 868382.9566 | AL59: 2350 | AM59: 2362.687373 | AN59: =(AM59 / $AM$8) * 'National details'!$E$25 -> 1227816.357 | AO59: 726 | AP59: 729.9195885 | AQ59: =(AP59 / $AP$8) * 'National details'!$E$26 -> 953568.5843 | AR59: 805 | AS59: 809.3461001 | AT59: =(AS59/AS$8) *'National details'!$E$27 -> 1089118.922 | AU59: 28746004.64 | AV59: =INDEX('Baselines+historic spend factor'!$P$9:$P$158, MATCH($C59, 'Baselines+historic spend factor'!$C$9:$C$158, 0)) -> 31135461.59 | AW59: -2389456.947 | AX59: 2389456.947 | AY59: 368393 | AZ59: =INDEX('Import|export adjustments data'!$Q$9:$Q$158, MATCH($C59, 'Import|export adjustments data'!$C$9:$C$158, 0)) -> 61 | BA59: 366000 | BB59: 35396793.87 | BC59: 0 | BD59: 0 | BE59: 35396793.87
A60: Hartlepool | B60: NORTH WEST | C60: 909 | D60: Cumbria | E60: 1 | F60: 543 | G60: 4000 | H60: 2172000 | I60: =INDEX('Baselines+historic spend factor'!$Q$9:$Q$158, MATCH('HN NFF illustrative allocations'!$C60, 'Baselines+historic spend factor'!$C$9:$C$158, 0)) -> 17967145.4 | J60: 86998.494 | K60: 86998.494 | L60: 9588415.509 | M60: 6429 | N60: 6429 | O60: 1381762.829 | P60: 7823 | Q60: 7823 | R60: 252934.7553 | S60: 5068 | T60: 5068 | U60: 213558.814 | V60: 2526 | W60: 2526 | X60: 149385.269 | Y60: 1591 | Z60: 1591 | AA60: 92205.27855 | AB60: 4687 | AC60: 4687 | AD60: 317386.675 | AE60: 2127 | AF60: 2127 | AG60: 204272.9385 | AH60: 1229743.73 | AI60: 445 | AJ60: 445 | AK60: 1272699.757 | AL60: 2480 | AM60: 2480 | AN60: =(AM60 / $AM$8) * 'National details'!$E$25 -> 1288780.141 | AO60: 1078 | AP60: 1078 | AQ60: =(AP60 / $AP$8) * 'National details'!$E$26 -> 1408301.613 | AR60: 1276 | AS60: 1276 | AT60: =(AS60/AS$8) *'National details'!$E$27 -> 1717084.624 | AU60: 35853933.61 | AV60: =INDEX('Baselines+historic spend factor'!$P$9:$P$158, MATCH($C60, 'Baselines+historic spend factor'!$C$9:$C$158, 0)) -> 35934290.81 | AW60: -80357.20065 | AX60: 80357.20065 | AY60: 782384 | AZ60: =INDEX('Import|export adjustments data'!$Q$9:$Q$158, MATCH($C60, 'Import|export adjustments data'!$C$9:$C$158, 0)) -> -85 | BA60: -510000 | BB60: 38378674.81 | BC60: 0 | BD60: 0 | BE60: 38378674.81
A61: Havering | B61: NORTH WEST | C61: 876 | D61: Halton | E61: 1.005398882 | F61: 365 | G61: 4021.595529 | H61: 1467882.368 | I61: =INDEX('Baselines+historic spend factor'!$Q$9:$Q$158, MATCH('HN NFF illustrative allocations'!$C61, 'Baselines+historic spend factor'!$C$9:$C$158, 0)) -> 6885121.914 | J61: 26680.976 | K61: 26825.02345 | L61: 2956481.877 | M61: 5279 | N61: 5307.500699 | O61: 1140722.847 | P61: 2787 | Q61: 2802.046685 | R61: 90596.31758 | S61: 2637 | T61: 2651.236852 | U61: 111719.6128 | V61: 1944 | W61: 1954.495427 | X61: 115587.025 | Y61: 2303 | Z61: 2315.433626 | AA61: 134189.3164 | AB61: 4600 | AC61: 4624.834858 | AD61: 313177.0766 | AE61: 2344 | AF61: 2356.65498 | AG61: 226328.5556 | AH61: 991597.9041 | AI61: 150 | AJ61: 150.8098323 | AK61: 431316.038 | AL61: 1040 | AM61: 1045.614837 | AN61: =(AM61 / $AM$8) * 'National details'!$E$25 -> 543374.0474 | AO61: 364 | AP61: 365.9651931 | AQ61: =(AP61 / $AP$8) * 'National details'!$E$26 -> 478097.7475 | AR61: 370 | AS61: 371.9975864 | AT61: =(AS61/AS$8) *'National details'!$E$27 -> 500588.8212 | AU61: 13927301.2 | AV61: =INDEX('Baselines+historic spend factor'!$P$9:$P$158, MATCH($C61, 'Baselines+historic spend factor'!$C$9:$C$158, 0)) -> 13770243.83 | AW61: 157057.3676 | AX61: 0 | AY61: 0 | AZ61: =INDEX('Import|export adjustments data'!$Q$9:$Q$158, MATCH($C61, 'Import|export adjustments data'!$C$9:$C$158, 0)) -> -34 | BA61: -204000 | BB61: 15191183.56 | BC61: 157057.3676 | BD61: 157057.3676 | BE61: 15191183.56
A62: Herefordshire | B62: NORTH WEST | C62: 340 | D62: Knowsley | E62: 1.001667448 | F62: 447 | G62: 4006.66979 | H62: 1790981.396 | I62: =INDEX('Baselines+historic spend factor'!$Q$9:$Q$158, MATCH('HN NFF illustrative allocations'!$C62, 'Baselines+historic spend factor'!$C$9:$C$158, 0)) -> 8888466.445 | J62: 30129.681 | K62: 30179.92066 | L62: =(K62 /$K$8) * L$8 -> 3326237.111 | M62: 6397 | N62: 6407.666662 | O62: 1377177.728 | P62: 1905 | Q62: 1908.176488 | R62: 61695.53278 | S62: 2985 | T62: 2989.977331 | U62: 125993.6884 | V62: 1216 | W62: 1218.027616 | X62: 72033.00992 | Y62: 2284 | Z62: 2287.80845 | AA62: 132588.3189 | AB62: 5892 | AC62: 5901.824601 | AD62: 399650.1999 | AE62: 6719 | AF62: 6730.203581 | AG62: 646355.6476 | AH62: 1438316.397 | AI62: 255 | AJ62: 255.4251991 | AK62: 730515.93 | AL62: 1230 | AM62: 1232.050961 | AN62: =(AM62 / $AM$8) * 'National details'!$E$25 -> 640259.1978 | AO62: 420 | AP62: 420.700328 | AQ62: =(AP62 / $AP$8) * 'National details'!$E$26 -> 549603.8503 | AR62: 886 | AS62: 887.4773586 | AT62: =(AS62/AS$8) *'National details'!$E$27 -> 1194258.406 | AU62: 18144835.07 | AV62: =INDEX('Baselines+historic spend factor'!$P$9:$P$158, MATCH($C62, 'Baselines+historic spend factor'!$C$9:$C$158, 0)) -> 17776932.89 | AW62: 367902.1762 | AX62: 0 | AY62: 116894 | AZ62: =INDEX('Import|export adjustments data'!$Q$9:$Q$158, MATCH($C62, 'Import|export adjustments data'!$C$9:$C$158, 0)) -> -88 | BA62: -528000 | BB62: 19524710.46 | BC62: 367902.1762 | BD62: 367902.1762 | BE62: 19524710.46
A63: Hertfordshire | B63: NORTH WEST | C63: 888 | D63: Lancashire | E63: 1 | F63: 2794 | G63: 4000 | H63: 11176000 | I63: =INDEX('Baselines+historic spend factor'!$Q$9:$Q$158, MATCH('HN NFF illustrative allocations'!$C63, 'Baselines+historic spend factor'!$C$9:$C$158, 0)) -> 46563243.2 | J63: 233878.695 | K63: 233878.695 | L63: 25776608.34 | M63: 22678 | N63: 22678 | O63: 4874104.439 | P63: 21586 | Q63: 21586 | R63: 697922.7441 | S63: 21789 | T63: 21789 | U63: 918159.6288 | V63: 17043 | W63: 17043 | X63: 1007907.023 | Y63: 10923 | Z63: 10923 | AA63: 633034.7314 | AB63: 13949 | AC63: 13949 | AD63: 944575.7905 | AE63: 3628 | AF63: 3628 | AG63: 348426.056 | AH63: 4550025.973 | AI63: 1279 | AJ63: 1279 | AK63: 3657939.301 | AL63: 7600 | AM63: 7600 | AN63: =(AM63 / $AM$8) * 'National details'!$E$25 -> 3949487.529 | AO63: 2952 | AP63: 2952 | AQ63: =(AP63 / $AP$8) * 'National details'!$E$26 -> 3856499.408 | AR63: 3248 | AS63: 3248 | AT63: =(AS63/AS$8) *'National details'!$E$27 -> 4370760.861 | AU63: 97598669.06 | AV63: =INDEX('Baselines+historic spend factor'!$P$9:$P$158, MATCH($C63, 'Baselines+historic spend factor'!$C$9:$C$158, 0)) -> 93126486.4 | AW63: 4472182.656 | AX63: 0 | AY63: 610000 | AZ63: =INDEX('Import|export adjustments data'!$Q$9:$Q$158, MATCH($C63, 'Import|export adjustments data'!$C$9:$C$158, 0)) -> -141 | BA63: -846000 | BB63: 108538669.1 | BC63: 4472182.656 | BD63: 2793794.592 | BE63: 106860281
A64: Hillingdon | B64: NORTH WEST | C64: 341 | D64: Liverpool | E64: 1.001667448 | F64: 1327 | G64: 4006.66979 | H64: 5316850.812 | I64: =INDEX('Baselines+historic spend factor'!$Q$9:$Q$158, MATCH('HN NFF illustrative allocations'!$C64, 'Baselines+historic spend factor'!$C$9:$C$158, 0)) -> 19209062.09 | J64: 85613.917 | K64: 85756.67372 | L64: 9451550.05 | M64: 17264 | N64: 17292.78682 | O64: 3716679.116 | P64: 4681 | Q64: 4688.805322 | R64: 151599.3643 | S64: 6943 | T64: 6954.577089 | U64: 293056.6762 | V64: 7384 | W64: 7396.312433 | X64: 437410.9747 | Y64: 6924 | Z64: 6935.545407 | AA64: 401944.6236 | AB64: 22528 | AC64: 22565.56426 | AD64: 1528058.334 | AE64: 12821 | AF64: 12842.37835 | AG64: 1233357.011 | AH64: 4045426.984 | AI64: 774 | AJ64: 775.2906045 | AK64: 2217330.705 | AL64: 3880 | AM64: 3886.469697 | AN64: =(AM64 / $AM$8) * 'National details'!$E$25 -> 2019679.421 | AO64: 1307 | AP64: 1309.179354 | AQ64: =(AP64 / $AP$8) * 'National details'!$E$26 -> 1710314.839 | AR64: 1733 | AS64: 1735.889687 | AT64: =(AS64/AS$8) *'National details'!$E$27 -> 2335947.876 | AU64: 44705991.08 | AV64: =INDEX('Baselines+historic spend factor'!$P$9:$P$158, MATCH($C64, 'Baselines+historic spend factor'!$C$9:$C$158, 0)) -> 38418124.19 | AW64: 6287866.896 | AX64: 0 | AY64: 0 | AZ64: =INDEX('Import|export adjustments data'!$Q$9:$Q$158, MATCH($C64, 'Import|export adjustments data'!$C$9:$C$158, 0)) -> 7 | BA64: 42000 | BB64: 50064841.9 | BC64: 6287866.896 | BD64: 1152543.726 | BE64: 44929518.73
A65: Hounslow | B65: NORTH WEST | C65: 352 | D65: Manchester | E65: 1.008123131 | F65: 1315 | G65: 4032.492525 | H65: 5302727.67 | I65: =INDEX('Baselines+historic spend factor'!$Q$9:$Q$158, MATCH('HN NFF illustrative allocations'!$C65, 'Baselines+historic spend factor'!$C$9:$C$158, 0)) -> 31326250.45 | J65: 111606.059 | K65: 112512.6497 | L65: 12400421.95 | M65: 22978 | N65: 23164.65331 | O65: 4978699.159 | P65: 7927 | Q65: 7991.392061 | R65: 258379.2401 | S65: 12272 | T65: 12371.68707 | U65: 521326.5227 | V65: 11040 | W65: 11129.67937 | X65: 658198.7909 | Y65: 14476 | Z65: 14593.59045 | AA65: 845761.2019 | AB65: 27043 | AC65: 27262.67384 | AD65: 1846129.593 | AE65: 14717 | AF65: 14836.54812 | AG65: 1424873.193 | AH65: 5554668.542 | AI65: 972 | AJ65: 979.8956835 | AK65: 2802501.119 | AL65: 4150 | AM65: 4183.710994 | AN65: =(AM65 / $AM$8) * 'National details'!$E$25 -> 2174146.631 | AO65: 1671 | AP65: 1684.573752 | AQ65: =(AP65 / $AP$8) * 'National details'!$E$26 -> 2200730.921 | AR65: 2050 | AS65: 2066.652419 | AT65: =(AS65/AS$8) *'National details'!$E$27 -> 2781047.878 | AU65: 64218466.65 | AV65: =INDEX('Baselines+historic spend factor'!$P$9:$P$158, MATCH($C65, 'Baselines+historic spend factor'!$C$9:$C$158, 0)) -> 62652500.89 | AW65: 1565965.758 | AX65: 0 | AY65: 1340275 | AZ65: =INDEX('Import|export adjustments data'!$Q$9:$Q$158, MATCH($C65, 'Import|export adjustments data'!$C$9:$C$158, 0)) -> -99 | BA65: -594000 | BB65: 70267469.32 | BC65: 1565965.758 | BD65: 1565965.758 | BE65: 70267469.32
A66: Isle of Wight | B66: NORTH WEST | C66: 353 | D66: Oldham | E66: 1.008123131 | F66: 673 | G66: 4032.492525 | H66: 2713867.469 | I66: =INDEX('Baselines+historic spend factor'!$Q$9:$Q$158, MATCH('HN NFF illustrative allocations'!$C66, 'Baselines+historic spend factor'!$C$9:$C$158, 0)) -> 11776008.91 | J66: 54782.798 | K66: 55227.80585 | L66: 6086854.218 | M66: 7826 | N66: 7889.571625 | O66: 1695678.458 | P66: 5770 | Q66: 5816.870467 | R66: 188072.1856 | S66: 6233 | T66: 6283.631477 | U66: 264783.9159 | V66: 7982 | W66: 8046.838833 | X66: 475882.4954 | Y66: 5338 | Z66: 5381.361274 | AA66: 311872.9826 | AB66: 6936 | AC66: 6992.342038 | AD66: 473496.0935 | AE66: 2148 | AF66: 2165.448486 | AG66: 207965.4563 | AH66: 1922073.129 | AI66: 420 | AJ66: 423.4117151 | AK66: 1210957.274 | AL66: 2020 | AM66: 2036.408725 | AN66: =(AM66 / $AM$8) * 'National details'!$E$25 -> 1058259.324 | AO66: 785 | AP66: 791.376658 | AQ66: =(AP66 / $AP$8) * 'National details'!$E$26 -> 1033856.238 | AR66: 881 | AS66: 888.1564786 | AT66: =(AS66/AS$8) *'National details'!$E$27 -> 1195172.283 | AU66: 25978859.84 | AV66: =INDEX('Baselines+historic spend factor'!$P$9:$P$158, MATCH($C66, 'Baselines+historic spend factor'!$C$9:$C$158, 0)) -> 23552017.82 | AW66: 2426842.012 | AX66: 0 | AY66: 445384 | AZ66: =INDEX('Import|export adjustments data'!$Q$9:$Q$158, MATCH($C66, 'Import|export adjustments data'!$C$9:$C$158, 0)) -> 14 | BA66: 84000 | BB66: 29222111.3 | BC66: 2426842.012 | BD66: 706560.5347 | BE66: 27501829.83
A67: Islington | B67: NORTH WEST | C67: 354 | D67: Rochdale | E67: 1.008123131 | F67: 495 | G67: 4032.492525 | H67: 1996083.8 | I67: =INDEX('Baselines+historic spend factor'!$Q$9:$Q$158, MATCH('HN NFF illustrative allocations'!$C67, 'Baselines+historic spend factor'!$C$9:$C$158, 0)) -> 9499088.539 | J67: 47484.194 | K67: 47869.91434 | L67: 5275914.65 | M67: 6609 | N67: 6662.685774 | O67: 1431988.108 | P67: 4549 | Q67: 4585.952124 | R67: 148273.8947 | S67: 8418 | T67: 8486.380518 | U67: 357604.8459 | V67: 5344 | W67: 5387.410013 | X67: 318606.3713 | Y67: 3776 | Z67: 3806.672943 | AA67: 220613.0353 | AB67: 7828 | AC67: 7891.587871 | AD67: 534389.7664 | AE67: 1384 | AF67: 1395.242414 | AG67: 133996.3647 | AH67: 1713484.278 | AI67: 341 | AJ67: 343.7699877 | AK67: 983181.9771 | AL67: 1970 | AM67: 1986.002568 | AN67: =(AM67 / $AM$8) * 'National details'!$E$25 -> 1032064.786 | AO67: 691 | AP67: 696.6130836 | AQ67: =(AP67 / $AP$8) * 'National details'!$E$26 -> 910056.8919 | AR67: 733 | AS67: 738.9542551 | AT67: =(AS67/AS$8) *'National details'!$E$27 -> 994394.1923 | AU67: 21840173.42 | AV67: =INDEX('Baselines+historic spend factor'!$P$9:$P$158, MATCH($C67, 'Baselines+historic spend factor'!$C$9:$C$158, 0)) -> 18998177.08 | AW67: 2841996.344 | AX67: 0 | AY67: 0 | AZ67: =INDEX('Import|export adjustments data'!$Q$9:$Q$158, MATCH($C67, 'Import|export adjustments data'!$C$9:$C$158, 0)) -> -56.5 | BA67: -339000 | BB67: 23497257.22 | BC67: 2841996.344 | BD67: 569945.3123 | BE67: 21225206.19
A68: Kensington and Chelsea | B68: NORTH WEST | C68: 355 | D68: Salford | E68: 1.008123131 | F68: 627 | G68: 4032.492525 | H68: 2528372.813 | I68: =INDEX('Baselines+historic spend factor'!$Q$9:$Q$158, MATCH('HN NFF illustrative allocations'!$C68, 'Baselines+historic spend factor'!$C$9:$C$158, 0)) -> 13874306.66 | J68: 51360.113 | K68: 51777.31793 | L68: 5706563.59 | M68: 7522 | N68: 7583.102193 | O68: 1629810.039 | P68: 4088 | Q68: 4121.20736 | R68: 133247.6767 | S68: 4709 | T68: 4747.251825 | U68: 200042.9103 | V68: 4557 | W68: 4594.017109 | X68: 271685.8596 | Y68: 4394 | Z68: 4429.693038 | AA68: 256719.7238 | AB68: 7445 | AC68: 7505.476712 | AD68: 508243.7163 | AE68: 5365 | AF68: 5408.580599 | AG68: 519429.5497 | AH68: 1889369.436 | AI68: 341 | AJ68: 343.7699877 | AK68: 983181.9771 | AL68: 2050 | AM68: 2066.652419 | AN68: =(AM68 / $AM$8) * 'National details'!$E$25 -> 1073976.047 | AO68: 587 | AP68: 591.768278 | AQ68: =(AP68 / $AP$8) * 'National details'!$E$26 -> 773087.4031 | AR68: 591 | AS68: 595.8007705 | AT68: =(AS68/AS$8) *'National details'!$E$27 -> 801755.754 | AU68: 26732050.91 | AV68: =INDEX('Baselines+historic spend factor'!$P$9:$P$158, MATCH($C68, 'Baselines+historic spend factor'!$C$9:$C$158, 0)) -> 27748613.32 | AW68: -1016562.413 | AX68: 1016562.413 | AY68: 0 | AZ68: =INDEX('Import|export adjustments data'!$Q$9:$Q$158, MATCH($C68, 'Import|export adjustments data'!$C$9:$C$158, 0)) -> -52 | BA68: -312000 | BB68: 29964986.13 | BC68: 0 | BD68: 0 | BE68: 29964986.13
A69: Kent | B69: NORTH WEST | C69: 343 | D69: Sefton | E69: 1.001667448 | F69: 571 | G69: 4006.66979 | H69: 2287808.45 | I69: =INDEX('Baselines+historic spend factor'!$Q$9:$Q$158, MATCH('HN NFF illustrative allocations'!$C69, 'Baselines+historic spend factor'!$C$9:$C$158, 0)) -> 11726181.6 | J69: 50513.643 | K69: 50597.87185 | L69: 5576572.615 | M69: 5739 | N69: 5748.569482 | O69: 1235520.241 | P69: 5141 | Q69: 5149.572348 | R69: 166496.9732 | S69: 2092 | T69: 2095.4883 | U69: 88301.10423 | V69: 3005 | W69: 3010.01068 | X69: 178009.2063 | Y69: 1674 | Z69: 1676.791307 | AA69: 97177.25303 | AB69: 5314 | AC69: 5322.860817 | AD69: 360444.868 | AE69: 2386 | AF69: 2389.97853 | AG69: 229528.8845 | AH69: 1119958.289 | AI69: 320 | AJ69: 320.5335832 | AK69: 916725.8729 | AL69: 2140 | AM69: 2143.568338 | AN69: =(AM69 / $AM$8) * 'National details'!$E$25 -> 1113946.897 | AO69: 619 | AP69: 620.0321501 | AQ69: =(AP69 / $AP$8) * 'National details'!$E$26 -> 810011.3888 | AR69: 719 | AS69: 720.1988948 | AT69: =(AS69/AS$8) *'National details'!$E$27 -> 969155.524 | AU69: 23468072.43 | AV69: =INDEX('Baselines+historic spend factor'!$P$9:$P$158, MATCH($C69, 'Baselines+historic spend factor'!$C$9:$C$158, 0)) -> 23452363.2 | AW69: 15709.22862 | AX69: 0 | AY69: 0 | AZ69: =INDEX('Import|export adjustments data'!$Q$9:$Q$158, MATCH($C69, 'Import|export adjustments data'!$C$9:$C$158, 0)) -> -19 | BA69: -114000 | BB69: 25641880.88 | BC69: 15709.22862 | BD69: 15709.22862 | BE69: 25641880.88
A70: Kingston Upon Hull, City of | B70: NORTH WEST | C70: 342 | D70: St Helens | E70: 1.001667448 | F70: 372 | G70: 4006.66979 | H70: 1490481.162 | I70: =INDEX('Baselines+historic spend factor'!$Q$9:$Q$158, MATCH('HN NFF illustrative allocations'!$C70, 'Baselines+historic spend factor'!$C$9:$C$158, 0)) -> 8302163.327 | J70: 34390.965 | K70: 34448.31013 | L70: 3796671.597 | M70: 4402 | N70: 4409.340104 | O70: 947684.2833 | P70: 3650 | Q70: 3656.086184 | R70: 118209.2885 | S70: 2556 | T70: 2560.261996 | U70: 107886.0528 | V70: 3597 | W70: 3602.997809 | X70: 213077.9085 | Y70: 1934 | Z70: 1937.224844 | AA70: 112270.4942 | AB70: 5632 | AC70: 5641.391065 | AD70: 382014.5835 | AE70: 2731 | AF70: 2735.553799 | AG70: 262717.2605 | AH70: 1196175.588 | AI70: 226 | AJ70: 226.3768432 | AK70: 647437.6477 | AL70: 1510 | AM70: 1512.517846 | AN70: =(AM70 / $AM$8) * 'National details'!$E$25 -> 786009.2591 | AO70: 386 | AP70: 386.6436348 | AQ70: =(AP70 / $AP$8) * 'National details'!$E$26 -> 505112.11 | AR70: 567 | AS70: 567.9454428 | AT70: =(AS70/AS$8) *'National details'!$E$27 -> 764271.4633 | AU70: 16945525.27 | AV70: =INDEX('Baselines+historic spend factor'!$P$9:$P$158, MATCH($C70, 'Baselines+historic spend factor'!$C$9:$C$158, 0)) -> 16604326.65 | AW70: 341198.6215 | AX70: 0 | AY70: 0 | AZ70: =INDEX('Import|export adjustments data'!$Q$9:$Q$158, MATCH($C70, 'Import|export adjustments data'!$C$9:$C$158, 0)) -> -12 | BA70: -72000 | BB70: 18364006.44 | BC70: 341198.6215 | BD70: 341198.6215 | BE70: 18364006.44
A71: Kingston upon Thames | B71: NORTH WEST | C71: 356 | D71: Stockport | E71: 1.008123131 | F71: 543 | G71: 4032.492525 | H71: 2189643.441 | I71: =INDEX('Baselines+historic spend factor'!$Q$9:$Q$158, MATCH('HN NFF illustrative allocations'!$C71, 'Baselines+historic spend factor'!$C$9:$C$158, 0)) -> 13260270.19 | J71: 59291.551 | K71: 59773.18405 | L71: 6587816.623 | M71: 5454 | N71: 5498.303557 | O71: 1181731.448 | P71: 4953 | Q71: 4993.233869 | R71: 161442.2072 | S71: 5929 | T71: 5977.162045 | U71: 251869.6996 | V71: 2134 | W71: 2151.334762 | X71: 127227.9185 | Y71: 378 | Z71: 381.0705436 | AA71: 22084.67355 | AB71: 2348 | AC71: 2367.073112 | AD71: 160289.6233 | AE71: 2068 | AF71: 2084.798635 | AG71: 200220.0016 | AH71: 923134.1237 | AI71: 291 | AJ71: 293.3638312 | AK71: 839020.3969 | AL71: 2040 | AM71: 2056.571188 | AN71: =(AM71 / $AM$8) * 'National details'!$E$25 -> 1068737.139 | AO71: 602 | AP71: 606.890125 | AQ71: =(AP71 / $AP$8) * 'National details'!$E$26 -> 792842.6178 | AR71: 704 | AS71: 709.7186843 | AT71: =(AS71/AS$8) *'National details'!$E$27 -> 955052.5394 | AU71: 25608605.08 | AV71: =INDEX('Baselines+historic spend factor'!$P$9:$P$158, MATCH($C71, 'Baselines+historic spend factor'!$C$9:$C$158, 0)) -> 26520540.38 | AW71: -911935.3048 | AX71: 911935.3048 | AY71: 216725 | AZ71: =INDEX('Import|export adjustments data'!$Q$9:$Q$158, MATCH($C71, 'Import|export adjustments data'!$C$9:$C$158, 0)) -> -56 | BA71: -336000 | BB71: 28590908.83 | BC71: 0 | BD71: 0 | BE71: 28590908.83
A72: Kirklees | B72: NORTH WEST | C72: 357 | D72: Tameside | E72: 1.008123131 | F72: 419 | G72: 4032.492525 | H72: 1689614.368 | I72: =INDEX('Baselines+historic spend factor'!$Q$9:$Q$158, MATCH('HN NFF illustrative allocations'!$C72, 'Baselines+historic spend factor'!$C$9:$C$158, 0)) -> 8408248.883 | J72: 46226.323 | K72: 46601.82549 | L72: 5136154.038 | M72: 6335 | N72: 6386.460036 | O72: 1372619.861 | P72: 6415 | Q72: 6467.109886 | R72: 209095.8528 | S72: 6103 | T72: 6152.57547 | U72: 259261.3892 | V72: 8595 | W72: 8664.818312 | X72: 512429.2217 | Y72: 2573 | Z72: 2593.900817 | AA72: 150327.6853 | AB72: 3660 | AC72: 3689.73066 | AD72: 249855.205 | AE72: 1566 | AF72: 1578.720823 | AG72: 151617.274 | AH72: 1532586.628 | AI72: 283 | AJ72: 285.2988461 | AK72: 815954.544 | AL72: 1390 | AM72: 1401.291152 | AN72: =(AM72 / $AM$8) * 'National details'!$E$25 -> 728208.1487 | AO72: 583 | AP72: 587.7357855 | AQ72: =(AP72 / $AP$8) * 'National details'!$E$26 -> 767819.3458 | AR72: 747 | AS72: 753.067979 | AT72: =(AS72/AS$8) *'National details'!$E$27 -> 1013386.714 | AU72: 19774978.16 | AV72: =INDEX('Baselines+historic spend factor'!$P$9:$P$158, MATCH($C72, 'Baselines+historic spend factor'!$C$9:$C$158, 0)) -> 16816497.77 | AW72: 2958480.396 | AX72: 0 | AY72: 50000 | AZ72: =INDEX('Import|export adjustments data'!$Q$9:$Q$158, MATCH($C72, 'Import|export adjustments data'!$C$9:$C$158, 0)) -> -56 | BA72: -336000 | BB72: 21178592.53 | BC72: 2958480.396 | BD72: 504494.933 | BE72: 18724607.07
A73: Knowsley | B73: NORTH WEST | C73: 358 | D73: Trafford | E73: 1.008123131 | F73: 611 | G73: =4000 * E73 -> 4032.492525 | H73: =F73*G73 -> 2463852.933 | I73: =INDEX('Baselines+historic spend factor'!$Q$9:$Q$158, MATCH('HN NFF illustrative allocations'!$C73, 'Baselines+historic spend factor'!$C$9:$C$158, 0)) -> 10948904.66 | J73: 52959.08 | K73: =J73 * E73 -> 53389.27355 | L73: 5884222.991 | M73: 3547 | N73: =M73 * E73 -> 3575.812746 | O73: =(N73 /N$8) * O$8 -> 768537.1188 | P73: 2521 | Q73: =P73 * E73 -> 2541.478414 | R73: =(Q73/Q$8)*R$8 -> 82171.57364 | S73: 3095 | T73: =S73 * E73 -> 3120.141091 | U73: =(T73/T$8)*U$8 -> 131478.617 | V73: 2038 | W73: =V73 * E73 -> 2054.554941 | X73: =(W73/W$8)*X$8 -> 121504.4507 | Y73: 1831 | Z73: =Y73 * E73 -> 1845.873453 | AA73: =(Z73/Z$8)*AA$8 -> 106976.2891 | AB73: 2615 | AC73: =AB73 * E73 -> 2636.241988 | AD73: =(AC73/AC$8)*AD$8 -> 178516.7653 | AE73: 538 | AF73: =AE73 * E73 -> 542.3702446 | AG73: =(AF73/AF$8)*AG$8 -> 52088.18225 | AH73: =R73+U73+X73+AA73+AD73+AG73 -> 672735.878 | AI73: 223 | AJ73: =AI73 * E73 -> 224.8114583 | AK73: =(AJ73/AJ$8)*AK$8 -> 642960.6478 | AL73: 1240 | AM73: =AL73 * E73 -> 1250.072683 | AN73: =(AM73 / $AM$8) * 'National details'!$E$25 -> 649624.5356 | AO73: 416 | AP73: =AO73 * E73 -> 419.3792226 | AQ73: =(AP73 / $AP$8) * 'National details'!$E$26 -> 547877.9552 | AR73: 404 | AS73: =AR73 * E73 -> 407.281745 | AT73: =(AS73/AS$8) *'National details'!$E$27 -> 548069.9232 | AU73: =I73+L73+O73+AH73+AK73+AN73+AQ73+AT73 -> 20662933.71 | AV73: =INDEX('Baselines+historic spend factor'!$P$9:$P$158, MATCH($C73, 'Baselines+historic spend factor'!$C$9:$C$158, 0)) -> 21897809.31 | AW73: =AU73-AV73 -> -1234875.608 | AX73: =MAX(0, -AW73) -> 1234875.608 | AY73: 0 | AZ73: =INDEX('Import|export adjustments data'!$Q$9:$Q$158, MATCH($C73, 'Import|export adjustments data'!$C$9:$C$158, 0)) -> -56 | BA73: =AZ73 * 6000 -> -336000 | BB73: =H73+AU73+AX73+AY73+BA73 -> 24025662.25 | BC73: =MAX(AW73, 0) -> 0 | BD73: =MIN(BC73, 3% * AV73) -> 0 | BE73: =H73+AU73+AX73+AY73+BA73+(BD73-BC73) -> 24025662.25
A74: Lambeth | B74: NORTH WEST | C74: 877 | D74: Warrington | E74: 1.005398882 | F74: 350 | G74: 4021.595529 | H74: 1407558.435 | I74: =INDEX('Baselines+historic spend factor'!$Q$9:$Q$158, MATCH('HN NFF illustrative allocations'!$C74, 'Baselines+historic spend factor'!$C$9:$C$158, 0)) -> 9188764.377 | J74: 42778.508 | K74: 43009.46412 | L74: 4740227.03 | M74: 3168 | N74: 3185.103659 | O74: 684563.3602 | P74: 4992 | Q74: 5018.95122 | R74: 162273.7055 | S74: 2952 | T74: 2967.9375 | U74: 125064.9591 | V74: 1865 | W74: 1875.068915 | X74: 110889.8156 | Y74: 1236 | Z74: 1242.673018 | AA74: 72018.23495 | AB74: 2944 | AC74: 2959.894309 | AD74: 200433.329 | AE74: 453 | AF74: 455.4456936 | AG74: 43740.11762 | AH74: 714420.1619 | AI74: 152 | AJ74: 152.8206301 | AK74: 437066.9186 | AL74: 1230 | AM74: 1236.640625 | AN74: =(AM74 / $AM$8) * 'National details'!$E$25 -> 642644.3061 | AO74: 456 | AP74: 458.4618903 | AQ74: =(AP74 / $AP$8) * 'National details'!$E$26 -> 598935.6397 | AR74: 488 | AS74: 490.6346545 | AT74: =(AS74/AS$8) *'National details'!$E$27 -> 660236.0668 | AU74: 17666857.86 | AV74: =INDEX('Baselines+historic spend factor'!$P$9:$P$158, MATCH($C74, 'Baselines+historic spend factor'!$C$9:$C$158, 0)) -> 18377528.75 | AW74: -710670.8937 | AX74: 710670.8937 | AY74: 311525 | AZ74: =INDEX('Import|export adjustments data'!$Q$9:$Q$158, MATCH($C74, 'Import|export adjustments data'!$C$9:$C$158, 0)) -> -65 | BA74: -390000 | BB74: 19706612.19 | BC74: 0 | BD74: 0 | BE74: 19706612.19
A75: Lancashire | B75: NORTH WEST | C75: 359 | D75: Wigan | E75: 1.008123131 | F75: 701 | G75: 4032.492525 | H75: 2826777.26 | I75: =INDEX('Baselines+historic spend factor'!$Q$9:$Q$158, MATCH('HN NFF illustrative allocations'!$C75, 'Baselines+historic spend factor'!$C$9:$C$158, 0)) -> 12097553.08 | J75: 64082.598 | K75: 64603.14935 | L75: 7120144.392 | M75: 6582 | N75: 6635.466449 | O75: 1426137.952 | P75: 7515 | Q75: 7576.045331 | R75: 244950.1689 | S75: 6136 | T75: 6185.843533 | U75: 260663.2614 | V75: 5603 | W75: 5648.513904 | X75: 334047.8103 | Y75: 3299 | Z75: 3325.79821 | AA75: 192744.2805 | AB75: 5526 | AC75: 5570.888423 | AD75: 377240.3997 | AE75: 1827 | AF75: 1841.840961 | AG75: 176886.8196 | AH75: 1586532.741 | AI75: 355 | AJ75: 357.8837116 | AK75: 1023547.22 | AL75: 2140 | AM75: 2157.383501 | AN75: =(AM75 / $AM$8) * 'National details'!$E$25 -> 1121126.215 | AO75: 698 | AP75: 703.6699456 | AQ75: =(AP75 / $AP$8) * 'National details'!$E$26 -> 919275.9921 | AR75: 730 | AS75: 735.9298858 | AT75: =(AS75/AS$8) *'National details'!$E$27 -> 990324.3662 | AU75: 26284641.95 | AV75: =INDEX('Baselines+historic spend factor'!$P$9:$P$158, MATCH($C75, 'Baselines+historic spend factor'!$C$9:$C$158, 0)) -> 24195106.15 | AW75: 2089535.801 | AX75: 0 | AY75: 31844 | AZ75: =INDEX('Import|export adjustments data'!$Q$9:$Q$158, MATCH($C75, 'Import|export adjustments data'!$C$9:$C$158, 0)) -> -71 | BA75: -426000 | BB75: 28717263.21 | BC75: 2089535.801 | BD75: 725853.1845 | BE75: 27353580.6
A76: Leeds | B76: NORTH WEST | C76: 344 | D76: Wirral | E76: 1.001667448 | F76: 956 | G76: 4006.66979 | H76: 3830376.32 | I76: =INDEX('Baselines+historic spend factor'!$Q$9:$Q$158, MATCH('HN NFF illustrative allocations'!$C76, 'Baselines+historic spend factor'!$C$9:$C$158, 0)) -> 14355163.29 | J76: 64146.648 | K76: 64253.60918 | L76: 7081620.318 | M76: 8507 | N76: 8521.184977 | O76: 1831428.941 | P76: 4497 | Q76: 4504.498512 | R76: 145640.3207 | S76: 3294 | T76: 3299.492572 | U76: 139036.2511 | V76: 4083 | W76: 4089.808189 | X76: 241867.4174 | Y76: 3806 | Z76: 3812.346306 | AA76: 220941.831 | AB76: 6298 | AC76: 6308.501585 | AD76: 427188.8932 | AE76: 7405 | AF76: 7417.34745 | AG76: 712347.6068 | AH76: 1887022.32 | AI76: 460 | AJ76: 460.7670259 | AK76: 1317793.442 | AL76: 3470 | AM76: 3475.786043 | AN76: =(AM76 / $AM$8) * 'National details'!$E$25 -> 1806259.688 | AO76: 710 | AP76: 711.1838878 | AQ76: =(AP76 / $AP$8) * 'National details'!$E$26 -> 929092.2231 | AR76: 886 | AS76: 887.4773586 | AT76: =(AS76/AS$8) *'National details'!$E$27 -> 1194258.406 | AU76: 30402638.63 | AV76: =INDEX('Baselines+historic spend factor'!$P$9:$P$158, MATCH($C76, 'Baselines+historic spend factor'!$C$9:$C$158, 0)) -> 28710326.58 | AW76: 1692312.048 | AX76: 0 | AY76: 1356300 | AZ76: =INDEX('Import|export adjustments data'!$Q$9:$Q$158, MATCH($C76, 'Import|export adjustments data'!$C$9:$C$158, 0)) -> -112 | BA76: -672000 | BB76: 34917314.95 | BC76: 1692312.048 | BD76: 861309.7974 | BE76: 34086312.7
A77: Leicester | B77: OUTER LONDON | C77: 301 | D77: Barking and Dagenham | E77: 1.123376795 | F77: 326 | G77: 4493.50718 | H77: 1464883.341 | I77: =INDEX('Baselines+historic spend factor'!$Q$9:$Q$158, MATCH('HN NFF illustrative allocations'!$C77, 'Baselines+historic spend factor'!$C$9:$C$158, 0)) -> 11894872.4 | J77: 59457.259 | K77: 66792.90506 | L77: 7361485.209 | M77: 8114 | N77: 9115.079316 | O77: 1959072.606 | P77: 3505 | Q77: 3937.435667 | R77: 127305.9347 | S77: 14888 | T77: 16724.83373 | U77: 704762.3629 | V77: 12531 | W77: 14077.03462 | X77: 832502.614 | Y77: 12010 | Z77: 13491.75531 | AA77: 781905.1266 | AB77: 6690 | AC77: 7515.390759 | AD77: 508915.0597 | AE77: 0 | AF77: 0 | AG77: 0 | AH77: 2955391.098 | AI77: 418 | AJ77: 469.5715004 | AK77: 1342974.234 | AL77: 1700 | AM77: 1909.740552 | AN77: =(AM77 / $AM$8) * 'National details'!$E$25 -> 992433.749 | AO77: 732 | AP77: 822.311814 | AQ77: =(AP77 / $AP$8) * 'National details'!$E$26 -> 1074269.995 | AR77: 588 | AS77: 660.5455555 | AT77: =(AS77/AS$8) *'National details'!$E$27 -> 888881.3612 | AU77: 28469380.66 | AV77: =INDEX('Baselines+historic spend factor'!$P$9:$P$158, MATCH($C77, 'Baselines+historic spend factor'!$C$9:$C$158, 0)) -> 23789744.81 | AW77: 4679635.848 | AX77: 0 | AY77: 157680 | AZ77: =INDEX('Import|export adjustments data'!$Q$9:$Q$158, MATCH($C77, 'Import|export adjustments data'!$C$9:$C$158, 0)) -> 43.5 | BA77: 261000 | BB77: 30352944 | BC77: 4679635.848 | BD77: 713692.3442 | BE77: 26387000.49
A78: Leicestershire | B78: OUTER LONDON | C78: 302 | D78: Barnet | E78: 1.110558221 | F78: 610 | G78: 4442.232886 | H78: 2709762.06 | I78: =INDEX('Baselines+historic spend factor'!$Q$9:$Q$158, MATCH('HN NFF illustrative allocations'!$C78, 'Baselines+historic spend factor'!$C$9:$C$158, 0)) -> 21148078.69 | J78: 87491.874 | K78: 97164.81998 | L78: 10708882.69 | M78: 8211 | N78: 9118.793557 | O78: 1959870.895 | P78: 7317 | Q78: 8125.954507 | R78: 262729.9392 | S78: 6929 | T78: 7695.057917 | U78: 324259.5585 | V78: 6968 | W78: 7738.369687 | X78: 457639.9197 | Y78: 4468 | Z78: 4961.974134 | AA78: 287567.6978 | AB78: 3202 | AC78: 3556.007425 | AD78: 240799.9516 | AE78: 0 | AF78: 0 | AG78: 0 | AH78: 1572997.067 | AI78: 511 | AJ78: 567.4952512 | AK78: 1623036.108 | AL78: 1830 | AM78: 2032.321545 | AN78: =(AM78 / $AM$8) * 'National details'!$E$25 -> 1056135.342 | AO78: 651 | AP78: 722.9734022 | AQ78: =(AP78 / $AP$8) * 'National details'!$E$26 -> 944494.0711 | AR78: 663 | AS78: 736.3001009 | AT78: =(AS78/AS$8) *'National details'!$E$27 -> 990822.5563 | AU78: 40004317.42 | AV78: =INDEX('Baselines+historic spend factor'!$P$9:$P$158, MATCH($C78, 'Baselines+historic spend factor'!$C$9:$C$158, 0)) -> 42296157.38 | AW78: -2291839.957 | AX78: 2291839.957 | AY78: 1071152 | AZ78: =INDEX('Import|export adjustments data'!$Q$9:$Q$158, MATCH($C78, 'Import|export adjustments data'!$C$9:$C$158, 0)) -> 4 | BA78: 24000 | BB78: 46101071.44 | BC78: 0 | BD78: 0 | BE78: 46101071.44
A79: Lewisham | B79: OUTER LONDON | C79: 303 | D79: Bexley | E79: 1.086278751 | F79: 568 | G79: 4345.115005 | H79: 2468025.323 | I79: =INDEX('Baselines+historic spend factor'!$Q$9:$Q$158, MATCH('HN NFF illustrative allocations'!$C79, 'Baselines+historic spend factor'!$C$9:$C$158, 0)) -> 14055427.18 | J79: 55365.24 | K79: 60142.08377 | L79: 6628474.382 | M79: 4494 | N79: 4881.736709 | O79: 1049214.859 | P79: 6073 | Q79: 6596.970857 | R79: 213294.5429 | S79: 6428 | T79: 6982.599814 | U79: 294237.5168 | V79: 5118 | W79: 5559.574649 | X79: 328788.0263 | Y79: 4164 | Z79: 4523.264721 | AA79: 262142.6044 | AB79: 946 | AC79: 1027.619699 | AD79: 69586.68645 | AE79: 0 | AF79: 0 | AG79: 0 | AH79: 1168049.377 | AI79: 308 | AJ79: 334.5738554 | AK79: 956881.0437 | AL79: 1780 | AM79: 1933.576177 | AN79: =(AM79 / $AM$8) * 'National details'!$E$25 -> 1004820.395 | AO79: 550 | AP79: 597.4533132 | AQ79: =(AP79 / $AP$8) * 'National details'!$E$26 -> 780514.3459 | AR79: 567 | AS79: 615.920052 | AT79: =(AS79/AS$8) *'National details'!$E$27 -> 828829.8205 | AU79: 26472211.4 | AV79: =INDEX('Baselines+historic spend factor'!$P$9:$P$158, MATCH($C79, 'Baselines+historic spend factor'!$C$9:$C$158, 0)) -> 28110854.35 | AW79: -1638642.954 | AX79: 1638642.954 | AY79: 295000 | AZ79: =INDEX('Import|export adjustments data'!$Q$9:$Q$158, MATCH($C79, 'Import|export adjustments data'!$C$9:$C$158, 0)) -> -68 | BA79: -408000 | BB79: 30465879.68 | BC79: 0 | BD79: 0 | BE79: 30465879.68
A80: Lincolnshire | B80: OUTER LONDON | C80: 304 | D80: Brent | E80: 1.147656265 | F80: 758 | G80: 4590.625061 | H80: 3479693.796 | I80: =INDEX('Baselines+historic spend factor'!$Q$9:$Q$158, MATCH('HN NFF illustrative allocations'!$C80, 'Baselines+historic spend factor'!$C$9:$C$158, 0)) -> 25014217.96 | J80: 71520.89 | K80: 82081.39751 | L80: 9046484.699 | M80: 7347 | N80: 8431.830581 | O80: 1812224.308 | P80: 10693 | Q80: 12271.88844 | R80: 396777.0805 | S80: 6241 | T80: 7162.522752 | U80: 301819.2313 | V80: 7186 | W80: 8247.057922 | X80: 487723.2644 | Y80: 10538 | Z80: 12094.00172 | AA80: 700899.3072 | AB80: 7653 | AC80: 8783.013398 | AD80: 594753.8765 | AE80: 1240 | AF80: 1423.093769 | AG80: 136671.1547 | AH80: 2618643.915 | AI80: 558 | AJ80: 640.392196 | AK80: 1831521.331 | AL80: 1660 | AM80: 1905.1094 | AN80: =(AM80 / $AM$8) * 'National details'!$E$25 -> 990027.0813 | AO80: 878 | AP80: 1007.642201 | AQ80: =(AP80 / $AP$8) * 'National details'!$E$26 -> 1316386.027 | AR80: 723 | AS80: 829.7554798 | AT80: =(AS80/AS$8) *'National details'!$E$27 -> 1116583.367 | AU80: 43746088.69 | AV80: =INDEX('Baselines+historic spend factor'!$P$9:$P$158, MATCH($C80, 'Baselines+historic spend factor'!$C$9:$C$158, 0)) -> 50028435.92 | AW80: -6282347.23 | AX80: 6282347.23 | AY80: 0 | AZ80: =INDEX('Import|export adjustments data'!$Q$9:$Q$158, MATCH($C80, 'Import|export adjustments data'!$C$9:$C$158, 0)) -> -223 | BA80: -1338000 | BB80: 52170129.71 | BC80: 0 | BD80: 0 | BE80: 52170129.71
A81: Liverpool | B81: OUTER LONDON | C81: 305 | D81: Bromley | E81: 1.086278751 | F81: 624 | G81: 4345.115005 | H81: 2711351.763 | I81: =INDEX('Baselines+historic spend factor'!$Q$9:$Q$158, MATCH('HN NFF illustrative allocations'!$C81, 'Baselines+historic spend factor'!$C$9:$C$158, 0)) -> 20084076.67 | J81: 70497.977 | K81: 76580.45443 | L81: 8440206.067 | M81: 4451 | N81: 4835.026722 | O81: 1039175.642 | P81: 2229 | Q81: 2421.315337 | R81: 78286.4377 | S81: 4612 | T81: 5009.917601 | U81: 211111.2986 | V81: 3203 | W81: 3479.350841 | X81: 205765.5428 | Y81: 2766 | Z81: 3004.647026 | AA81: 174132.1911 | AB81: 5841 | AC81: 6344.954187 | AD81: 429657.3315 | AE81: 579 | AF81: 628.955397 | AG81: 60403.6517 | AH81: 1159356.453 | AI81: 287 | AJ81: 311.7620016 | AK81: 891639.1543 | AL81: 2160 | AM81: 2346.362103 | AN81: =(AM81 / $AM$8) * 'National details'!$E$25 -> 1219332.614 | AO81: 601 | AP81: 652.8535296 | AQ81: =(AP81 / $AP$8) * 'National details'!$E$26 -> 852889.3125 | AR81: 508 | AS81: 551.8296057 | AT81: =(AS81/AS$8) *'National details'!$E$27 -> 742584.7422 | AU81: 34429260.66 | AV81: =INDEX('Baselines+historic spend factor'!$P$9:$P$158, MATCH($C81, 'Baselines+historic spend factor'!$C$9:$C$158, 0)) -> 40168153.34 | AW81: -5738892.685 | AX81: 5738892.685 | AY81: 795360 | AZ81: =INDEX('Import|export adjustments data'!$Q$9:$Q$158, MATCH($C81, 'Import|export adjustments data'!$C$9:$C$158, 0)) -> -46 | BA81: -276000 | BB81: 43398865.1 | BC81: 0 | BD81: 0 | BE81: 43398865.1
A82: Luton | B82: OUTER LONDON | C82: 306 | D82: Croydon | E82: 1.086278751 | F82: 1090 | G82: 4345.115005 | H82: 4736175.356 | I82: =INDEX('Baselines+historic spend factor'!$Q$9:$Q$158, MATCH('HN NFF illustrative allocations'!$C82, 'Baselines+historic spend factor'!$C$9:$C$158, 0)) -> 26645303.24 | J82: 90524.328 | K82: 98334.65399 | L82: 10837814.29 | M82: 10800 | N82: 11731.81051 | O82: 2521477.631 | P82: 12659 | Q82: 13751.20271 | R82: 444606.5567 | S82: 16381 | T82: 17794.33223 | U82: 749829.6145 | V82: 9708 | W82: 10545.59412 | X82: 623656.5375 | Y82: 10125 | Z82: 10998.57236 | AA82: 637414.4739 | AB82: 3416 | AC82: 3710.728215 | AD82: 251277.0834 | AE82: 433 | AF82: 470.3586993 | AG82: 45172.33365 | AH82: 2751956.6 | AI82: 589 | AJ82: 639.8181845 | AK82: 1829879.658 | AL82: 2630 | AM82: 2856.913116 | AN82: =(AM82 / $AM$8) * 'National details'!$E$25 -> 1484650.358 | AO82: 1061 | AP82: 1152.541755 | AQ82: =(AP82 / $AP$8) * 'National details'!$E$26 -> 1505683.129 | AR82: 913 | AS82: 991.7725 | AT82: =(AS82/AS$8) *'National details'!$E$27 -> 1334606.043 | AU82: 48911370.95 | AV82: =INDEX('Baselines+historic spend factor'!$P$9:$P$158, MATCH($C82, 'Baselines+historic spend factor'!$C$9:$C$158, 0)) -> 53290606.49 | AW82: -4379235.539 | AX82: 4379235.539 | AY82: 420447 | AZ82: =INDEX('Import|export adjustments data'!$Q$9:$Q$158, MATCH($C82, 'Import|export adjustments data'!$C$9:$C$158, 0)) -> -337 | BA82: -2022000 | BB82: 56425228.85 | BC82: 0 | BD82: 0 | BE82: 56425228.85
A83: Manchester | B83: OUTER LONDON | C83: 307 | D83: Ealing | E83: 1.147656265 | F83: 796 | G83: 4590.625061 | H83: 3654137.549 | I83: =INDEX('Baselines+historic spend factor'!$Q$9:$Q$158, MATCH('HN NFF illustrative allocations'!$C83, 'Baselines+historic spend factor'!$C$9:$C$158, 0)) -> 23298570.41 | J83: 76828.077 | K83: 88172.22392 | L83: 9717776.485 | M83: 8153 | N83: 9356.841531 | O83: 2011033.726 | P83: 12837 | Q83: 14732.46348 | R83: 476332.8703 | S83: 10270 | T83: 11786.42984 | U83: 496664.5578 | V83: 7309 | W83: 8388.219643 | X83: 496071.4361 | Y83: 5775 | Z83: 6627.714932 | AA83: 384104.5264 | AB83: 4896 | AC83: 5618.925075 | AD83: 380493.2679 | AE83: 909 | AF83: 1043.219545 | AG83: 100188.7739 | AH83: 2333855.432 | AI83: 486 | AJ83: 557.7609449 | AK83: 1595195.998 | AL83: 1680 | AM83: 1928.062526 | AN83: =(AM83 / $AM$8) * 'National details'!$E$25 -> 1001955.118 | AO83: 838 | AP83: 961.7359503 | AQ83: =(AP83 / $AP$8) * 'National details'!$E$26 -> 1256413.998 | AR83: 621 | AS83: 712.6945407 | AT83: =(AS83/AS$8) *'National details'!$E$27 -> 959057.0827 | AU83: 42173858.25 | AV83: =INDEX('Baselines+historic spend factor'!$P$9:$P$158, MATCH($C83, 'Baselines+historic spend factor'!$C$9:$C$158, 0)) -> 46597140.83 | AW83: -4423282.572 | AX83: 4423282.572 | AY83: 87099 | AZ83: =INDEX('Import|export adjustments data'!$Q$9:$Q$158, MATCH($C83, 'Import|export adjustments data'!$C$9:$C$158, 0)) -> -112 | BA83: -672000 | BB83: 49666377.37 | BC83: 0 | BD83: 0 | BE83: 49666377.37
A84: Medway | B84: OUTER LONDON | C84: 308 | D84: Enfield | E84: 1.086278751 | F84: 617 | G84: 4345.115005 | H84: 2680935.958 | I84: =INDEX('Baselines+historic spend factor'!$Q$9:$Q$158, MATCH('HN NFF illustrative allocations'!$C84, 'Baselines+historic spend factor'!$C$9:$C$158, 0)) -> 19004680.21 | J84: 80459.143 | K84: 87401.05739 | L84: 9632783.461 | M84: 10581 | N84: 11493.91547 | O84: 2470347.668 | P84: 6158 | Q84: 6689.304551 | R84: 216279.8938 | S84: 7261 | T84: 7887.470013 | U84: 332367.5497 | V84: 7227 | W84: 7850.536536 | X84: 464273.3618 | Y84: 15067 | Z84: 16366.96195 | AA84: 948535.6916 | AB84: 20912 | AC84: 22716.26125 | AD84: 1538262.988 | AE84: 1131 | AF84: 1228.581268 | AG84: 117990.5528 | AH84: 3617710.038 | AI84: 575 | AJ84: 624.610282 | AK84: 1786385.065 | AL84: 1800 | AM84: 1955.301752 | AN84: =(AM84 / $AM$8) * 'National details'!$E$25 -> 1016110.511 | AO84: 1037 | AP84: 1126.471065 | AQ84: =(AP84 / $AP$8) * 'National details'!$E$26 -> 1471624.321 | AR84: 857 | AS84: 930.9408899 | AT84: =(AS84/AS$8) *'National details'!$E$27 -> 1252746.307 | AU84: 40252387.58 | AV84: =INDEX('Baselines+historic spend factor'!$P$9:$P$158, MATCH($C84, 'Baselines+historic spend factor'!$C$9:$C$158, 0)) -> 38009360.42 | AW84: 2243027.163 | AX84: 0 | AY84: 308850 | AZ84: =INDEX('Import|export adjustments data'!$Q$9:$Q$158, MATCH($C84, 'Import|export adjustments data'!$C$9:$C$158, 0)) -> -201 | BA84: -1206000 | BB84: 42036173.54 | BC84: 2243027.163 | BD84: 1140280.813 | BE84: 40933427.19
A85: Merton | B85: OUTER LONDON | C85: 203 | D85: Greenwich | E85: 1.203818733 | F85: 537 | G85: 4815.274933 | H85: 2585802.639 | I85: =INDEX('Baselines+historic spend factor'!$Q$9:$Q$158, MATCH('HN NFF illustrative allocations'!$C85, 'Baselines+historic spend factor'!$C$9:$C$158, 0)) -> 20713150.05 | J85: 62295.854 | K85: 74992.91604 | L85: 8265237.778 | M85: 8123 | N85: 9778.619569 | O85: 2101685.027 | P85: 9272 | Q85: 11161.80729 | R85: 360885.7211 | S85: 10243 | T85: 12330.71528 | U85: 519600.026 | V85: 9557 | W85: 11504.89563 | X85: 680388.7286 | Y85: 9132 | Z85: 10993.27267 | AA85: 637107.3343 | AB85: 5348 | AC85: 6438.022585 | AD85: 435959.5865 | AE85: 0 | AF85: 0 | AG85: 0 | AH85: 2633941.397 | AI85: 475 | AJ85: 571.8138982 | AK85: 1635387.437 | AL85: 1930 | AM85: 2323.370155 | AN85: =(AM85 / $AM$8) * 'National details'!$E$25 -> 1207384.402 | AO85: 614 | AP85: 739.1447021 | AQ85: =(AP85 / $AP$8) * 'National details'!$E$26 -> 965620.2935 | AR85: 602 | AS85: 724.6988773 | AT85: =(AS85/AS$8) *'National details'!$E$27 -> 975211.0497 | AU85: 38497617.43 | AV85: =INDEX('Baselines+historic spend factor'!$P$9:$P$158, MATCH($C85, 'Baselines+historic spend factor'!$C$9:$C$158, 0)) -> 41426300.1 | AW85: -2928682.666 | AX85: 2928682.666 | AY85: 0 | AZ85: =INDEX('Import|export adjustments data'!$Q$9:$Q$158, MATCH($C85, 'Import|export adjustments data'!$C$9:$C$158, 0)) -> -47 | BA85: -282000 | BB85: 43730102.74 | BC85: 0 | BD85: 0 | BE85: 43730102.74
A86: Middlesbrough | B86: OUTER LONDON | C86: 310 | D86: Harrow | E86: 1.110558221 | F86: 501 | G86: 4442.232886 | H86: 2225558.676 | I86: =INDEX('Baselines+historic spend factor'!$Q$9:$Q$158, MATCH('HN NFF illustrative allocations'!$C86, 'Baselines+historic spend factor'!$C$9:$C$158, 0)) -> 14081019.71 | J86: 55498.542 | K86: 61634.3621 | L86: 6792943.719 | M86: 3765 | N86: 4181.251704 | O86: 898662.0289 | P86: 5384 | Q86: 5979.245465 | R86: 193322.1256 | S86: 6666 | T86: 7402.981104 | U86: 311951.8281 | V86: 1117 | W86: 1240.493533 | X86: 73361.62317 | Y86: 1209 | Z86: 1342.66489 | AA86: 77813.19307 | AB86: 1014 | AC86: 1126.106037 | AD86: 76255.82477 | AE86: 0 | AF86: 0 | AG86: 0 | AH86: 732704.5947 | AI86: 330 | AJ86: 366.4842131 | AK86: 1048144.649 | AL86: 1230 | AM86: 1365.986612 | AN86: =(AM86 / $AM$8) * 'National details'!$E$25 -> 709861.4593 | AO86: 512 | AP86: 568.6058094 | AQ86: =(AP86 / $AP$8) * 'National details'!$E$26 -> 742827.9023 | AR86: 388 | AS86: 430.8965899 | AT86: =(AS86/AS$8) *'National details'!$E$27 -> 579847.8912 | AU86: 25586011.95 | AV86: =INDEX('Baselines+historic spend factor'!$P$9:$P$158, MATCH($C86, 'Baselines+historic spend factor'!$C$9:$C$158, 0)) -> 28162039.42 | AW86: -2576027.463 | AX86: 2576027.463 | AY86: 92000 | AZ86: =INDEX('Import|export adjustments data'!$Q$9:$Q$158, MATCH($C86, 'Import|export adjustments data'!$C$9:$C$158, 0)) -> -41 | BA86: -246000 | BB86: 30233598.09 | BC86: 0 | BD86: 0 | BE86: 30233598.09
A87: Milton Keynes | B87: OUTER LONDON | C87: 311 | D87: Havering | E87: 1.086278751 | F87: 312 | G87: 4345.115005 | H87: 1355675.882 | I87: =INDEX('Baselines+historic spend factor'!$Q$9:$Q$158, MATCH('HN NFF illustrative allocations'!$C87, 'Baselines+historic spend factor'!$C$9:$C$158, 0)) -> 10106704.87 | J87: 53590.743 | K87: 58214.48539 | L87: 6416026.863 | M87: 4616 | N87: 5014.262716 | O87: 1077698.217 | P87: 7399 | Q87: 8037.376481 | R87: 259866.0173 | S87: 5609 | T87: 6092.937516 | U87: 256748.3248 | V87: 4207 | W87: 4569.974707 | X87: 270264.0145 | Y87: 3886 | Z87: 4221.279228 | AA87: 244641.2489 | AB87: 2616 | AC87: 2841.705213 | AD87: 192429.9913 | AE87: 0 | AF87: 0 | AG87: 0 | AH87: 1223949.597 | AI87: 274 | AJ87: 297.6403779 | AK87: 851251.3181 | AL87: 1480 | AM87: 1607.692552 | AN87: =(AM87 / $AM$8) * 'National details'!$E$25 -> 835468.6427 | AO87: 502 | AP87: 545.3119332 | AQ87: =(AP87 / $AP$8) * 'National details'!$E$26 -> 712396.7302 | AR87: 509 | AS87: 552.9158844 | AT87: =(AS87/AS$8) *'National details'!$E$27 -> 744046.5232 | AU87: 21967542.76 | AV87: =INDEX('Baselines+historic spend factor'!$P$9:$P$158, MATCH($C87, 'Baselines+historic spend factor'!$C$9:$C$158, 0)) -> 20213409.75 | AW87: 1754133.017 | AX87: 0 | AY87: 78150 | AZ87: =INDEX('Import|export adjustments data'!$Q$9:$Q$158, MATCH($C87, 'Import|export adjustments data'!$C$9:$C$158, 0)) -> -31 | BA87: -186000 | BB87: 23215368.65 | BC87: 1754133.017 | BD87: 606402.2924 | BE87: 22067637.92
A88: Newcastle upon Tyne | B88: OUTER LONDON | C88: 312 | D88: Hillingdon | E88: 1.110558221 | F88: 649 | G88: 4442.232886 | H88: 2883009.143 | I88: =INDEX('Baselines+historic spend factor'!$Q$9:$Q$158, MATCH('HN NFF illustrative allocations'!$C88, 'Baselines+historic spend factor'!$C$9:$C$158, 0)) -> 15428151.07 | J88: 69315.808 | K88: 76979.24045 | L88: 8484157.703 | M88: 6934 | N88: 7700.610708 | O88: 1655065.739 | P88: 12337 | Q88: 13700.95678 | R88: 442981.9954 | S88: 10953 | T88: 12163.9442 | U88: 512572.5133 | V88: 8051 | W88: 8941.104241 | X88: 528768.5122 | Y88: 3764 | Z88: 4180.141146 | AA88: 242257.1205 | AB88: 808 | AC88: 897.331043 | AD88: 60764.01027 | AE88: 0 | AF88: 0 | AG88: 0 | AH88: 1787344.152 | AI88: 402 | AJ88: 446.444405 | AK88: 1276830.754 | AL88: 2120 | AM88: 2354.38343 | AN88: =(AM88 / $AM$8) * 'National details'!$E$25 -> 1223501.052 | AO88: 678 | AP88: 752.9584742 | AQ88: =(AP88 / $AP$8) * 'National details'!$E$26 -> 983666.6362 | AR88: 688 | AS88: 764.0640564 | AT88: =(AS88/AS$8) *'National details'!$E$27 -> 1028183.89 | AU88: 31866900.99 | AV88: =INDEX('Baselines+historic spend factor'!$P$9:$P$158, MATCH($C88, 'Baselines+historic spend factor'!$C$9:$C$158, 0)) -> 30856302.13 | AW88: 1010598.861 | AX88: 0 | AY88: 75000 | AZ88: =INDEX('Import|export adjustments data'!$Q$9:$Q$158, MATCH($C88, 'Import|export adjustments data'!$C$9:$C$158, 0)) -> -77 | BA88: -462000 | BB88: 34362910.13 | BC88: 1010598.861 | BD88: 925689.0639 | BE88: 34278000.34
A89: Newham | B89: OUTER LONDON | C89: 313 | D89: Hounslow | E89: 1.110558221 | F89: 616 | G89: 4442.232886 | H89: 2736415.458 | I89: =INDEX('Baselines+historic spend factor'!$Q$9:$Q$158, MATCH('HN NFF illustrative allocations'!$C89, 'Baselines+historic spend factor'!$C$9:$C$158, 0)) -> 18931214.02 | J89: 59843.74 | K89: 66459.95746 | L89: 7324789.862 | M89: 6069 | N89: 6739.977846 | O89: 1448600.227 | P89: 12239 | Q89: 13592.12207 | R89: 439463.1305 | S89: 6899 | T89: 7661.74117 | U89: 322855.6349 | V89: 6610 | W89: 7340.789844 | X89: 434127.4209 | Y89: 2284 | Z89: 2536.514978 | AA89: 147001.9297 | AB89: 3026 | AC89: 3360.549178 | AD89: 227564.2266 | AE89: 0 | AF89: 0 | AG89: 0 | AH89: 1571012.343 | AI89: 375 | AJ89: 416.4593331 | AK89: 1191073.465 | AL89: 1560 | AM89: 1732.470826 | AN89: =(AM89 / $AM$8) * 'National details'!$E$25 -> 900312.0947 | AO89: 629 | AP89: 698.5411213 | AQ89: =(AP89 / $AP$8) * 'National details'!$E$26 -> 912575.6846 | AR89: 476 | AS89: 528.6257134 | AT89: =(AS89/AS$8) *'National details'!$E$27 -> 711359.784 | AU89: 32990937.48 | AV89: =INDEX('Baselines+historic spend factor'!$P$9:$P$158, MATCH($C89, 'Baselines+historic spend factor'!$C$9:$C$158, 0)) -> 37862428.03 | AW89: -4871490.558 | AX89: 4871490.558 | AY89: 1866488 | AZ89: =INDEX('Import|export adjustments data'!$Q$9:$Q$158, MATCH($C89, 'Import|export adjustments data'!$C$9:$C$158, 0)) -> -185 | BA89: -1110000 | BB89: 41355331.49 | BC89: 0 | BD89: 0 | BE89: 41355331.49
A90: Norfolk | B90: OUTER LONDON | C90: 314 | D90: Kingston upon Thames | E90: 1.110558221 | F90: 425 | G90: 4442.232886 | H90: 1887948.977 | I90: =INDEX('Baselines+historic spend factor'!$Q$9:$Q$158, MATCH('HN NFF illustrative allocations'!$C90, 'Baselines+historic spend factor'!$C$9:$C$158, 0)) -> 7852727.851 | J90: 37562.147 | K90: 41714.95117 | L90: 4597554.122 | M90: 1954 | N90: 2170.030765 | O90: 466397.2389 | P90: 2664 | Q90: 2958.527102 | R90: 95655.67283 | S90: 1221 | T90: 1355.991588 | U90: 57139.69129 | V90: 673 | W90: 747.4056831 | X90: 44200.87054 | Y90: 422 | Z90: 468.6555695 | AA90: 27160.60172 | AB90: 0 | AC90: 0 | AD90: 0 | AE90: 0 | AF90: 0 | AG90: 0 | AH90: 224156.8364 | AI90: 148 | AJ90: 164.3626168 | AK90: 470076.9942 | AL90: 910 | AM90: 1010.607982 | AN90: =(AM90 / $AM$8) * 'National details'!$E$25 -> 525182.0552 | AO90: 269 | AP90: 298.7401616 | AQ90: =(AP90 / $AP$8) * 'National details'!$E$26 -> 390274.8158 | AR90: 264 | AS90: 293.1873705 | AT90: =(AS90/AS$8) *'National details'!$E$27 -> 394535.6785 | AU90: 14920905.59 | AV90: =INDEX('Baselines+historic spend factor'!$P$9:$P$158, MATCH($C90, 'Baselines+historic spend factor'!$C$9:$C$158, 0)) -> 15705455.7 | AW90: -784550.1096 | AX90: 784550.1096 | AY90: 0 | AZ90: =INDEX('Import|export adjustments data'!$Q$9:$Q$158, MATCH($C90, 'Import|export adjustments data'!$C$9:$C$158, 0)) -> -3 | BA90: -18000 | BB90: 17575404.68 | BC90: 0 | BD90: 0 | BE90: 17575404.68
A91: North East Lincolnshire | B91: OUTER LONDON | C91: 315 | D91: Merton | E91: 1.147656265 | F91: 421 | G91: 4590.625061 | H91: 1932653.151 | I91: =INDEX('Baselines+historic spend factor'!$Q$9:$Q$158, MATCH('HN NFF illustrative allocations'!$C91, 'Baselines+historic spend factor'!$C$9:$C$158, 0)) -> 14988405.76 | J91: 43938.145 | K91: 50425.88739 | L91: 5557617.592 | M91: 4159 | N91: 4773.102407 | O91: 1025866.462 | P91: 4466 | Q91: 5125.432881 | R91: 165716.4913 | S91: 4837 | T91: 5551.213355 | U91: 233920.7854 | V91: 3152 | W91: 3617.412548 | X91: 213930.3826 | Y91: 2245 | Z91: 2576.488316 | AA91: 149318.5561 | AB91: 764 | AC91: 876.8093867 | AD91: 59374.35799 | AE91: 454 | AF91: 521.0359444 | AG91: 50039.2776 | AH91: 872299.851 | AI91: 222 | AJ91: 254.7796909 | AK91: 728669.7767 | AL91: 1010 | AM91: 1159.132828 | AN91: =(AM91 / $AM$8) * 'National details'!$E$25 -> 602365.8748 | AO91: 349 | AP91: 400.5320366 | AQ91: =(AP91 / $AP$8) * 'National details'!$E$26 -> 523255.9492 | AR91: 397 | AS91: 455.6195373 | AT91: =(AS91/AS$8) *'National details'!$E$27 -> 613117.0078 | AU91: 24911598.28 | AV91: =INDEX('Baselines+historic spend factor'!$P$9:$P$158, MATCH($C91, 'Baselines+historic spend factor'!$C$9:$C$158, 0)) -> 29976811.53 | AW91: -5065213.251 | AX91: 5065213.251 | AY91: 0 | AZ91: =INDEX('Import|export adjustments data'!$Q$9:$Q$158, MATCH($C91, 'Import|export adjustments data'!$C$9:$C$158, 0)) -> -134 | BA91: -804000 | BB91: 31105464.68 | BC91: 0 | BD91: 0 | BE91: 31105464.68
A92: North Lincolnshire | B92: OUTER LONDON | C92: 317 | D92: Redbridge | E92: 1.086278751 | F92: 581 | G92: 4345.115005 | H92: 2524511.818 | I92: =INDEX('Baselines+historic spend factor'!$Q$9:$Q$158, MATCH('HN NFF illustrative allocations'!$C92, 'Baselines+historic spend factor'!$C$9:$C$158, 0)) -> 19068106.34 | J92: 73653.104 | K92: 80007.80185 | L92: 8817946.297 | M92: 7633 | N92: 8291.565709 | O92: 1782077.662 | P92: 10970 | Q92: 11916.4779 | R92: 385285.8778 | S92: 11560 | T92: 12557.38237 | U92: 529151.4769 | V92: 2749 | W92: 2986.180287 | X92: 176599.8992 | Y92: 3946 | Z92: 4286.455953 | AA92: 248418.5199 | AB92: 384 | AC92: 417.1310405 | AD92: 28246.60423 | AE92: 0 | AF92: 0 | AG92: 0 | AH92: 1367702.378 | AI92: 377 | AJ92: 409.5270893 | AK92: 1171247.252 | AL92: 1360 | AM92: 1477.339102 | AN92: =(AM92 / $AM$8) * 'National details'!$E$25 -> 767727.9419 | AO92: 748 | AP92: 812.536506 | AQ92: =(AP92 / $AP$8) * 'National details'!$E$26 -> 1061499.51 | AR92: 595 | AS92: 646.335857 | AT92: =(AS92/AS$8) *'National details'!$E$27 -> 869759.6882 | AU92: 34906067.07 | AV92: =INDEX('Baselines+historic spend factor'!$P$9:$P$158, MATCH($C92, 'Baselines+historic spend factor'!$C$9:$C$158, 0)) -> 38136212.67 | AW92: -3230145.608 | AX92: 3230145.608 | AY92: 306190 | AZ92: =INDEX('Import|export adjustments data'!$Q$9:$Q$158, MATCH($C92, 'Import|export adjustments data'!$C$9:$C$158, 0)) -> -160 | BA92: -960000 | BB92: 40006914.49 | BC92: 0 | BD92: 0 | BE92: 40006914.49
A93: North Somerset | B93: OUTER LONDON | C93: 318 | D93: Richmond upon Thames | E93: 1.110558221 | F93: 344 | G93: 4442.232886 | H93: 1528128.113 | I93: =INDEX('Baselines+historic spend factor'!$Q$9:$Q$158, MATCH('HN NFF illustrative allocations'!$C93, 'Baselines+historic spend factor'!$C$9:$C$158, 0)) -> 10364087.02 | J93: 43367.367 | K93: 48161.98597 | L93: 5308104.91 | M93: 1680 | N93: 1865.737812 | O93: 400996.6025 | P93: 1501 | Q93: 1666.94789 | R93: 53896.08292 | S93: 1590 | T93: 1765.787572 | U93: 74407.9518 | V93: 378 | W93: 419.7910077 | X93: 24826.04616 | Y93: 295 | Z93: 327.6146753 | AA93: 18986.67655 | AB93: 0 | AC93: 0 | AD93: 0 | AE93: 0 | AF93: 0 | AG93: 0 | AH93: 172116.7574 | AI93: 138 | AJ93: 153.2570346 | AK93: 438315.0351 | AL93: 770 | AM93: 855.1298306 | AN93: =(AM93 / $AM$8) * 'National details'!$E$25 -> 444384.816 | AO93: 207 | AP93: 229.8855518 | AQ93: =(AP93 / $AP$8) * 'National details'!$E$26 -> 300322.9996 | AR93: 235 | AS93: 260.9811821 | AT93: =(AS93/AS$8) *'National details'!$E$27 -> 351196.532 | AU93: 17779524.68 | AV93: =INDEX('Baselines+historic spend factor'!$P$9:$P$158, MATCH($C93, 'Baselines+historic spend factor'!$C$9:$C$158, 0)) -> 20728174.05 | AW93: -2948649.37 | AX93: 2948649.37 | AY93: 0 | AZ93: =INDEX('Import|export adjustments data'!$Q$9:$Q$158, MATCH($C93, 'Import|export adjustments data'!$C$9:$C$158, 0)) -> 74 | BA93: 444000 | BB93: 22700302.16 | BC93: 0 | BD93: 0 | BE93: 22700302.16
A94: North Tyneside | B94: OUTER LONDON | C94: 319 | D94: Sutton | E94: 1.110558221 | F94: 412 | G94: 4442.232886 | H94: 1830199.949 | I94: =INDEX('Baselines+historic spend factor'!$Q$9:$Q$158, MATCH('HN NFF illustrative allocations'!$C94, 'Baselines+historic spend factor'!$C$9:$C$158, 0)) -> 15425381.63 | J94: 45170.768 | K94: 50164.76777 | L94: =(K94 /$K$8) * L$8 -> 5528838.664 | M94: 3600 | N94: 3998.009597 | O94: 859278.434 | P94: 2258 | Q94: 2507.640464 | R94: 81077.51848 | S94: 5161 | T94: 5731.590981 | U94: 241521.6599 | V94: 995 | W94: 1105.00543 | X94: 65348.98394 | Y94: 1119 | Z94: 1242.71465 | AA94: 72020.64768 | AB94: 1697 | AC94: 1884.617302 | AD94: 127619.4622 | AE94: 0 | AF94: 0 | AG94: 0 | AH94: 587588.2722 | AI94: 182 | AJ94: 202.1215963 | AK94: 578067.655 | AL94: 1310 | AM94: 1454.83127 | AN94: =(AM94 / $AM$8) * 'National details'!$E$25 -> 756031.3103 | AO94: 326 | AP94: 362.0419802 | AQ94: =(AP94 / $AP$8) * 'National details'!$E$26 -> 472972.4534 | AR94: 347 | AS94: 385.3637029 | AT94: =(AS94/AS$8) *'National details'!$E$27 -> 518575.3047 | AU94: 24726733.72 | AV94: =INDEX('Baselines+historic spend factor'!$P$9:$P$158, MATCH($C94, 'Baselines+historic spend factor'!$C$9:$C$158, 0)) -> 30850763.25 | AW94: -6124029.534 | AX94: 6124029.534 | AY94: 266300 | AZ94: =INDEX('Import|export adjustments data'!$Q$9:$Q$158, MATCH($C94, 'Import|export adjustments data'!$C$9:$C$158, 0)) -> -49 | BA94: -294000 | BB94: 32653263.2 | BC94: 0 | BD94: 0 | BE94: 32653263.2
A95: North Yorkshire | B95: OUTER LONDON | C95: 320 | D95: Waltham Forest | E95: 1.086278751 | F95: 803 | G95: 4345.115005 | H95: 3489127.349 | I95: =INDEX('Baselines+historic spend factor'!$Q$9:$Q$158, MATCH('HN NFF illustrative allocations'!$C95, 'Baselines+historic spend factor'!$C$9:$C$158, 0)) -> 14998637.52 | J95: 61695.27 | K95: 67018.26086 | L95: 7386322.478 | M95: 7014 | N95: 7619.159162 | O95: 1637559.639 | P95: 14250 | Q95: 15479.47221 | R95: 500485.3016 | S95: 9928 | T95: 10784.57544 | U95: 454447.739 | V95: 11209 | W95: 12176.09852 | X95: 720083.0376 | Y95: 4315 | Z95: 4687.292812 | AA95: 271648.7363 | AB95: 4144 | AC95: 4501.539146 | AD95: 304827.9373 | AE95: 1089 | AF95: 1182.95756 | AG95: 113608.9408 | AH95: 2365101.692 | AI95: 518 | AJ95: 562.6923932 | AK95: 1609299.937 | AL95: 1430 | AM95: 1553.378614 | AN95: =(AM95 / $AM$8) * 'National details'!$E$25 -> 807243.3507 | AO95: 835 | AP95: 907.0427574 | AQ95: =(AP95 / $AP$8) * 'National details'!$E$26 -> 1184962.689 | AR95: 506 | AS95: 549.6570482 | AT95: =(AS95/AS$8) *'National details'!$E$27 -> 739661.1802 | AU95: 30728788.49 | AV95: =INDEX('Baselines+historic spend factor'!$P$9:$P$158, MATCH($C95, 'Baselines+historic spend factor'!$C$9:$C$158, 0)) -> 29997275.05 | AW95: 731513.4415 | AX95: 0 | AY95: 514291.6667 | AZ95: =INDEX('Import|export adjustments data'!$Q$9:$Q$158, MATCH($C95, 'Import|export adjustments data'!$C$9:$C$158, 0)) -> 51 | BA95: 306000 | BB95: 35038207.51 | BC95: 731513.4415 | BD95: 731513.4415 | BE95: 35038207.51
A96: Northamptonshire | B96: SOUTH EAST | C96: 867 | D96: Bracknell Forest | E96: 1.073688226 | F96: 216 | G96: 4294.752905 | H96: 927666.6275 | I96: =INDEX('Baselines+historic spend factor'!$Q$9:$Q$158, MATCH('HN NFF illustrative allocations'!$C96, 'Baselines+historic spend factor'!$C$9:$C$158, 0)) -> 7394844.726 | J96: 27344.757 | K96: 29359.74364 | L96: 3235842.465 | M96: 1467 | N96: 1575.100628 | O96: 338530.9535 | P96: 1625 | Q96: 1744.743368 | R96: 56411.3814 | S96: 606 | T96: 650.6550651 | U96: 27417.7435 | V96: 316 | W96: 339.2854795 | X96: 20065.02479 | Y96: 0 | Z96: 0 | AA96: 0 | AB96: 0 | AC96: 0 | AD96: 0 | AE96: 0 | AF96: 0 | AG96: 0 | AH96: 103894.1497 | AI96: 97 | AJ96: 104.1477579 | AK96: 297862.5308 | AL96: 740 | AM96: 794.5292874 | AN96: =(AM96 / $AM$8) * 'National details'!$E$25 -> 412892.5674 | AO96: 251 | AP96: 269.4957448 | AQ96: =(AP96 / $AP$8) * 'National details'!$E$26 -> 352069.8443 | AR96: 226 | AS96: 242.6535391 | AT96: =(AS96/AS$8) *'National details'!$E$27 -> 326533.4334 | AU96: 12462470.67 | AV96: =INDEX('Baselines+historic spend factor'!$P$9:$P$158, MATCH($C96, 'Baselines+historic spend factor'!$C$9:$C$158, 0)) -> 14789689.45 | AW96: -2327218.783 | AX96: 2327218.783 | AY96: 20000 | AZ96: =INDEX('Import|export adjustments data'!$Q$9:$Q$158, MATCH($C96, 'Import|export adjustments data'!$C$9:$C$158, 0)) -> -92 | BA96: -552000 | BB96: 15185356.08 | BC96: 0 | BD96: 0 | BE96: 15185356.08
A97: Northumberland | B97: SOUTH EAST | C97: 846 | D97: Brighton and Hove | E97: 1.002517736 | F97: 477 | G97: 4010.070945 | H97: 1912803.841 | I97: =INDEX('Baselines+historic spend factor'!$Q$9:$Q$158, MATCH('HN NFF illustrative allocations'!$C97, 'Baselines+historic spend factor'!$C$9:$C$158, 0)) -> 11124722.3 | J97: 48970.223 | K97: 49093.51711 | L97: 5410772.292 | M97: 4387 | N97: 4398.045309 | O97: 945256.7319 | P97: 3701 | Q97: 3710.318142 | R97: 119962.7267 | S97: 2938 | T97: 2945.397109 | U97: 124115.1368 | V97: 2196 | W97: 2201.528949 | X97: 130196.3556 | Y97: 2331 | Z97: 2336.868843 | AA97: 135431.5793 | AB97: 4657 | AC97: 4668.725098 | AD97: 316149.1648 | AE97: 421 | AF97: 422.059967 | AG97: 40533.81744 | AH97: 866388.7807 | AI97: 256 | AJ97: 256.6445405 | AK97: 734003.2456 | AL97: 1560 | AM97: 1563.927669 | AN97: =(AM97 / $AM$8) * 'National details'!$E$25 -> 812725.3715 | AO97: 610 | AP97: 611.5358192 | AQ97: =(AP97 / $AP$8) * 'National details'!$E$26 -> 798911.7631 | AR97: 703 | AS97: 704.7699686 | AT97: =(AS97/AS$8) *'National details'!$E$27 -> 948393.1635 | AU97: 21641173.65 | AV97: =INDEX('Baselines+historic spend factor'!$P$9:$P$158, MATCH($C97, 'Baselines+historic spend factor'!$C$9:$C$158, 0)) -> 22249444.59 | AW97: -608270.948 | AX97: 608270.948 | AY97: 0 | AZ97: =INDEX('Import|export adjustments data'!$Q$9:$Q$158, MATCH($C97, 'Import|export adjustments data'!$C$9:$C$158, 0)) -> -15 | BA97: -90000 | BB97: 24072248.43 | BC97: 0 | BD97: 0 | BE97: 24072248.43
A98: Nottingham | B98: SOUTH EAST | C98: 825 | D98: Buckinghamshire | E98: 1.047561544 | F98: 1426 | G98: 4190.246176 | H98: 5975291.047 | I98: =INDEX('Baselines+historic spend factor'!$Q$9:$Q$158, MATCH('HN NFF illustrative allocations'!$C98, 'Baselines+historic spend factor'!$C$9:$C$158, 0)) -> 34455277.59 | J98: 117087.817 | K98: 122656.6944 | L98: 13518433.44 | M98: 4966 | N98: 5202.190628 | O98: 1118088.916 | P98: 5766 | Q98: 6040.239863 | R98: 195294.2083 | S98: 5691 | T98: 5961.672747 | U98: 251217.0011 | V98: 302 | W98: 316.3635863 | X98: 18709.44554 | Y98: 996 | Z98: 1043.371298 | AA98: 60467.84485 | AB98: 0 | AC98: 0 | AD98: 0 | AE98: 0 | AF98: 0 | AG98: 0 | AH98: 525688.4998 | AI98: 453 | AJ98: 474.5453795 | AK98: 1357199.526 | AL98: 2760 | AM98: 2891.269862 | AN98: =(AM98 / $AM$8) * 'National details'!$E$25 -> 1502504.508 | AO98: 1079 | AP98: 1130.318906 | AQ98: =(AP98 / $AP$8) * 'National details'!$E$26 -> 1476651.149 | AR98: 1088 | AS98: 1139.74696 | AT98: =(AS98/AS$8) *'National details'!$E$27 -> 1533731.959 | AU98: 55487575.59 | AV98: =INDEX('Baselines+historic spend factor'!$P$9:$P$158, MATCH($C98, 'Baselines+historic spend factor'!$C$9:$C$158, 0)) -> 68910555.17 | AW98: -13422979.59 | AX98: 13422979.59 | AY98: 245835 | AZ98: =INDEX('Import|export adjustments data'!$Q$9:$Q$158, MATCH($C98, 'Import|export adjustments data'!$C$9:$C$158, 0)) -> -188 | BA98: -1128000 | BB98: 74003681.22 | BC98: 0 | BD98: 0 | BE98: 74003681.22
A99: Nottinghamshire | B99: SOUTH EAST | C99: 845 | D99: East Sussex | E99: 1.002517736 | F99: 1070 | G99: 4010.070945 | H99: 4290775.911 | I99: =INDEX('Baselines+historic spend factor'!$Q$9:$Q$158, MATCH('HN NFF illustrative allocations'!$C99, 'Baselines+historic spend factor'!$C$9:$C$158, 0)) -> 20653644.24 | J99: 102342.134 | K99: 102599.8045 | L99: 11307891.8 | M99: 8378 | N99: 8399.093595 | O99: 1805188.261 | P99: 12072 | Q99: 12102.39411 | R99: 391296.9568 | S99: 5924 | T99: 5938.91507 | U99: 250258.0227 | V99: 5294 | W99: 5307.328896 | X99: 313870.4492 | Y99: 5077 | Z99: 5089.782547 | AA99: 294974.7439 | AB99: 3635 | AC99: 3644.151971 | AD99: 246768.7812 | AE99: 1444 | AF99: 1447.635611 | AG99: 139028.1054 | AH99: 1636197.059 | AI99: 610 | AJ99: 611.5358192 | AK99: 1748992.109 | AL99: 3320 | AM99: 3328.358885 | AN99: =(AM99 / $AM$8) * 'National details'!$E$25 -> 1729646.303 | AO99: 1367 | AP99: 1370.441746 | AQ99: =(AP99 / $AP$8) * 'National details'!$E$26 -> 1790348.164 | AR99: 1528 | AS99: 1531.847101 | AT99: =(AS99/AS$8) *'National details'!$E$27 -> 2061372.338 | AU99: 42733280.27 | AV99: =INDEX('Baselines+historic spend factor'!$P$9:$P$158, MATCH($C99, 'Baselines+historic spend factor'!$C$9:$C$158, 0)) -> 41307288.48 | AW99: 1425991.79 | AX99: 0 | AY99: 0 | AZ99: =INDEX('Import|export adjustments data'!$Q$9:$Q$158, MATCH($C99, 'Import|export adjustments data'!$C$9:$C$158, 0)) -> -160 | BA99: -960000 | BB99: 46064056.19 | BC99: 1425991.79 | BD99: 1239218.655 | BE99: 45877283.05
A100: Oldham | B100: SOUTH EAST | C100: 850 | D100: Hampshire | E100: 1.021107429 | F100: 2804 | G100: 4084.429715 | H100: 11452740.92 | I100: =INDEX('Baselines+historic spend factor'!$Q$9:$Q$158, MATCH('HN NFF illustrative allocations'!$C100, 'Baselines+historic spend factor'!$C$9:$C$158, 0)) -> 42592489.84 | J100: 270918.638 | K100: 276637.0338 | L100: 30489157.95 | M100: 15071 | N100: 15389.11006 | O100: 3307528.426 | P100: 14592 | Q100: 14899.9996 | R100: 481749.6807 | S100: 9850 | T100: 10057.90817 | U100: 423826.9417 | V100: 10628 | W100: 10852.32975 | X100: 641796.595 | Y100: 6804 | Z100: 6947.614945 | AA100: 402644.1051 | AB100: 2159 | AC100: 2204.570938 | AD100: 149285.5643 | AE100: 0 | AF100: 0 | AG100: 0 | AH100: 2099302.887 | AI100: 1151 | AJ100: 1175.29465 | AK100: 3361342.058 | AL100: 7680 | AM100: 7842.105052 | AN100: =(AM100 / $AM$8) * 'National details'!$E$25 -> 4075302.119 | AO100: 2896 | AP100: 2957.127113 | AQ100: =(AP100 / $AP$8) * 'National details'!$E$26 -> 3863197.481 | AR100: 3204 | AS100: 3271.628201 | AT100: =(AS100/AS$8) *'National details'!$E$27 -> 4402556.803 | AU100: 94190877.56 | AV100: =INDEX('Baselines+historic spend factor'!$P$9:$P$158, MATCH($C100, 'Baselines+historic spend factor'!$C$9:$C$158, 0)) -> 85184979.67 | AW100: 9005897.892 | AX100: 0 | AY100: 2343000 | AZ100: =INDEX('Import|export adjustments data'!$Q$9:$Q$158, MATCH($C100, 'Import|export adjustments data'!$C$9:$C$158, 0)) -> -189 | BA100: -1134000 | BB100: 106852618.5 | BC100: 9005897.892 | BD100: 2555549.39 | BE100: 100402270
A101: Oxfordshire | B101: SOUTH EAST | C101: 921 | D101: Isle of Wight | E101: 1.021107429 | F101: 238 | G101: 4084.429715 | H101: 972094.2721 | I101: =INDEX('Baselines+historic spend factor'!$Q$9:$Q$158, MATCH('HN NFF illustrative allocations'!$C101, 'Baselines+historic spend factor'!$C$9:$C$158, 0)) -> 6574788.075 | J101: 24165.778 | K101: 24675.85543 | L101: 2719614.376 | M101: 2272 | N101: 2319.956078 | O101: 498620.1701 | P101: 6135 | Q101: 6264.494075 | R101: 202544.839 | S101: 1798 | T101: 1835.951157 | U101: 77364.55241 | V101: 2044 | W101: 2087.143584 | X101: 123431.7125 | Y101: 543 | Z101: 554.4613338 | AA101: 32133.41403 | AB101: 1709 | AC101: 1745.072596 | AD101: 118169.9997 | AE101: 0 | AF101: 0 | AG101: 0 | AH101: 553644.5177 | AI101: 137 | AJ101: 139.8917177 | AK101: 400090.2363 | AL101: 1020 | AM101: 1041.529577 | AN101: =(AM101 / $AM$8) * 'National details'!$E$25 -> 541251.0627 | AO101: 387 | AP101: 395.1685749 | AQ101: =(AP101 / $AP$8) * 'National details'!$E$26 -> 516249.1108 | AR101: 558 | AS101: 569.7779452 | AT101: =(AS101/AS$8) *'National details'!$E$27 -> 766737.4207 | AU101: 12570994.97 | AV101: =INDEX('Baselines+historic spend factor'!$P$9:$P$158, MATCH($C101, 'Baselines+historic spend factor'!$C$9:$C$158, 0)) -> 13149576.15 | AW101: -578581.1807 | AX101: 578581.1807 | AY101: 12000 | AZ101: =INDEX('Import|export adjustments data'!$Q$9:$Q$158, MATCH($C101, 'Import|export adjustments data'!$C$9:$C$158, 0)) -> -25 | BA101: -150000 | BB101: 13983670.42 | BC101: 0 | BD101: 0 | BE101: 13983670.42
A102: Peterborough | B102: SOUTH EAST | C102: 886 | D102: Kent | E102: 1.007598188 | F102: 4149 | G102: 4030.392754 | H102: 16722099.53 | I102: =INDEX('Baselines+historic spend factor'!$Q$9:$Q$158, MATCH('HN NFF illustrative allocations'!$C102, 'Baselines+historic spend factor'!$C$9:$C$158, 0)) -> 82042703.09 | J102: 318913.272 | K102: 321336.4351 | L102: 35415639.01 | M102: 25395 | N102: 25587.95599 | O102: 5499531.259 | P102: 34782 | Q102: 35046.28019 | R102: 1133123.137 | S102: 21283 | T102: 21444.71224 | U102: 903651.7983 | V102: 15287 | W102: 15403.15351 | X102: 910928.0401 | Y102: 15465 | Z102: 15582.50598 | AA102: 903073.1017 | AB102: 16790 | AC102: 16917.57358 | AD102: 1145596.849 | AE102: 4884 | AF102: 4921.109552 | AG102: 472613.7795 | AH102: 5468986.705 | AI102: 1726 | AJ102: 1739.114473 | AK102: 4973866.443 | AL102: 12240 | AM102: 12333.00183 | AN102: =(AM102 / $AM$8) * 'National details'!$E$25 -> 6409083.803 | AO102: 4576 | AP102: 4610.76931 | AQ102: =(AP102 / $AP$8) * 'National details'!$E$26 -> 6023519.348 | AR102: 4308 | AS102: 4340.732996 | AT102: =(AS102/AS$8) *'National details'!$E$27 -> 5841227.182 | AU102: 151674556.8 | AV102: =INDEX('Baselines+historic spend factor'!$P$9:$P$158, MATCH($C102, 'Baselines+historic spend factor'!$C$9:$C$158, 0)) -> 164085406.2 | AW102: -12410849.34 | AX102: 12410849.34 | AY102: 2822754 | AZ102: =INDEX('Import|export adjustments data'!$Q$9:$Q$158, MATCH($C102, 'Import|export adjustments data'!$C$9:$C$158, 0)) -> -196 | BA102: -1176000 | BB102: 182454259.7 | BC102: 0 | BD102: 0 | BE102: 182454259.7
A103: Plymouth | B103: SOUTH EAST | C103: 887 | D103: Medway | E103: 1.001050693 | F103: 831 | G103: 4004.202773 | H103: 3327492.505 | I103: =INDEX('Baselines+historic spend factor'!$Q$9:$Q$158, MATCH('HN NFF illustrative allocations'!$C103, 'Baselines+historic spend factor'!$C$9:$C$158, 0)) -> 15710421.36 | J103: 60608.863 | K103: 60672.54433 | L103: 6686938.339 | M103: 5639 | N103: 5644.924859 | O103: 1213244.259 | P103: 7685 | Q103: 7693.074578 | R103: 248733.9813 | S103: 8711 | T103: 8720.152589 | U103: 367455.6916 | V103: 6656 | W103: 6662.993415 | X103: 394043.1763 | Y103: 2794 | Z103: 2796.935637 | AA103: 162094.4246 | AB103: 3674 | AC103: 3677.860247 | AD103: 249051.3836 | AE103: 1440 | AF103: 1441.512998 | AG103: 138440.1016 | AH103: 1559818.759 | AI103: 342 | AJ103: 342.3593371 | AK103: 979147.5171 | AL103: 2770 | AM103: 2772.91042 | AN103: =(AM103 / $AM$8) * 'National details'!$E$25 -> 1440996.727 | AO103: 1068 | AP103: 1069.12214 | AQ103: =(AP103 / $AP$8) * 'National details'!$E$26 -> 1396703.558 | AR103: 855 | AS103: 855.8983428 | AT103: =(AS103/AS$8) *'National details'!$E$27 -> 1151763.232 | AU103: 30139033.75 | AV103: =INDEX('Baselines+historic spend factor'!$P$9:$P$158, MATCH($C103, 'Baselines+historic spend factor'!$C$9:$C$158, 0)) -> 31420842.72 | AW103: -1281808.971 | AX103: 1281808.971 | AY103: 322367.5 | AZ103: =INDEX('Import|export adjustments data'!$Q$9:$Q$158, MATCH($C103, 'Import|export adjustments data'!$C$9:$C$158, 0)) -> -31 | BA103: -186000 | BB103: 34884702.73 | BC103: 0 | BD103: 0 | BE103: 34884702.73
A104: Poole | B104: SOUTH EAST | C104: 826 | D104: Milton Keynes | E104: 1.0426786 | F104: 795 | G104: 4170.714399 | H104: 3315717.947 | I104: =INDEX('Baselines+historic spend factor'!$Q$9:$Q$158, MATCH('HN NFF illustrative allocations'!$C104, 'Baselines+historic spend factor'!$C$9:$C$158, 0)) -> 16256661.24 | J104: 64576.67 | K104: 67332.71184 | L104: 7420979.247 | M104: 4903 | N104: 5112.253174 | O104: 1098758.969 | P104: 7535 | Q104: 7856.583248 | R104: 254020.5754 | S104: 5428 | T104: 5659.659439 | U104: 238490.5599 | V104: 4029 | W104: 4200.952078 | X104: 248440.3627 | Y104: 2696 | Z104: 2811.061505 | AA104: 162913.0792 | AB104: 4559 | AC104: 4753.571736 | AD104: 321894.672 | AE104: 713 | AF104: 743.4298415 | AG104: 71397.55446 | AH104: 1297156.804 | AI104: 285 | AJ104: 297.1634009 | AK104: 849887.1642 | AL104: 1740 | AM104: 1814.260763 | AN104: =(AM104 / $AM$8) * 'National details'!$E$25 -> 942815.8235 | AO104: 731 | AP104: 762.1980563 | AQ104: =(AP104 / $AP$8) * 'National details'!$E$26 -> 995737.247 | AR104: 654 | AS104: 681.9118042 | AT104: =(AS104/AS$8) *'National details'!$E$27 -> 917633.4435 | AU104: 29779629.93 | AV104: =INDEX('Baselines+historic spend factor'!$P$9:$P$158, MATCH($C104, 'Baselines+historic spend factor'!$C$9:$C$158, 0)) -> 32513322.47 | AW104: -2733692.538 | AX104: 2733692.538 | AY104: 0 | AZ104: =INDEX('Import|export adjustments data'!$Q$9:$Q$158, MATCH($C104, 'Import|export adjustments data'!$C$9:$C$158, 0)) -> -9 | BA104: -54000 | BB104: 35775040.42 | BC104: 0 | BD104: 0 | BE104: 35775040.42
A105: Portsmouth | B105: SOUTH EAST | C105: 931 | D105: Oxfordshire | E105: 1.03302684 | F105: 1081 | G105: =4000 * E105 -> 4132.107361 | H105: =F105*G105 -> 4466808.057 | I105: =INDEX('Baselines+historic spend factor'!$Q$9:$Q$158, MATCH('HN NFF illustrative allocations'!$C105, 'Baselines+historic spend factor'!$C$9:$C$158, 0)) -> 24857607.2 | J105: 137191.795 | K105: =J105 * E105 -> 141722.8065 | L105: 15619777.92 | M105: 7986 | N105: =M105 * E105 -> 8249.752346 | O105: =(N105 /N$8) * O$8 -> 1773090.86 | P105: 10582 | Q105: =P105 * E105 -> 10931.49002 | R105: =(Q105/Q$8)*R$8 -> 353439.0584 | S105: 6015 | T105: =S105 * E105 -> 6213.656444 | U105: =(T105/T$8)*U$8 -> 261835.2606 | V105: 3782 | W105: =V105 * E105 -> 3906.90751 | X105: =(W105/W$8)*X$8 -> 231050.8429 | Y105: 3071 | Z105: =Y105 * E105 -> 3172.425426 | AA105: =(Z105/Z$8)*AA$8 -> 183855.6695 | AB105: 1973 | AC105: =AB105 * E105 -> 2038.161956 | AD105: =(AC105/AC$8)*AD$8 -> 138016.9504 | AE105: 0 | AF105: =AE105 * E105 -> 0 | AG105: =(AF105/AF$8)*AG$8 -> 0 | AH105: =R105+U105+X105+AA105+AD105+AG105 -> 1168197.782 | AI105: 505 | AJ105: =AI105 * E105 -> 521.6785543 | AK105: =(AJ105/AJ$8)*AK$8 -> 1492000.38 | AL105: 3360 | AM105: =AL105 * E105 -> 3470.970183 | AN105: =(AM105 / $AM$8) * 'National details'!$E$25 -> 1803757.033 | AO105: 1502 | AP105: =AO105 * E105 -> 1551.606314 | AQ105: =(AP105 / $AP$8) * 'National details'!$E$26 -> 2027021.962 | AR105: 1519 | AS105: =AR105 * E105 -> 1569.16777 | AT105: =(AS105/AS$8) *'National details'!$E$27 -> 2111593.927 | AU105: =I105+L105+O105+AH105+AK105+AN105+AQ105+AT105 -> 50853047.07 | AV105: =INDEX('Baselines+historic spend factor'!$P$9:$P$158, MATCH($C105, 'Baselines+historic spend factor'!$C$9:$C$158, 0)) -> 49715214.4 | AW105: =AU105-AV105 -> 1137832.664 | AX105: =MAX(0, -AW105) -> 0 | AY105: 1606831 | AZ105: =INDEX('Import|export adjustments data'!$Q$9:$Q$158, MATCH($C105, 'Import|export adjustments data'!$C$9:$C$158, 0)) -> 177 | BA105: =AZ105 * 6000 -> 1062000 | BB105: =H105+AU105+AX105+AY105+BA105 -> 57988686.13 | BC105: =MAX(AW105, 0) -> 1137832.664 | BD105: =MIN(BC105, 3% * AV105) -> 1137832.664 | BE105: =H105+AU105+AX105+AY105+BA105+(BD105-BC105) -> 57988686.13
A106: Reading | B106: SOUTH EAST | C106: 851 | D106: Portsmouth | E106: 1.021107429 | F106: 570 | G106: 4084.429715 | H106: 2328124.937 | I106: =INDEX('Baselines+historic spend factor'!$Q$9:$Q$158, MATCH('HN NFF illustrative allocations'!$C106, 'Baselines+historic spend factor'!$C$9:$C$158, 0)) -> 7514012.864 | J106: 41732.415 | K106: 42613.27897 | L106: 4696562.046 | M106: 4778 | N106: 4878.851294 | O106: 1048594.706 | P106: 6317 | Q106: 6450.335627 | R106: 208553.5042 | S106: 3199 | T106: 3266.522664 | U106: 137646.9428 | V106: 4870 | W106: 4972.793178 | X106: 294086.3208 | Y106: 2666 | Z106: 2722.272405 | AA106: 157767.3698 | AB106: 3803 | AC106: 3883.271551 | AD106: 262961.0936 | AE106: 1859 | AF106: 1898.23871 | AG106: 182303.1497 | AH106: 1243318.381 | AI106: 248 | AJ106: 253.2346423 | AK106: 724250.9386 | AL106: 1360 | AM106: 1388.706103 | AN106: =(AM106 / $AM$8) * 'National details'!$E$25 -> 721668.0835 | AO106: 612 | AP106: 624.9177463 | AQ106: =(AP106 / $AP$8) * 'National details'!$E$26 -> 816393.9427 | AR106: 842 | AS106: 859.7724549 | AT106: =(AS106/AS$8) *'National details'!$E$27 -> 1156976.538 | AU106: 17921777.5 | AV106: =INDEX('Baselines+historic spend factor'!$P$9:$P$158, MATCH($C106, 'Baselines+historic spend factor'!$C$9:$C$158, 0)) -> 15028025.73 | AW106: 2893751.772 | AX106: 0 | AY106: 573000 | AZ106: =INDEX('Import|export adjustments data'!$Q$9:$Q$158, MATCH($C106, 'Import|export adjustments data'!$C$9:$C$158, 0)) -> -18 | BA106: -108000 | BB106: 20714902.44 | BC106: 2893751.772 | BD106: 450840.7718 | BE106: 18271991.44
A107: Redbridge | B107: SOUTH EAST | C107: 870 | D107: Reading | E107: 1.05170012 | F107: 263 | G107: 4206.800479 | H107: 1106388.526 | I107: =INDEX('Baselines+historic spend factor'!$Q$9:$Q$158, MATCH('HN NFF illustrative allocations'!$C107, 'Baselines+historic spend factor'!$C$9:$C$158, 0)) -> 8974849.81 | J107: 34705.148 | K107: 36499.4083 | L107: 4022730.47 | M107: 3696 | N107: 3887.083642 | O107: 835437.5005 | P107: 4382 | Q107: 4608.549924 | R107: 149004.5312 | S107: 2070 | T107: 2177.019248 | U107: 91736.71047 | V107: 3023 | W107: 3179.289462 | X107: 188020.1945 | Y107: 2140 | Z107: 2250.638256 | AA107: 130434.1467 | AB107: 2418 | AC107: 2543.010889 | AD107: 172203.4928 | AE107: 0 | AF107: 0 | AG107: 0 | AH107: 731399.0756 | AI107: 167 | AJ107: 175.63392 | AK107: 502312.9152 | AL107: 1160 | AM107: 1219.972139 | AN107: =(AM107 / $AM$8) * 'National details'!$E$25 -> 633982.2037 | AO107: 525 | AP107: 552.1425628 | AQ107: =(AP107 / $AP$8) * 'National details'!$E$26 -> 721320.2801 | AR107: 344 | AS107: 361.7848412 | AT107: =(AS107/AS$8) *'National details'!$E$27 -> 486845.7586 | AU107: 16908878.01 | AV107: =INDEX('Baselines+historic spend factor'!$P$9:$P$158, MATCH($C107, 'Baselines+historic spend factor'!$C$9:$C$158, 0)) -> 17949699.62 | AW107: -1040821.607 | AX107: 1040821.607 | AY107: 181000 | AZ107: =INDEX('Import|export adjustments data'!$Q$9:$Q$158, MATCH($C107, 'Import|export adjustments data'!$C$9:$C$158, 0)) -> -326 | BA107: -1956000 | BB107: 17281088.15 | BC107: 0 | BD107: 0 | BE107: 17281088.15
A108: Redcar and Cleveland | B108: SOUTH EAST | C108: 871 | D108: Slough | E108: 1.073688226 | F108: 316 | G108: 4294.752905 | H108: 1357141.918 | I108: =INDEX('Baselines+historic spend factor'!$Q$9:$Q$158, MATCH('HN NFF illustrative allocations'!$C108, 'Baselines+historic spend factor'!$C$9:$C$158, 0)) -> 9529516.926 | J108: 39059.43 | K108: 41937.65011 | L108: 4622098.57 | M108: 3281 | N108: 3522.77107 | O108: 757137.054 | P108: 10981 | Q108: 11790.17041 | R108: 381202.0795 | S108: 3130 | T108: 3360.644148 | U108: 141613.0976 | V108: 1538 | W108: 1651.332492 | X108: 97658.25355 | Y108: 0 | Z108: 0 | AA108: 0 | AB108: 0 | AC108: 0 | AD108: 0 | AE108: 0 | AF108: 0 | AG108: 0 | AH108: 620473.4306 | AI108: 216 | AJ108: 231.9166569 | AK108: 663281.5119 | AL108: 980 | AM108: 1052.214462 | AN108: =(AM108 / $AM$8) * 'National details'!$E$25 -> 546803.6703 | AO108: 506 | AP108: 543.2862425 | AQ108: =(AP108 / $AP$8) * 'National details'!$E$26 -> 709750.3633 | AR108: 269 | AS108: 288.8221329 | AT108: =(AS108/AS$8) *'National details'!$E$27 -> 388661.476 | AU108: 17837723 | AV108: =INDEX('Baselines+historic spend factor'!$P$9:$P$158, MATCH($C108, 'Baselines+historic spend factor'!$C$9:$C$158, 0)) -> 19059033.85 | AW108: -1221310.849 | AX108: 1221310.849 | AY108: 120000 | AZ108: =INDEX('Import|export adjustments data'!$Q$9:$Q$158, MATCH($C108, 'Import|export adjustments data'!$C$9:$C$158, 0)) -> 6 | BA108: 36000 | BB108: 20572175.77 | BC108: 0 | BD108: 0 | BE108: 20572175.77
A109: Richmond upon Thames | B109: SOUTH EAST | C109: 852 | D109: Southampton | E109: 1.021107429 | F109: 479 | G109: 4084.429715 | H109: 1956441.833 | I109: =INDEX('Baselines+historic spend factor'!$Q$9:$Q$158, MATCH('HN NFF illustrative allocations'!$C109, 'Baselines+historic spend factor'!$C$9:$C$158, 0)) -> 9668506.067 | J109: 47332.471 | K109: 48331.53775 | L109: 5326791.82 | M109: 5708 | N109: 5828.481203 | O109: 1252695.392 | P109: 6674 | Q109: 6814.870979 | R109: 220339.732 | S109: 5375 | T109: 5488.452429 | U109: 231276.123 | V109: 3355 | W109: 3425.815423 | X109: 202599.5085 | Y109: 3707 | Z109: 3785.245238 | AA109: 219371.2078 | AB109: 6201 | AC109: 6331.887165 | AD109: 428772.4801 | AE109: 1322 | AF109: 1349.904021 | AG109: 129642.1538 | AH109: 1432001.205 | AI109: 292 | AJ109: 298.1633692 | AK109: 852747.0729 | AL109: 1660 | AM109: 1695.038332 | AN109: =(AM109 / $AM$8) * 'National details'!$E$25 -> 880859.5726 | AO109: 666 | AP109: 680.0575475 | AQ109: =(AP109 / $AP$8) * 'National details'!$E$26 -> 888428.7024 | AR109: 570 | AS109: 582.0312343 | AT109: =(AS109/AS$8) *'National details'!$E$27 -> 783226.3975 | AU109: 21085256.23 | AV109: =INDEX('Baselines+historic spend factor'!$P$9:$P$158, MATCH($C109, 'Baselines+historic spend factor'!$C$9:$C$158, 0)) -> 19337012.13 | AW109: 1748244.096 | AX109: 0 | AY109: 553600 | AZ109: =INDEX('Import|export adjustments data'!$Q$9:$Q$158, MATCH($C109, 'Import|export adjustments data'!$C$9:$C$158, 0)) -> -6 | BA109: -36000 | BB109: 23559298.06 | BC109: 1748244.096 | BD109: 580110.364 | BE109: 22391164.33
A110: Rochdale | B110: SOUTH EAST | C110: 936 | D110: Surrey | E110: 1.073688226 | F110: 2455 | G110: 4294.752905 | H110: 10543618.38 | I110: =INDEX('Baselines+historic spend factor'!$Q$9:$Q$158, MATCH('HN NFF illustrative allocations'!$C110, 'Baselines+historic spend factor'!$C$9:$C$158, 0)) -> 63114195.18 | J110: 250424.667 | K110: 268878.0165 | L110: 29634008.88 | M110: 11114 | N110: 11932.97095 | O110: 2564712.349 | P110: 11812 | Q110: 12682.40533 | R110: 410049.9921 | S110: 8946 | T110: 9605.214872 | U110: 404751.0451 | V110: 3682 | W110: 3953.320049 | X110: 233795.6369 | Y110: 1562 | Z110: 1677.101009 | AA110: 97195.20159 | AB110: 677 | AC110: 726.8869291 | AD110: 49222.15182 | AE110: 0 | AF110: 0 | AG110: 0 | AH110: 1195014.027 | AI110: 966 | AJ110: 1037.182827 | AK110: 2966342.317 | AL110: 6660 | AM110: 7150.763587 | AN110: =(AM110 / $AM$8) * 'National details'!$E$25 -> 3716033.106 | AO110: 2217 | AP110: 2380.366798 | AQ110: =(AP110 / $AP$8) * 'National details'!$E$26 -> 3109716.513 | AR110: 2282 | AS110: 2450.156532 | AT110: =(AS110/AS$8) *'National details'!$E$27 -> 3297120.774 | AU110: 109597143.1 | AV110: =INDEX('Baselines+historic spend factor'!$P$9:$P$158, MATCH($C110, 'Baselines+historic spend factor'!$C$9:$C$158, 0)) -> 126228390.4 | AW110: -16631247.21 | AX110: 16631247.21 | AY110: 1356765 | AZ110: =INDEX('Import|export adjustments data'!$Q$9:$Q$158, MATCH($C110, 'Import|export adjustments data'!$C$9:$C$158, 0)) -> -284 | BA110: -1704000 | BB110: 136424773.7 | BC110: 0 | BD110: 0 | BE110: 136424773.7
A111: Rotherham | B111: SOUTH EAST | C111: 869 | D111: West Berkshire | E111: 1.05170012 | F111: 424 | G111: 4206.800479 | H111: 1783683.403 | I111: =INDEX('Baselines+historic spend factor'!$Q$9:$Q$158, MATCH('HN NFF illustrative allocations'!$C111, 'Baselines+historic spend factor'!$C$9:$C$158, 0)) -> 8866319.639 | J111: 34341.283 | K111: 36116.73144 | L111: 3980554.283 | M111: 1620 | N111: 1703.754194 | O111: 366182.0213 | P111: 814 | Q111: 856.0838974 | R111: 27679.07083 | S111: 1083 | T111: 1138.99123 | U111: 47995.5833 | V111: 0 | W111: 0 | X111: 0 | Y111: 321 | Z111: 337.5957384 | AA111: 19565.122 | AB111: 443 | AC111: 465.903153 | AD111: 31549.27515 | AE111: 0 | AF111: 0 | AG111: 0 | AH111: 126789.0513 | AI111: 117 | AJ111: 123.048914 | AK111: 351919.8268 | AL111: 1020 | AM111: 1072.734122 | AN111: =(AM111 / $AM$8) * 'National details'!$E$25 -> 557467.1101 | AO111: 366 | AP111: 384.9222438 | AQ111: =(AP111 / $AP$8) * 'National details'!$E$26 -> 502863.281 | AR111: 260 | AS111: 273.4420311 | AT111: =(AS111/AS$8) *'National details'!$E$27 -> 367964.8176 | AU111: 15120060.03 | AV111: =INDEX('Baselines+historic spend factor'!$P$9:$P$158, MATCH($C111, 'Baselines+historic spend factor'!$C$9:$C$158, 0)) -> 17732639.28 | AW111: -2612579.248 | AX111: 2612579.248 | AY111: 20000 | AZ111: =INDEX('Import|export adjustments data'!$Q$9:$Q$158, MATCH($C111, 'Import|export adjustments data'!$C$9:$C$158, 0)) -> -58 | BA111: -348000 | BB111: 19188322.68 | BC111: 0 | BD111: 0 | BE111: 19188322.68
A112: Rutland | B112: SOUTH EAST | C112: 938 | D112: West Sussex | E112: 1.010972435 | F112: 1824 | G112: 4043.889741 | H112: 7376054.887 | I112: =INDEX('Baselines+historic spend factor'!$Q$9:$Q$158, MATCH('HN NFF illustrative allocations'!$C112, 'Baselines+historic spend factor'!$C$9:$C$158, 0)) -> 32780363.29 | J112: 165256.245 | K112: 167069.5084 | L112: 18413328.69 | M112: 9089 | N112: 9188.728464 | O112: 1974901.764 | P112: 14533 | Q112: 14692.4624 | R112: 475039.5477 | S112: 12572 | T112: 12709.94546 | U112: 535580.2837 | V112: 2743 | W112: 2773.09739 | X112: 163998.3767 | Y112: 993 | Z112: 1003.895628 | AA112: 58180.06036 | AB112: 1882 | AC112: 1902.650123 | AD112: 128840.5795 | AE112: 0 | AF112: 0 | AG112: 0 | AH112: 1361638.848 | AI112: 744 | AJ112: 752.1634918 | AK112: 2151187.176 | AL112: 4400 | AM112: 4448.278715 | AN112: =(AM112 / $AM$8) * 'National details'!$E$25 -> 2311634.383 | AO112: 2069 | AP112: 2091.701969 | AQ112: =(AP112 / $AP$8) * 'National details'!$E$26 -> 2732604.134 | AR112: 2081 | AS112: 2103.833638 | AT112: =(AS112/AS$8) *'National details'!$E$27 -> 2831081.811 | AU112: 64556740.1 | AV112: =INDEX('Baselines+historic spend factor'!$P$9:$P$158, MATCH($C112, 'Baselines+historic spend factor'!$C$9:$C$158, 0)) -> 65560726.57 | AW112: -1003986.479 | AX112: 1003986.479 | AY112: 457200 | AZ112: =INDEX('Import|export adjustments data'!$Q$9:$Q$158, MATCH($C112, 'Import|export adjustments data'!$C$9:$C$158, 0)) -> -176 | BA112: -1056000 | BB112: 72337981.46 | BC112: 0 | BD112: 0 | BE112: 72337981.46
A113: Salford | B113: SOUTH EAST | C113: 868 | D113: Windsor and Maidenhead | E113: 1.073688226 | F113: 296 | G113: 4294.752905 | H113: 1271246.86 | I113: =INDEX('Baselines+historic spend factor'!$Q$9:$Q$158, MATCH('HN NFF illustrative allocations'!$C113, 'Baselines+historic spend factor'!$C$9:$C$158, 0)) -> 7882638.824 | J113: 32927.964 | K113: 35354.36726 | L113: 3896531.397 | M113: 1128 | N113: 1211.120319 | O113: 260301.9192 | P113: 2174 | Q113: 2334.198204 | R113: 75469.74964 | S113: 1046 | T113: 1123.077885 | U113: 47325.016 | V113: 0 | W113: 0 | X113: 0 | Y113: 0 | Z113: 0 | AA113: 0 | AB113: 0 | AC113: 0 | AD113: 0 | AE113: 0 | AF113: 0 | AG113: 0 | AH113: 122794.7656 | AI113: 101 | AJ113: 108.4425108 | AK113: 310145.5218 | AL113: 650 | AM113: 697.897347 | AN113: =(AM113 / $AM$8) * 'National details'!$E$25 -> 362675.9038 | AO113: 229 | AP113: 245.8746038 | AQ113: =(AP113 / $AP$8) * 'National details'!$E$26 -> 321211.1328 | AR113: 216 | AS113: 231.9166569 | AT113: =(AS113/AS$8) *'National details'!$E$27 -> 312085.0514 | AU113: 13468384.52 | AV113: =INDEX('Baselines+historic spend factor'!$P$9:$P$158, MATCH($C113, 'Baselines+historic spend factor'!$C$9:$C$158, 0)) -> 15765277.65 | AW113: -2296893.133 | AX113: 2296893.133 | AY113: 32700 | AZ113: =INDEX('Import|export adjustments data'!$Q$9:$Q$158, MATCH($C113, 'Import|export adjustments data'!$C$9:$C$158, 0)) -> 64 | BA113: 384000 | BB113: 17453224.51 | BC113: 0 | BD113: 0 | BE113: 17453224.51
A114: Sandwell | B114: SOUTH EAST | C114: 872 | D114: Wokingham | E114: 1.05170012 | F114: 324 | G114: 4206.800479 | H114: 1363003.355 | I114: =INDEX('Baselines+historic spend factor'!$Q$9:$Q$158, MATCH('HN NFF illustrative allocations'!$C114, 'Baselines+historic spend factor'!$C$9:$C$158, 0)) -> 8426079.967 | J114: 36669.593 | K114: 38565.41535 | L114: 4250432.503 | M114: 1148 | N114: 1207.351737 | O114: 259491.9509 | P114: 629 | Q114: 661.5193753 | R114: 21388.37291 | S114: 728 | T114: 765.6376871 | U114: 32262.95904 | V114: 0 | W114: 0 | X114: 0 | Y114: 0 | Z114: 0 | AA114: 0 | AB114: 0 | AC114: 0 | AD114: 0 | AE114: 0 | AF114: 0 | AG114: 0 | AH114: 53651.33196 | AI114: 89 | AJ114: 93.60131065 | AK114: 267699.6973 | AL114: 800 | AM114: 841.3600957 | AN114: =(AM114 / $AM$8) * 'National details'!$E$25 -> 437229.106 | AO114: 321 | AP114: 337.5957384 | AQ114: =(AP114 / $AP$8) * 'National details'!$E$26 -> 441035.8284 | AR114: 231 | AS114: 242.9427276 | AT114: =(AS114/AS$8) *'National details'!$E$27 -> 326922.5879 | AU114: 14462542.97 | AV114: =INDEX('Baselines+historic spend factor'!$P$9:$P$158, MATCH($C114, 'Baselines+historic spend factor'!$C$9:$C$158, 0)) -> 16852159.93 | AW114: -2389616.962 | AX114: 2389616.962 | AY114: 120000 | AZ114: =INDEX('Import|export adjustments data'!$Q$9:$Q$158, MATCH($C114, 'Import|export adjustments data'!$C$9:$C$158, 0)) -> -29 | BA114: -174000 | BB114: 18161163.29 | BC114: 0 | BD114: 0 | BE114: 18161163.29
A115: Sefton | B115: SOUTH WEST | C115: 800 | D115: Bath and North East Somerset | E115: 1.021750149 | F115: 449 | G115: 4087.000596 | H115: 1835063.268 | I115: =INDEX('Baselines+historic spend factor'!$Q$9:$Q$158, MATCH('HN NFF illustrative allocations'!$C115, 'Baselines+historic spend factor'!$C$9:$C$158, 0)) -> 9599953.798 | J115: 34021.362 | K115: 34761.33169 | L115: 3831170.824 | M115: 2056 | N115: 2100.718306 | O115: 451500.1509 | P115: 1478 | Q115: 1510.14672 | R115: 48826.35704 | S115: 2399 | T115: 2451.178607 | U115: 103289.4231 | V115: 403 | W115: 411.7653101 | X115: 24351.41393 | Y115: 967 | Z115: 988.0323941 | AA115: 57260.71786 | AB115: 546 | AC115: 557.8755814 | AD115: 37777.3151 | AE115: 0 | AF115: 0 | AG115: 0 | AH115: 271505.227 | AI115: 143 | AJ115: 146.1102713 | AK115: 417875.2961 | AL115: 1040 | AM115: 1062.620155 | AN115: =(AM115 / $AM$8) * 'National details'!$E$25 -> 552211.1908 | AO115: 325 | AP115: 332.0687984 | AQ115: =(AP115 / $AP$8) * 'National details'!$E$26 -> 433815.4216 | AR115: 438 | AS115: 447.5265653 | AT115: =(AS115/AS$8) *'National details'!$E$27 -> 602226.4766 | AU115: 16160258.38 | AV115: =INDEX('Baselines+historic spend factor'!$P$9:$P$158, MATCH($C115, 'Baselines+historic spend factor'!$C$9:$C$158, 0)) -> 19199907.6 | AW115: -3039649.211 | AX115: 3039649.211 | AY115: 329143 | AZ115: =INDEX('Import|export adjustments data'!$Q$9:$Q$158, MATCH($C115, 'Import|export adjustments data'!$C$9:$C$158, 0)) -> 58 | BA115: 348000 | BB115: 21712113.86 | BC115: 0 | BD115: 0 | BE115: 21712113.86
A116: Sheffield | B116: SOUTH WEST | C116: 837 | D116: Bournemouth | E116: 1 | F116: 445 | G116: 4000 | H116: 1780000 | I116: =INDEX('Baselines+historic spend factor'!$Q$9:$Q$158, MATCH('HN NFF illustrative allocations'!$C116, 'Baselines+historic spend factor'!$C$9:$C$158, 0)) -> 6861040.399 | J116: 33874.761 | K116: 33874.761 | L116: 3733458.693 | M116: 2787 | N116: 2787 | O116: 599000.3118 | P116: 4098 | Q116: 4098 | R116: 132497.3319 | S116: 3245 | T116: 3245 | U116: 136740.0062 | V116: 2466 | W116: 2466 | X116: 145836.9253 | Y116: 1309 | Z116: 1309 | AA116: 75862.16821 | AB116: 1417 | AC116: 1417 | AD116: 95954.11106 | AE116: 0 | AF116: 0 | AG116: 0 | AH116: 586890.5426 | AI116: 193 | AJ116: 193 | AK116: 551979.8945 | AL116: 920 | AM116: 920 | AN116: =(AM116 / $AM$8) * 'National details'!$E$25 -> 478095.8588 | AO116: 386 | AP116: 386 | AQ116: =(AP116 / $AP$8) * 'National details'!$E$26 -> 504271.2641 | AR116: 412 | AS116: 412 | AT116: =(AS116/AS$8) *'National details'!$E$27 -> 554419.1733 | AU116: 13869156.14 | AV116: =INDEX('Baselines+historic spend factor'!$P$9:$P$158, MATCH($C116, 'Baselines+historic spend factor'!$C$9:$C$158, 0)) -> 13722080.8 | AW116: 147075.339 | AX116: 0 | AY116: 0 | AZ116: =INDEX('Import|export adjustments data'!$Q$9:$Q$158, MATCH($C116, 'Import|export adjustments data'!$C$9:$C$158, 0)) -> -5 | BA116: -30000 | BB116: 15619156.14 | BC116: 147075.339 | BD116: 147075.339 | BE116: 15619156.14
A117: Shropshire | B117: SOUTH WEST | C117: 801 | D117: Bristol, City of | E117: 1.021750149 | F117: 827 | G117: 4087.000596 | H117: 3379949.493 | I117: =INDEX('Baselines+historic spend factor'!$Q$9:$Q$158, MATCH('HN NFF illustrative allocations'!$C117, 'Baselines+historic spend factor'!$C$9:$C$158, 0)) -> 21327697.52 | J117: 88516.469 | K117: 90441.71539 | L117: 9967905.266 | M117: 12186 | N117: 12451.04732 | O117: 2676060.719 | P117: 10541 | Q117: 10770.26832 | R117: 348226.407 | S117: 8468 | T117: 8652.180262 | U117: 364591.4277 | V117: 4687 | W117: 4788.942948 | X117: 283213.5908 | Y117: 7303 | Z117: 7461.841338 | AA117: 432445.7317 | AB117: 12751 | AC117: 13028.33615 | AD117: 882231.767 | AE117: 4758 | AF117: 4861.487209 | AG117: 466887.7658 | AH117: 2777596.69 | AI117: 615 | AJ117: 628.3763416 | AK117: 1797155.994 | AL117: 2870 | AM117: 2932.422928 | AN117: =(AM117 / $AM$8) * 'National details'!$E$25 -> 1523890.498 | AO117: 1205 | AP117: 1231.20893 | AQ117: =(AP117 / $AP$8) * 'National details'!$E$26 -> 1608454.102 | AR117: 1281 | AS117: 1308.861941 | AT117: =(AS117/AS$8) *'National details'!$E$27 -> 1761306.202 | AU117: 43440066.99 | AV117: =INDEX('Baselines+historic spend factor'!$P$9:$P$158, MATCH($C117, 'Baselines+historic spend factor'!$C$9:$C$158, 0)) -> 42655395.05 | AW117: 784671.947 | AX117: 0 | AY117: 2005710 | AZ117: =INDEX('Import|export adjustments data'!$Q$9:$Q$158, MATCH($C117, 'Import|export adjustments data'!$C$9:$C$158, 0)) -> 15 | BA117: 90000 | BB117: 48915726.49 | BC117: 784671.947 | BD117: 784671.947 | BE117: 48915726.49
A118: Slough | B118: SOUTH WEST | C118: 908 | D118: Cornwall | E118: 1 | F118: 444 | G118: 4000 | H118: 1776000 | I118: =INDEX('Baselines+historic spend factor'!$Q$9:$Q$158, MATCH('HN NFF illustrative allocations'!$C118, 'Baselines+historic spend factor'!$C$9:$C$158, 0)) -> 17196081.82 | J118: 102367.68 | K118: 102367.68 | L118: 11282308.52 | M118: 8123 | N118: 8123 | O118: 1745848.415 | P118: 11519 | Q118: 11519 | R118: 372434.5451 | S118: 6304 | T118: 6304 | U118: 265642.2185 | V118: 4215 | W118: 4215 | X118: 249271.1436 | Y118: 4004 | Z118: 4004 | AA118: 232048.9851 | AB118: 3457 | AC118: 3457 | AD118: 234095.5271 | AE118: 0 | AF118: 0 | AG118: 0 | AH118: 1353492.419 | AI118: 574 | AJ118: 574 | AK118: 1641639.686 | AL118: 3360 | AM118: 3360 | AN118: =(AM118 / $AM$8) * 'National details'!$E$25 -> 1746089.223 | AO118: 1345 | AP118: 1345 | AQ118: =(AP118 / $AP$8) * 'National details'!$E$26 -> 1757111.011 | AR118: 1148 | AS118: 1148 | AT118: =(AS118/AS$8) *'National details'!$E$27 -> 1544837.891 | AU118: 38267408.99 | AV118: =INDEX('Baselines+historic spend factor'!$P$9:$P$158, MATCH($C118, 'Baselines+historic spend factor'!$C$9:$C$158, 0)) -> 34392163.65 | AW118: 3875245.348 | AX118: 0 | AY118: 894000 | AZ118: =INDEX('Import|export adjustments data'!$Q$9:$Q$158, MATCH($C118, 'Import|export adjustments data'!$C$9:$C$158, 0)) -> -15 | BA118: -90000 | BB118: 40847408.99 | BC118: 3875245.348 | BD118: 1031764.909 | BE118: 38003928.55
A119: Solihull | B119: SOUTH WEST | C119: 878 | D119: Devon | E119: 1 | F119: 1112 | G119: 4000 | H119: 4448000 | I119: =INDEX('Baselines+historic spend factor'!$Q$9:$Q$158, MATCH('HN NFF illustrative allocations'!$C119, 'Baselines+historic spend factor'!$C$9:$C$158, 0)) -> 28611094.68 | J119: 138393.269 | K119: 138393.269 | L119: 15252817.67 | M119: 12460 | N119: 12460 | O119: 2677984.889 | P119: 11881 | Q119: 11881 | R119: 384138.7994 | S119: 6730 | T119: 6730 | U119: 283593.2949 | V119: 5111 | W119: 5111 | X119: 302259.7425 | Y119: 753 | Z119: 753 | AA119: 43639.58187 | AB119: 1196 | AC119: 1196 | AD119: 80988.79099 | AE119: 0 | AF119: 0 | AG119: 0 | AH119: 1094620.21 | AI119: 696 | AJ119: 696 | AK119: 1990559.62 | AL119: 4580 | AM119: 4580 | AN119: =(AM119 / $AM$8) * 'National details'!$E$25 -> 2380085.906 | AO119: 1593 | AP119: 1593 | AQ119: =(AP119 / $AP$8) * 'National details'!$E$26 -> 2081098.766 | AR119: 1699 | AS119: 1699 | AT119: =(AS119/AS$8) *'National details'!$E$27 -> 2286306.251 | AU119: 56374567.99 | AV119: =INDEX('Baselines+historic spend factor'!$P$9:$P$158, MATCH($C119, 'Baselines+historic spend factor'!$C$9:$C$158, 0)) -> 57222189.35 | AW119: -847621.3625 | AX119: 847621.3625 | AY119: 1912000 | AZ119: =INDEX('Import|export adjustments data'!$Q$9:$Q$158, MATCH($C119, 'Import|export adjustments data'!$C$9:$C$158, 0)) -> -335 | BA119: -2010000 | BB119: 61572189.35 | BC119: 0 | BD119: 0 | BE119: 61572189.35
A120: Somerset | B120: SOUTH WEST | C120: 835 | D120: Dorset | E120: 1 | F120: 659 | G120: 4000 | H120: 2636000 | I120: =INDEX('Baselines+historic spend factor'!$Q$9:$Q$158, MATCH('HN NFF illustrative allocations'!$C120, 'Baselines+historic spend factor'!$C$9:$C$158, 0)) -> 17369321.56 | J120: 75162.685 | K120: 75162.685 | L120: 8283948.623 | M120: 6317 | N120: 6317 | O120: 1357691.055 | P120: 3720 | Q120: 3720 | R120: 120275.7624 | S120: 2507 | T120: 2507 | U120: 105641.6627 | V120: 1112 | W120: 1112 | X120: 65762.63622 | Y120: 1845 | Z120: 1845 | AA120: 106925.6687 | AB120: 399 | AC120: 399 | AD120: 27018.83579 | AE120: 358 | AF120: 358 | AG120: 34381.62294 | AH120: 460006.1888 | AI120: 350 | AJ120: 350 | AK120: 1000999.809 | AL120: 2470 | AM120: 2470 | AN120: =(AM120 / $AM$8) * 'National details'!$E$25 -> 1283583.447 | AO120: 962 | AP120: 962 | AQ120: =(AP120 / $AP$8) * 'National details'!$E$26 -> 1256758.954 | AR120: 781 | AS120: 781 | AT120: =(AS120/AS$8) *'National details'!$E$27 -> 1050974.21 | AU120: 32063283.84 | AV120: =INDEX('Baselines+historic spend factor'!$P$9:$P$158, MATCH($C120, 'Baselines+historic spend factor'!$C$9:$C$158, 0)) -> 34738643.11 | AW120: -2675359.272 | AX120: 2675359.272 | AY120: 73300 | AZ120: =INDEX('Import|export adjustments data'!$Q$9:$Q$158, MATCH($C120, 'Import|export adjustments data'!$C$9:$C$158, 0)) -> -75 | BA120: -450000 | BB120: 36997943.11 | BC120: 0 | BD120: 0 | BE120: 36997943.11
A121: South Gloucestershire | B121: SOUTH WEST | C121: 916 | D121: Gloucestershire | E121: 1.009372532 | F121: 1167 | G121: 4037.490127 | H121: 4711750.979 | I121: =INDEX('Baselines+historic spend factor'!$Q$9:$Q$158, MATCH('HN NFF illustrative allocations'!$C121, 'Baselines+historic spend factor'!$C$9:$C$158, 0)) -> 25244153.21 | J121: 120313.333 | K121: 121440.9735 | L121: 13384444.5 | M121: 8242 | N121: 8319.248407 | O121: 1788027.41 | P121: 9308 | Q121: 9395.239526 | R121: 303768.709 | S121: 8378 | T121: 8456.523072 | U121: 356346.6926 | V121: 3975 | W121: 4012.255814 | X121: 237281.0427 | Y121: 3822 | Z121: 3857.821817 | AA121: 223577.332 | AB121: 4548 | AC121: 4590.626275 | AD121: 310860.5952 | AE121: 686 | AF121: 692.4295568 | AG121: 66499.58642 | AH121: 1498333.958 | AI121: 547 | AJ121: 552.1267749 | AK121: 1579082.275 | AL121: 2930 | AM121: 2957.461518 | AN121: =(AM121 / $AM$8) * 'National details'!$E$25 -> 1536902.287 | AO121: 1253 | AP121: 1264.743782 | AQ121: =(AP121 / $AP$8) * 'National details'!$E$26 -> 1652264.109 | AR121: 1429 | AS121: 1442.393348 | AT121: =(AS121/AS$8) *'National details'!$E$27 -> 1940996.426 | AU121: 48624204.17 | AV121: =INDEX('Baselines+historic spend factor'!$P$9:$P$158, MATCH($C121, 'Baselines+historic spend factor'!$C$9:$C$158, 0)) -> 50488306.42 | AW121: -1864102.25 | AX121: 1864102.25 | AY121: 1466730 | AZ121: =INDEX('Import|export adjustments data'!$Q$9:$Q$158, MATCH($C121, 'Import|export adjustments data'!$C$9:$C$158, 0)) -> -179 | BA121: -1074000 | BB121: 55592787.4 | BC121: 0 | BD121: 0 | BE121: 55592787.4
A122: South Tyneside | B122: SOUTH WEST | C122: 802 | D122: North Somerset | E122: 1.021750149 | F122: 326 | G122: 4087.000596 | H122: 1332362.194 | I122: =INDEX('Baselines+historic spend factor'!$Q$9:$Q$158, MATCH('HN NFF illustrative allocations'!$C122, 'Baselines+historic spend factor'!$C$9:$C$158, 0)) -> 10118965.42 | J122: 41439.012 | K122: 42340.31669 | L122: 4666477.895 | M122: 2715 | N122: 2774.051655 | O122: 596217.3686 | P122: 1626 | Q122: 1661.365742 | R122: 53715.59983 | S122: 2076 | T122: 2121.153309 | U122: 89382.59375 | V122: 1679 | W122: 1715.5185 | X122: 101454.1538 | Y122: 159 | Z122: 162.4582737 | AA122: 9415.15423 | AB122: 2119 | AC122: 2165.088566 | AD122: 146611.961 | AE122: 1037 | AF122: 1059.554905 | AG122: 101757.59 | AH122: 502337.0526 | AI122: 201 | AJ122: 205.37178 | AK122: 587363.1785 | AL122: 1090 | AM122: 1113.707662 | AN122: =(AM122 / $AM$8) * 'National details'!$E$25 -> 578759.8057 | AO122: 461 | AP122: 471.0268187 | AQ122: =(AP122 / $AP$8) * 'National details'!$E$26 -> 615350.4904 | AR122: 489 | AS122: 499.6358229 | AT122: =(AS122/AS$8) *'National details'!$E$27 -> 672348.7375 | AU122: 18337819.94 | AV122: =INDEX('Baselines+historic spend factor'!$P$9:$P$158, MATCH($C122, 'Baselines+historic spend factor'!$C$9:$C$158, 0)) -> 20237930.83 | AW122: -1900110.887 | AX122: 1900110.887 | AY122: 0 | AZ122: =INDEX('Import|export adjustments data'!$Q$9:$Q$158, MATCH($C122, 'Import|export adjustments data'!$C$9:$C$158, 0)) -> 5 | BA122: 30000 | BB122: 21600293.03 | BC122: 0 | BD122: 0 | BE122: 21600293.03
A123: Southampton | B123: SOUTH WEST | C123: 879 | D123: Plymouth | E123: 1 | F123: 646 | G123: 4000 | H123: 2584000 | I123: =INDEX('Baselines+historic spend factor'!$Q$9:$Q$158, MATCH('HN NFF illustrative allocations'!$C123, 'Baselines+historic spend factor'!$C$9:$C$158, 0)) -> 12418257.44 | J123: 49621.052 | K123: 49621.052 | L123: 5468913.802 | M123: 6662 | N123: 6662 | O123: 1431840.717 | P123: 4305 | Q123: 4305 | R123: 139190.0961 | S123: 4043 | T123: 4043 | U123: 170366.6703 | V123: 5853 | W123: 5853 | X123: 346140.9261 | Y123: 2649 | Z123: 2649 | AA123: 153520.9195 | AB123: 3723 | AC123: 3723 | AD123: 252108.0843 | AE123: 3288 | AF123: 3288 | AG123: 315773.118 | AH123: 1377099.814 | AI123: 338 | AJ123: 338 | AK123: 966679.8153 | AL123: 2530 | AM123: 2530 | AN123: =(AM123 / $AM$8) * 'National details'!$E$25 -> 1314763.612 | AO123: 767 | AP123: 767 | AQ123: =(AP123 / $AP$8) * 'National details'!$E$26 -> 1002010.517 | AR123: 680 | AS123: 680 | AT123: =(AS123/AS$8) *'National details'!$E$27 -> 915060.7714 | AU123: 24894626.49 | AV123: =INDEX('Baselines+historic spend factor'!$P$9:$P$158, MATCH($C123, 'Baselines+historic spend factor'!$C$9:$C$158, 0)) -> 24836514.89 | AW123: 58111.60474 | AX123: 0 | AY123: 626000 | AZ123: =INDEX('Import|export adjustments data'!$Q$9:$Q$158, MATCH($C123, 'Import|export adjustments data'!$C$9:$C$158, 0)) -> 85 | BA123: 510000 | BB123: 28614626.49 | BC123: 58111.60474 | BD123: 58111.60474 | BE123: 28614626.49
A124: Southend-on-Sea | B124: SOUTH WEST | C124: 836 | D124: Poole | E124: 1 | F124: 259 | G124: 4000 | H124: 1036000 | I124: =INDEX('Baselines+historic spend factor'!$Q$9:$Q$158, MATCH('HN NFF illustrative allocations'!$C124, 'Baselines+historic spend factor'!$C$9:$C$158, 0)) -> 6419539.385 | J124: 28814.048 | K124: 28814.048 | L124: 3175699.394 | M124: 2091 | N124: 2091 | O124: 449411.4288 | P124: 4357 | Q124: 4357 | R124: 140871.3702 | S124: 1820 | T124: 1820 | U124: 76692.39178 | V124: 1472 | W124: 1472 | X124: 87052.6983 | Y124: 771 | Z124: 771 | AA124: 44682.75912 | AB124: 920 | AC124: 920 | AD124: 62299.06999 | AE124: 0 | AF124: 0 | AG124: 0 | AH124: 411598.2893 | AI124: 159 | AJ124: 159 | AK124: 454739.9131 | AL124: 800 | AM124: 800 | AN124: =(AM124 / $AM$8) * 'National details'!$E$25 -> 415735.5294 | AO124: 348 | AP124: 348 | AQ124: =(AP124 / $AP$8) * 'National details'!$E$26 -> 454627.979 | AR124: 368 | AS124: 368 | AT124: =(AS124/AS$8) *'National details'!$E$27 -> 495209.3587 | AU124: 12276561.28 | AV124: =INDEX('Baselines+historic spend factor'!$P$9:$P$158, MATCH($C124, 'Baselines+historic spend factor'!$C$9:$C$158, 0)) -> 12839078.77 | AW124: -562517.4927 | AX124: 562517.4927 | AY124: 805921.2292 | AZ124: =INDEX('Import|export adjustments data'!$Q$9:$Q$158, MATCH($C124, 'Import|export adjustments data'!$C$9:$C$158, 0)) -> -65 | BA124: -390000 | BB124: 14291000 | BC124: 0 | BD124: 0 | BE124: 14291000
A125: Southwark | B125: SOUTH WEST | C125: 933 | D125: Somerset | E125: 1 | F125: 712 | G125: 4000 | H125: 2848000 | I125: =INDEX('Baselines+historic spend factor'!$Q$9:$Q$158, MATCH('HN NFF illustrative allocations'!$C125, 'Baselines+historic spend factor'!$C$9:$C$158, 0)) -> 22089365.11 | J125: 105250.93 | K125: 105250.93 | L125: 11600081.83 | M125: 7358 | N125: 7358 | O125: 1581429.6 | P125: 9302 | Q125: 9302 | R125: 300754.0705 | S125: 8185 | T125: 8185 | U125: 344905.0696 | V125: 2090 | W125: 2090 | X125: 123600.6382 | Y125: 1798 | Z125: 1798 | AA125: 104201.817 | AB125: 3339 | AC125: 3339 | AD125: 226104.9942 | AE125: 455 | AF125: 455 | AG125: 43697.31407 | AH125: 1143263.904 | AI125: 502 | AJ125: 502 | AK125: 1435719.726 | AL125: 2910 | AM125: 2910 | AN125: =(AM125 / $AM$8) * 'National details'!$E$25 -> 1512237.988 | AO125: 1306 | AP125: 1306 | AQ125: =(AP125 / $AP$8) * 'National details'!$E$26 -> 1706161.324 | AR125: 1241 | AS125: 1241 | AT125: =(AS125/AS$8) *'National details'!$E$27 -> 1669985.908 | AU125: 42738245.39 | AV125: =INDEX('Baselines+historic spend factor'!$P$9:$P$158, MATCH($C125, 'Baselines+historic spend factor'!$C$9:$C$158, 0)) -> 44178730.22 | AW125: -1440484.83 | AX125: 1440484.83 | AY125: 2105800 | AZ125: =INDEX('Import|export adjustments data'!$Q$9:$Q$158, MATCH($C125, 'Import|export adjustments data'!$C$9:$C$158, 0)) -> -110 | BA125: -660000 | BB125: 48472530.22 | BC125: 0 | BD125: 0 | BE125: 48472530.22
A126: St Helens | B126: SOUTH WEST | C126: 803 | D126: South Gloucestershire | E126: 1.021750149 | F126: 464 | G126: 4087.000596 | H126: 1896368.277 | I126: =INDEX('Baselines+historic spend factor'!$Q$9:$Q$158, MATCH('HN NFF illustrative allocations'!$C126, 'Baselines+historic spend factor'!$C$9:$C$158, 0)) -> 13045921.01 | J126: 55221.085 | K126: 56422.15183 | L126: =(K126 /$K$8) * L$8 -> 6218487.364 | M126: 3186 | N126: 3255.295975 | O126: 699649.5529 | P126: 5923 | Q126: 6051.826133 | R126: 195668.8178 | S126: 3064 | T126: 3130.642457 | U126: 131921.1307 | V126: 1199 | W126: 1225.078429 | X126: 72449.98835 | Y126: 174 | Z126: 177.7845259 | AA126: 10303.37633 | AB126: 0 | AC126: 0 | AD126: 0 | AE126: 0 | AF126: 0 | AG126: 0 | AH126: 410343.3131 | AI126: 270 | AJ126: 275.8725402 | AK126: 788995.3143 | AL126: 1680 | AM126: 1716.54025 | AN126: =(AM126 / $AM$8) * 'National details'!$E$25 -> 892033.462 | AO126: 573 | AP126: 585.4628354 | AQ126: =(AP126 / $AP$8) * 'National details'!$E$26 -> 764849.9588 | AR126: 696 | AS126: 711.1381037 | AT126: =(AS126/AS$8) *'National details'!$E$27 -> 956962.6203 | AU126: 23777242.59 | AV126: =INDEX('Baselines+historic spend factor'!$P$9:$P$158, MATCH($C126, 'Baselines+historic spend factor'!$C$9:$C$158, 0)) -> 26091842.01 | AW126: -2314599.42 | AX126: 2314599.42 | AY126: 0 | AZ126: =INDEX('Import|export adjustments data'!$Q$9:$Q$158, MATCH($C126, 'Import|export adjustments data'!$C$9:$C$158, 0)) -> 88 | BA126: 528000 | BB126: 28516210.29 | BC126: 0 | BD126: 0 | BE126: 28516210.29
A127: Staffordshire | B127: SOUTH WEST | C127: 866 | D127: Swindon | E127: 1.010672205 | F127: 539 | G127: 4042.688819 | H127: 2179009.274 | I127: =INDEX('Baselines+historic spend factor'!$Q$9:$Q$158, MATCH('HN NFF illustrative allocations'!$C127, 'Baselines+historic spend factor'!$C$9:$C$158, 0)) -> 13232744.79 | J127: 47156.593 | K127: 47659.85782 | L127: 5252763.569 | M127: 3976 | N127: 4018.432686 | O127: 863667.8982 | P127: 2468 | Q127: 2494.339002 | R127: 80647.45301 | S127: 2168 | T127: 2191.13734 | U127: 92331.6282 | V127: 2813 | W127: 2843.020912 | X127: 168133.5881 | Y127: 3492 | Z127: 3529.267339 | AA127: 204536.1899 | AB127: 1298 | AC127: 1311.852522 | AD127: 88833.90443 | AE127: 887 | AF127: 896.4662457 | AG127: 86094.87274 | AH127: 720577.6364 | AI127: 197 | AJ127: 199.1024244 | AK127: 569432.8249 | AL127: 1590 | AM127: 1606.968806 | AN127: =(AM127 / $AM$8) * 'National details'!$E$25 -> 835092.5339 | AO127: 563 | AP127: 569.0084513 | AQ127: =(AP127 / $AP$8) * 'National details'!$E$26 -> 743353.9146 | AR127: 602 | AS127: 608.4246673 | AT127: =(AS127/AS$8) *'National details'!$E$27 -> 818743.4492 | AU127: 23036376.62 | AV127: =INDEX('Baselines+historic spend factor'!$P$9:$P$158, MATCH($C127, 'Baselines+historic spend factor'!$C$9:$C$158, 0)) -> 26465489.59 | AW127: -3429112.967 | AX127: 3429112.967 | AY127: 482829 | AZ127: =INDEX('Import|export adjustments data'!$Q$9:$Q$158, MATCH($C127, 'Import|export adjustments data'!$C$9:$C$158, 0)) -> -38 | BA127: -228000 | BB127: 28899327.86 | BC127: 0 | BD127: 0 | BE127: 28899327.86
A128: Stockport | B128: SOUTH WEST | C128: 880 | D128: Torbay | E128: 1 | F128: 551 | G128: 4000 | H128: 2204000 | I128: =INDEX('Baselines+historic spend factor'!$Q$9:$Q$158, MATCH('HN NFF illustrative allocations'!$C128, 'Baselines+historic spend factor'!$C$9:$C$158, 0)) -> 6963274.646 | J128: 23897.527 | K128: 23897.527 | L128: 2633832.012 | M128: 3202 | N128: 3202 | O128: 688194.8326 | P128: 3837 | Q128: 3837 | R128: 124058.6292 | S128: 3160 | T128: 3160 | U128: 133158.2187 | V128: 2656 | W128: 2656 | X128: 157073.3469 | Y128: 767 | Z128: 767 | AA128: 44450.94196 | AB128: 3413 | AC128: 3413 | AD128: 231116.0064 | AE128: 0 | AF128: 0 | AG128: 0 | AH128: 689857.1431 | AI128: 154 | AJ128: 154 | AK128: 440439.9159 | AL128: 1090 | AM128: 1090 | AN128: =(AM128 / $AM$8) * 'National details'!$E$25 -> 566439.6587 | AO128: 405 | AP128: 405 | AQ128: =(AP128 / $AP$8) * 'National details'!$E$26 -> 529092.9066 | AR128: 402 | AS128: 402 | AT128: =(AS128/AS$8) *'National details'!$E$27 -> 540962.3972 | AU128: 13052093.51 | AV128: =INDEX('Baselines+historic spend factor'!$P$9:$P$158, MATCH($C128, 'Baselines+historic spend factor'!$C$9:$C$158, 0)) -> 13926549.29 | AW128: -874455.7794 | AX128: 874455.7794 | AY128: 74200 | AZ128: =INDEX('Import|export adjustments data'!$Q$9:$Q$158, MATCH($C128, 'Import|export adjustments data'!$C$9:$C$158, 0)) -> 83 | BA128: 498000 | BB128: 16702749.29 | BC128: 0 | BD128: 0 | BE128: 16702749.29
A129: Stockton-on-Tees | B129: SOUTH WEST | C129: 865 | D129: Wiltshire | E129: 1.010672205 | F129: 682 | G129: 4042.688819 | H129: 2757113.775 | I129: =INDEX('Baselines+historic spend factor'!$Q$9:$Q$158, MATCH('HN NFF illustrative allocations'!$C129, 'Baselines+historic spend factor'!$C$9:$C$158, 0)) -> 20060276.15 | J129: 99510.93 | K129: 100572.931 | L129: 11084502.81 | M129: 5083 | N129: 5137.246817 | O129: 1104130.766 | P129: 4700 | Q129: 4750.159363 | R129: 153583.075 | S129: 2734 | T129: 2763.177808 | U129: 116436.6566 | V129: 3106 | W129: 3139.147868 | X129: 185646.2584 | Y129: 266 | Z129: 268.8388065 | AA129: 15580.36269 | AB129: 539 | AC129: 544.7523184 | AD129: 36888.65523 | AE129: 0 | AF129: 0 | AG129: 0 | AH129: 508135.0079 | AI129: 381 | AJ129: 385.06611 | AK129: 1101288.864 | AL129: 3360 | AM129: 3395.858608 | AN129: =(AM129 / $AM$8) * 'National details'!$E$25 -> 1764723.845 | AO129: 1167 | AP129: 1179.454463 | AQ129: =(AP129 / $AP$8) * 'National details'!$E$26 -> 1540841.951 | AR129: 1337 | AS129: 1351.268738 | AT129: =(AS129/AS$8) *'National details'!$E$27 -> 1818372.079 | AU129: 38982271.48 | AV129: =INDEX('Baselines+historic spend factor'!$P$9:$P$158, MATCH($C129, 'Baselines+historic spend factor'!$C$9:$C$158, 0)) -> 40120552.3 | AW129: -1138280.82 | AX129: 1138280.82 | AY129: 652515 | AZ129: =INDEX('Import|export adjustments data'!$Q$9:$Q$158, MATCH($C129, 'Import|export adjustments data'!$C$9:$C$158, 0)) -> -258 | BA129: -1548000 | BB129: 41982181.07 | BC129: 0 | BD129: 0 | BE129: 41982181.07
A130: Stoke-on-Trent | B130: WEST MIDLANDS | C130: 330 | D130: Birmingham | E130: 1.005027428 | F130: 4276 | G130: 4020.109713 | H130: 17189989.13 | I130: =INDEX('Baselines+historic spend factor'!$Q$9:$Q$158, MATCH('HN NFF illustrative allocations'!$C130, 'Baselines+historic spend factor'!$C$9:$C$158, 0)) -> 61049610.95 | J130: 270629.514 | K130: 271990.0844 | L130: 29977001.03 | M130: 54242 | N130: 54514.69776 | O130: 11716656.25 | P130: 23633 | Q130: 23751.81321 | R130: 767948.2374 | S130: 27856 | T130: 27996.04404 | U130: 1179716.251 | V130: 43720 | W130: 43939.79916 | X130: 2598558.478 | Y130: 37118 | Z130: 37304.60808 | AA130: 2161962.149 | AB130: 52381 | AC130: 52644.34171 | AD130: 3564884.271 | AE130: 13555 | AF130: 13623.14679 | AG130: 1308340.492 | AH130: 11581409.88 | AI130: 2453 | AJ130: 2465.332281 | AK130: 7050848.977 | AL130: 10580 | AM130: 10633.19019 | AN130: =(AM130 / $AM$8) * 'National details'!$E$25 -> 5525743.69 | AO130: 4224 | AP130: 4245.235857 | AQ130: =(AP130 / $AP$8) * 'National details'!$E$26 -> 5545985.626 | AR130: 3118 | AS130: 3133.675521 | AT130: =(AS130/AS$8) *'National details'!$E$27 -> 4216916.97 | AU130: 136664173.4 | AV130: =INDEX('Baselines+historic spend factor'!$P$9:$P$158, MATCH($C130, 'Baselines+historic spend factor'!$C$9:$C$158, 0)) -> 122099221.9 | AW130: 14564951.47 | AX130: 0 | AY130: 3387529 | AZ130: =INDEX('Import|export adjustments data'!$Q$9:$Q$158, MATCH($C130, 'Import|export adjustments data'!$C$9:$C$158, 0)) -> -164 | BA130: -984000 | BB130: 156257691.5 | BC130: 14564951.47 | BD130: 3662976.657 | BE130: 145355716.7
A131: Suffolk | B131: WEST MIDLANDS | C131: 331 | D131: Coventry | E131: 1.005027428 | F131: 894 | G131: 4020.109713 | H131: 3593978.083 | I131: =INDEX('Baselines+historic spend factor'!$Q$9:$Q$158, MATCH('HN NFF illustrative allocations'!$C131, 'Baselines+historic spend factor'!$C$9:$C$158, 0)) -> 14596334.3 | J131: 73847.357 | K131: 74218.61928 | L131: 8179899.76 | M131: 9731 | N131: 9779.921903 | O131: 2101964.934 | P131: 7652 | Q131: 7690.46988 | R131: 248649.7657 | S131: 5223 | T131: 5249.258257 | U131: 221196.7971 | V131: 7913 | W131: 7952.782039 | X131: 470320.0649 | Y131: 7331 | Z131: 7367.856076 | AA131: 426998.8824 | AB131: 5787 | AC131: 5816.093727 | AD131: 393844.8154 | AE131: 5429 | AF131: 5456.293908 | AG131: 524011.843 | AH131: 2285022.168 | AI131: 497 | AJ131: 499.4986318 | AK131: 1428565.814 | AL131: 2830 | AM131: 2844.227622 | AN131: =(AM131 / $AM$8) * 'National details'!$E$25 -> 1478058.095 | AO131: 1222 | AP131: 1228.143517 | AQ131: =(AP131 / $AP$8) * 'National details'!$E$26 -> 1604449.44 | AR131: 844 | AS131: 848.2431494 | AT131: =(AS131/AS$8) *'National details'!$E$27 -> 1141461.81 | AU131: 32815756.32 | AV131: =INDEX('Baselines+historic spend factor'!$P$9:$P$158, MATCH($C131, 'Baselines+historic spend factor'!$C$9:$C$158, 0)) -> 29192668.59 | AW131: 3623087.725 | AX131: 0 | AY131: 486964 | AZ131: =INDEX('Import|export adjustments data'!$Q$9:$Q$158, MATCH($C131, 'Import|export adjustments data'!$C$9:$C$158, 0)) -> 104 | BA131: 624000 | BB131: 37520698.4 | BC131: 3623087.725 | BD131: 875780.0577 | BE131: 34773390.73
A132: Sunderland | B132: WEST MIDLANDS | C132: 332 | D132: Dudley | E132: 1.005027428 | F132: 774 | G132: 4020.109713 | H132: 3111564.918 | I132: =INDEX('Baselines+historic spend factor'!$Q$9:$Q$158, MATCH('HN NFF illustrative allocations'!$C132, 'Baselines+historic spend factor'!$C$9:$C$158, 0)) -> 13030221.11 | J132: 64570.38 | K132: 64895.00295 | L132: 7152310.622 | M132: 7160 | N132: 7195.996386 | O132: 1546610.721 | P132: 7467 | Q132: 7504.539806 | R132: 242638.2384 | S132: 11405 | T132: 11462.33782 | U132: 483007.7487 | V132: 5171 | W132: 5196.996831 | X132: 307345.5144 | Y132: 5561 | Z132: 5588.957528 | AA132: 323904.0765 | AB132: 5138 | AC132: 5163.830926 | AD132: 349675.9394 | AE132: 1263 | AF132: 1269.349642 | AG132: 121905.8681 | AH132: 1828477.386 | AI132: 392 | AJ132: 393.9707518 | AK132: 1126756.135 | AL132: 2310 | AM132: 2321.613359 | AN132: =(AM132 / $AM$8) * 'National details'!$E$25 -> 1206471.448 | AO132: 971 | AP132: 975.8816327 | AQ132: =(AP132 / $AP$8) * 'National details'!$E$26 -> 1274893.95 | AR132: 777 | AS132: 780.9063117 | AT132: =(AS132/AS$8) *'National details'!$E$27 -> 1050848.135 | AU132: 28216589.51 | AV132: =INDEX('Baselines+historic spend factor'!$P$9:$P$158, MATCH($C132, 'Baselines+historic spend factor'!$C$9:$C$158, 0)) -> 26060442.22 | AW132: 2156147.285 | AX132: 0 | AY132: 1231000 | AZ132: =INDEX('Import|export adjustments data'!$Q$9:$Q$158, MATCH($C132, 'Import|export adjustments data'!$C$9:$C$158, 0)) -> -53 | BA132: -318000 | BB132: 32241154.43 | BC132: 2156147.285 | BD132: 781813.2667 | BE132: 30866820.41
A133: Surrey | B133: WEST MIDLANDS | C133: 884 | D133: Herefordshire | E133: 1 | F133: 332 | G133: 4000 | H133: 1328000 | I133: =INDEX('Baselines+historic spend factor'!$Q$9:$Q$158, MATCH('HN NFF illustrative allocations'!$C133, 'Baselines+historic spend factor'!$C$9:$C$158, 0)) -> 6195037.795 | J133: 34540.357 | K133: 34540.357 | L133: 3806816.412 | M133: 2028 | N133: 2028 | O133: 435871.0558 | P133: 2511 | Q133: 2511 | R133: 81186.13965 | S133: 2197 | T133: 2197 | U133: 92578.67293 | V133: 2218 | W133: 2218 | X133: 131170.4381 | Y133: 437 | Z133: 437 | AA133: 25326.0256 | AB133: 0 | AC133: 0 | AD133: 0 | AE133: 0 | AF133: 0 | AG133: 0 | AH133: 330261.2762 | AI133: 165 | AJ133: 165 | AK133: 471899.9098 | AL133: 840 | AM133: 840 | AN133: =(AM133 / $AM$8) * 'National details'!$E$25 -> 436522.3058 | AO133: 462 | AP133: 462 | AQ133: =(AP133 / $AP$8) * 'National details'!$E$26 -> 603557.8342 | AR133: 420 | AS133: 420 | AT133: =(AS133/AS$8) *'National details'!$E$27 -> 565184.5941 | AU133: 12845151.18 | AV133: =INDEX('Baselines+historic spend factor'!$P$9:$P$158, MATCH($C133, 'Baselines+historic spend factor'!$C$9:$C$158, 0)) -> 12390075.59 | AW133: 455075.5922 | AX133: 0 | AY133: 221550 | AZ133: =INDEX('Import|export adjustments data'!$Q$9:$Q$158, MATCH($C133, 'Import|export adjustments data'!$C$9:$C$158, 0)) -> -7 | BA133: -42000 | BB133: 14352701.18 | BC133: 455075.5922 | BD133: 371702.2677 | BE133: 14269327.86
A134: Sutton | B134: WEST MIDLANDS | C134: 333 | D134: Sandwell | E134: 1.005027428 | F134: 556 | G134: 4020.109713 | H134: 2235181 | I134: =INDEX('Baselines+historic spend factor'!$Q$9:$Q$158, MATCH('HN NFF illustrative allocations'!$C134, 'Baselines+historic spend factor'!$C$9:$C$158, 0)) -> 17116375.84 | J134: 75365.795 | K134: 75744.69112 | L134: 8348093.601 | M134: 12288 | N134: 12349.77704 | O134: 2654295.047 | P134: 8158 | Q134: 8199.013759 | R134: 265092.1051 | S134: 11325 | T134: 11381.93562 | U134: 479619.7066 | V134: 13039 | W134: 13104.55264 | X134: 774990.9423 | Y134: 9720 | Z134: 9768.866602 | AA134: 566147.7474 | AB134: 12663 | AC134: 12726.66232 | AD134: 861803.5074 | AE134: 2103 | AF134: 2113.572681 | AG134: 202983.405 | AH134: 3150637.414 | AI134: 543 | AJ134: 545.7298935 | AK134: 1560787.197 | AL134: 2200 | AM134: 2211.060342 | AN134: =(AM134 / $AM$8) * 'National details'!$E$25 -> 1149020.427 | AO134: 1134 | AP134: 1139.701104 | AQ134: =(AP134 / $AP$8) * 'National details'!$E$26 -> 1488908.073 | AR134: 1079 | AS134: 1084.424595 | AT134: =(AS134/AS$8) *'National details'!$E$27 -> 1459285.892 | AU134: 36927403.49 | AV134: =INDEX('Baselines+historic spend factor'!$P$9:$P$158, MATCH($C134, 'Baselines+historic spend factor'!$C$9:$C$158, 0)) -> 34232751.69 | AW134: 2694651.808 | AX134: 0 | AY134: 500000 | AZ134: =INDEX('Import|export adjustments data'!$Q$9:$Q$158, MATCH($C134, 'Import|export adjustments data'!$C$9:$C$158, 0)) -> -42 | BA134: -252000 | BB134: 39410584.49 | BC134: 2694651.808 | BD134: 1026982.551 | BE134: 37742915.24
A135: Swindon | B135: WEST MIDLANDS | C135: 893 | D135: Shropshire | E135: 1 | F135: 526 | G135: 4000 | H135: 2104000 | I135: =INDEX('Baselines+historic spend factor'!$Q$9:$Q$158, MATCH('HN NFF illustrative allocations'!$C135, 'Baselines+historic spend factor'!$C$9:$C$158, 0)) -> 11547066.3 | J135: 56635.689 | K135: 56635.689 | L135: 6242022.06 | M135: 3486 | N135: 3486 | O135: 749233.9746 | P135: 3674 | Q135: 3674 | R135: 118788.4815 | S135: 2560 | T135: 2560 | U135: 107875.0126 | V135: 1859 | W135: 1859 | X135: 109939.515 | Y135: 868 | Z135: 868 | AA135: 50304.32545 | AB135: 254 | AC135: 254 | AD135: 17199.96063 | AE135: 488 | AF135: 488 | AG135: 46866.56982 | AH135: 450973.8651 | AI135: 266 | AJ135: 266 | AK135: 760759.8547 | AL135: 1550 | AM135: 1550 | AN135: =(AM135 / $AM$8) * 'National details'!$E$25 -> 805487.5881 | AO135: 625 | AP135: 625 | AQ135: =(AP135 / $AP$8) * 'National details'!$E$26 -> 816501.3991 | AR135: 562 | AS135: 562 | AT135: =(AS135/AS$8) *'National details'!$E$27 -> 756270.814 | AU135: 22128315.85 | AV135: =INDEX('Baselines+historic spend factor'!$P$9:$P$158, MATCH($C135, 'Baselines+historic spend factor'!$C$9:$C$158, 0)) -> 23094132.6 | AW135: -965816.7426 | AX135: 965816.7426 | AY135: 90380 | AZ135: =INDEX('Import|export adjustments data'!$Q$9:$Q$158, MATCH($C135, 'Import|export adjustments data'!$C$9:$C$158, 0)) -> -129 | BA135: -774000 | BB135: 24514512.6 | BC135: 0 | BD135: 0 | BE135: 24514512.6
A136: Tameside | B136: WEST MIDLANDS | C136: 334 | D136: Solihull | E136: 1.005027428 | F136: 665 | G136: 4020.109713 | H136: 2673372.959 | I136: =INDEX('Baselines+historic spend factor'!$Q$9:$Q$158, MATCH('HN NFF illustrative allocations'!$C136, 'Baselines+historic spend factor'!$C$9:$C$158, 0)) -> 11546557.93 | J136: 44399.459 | K136: 44622.67409 | L136: 4918024.676 | M136: 4135 | N136: 4155.788415 | O136: 893189.292 | P136: 1488 | Q136: 1495.480813 | R136: 48352.17608 | S136: 1794 | T136: 1803.019206 | U136: 75976.84359 | V136: 896 | W136: 900.5045756 | X136: 53254.99534 | Y136: 1566 | Z136: 1573.872953 | AA136: 91212.69264 | AB136: 4549 | AC136: 4571.869771 | AD136: 309590.4726 | AE136: 1229 | AF136: 1235.178709 | AG136: 118624.1582 | AH136: 697011.3385 | AI136: 219 | AJ136: 220.1010068 | AK136: 629488.7591 | AL136: 1820 | AM136: 1829.149919 | AN136: =(AM136 / $AM$8) * 'National details'!$E$25 -> 950553.2624 | AO136: 400 | AP136: 402.0109713 | AQ136: =(AP136 / $AP$8) * 'National details'!$E$26 -> 525188.0328 | AR136: 499 | AS136: 501.5086867 | AT136: =(AS136/AS$8) *'National details'!$E$27 -> 674869.0084 | AU136: 20834882.3 | AV136: =INDEX('Baselines+historic spend factor'!$P$9:$P$158, MATCH($C136, 'Baselines+historic spend factor'!$C$9:$C$158, 0)) -> 23093115.87 | AW136: -2258233.563 | AX136: 2258233.563 | AY136: 0 | AZ136: =INDEX('Import|export adjustments data'!$Q$9:$Q$158, MATCH($C136, 'Import|export adjustments data'!$C$9:$C$158, 0)) -> -13 | BA136: -78000 | BB136: 25688488.82 | BC136: 0 | BD136: 0 | BE136: 25688488.82
A137: Telford and Wrekin | B137: WEST MIDLANDS | C137: 860 | D137: Staffordshire | E137: 1 | F137: 2489 | G137: =4000 * E137 -> 4000 | H137: =F137*G137 -> 9956000 | I137: =INDEX('Baselines+historic spend factor'!$Q$9:$Q$158, MATCH('HN NFF illustrative allocations'!$C137, 'Baselines+historic spend factor'!$C$9:$C$158, 0)) -> 29136762.58 | J137: 160477.06 | K137: =J137 * E137 -> 160477.06 | L137: 17686751.35 | M137: 11744 | N137: =M137 * E137 -> 11744 | O137: =(N137 /N$8) * O$8 -> 2524097.475 | P137: 16231 | Q137: =P137 * E137 -> 16231 | R137: =(Q137/Q$8)*R$8 -> 524783.8441 | S137: 12048 | T137: =S137 * E137 -> 12048 | U137: =(T137/T$8)*U$8 -> 507686.7781 | V137: 8934 | W137: =V137 * E137 -> 8934 | X137: =(W137/W$8)*X$8 -> 528348.3741 | Y137: 4482 | Z137: =Y137 * E137 -> 4482 | AA137: =(Z137/Z$8)*AA$8 -> 259751.1367 | AB137: 3340 | AC137: =AB137 * E137 -> 3340 | AD137: =(AC137/AC$8)*AD$8 -> 226172.7106 | AE137: 697 | AF137: =AE137 * E137 -> 697 | AG137: =(AF137/AF$8)*AG$8 -> 66938.52288 | AH137: =R137+U137+X137+AA137+AD137+AG137 -> 2113681.366 | AI137: 823 | AJ137: =AI137 * E137 -> 823 | AK137: =(AJ137/AJ$8)*AK$8 -> 2353779.55 | AL137: 4980 | AM137: =AL137 * E137 -> 4980 | AN137: =(AM137 / $AM$8) * 'National details'!$E$25 -> 2587953.67 | AO137: 2229 | AP137: =AO137 * E137 -> 2229 | AQ137: =(AP137 / $AP$8) * 'National details'!$E$26 -> 2911970.59 | AR137: 2039 | AS137: =AR137 * E137 -> 2039 | AT137: =(AS137/AS$8) *'National details'!$E$27 -> 2743836.637 | AU137: =I137+L137+O137+AH137+AK137+AN137+AQ137+AT137 -> 62058833.21 | AV137: =INDEX('Baselines+historic spend factor'!$P$9:$P$158, MATCH($C137, 'Baselines+historic spend factor'!$C$9:$C$158, 0)) -> 58273525.15 | AW137: =AU137-AV137 -> 3785308.06 | AX137: =MAX(0, -AW137) -> 0 | AY137: 422074 | AZ137: =INDEX('Import|export adjustments data'!$Q$9:$Q$158, MATCH($C137, 'Import|export adjustments data'!$C$9:$C$158, 0)) -> 156 | BA137: =AZ137 * 6000 -> 936000 | BB137: =H137+AU137+AX137+AY137+BA137 -> 73372907.21 | BC137: =MAX(AW137, 0) -> 3785308.06 | BD137: =MIN(BC137, 3% * AV137) -> 1748205.755 | BE137: =H137+AU137+AX137+AY137+BA137+(BD137-BC137) -> 71335804.91
A138: Thurrock | B138: WEST MIDLANDS | C138: 861 | D138: Stoke-on-Trent | E138: 1 | F138: 681 | G138: 4000 | H138: 2724000 | I138: =INDEX('Baselines+historic spend factor'!$Q$9:$Q$158, MATCH('HN NFF illustrative allocations'!$C138, 'Baselines+historic spend factor'!$C$9:$C$158, 0)) -> 13582725 | J138: 52509.901 | K138: 52509.901 | L138: 5787304.193 | M138: 8666 | N138: 8666 | O138: 1862553.535 | P138: 3909 | Q138: 3909 | R138: 126386.5471 | S138: 4775 | T138: 4775 | U138: 201212.1817 | V138: 7667 | W138: 7667 | X138: 453419.1834 | Y138: 7457 | Z138: 7457 | AA138: 432165.1554 | AB138: 5454 | AC138: 5454 | AD138: 369325.1388 | AE138: 5281 | AF138: 5281 | AG138: 507176.9574 | AH138: 2089685.164 | AI138: 361 | AJ138: 361 | AK138: 1032459.803 | AL138: 1870 | AM138: 1870 | AN138: =(AM138 / $AM$8) * 'National details'!$E$25 -> 971781.7999 | AO138: 899 | AP138: 899 | AQ138: =(AP138 / $AP$8) * 'National details'!$E$26 -> 1174455.612 | AR138: 898 | AS138: 898 | AT138: =(AS138/AS$8) *'National details'!$E$27 -> 1208418.489 | AU138: 27709383.6 | AV138: =INDEX('Baselines+historic spend factor'!$P$9:$P$158, MATCH($C138, 'Baselines+historic spend factor'!$C$9:$C$158, 0)) -> 27165450 | AW138: 543933.5964 | AX138: 0 | AY138: 182550 | AZ138: =INDEX('Import|export adjustments data'!$Q$9:$Q$158, MATCH($C138, 'Import|export adjustments data'!$C$9:$C$158, 0)) -> -184 | BA138: -1104000 | BB138: 29511933.6 | BC138: 543933.5964 | BD138: 543933.5964 | BE138: 29511933.6
A139: Torbay | B139: WEST MIDLANDS | C139: 894 | D139: Telford and Wrekin | E139: 1 | F139: 534 | G139: 4000 | H139: 2136000 | I139: =INDEX('Baselines+historic spend factor'!$Q$9:$Q$158, MATCH('HN NFF illustrative allocations'!$C139, 'Baselines+historic spend factor'!$C$9:$C$158, 0)) -> 8637202.317 | J139: 37049.493 | K139: 37049.493 | L139: 4083357.274 | M139: 4227 | N139: 4227 | O139: 908494.5526 | P139: 4709 | Q139: 4709 | R139: 152252.3025 | S139: 3035 | T139: 3035 | U139: 127890.8841 | V139: 4881 | W139: 4881 | X139: 288657.7584 | Y139: 2663 | Z139: 2663 | AA139: 154332.2796 | AB139: 1355 | AC139: 1355 | AD139: 91755.69547 | AE139: 3699 | AF139: 3699 | AG139: 355244.7577 | AH139: 1170133.678 | AI139: 248 | AJ139: 248 | AK139: 709279.8645 | AL139: 1500 | AM139: 1500 | AN139: =(AM139 / $AM$8) * 'National details'!$E$25 -> 779504.1175 | AO139: 519 | AP139: 519 | AQ139: =(AP139 / $AP$8) * 'National details'!$E$26 -> 678022.7618 | AR139: 581 | AS139: 581 | AT139: =(AS139/AS$8) *'National details'!$E$27 -> 781838.6885 | AU139: 17747833.25 | AV139: =INDEX('Baselines+historic spend factor'!$P$9:$P$158, MATCH($C139, 'Baselines+historic spend factor'!$C$9:$C$158, 0)) -> 17274404.63 | AW139: 473428.6194 | AX139: 0 | AY139: 52470 | AZ139: =INDEX('Import|export adjustments data'!$Q$9:$Q$158, MATCH($C139, 'Import|export adjustments data'!$C$9:$C$158, 0)) -> 6 | BA139: 36000 | BB139: 19972303.25 | BC139: 473428.6194 | BD139: 473428.6194 | BE139: 19972303.25
A140: Tower Hamlets | B140: WEST MIDLANDS | C140: 335 | D140: Walsall | E140: 1.005027428 | F140: 611 | G140: 4020.109713 | H140: 2456287.034 | I140: =INDEX('Baselines+historic spend factor'!$Q$9:$Q$158, MATCH('HN NFF illustrative allocations'!$C140, 'Baselines+historic spend factor'!$C$9:$C$158, 0)) -> 13341296.57 | J140: 62041.781 | K140: 62353.6916 | L140: 6872223.599 | M140: 9897 | N140: 9946.756457 | O140: 2137822.11 | P140: 5511 | Q140: 5538.706157 | R140: 179078.5231 | S140: 5103 | T140: 5128.654966 | U140: 216114.734 | V140: 8318 | W140: 8359.818147 | X140: 494391.7983 | Y140: 7915 | Z140: 7954.792094 | AA140: 461014.3437 | AB140: 10774 | AC140: 10828.16551 | AD140: 733244.175 | AE140: 3442 | AF140: 3459.304408 | AG140: 332224.8597 | AH140: 2416068.434 | AI140: 439 | AJ140: 441.207041 | AK140: 1261851.896 | AL140: 2180 | AM140: 2190.959793 | AN140: =(AM140 / $AM$8) * 'National details'!$E$25 -> 1138574.787 | AO140: 944 | AP140: 948.7458922 | AQ140: =(AP140 / $AP$8) * 'National details'!$E$26 -> 1239443.757 | AR140: 1123 | AS140: 1128.645802 | AT140: =(AS140/AS$8) *'National details'!$E$27 -> 1518793.38 | AU140: 29926074.53 | AV140: =INDEX('Baselines+historic spend factor'!$P$9:$P$158, MATCH($C140, 'Baselines+historic spend factor'!$C$9:$C$158, 0)) -> 26682593.13 | AW140: 3243481.397 | AX140: 0 | AY140: 0 | AZ140: =INDEX('Import|export adjustments data'!$Q$9:$Q$158, MATCH($C140, 'Import|export adjustments data'!$C$9:$C$158, 0)) -> -43.5 | BA140: -261000 | BB140: 32121361.56 | BC140: 3243481.397 | BD140: 800477.7939 | BE140: 29678357.96
A141: Trafford | B141: WEST MIDLANDS | C141: 937 | D141: Warwickshire | E141: 1.01042717 | F141: 1533 | G141: 4041.708681 | H141: 6195939.408 | I141: =INDEX('Baselines+historic spend factor'!$Q$9:$Q$158, MATCH('HN NFF illustrative allocations'!$C141, 'Baselines+historic spend factor'!$C$9:$C$158, 0)) -> 25368530.3 | J141: 107828.377 | K141: 108952.7218 | L141: 12008069.56 | M141: 6592 | N141: 6660.735906 | O141: 1431569.029 | P141: 12224 | Q141: 12351.46173 | R141: 399349.8593 | S141: 5789 | T141: 5849.362888 | U141: 246484.4122 | V141: 4047 | W141: 4089.198758 | X141: 241831.3762 | Y141: 0 | Z141: 0 | AA141: 0 | AB141: 1597 | AC141: 1613.652191 | AD141: 109270.6856 | AE141: 1395 | AF141: 1409.545902 | AG141: 135370.044 | AH141: 1132306.377 | AI141: 456 | AJ141: 460.7547896 | AK141: 1317758.447 | AL141: 3470 | AM141: 3506.182281 | AN141: =(AM141 / $AM$8) * 'National details'!$E$25 -> 1822055.683 | AO141: 1244 | AP141: 1256.9714 | AQ141: =(AP141 / $AP$8) * 'National details'!$E$26 -> 1642110.25 | AR141: 1073 | AS141: 1084.188354 | AT141: =(AS141/AS$8) *'National details'!$E$27 -> 1458967.987 | AU141: 46181367.63 | AV141: =INDEX('Baselines+historic spend factor'!$P$9:$P$158, MATCH($C141, 'Baselines+historic spend factor'!$C$9:$C$158, 0)) -> 50737060.59 | AW141: -4555692.959 | AX141: 4555692.959 | AY141: 100000 | AZ141: =INDEX('Import|export adjustments data'!$Q$9:$Q$158, MATCH($C141, 'Import|export adjustments data'!$C$9:$C$158, 0)) -> -119 | BA141: -714000 | BB141: 56319000 | BC141: 0 | BD141: 0 | BE141: 56319000
A142: Wakefield | B142: WEST MIDLANDS | C142: 336 | D142: Wolverhampton | E142: 1.005027428 | F142: 792 | G142: 4020.109713 | H142: 3183926.892 | I142: =INDEX('Baselines+historic spend factor'!$Q$9:$Q$158, MATCH('HN NFF illustrative allocations'!$C142, 'Baselines+historic spend factor'!$C$9:$C$158, 0)) -> 13375222.99 | J142: 55186.998 | K142: 55464.44667 | L142: 6112935.249 | M142: 8989 | N142: 9034.191552 | O142: 1941687.677 | P142: 5545 | Q142: 5572.877089 | R142: 180183.3443 | S142: 3173 | T142: 3188.95203 | U142: 134378.2189 | V142: 8122 | W142: 8162.832772 | X142: 482742.2681 | Y142: 9009 | Z142: 9054.2921 | AA142: 524735.0881 | AB142: 10763 | AC142: 10817.11021 | AD142: 732495.55 | AE142: 4389 | AF142: 4411.065382 | AG142: 423630.1306 | AH142: 2478164.6 | AI142: 392 | AJ142: 393.9707518 | AK142: 1126756.135 | AL142: 1790 | AM142: 1798.999096 | AN142: =(AM142 / $AM$8) * 'National details'!$E$25 -> 934884.8021 | AO142: 893 | AP142: 897.4894934 | AQ142: =(AP142 / $AP$8) * 'National details'!$E$26 -> 1172482.283 | AR142: 976 | AS142: 980.9067699 | AT142: =(AS142/AS$8) *'National details'!$E$27 -> 1319984.273 | AU142: 28462118.01 | AV142: =INDEX('Baselines+historic spend factor'!$P$9:$P$158, MATCH($C142, 'Baselines+historic spend factor'!$C$9:$C$158, 0)) -> 26750445.99 | AW142: 1711672.025 | AX142: 0 | AY142: 368000 | AZ142: =INDEX('Import|export adjustments data'!$Q$9:$Q$158, MATCH($C142, 'Import|export adjustments data'!$C$9:$C$158, 0)) -> 16 | BA142: 96000 | BB142: 32110044.91 | BC142: 1711672.025 | BD142: 802513.3797 | BE142: 31200886.26
A143: Walsall | B143: WEST MIDLANDS | C143: 885 | D143: Worcestershire | E143: 1 | F143: 1401 | G143: 4000 | H143: 5604000 | I143: =INDEX('Baselines+historic spend factor'!$Q$9:$Q$158, MATCH('HN NFF illustrative allocations'!$C143, 'Baselines+historic spend factor'!$C$9:$C$158, 0)) -> 20503752.53 | J143: 109434.998 | K143: 109434.998 | L143: 12061222.95 | M143: 8803 | N143: 8803 | O143: 1891998.473 | P143: 8628 | Q143: 8628 | R143: 278962.1716 | S143: 4680 | T143: 4680 | U143: 197209.0074 | V143: 5754 | W143: 5754 | X143: 340286.159 | Y143: 4287 | Z143: 4287 | AA143: 248450.0498 | AB143: 4279 | AC143: 4279 | AD143: 289758.3918 | AE143: 1652 | AF143: 1652 | AG143: 158654.8634 | AH143: 1513320.643 | AI143: 537 | AJ143: 537 | AK143: 1535819.707 | AL143: 3840 | AM143: 3840 | AN143: =(AM143 / $AM$8) * 'National details'!$E$25 -> 1995530.541 | AO143: 1581 | AP143: 1581 | AQ143: =(AP143 / $AP$8) * 'National details'!$E$26 -> 2065421.939 | AR143: 1469 | AS143: 1469 | AT143: =(AS143/AS$8) *'National details'!$E$27 -> 1976800.402 | AU143: 43543867.18 | AV143: =INDEX('Baselines+historic spend factor'!$P$9:$P$158, MATCH($C143, 'Baselines+historic spend factor'!$C$9:$C$158, 0)) -> 41007505.05 | AW143: 2536362.123 | AX143: 0 | AY143: 596270 | AZ143: =INDEX('Import|export adjustments data'!$Q$9:$Q$158, MATCH($C143, 'Import|export adjustments data'!$C$9:$C$158, 0)) -> -120.5 | BA143: -723000 | BB143: 49021137.18 | BC143: 2536362.123 | BD143: 1230225.152 | BE143: 47715000.21
A144: Waltham Forest | B144: YORKSHIRE AND THE HUMBER | C144: 370 | D144: Barnsley | E144: 1 | F144: 451 | G144: 4000 | H144: 1804000 | I144: =INDEX('Baselines+historic spend factor'!$Q$9:$Q$158, MATCH('HN NFF illustrative allocations'!$C144, 'Baselines+historic spend factor'!$C$9:$C$158, 0)) -> 9438971.117 | J144: 47416.194 | K144: 47416.194 | L144: 5225908.507 | M144: 6830 | N144: 6830 | O144: 1467948.378 | P144: 5463 | Q144: 5463 | R144: 176630.7769 | S144: 5391 | T144: 5391 | U144: 227169.6066 | V144: 4995 | W144: 4995 | X144: 295399.6114 | Y144: 2725 | Z144: 2725 | AA144: 157925.4457 | AB144: 7649 | AC144: 7649 | AD144: 517962.5939 | AE144: 1117 | AF144: 1117 | AG144: 107274.5051 | AH144: 1482362.54 | AI144: 308 | AJ144: 308 | AK144: 880879.8317 | AL144: 1970 | AM144: 1970 | AN144: =(AM144 / $AM$8) * 'National details'!$E$25 -> 1023748.741 | AO144: 798 | AP144: 798 | AQ144: =(AP144 / $AP$8) * 'National details'!$E$26 -> 1042508.986 | AR144: 803 | AS144: 803 | AT144: =(AS144/AS$8) *'National details'!$E$27 -> 1080579.117 | AU144: 21642907.22 | AV144: =INDEX('Baselines+historic spend factor'!$P$9:$P$158, MATCH($C144, 'Baselines+historic spend factor'!$C$9:$C$158, 0)) -> 18877942.23 | AW144: 2764964.984 | AX144: 0 | AY144: 100000 | AZ144: =INDEX('Import|export adjustments data'!$Q$9:$Q$158, MATCH($C144, 'Import|export adjustments data'!$C$9:$C$158, 0)) -> -9 | BA144: -54000 | BB144: 23492907.22 | BC144: 2764964.984 | BD144: 566338.267 | BE144: 21294280.5
A145: Wandsworth | B145: YORKSHIRE AND THE HUMBER | C145: 380 | D145: Bradford | E145: 1.000240483 | F145: 1047 | G145: 4000.961931 | H145: 4189007.141 | I145: =INDEX('Baselines+historic spend factor'!$Q$9:$Q$158, MATCH('HN NFF illustrative allocations'!$C145, 'Baselines+historic spend factor'!$C$9:$C$158, 0)) -> 26102335.58 | J145: 131574.522 | K145: 131606.1634 | L145: 14504786.46 | M145: 17933 | N145: 17937.31258 | O145: 3855204.817 | P145: 17061 | Q145: 17065.10287 | R145: 551752.2203 | S145: 21935 | T145: 21940.27499 | U145: 924534.1566 | V145: 17262 | W145: 17266.15121 | X145: 1021103.976 | Y145: 7937 | Z145: 7938.908711 | AA145: 460093.8335 | AB145: 15118 | AC145: 15121.63562 | AD145: 1023982.43 | AE145: 4224 | AF145: 4225.015799 | AG145: 405762.2908 | AH145: 4387228.907 | AI145: 1133 | AJ145: 1133.272467 | AK145: 3241158.636 | AL145: 4150 | AM145: 4150.998003 | AN145: =(AM145 / $AM$8) * 'National details'!$E$25 -> 2157146.69 | AO145: 2468 | AP145: 2468.593511 | AQ145: =(AP145 / $AP$8) * 'National details'!$E$26 -> 3224976.089 | AR145: 2145 | AS145: 2145.515835 | AT145: =(AS145/AS$8) *'National details'!$E$27 -> 2887172.611 | AU145: 60360009.79 | AV145: =INDEX('Baselines+historic spend factor'!$P$9:$P$158, MATCH($C145, 'Baselines+historic spend factor'!$C$9:$C$158, 0)) -> 52204671.16 | AW145: 8155338.632 | AX145: 0 | AY145: 1443368 | AZ145: =INDEX('Import|export adjustments data'!$Q$9:$Q$158, MATCH($C145, 'Import|export adjustments data'!$C$9:$C$158, 0)) -> -159 | BA145: -954000 | BB145: 65038384.94 | BC145: 8155338.632 | BD145: 1566140.135 | BE145: 58449186.44
A146: Warrington | B146: YORKSHIRE AND THE HUMBER | C146: 381 | D146: Calderdale | E146: 1.000240483 | F146: 313 | G146: 4000.961931 | H146: 1252301.084 | I146: =INDEX('Baselines+historic spend factor'!$Q$9:$Q$158, MATCH('HN NFF illustrative allocations'!$C146, 'Baselines+historic spend factor'!$C$9:$C$158, 0)) -> 7957621.73 | J146: 43469.102 | K146: 43479.55556 | L146: 4792037.491 | M146: 4876 | N146: 4877.172593 | O146: 1048233.909 | P146: 5463 | Q146: 5464.313757 | R146: 176673.2536 | S146: 3149 | T146: 3149.75728 | U146: 132726.604 | V146: 5281 | W146: 5282.269989 | X146: 312388.4889 | Y146: 2274 | Z146: 2274.546858 | AA146: 131819.7527 | AB146: 3187 | AC146: 3187.766418 | AD146: 215864.0035 | AE146: 1717 | AF146: 1717.412909 | AG146: 164936.9918 | AH146: 1134409.095 | AI146: 247 | AJ146: 247.0593992 | AK146: 706589.7468 | AL146: 1220 | AM146: 1220.293389 | AN146: =(AM146 / $AM$8) * 'National details'!$E$25 -> 634149.1475 | AO146: 538 | AP146: 538.1293797 | AQ146: =(AP146 / $AP$8) * 'National details'!$E$26 -> 703013.4262 | AR146: 441 | AS146: 441.1060528 | AT146: =(AS146/AS$8) *'National details'!$E$27 -> 593586.5368 | AU146: 17569641.08 | AV146: =INDEX('Baselines+historic spend factor'!$P$9:$P$158, MATCH($C146, 'Baselines+historic spend factor'!$C$9:$C$158, 0)) -> 15915243.46 | AW146: 1654397.622 | AX146: 0 | AY146: 0 | AZ146: =INDEX('Import|export adjustments data'!$Q$9:$Q$158, MATCH($C146, 'Import|export adjustments data'!$C$9:$C$158, 0)) -> -15 | BA146: -90000 | BB146: 18731942.17 | BC146: 1654397.622 | BD146: 477457.3038 | BE146: 17555001.85
A147: Warwickshire | B147: YORKSHIRE AND THE HUMBER | C147: 371 | D147: Doncaster | E147: 1 | F147: 594 | G147: 4000 | H147: 2376000 | I147: =INDEX('Baselines+historic spend factor'!$Q$9:$Q$158, MATCH('HN NFF illustrative allocations'!$C147, 'Baselines+historic spend factor'!$C$9:$C$158, 0)) -> 13098717.59 | J147: 61347.592 | K147: 61347.592 | L147: 6761337.76 | M147: 7713 | N147: 7713 | O147: 1657728.527 | P147: 8578 | Q147: 8578 | R147: 277345.5619 | S147: 2636 | T147: 2636 | U147: 111077.552 | V147: 10016 | W147: 10016 | X147: 592336.8385 | Y147: 4715 | Z147: 4715 | AA147: 273254.4867 | AB147: 8270 | AC147: 8270 | AD147: 560014.4661 | AE147: 1918 | AF147: 1918 | AG147: 184200.9855 | AH147: 1998229.891 | AI147: 372 | AJ147: 372 | AK147: 1063919.797 | AL147: 2140 | AM147: 2140 | AN147: =(AM147 / $AM$8) * 'National details'!$E$25 -> 1112092.541 | AO147: 959 | AP147: 959 | AQ147: =(AP147 / $AP$8) * 'National details'!$E$26 -> 1252839.747 | AR147: 933 | AS147: 933 | AT147: =(AS147/AS$8) *'National details'!$E$27 -> 1255517.206 | AU147: 28200383.06 | AV147: =INDEX('Baselines+historic spend factor'!$P$9:$P$158, MATCH($C147, 'Baselines+historic spend factor'!$C$9:$C$158, 0)) -> 26197435.18 | AW147: 2002947.877 | AX147: 0 | AY147: 256000 | AZ147: =INDEX('Import|export adjustments data'!$Q$9:$Q$158, MATCH($C147, 'Import|export adjustments data'!$C$9:$C$158, 0)) -> -81 | BA147: -486000 | BB147: 30346383.06 | BC147: 2002947.877 | BD147: 785923.0555 | BE147: 29129358.24
A148: West Berkshire | B148: YORKSHIRE AND THE HUMBER | C148: 811 | D148: East Riding of Yorkshire | E148: 1 | F148: 353 | G148: 4000 | H148: 1412000 | I148: =INDEX('Baselines+historic spend factor'!$Q$9:$Q$158, MATCH('HN NFF illustrative allocations'!$C148, 'Baselines+historic spend factor'!$C$9:$C$158, 0)) -> 9591000 | J148: 60607.031 | K148: 60607.031 | L148: 6679717.881 | M148: 4816 | N148: 4816 | O148: 1035086.294 | P148: 5546 | Q148: 5546 | R148: 179314.3491 | S148: 2341 | T148: 2341 | U148: 98646.64239 | V148: 1922 | W148: 1922 | X148: 113665.2759 | Y148: 1984 | Z148: 1984 | AA148: 114981.3153 | AB148: 1417 | AC148: 1417 | AD148: 95954.11106 | AE148: 219 | AF148: 219 | AG148: 21032.33359 | AH148: 623594.0273 | AI148: 254 | AJ148: 254 | AK148: 726439.8612 | AL148: 1530 | AM148: 1530 | AN148: =(AM148 / $AM$8) * 'National details'!$E$25 -> 795094.1999 | AO148: 694 | AP148: 694 | AQ148: =(AP148 / $AP$8) * 'National details'!$E$26 -> 906643.1536 | AR148: 701 | AS148: 701 | AT148: =(AS148/AS$8) *'National details'!$E$27 -> 943320.0012 | AU148: 21300895.42 | AV148: =INDEX('Baselines+historic spend factor'!$P$9:$P$158, MATCH($C148, 'Baselines+historic spend factor'!$C$9:$C$158, 0)) -> 19182000 | AW148: 2118895.418 | AX148: 0 | AY148: 0 | AZ148: =INDEX('Import|export adjustments data'!$Q$9:$Q$158, MATCH($C148, 'Import|export adjustments data'!$C$9:$C$158, 0)) -> -66 | BA148: -396000 | BB148: 22316895.42 | BC148: 2118895.418 | BD148: 575460 | BE148: 20773460
A149: West Sussex | B149: YORKSHIRE AND THE HUMBER | C149: 810 | D149: Kingston Upon Hull, City of | E149: 1 | F149: 583 | G149: 4000 | H149: 2332000 | I149: =INDEX('Baselines+historic spend factor'!$Q$9:$Q$158, MATCH('HN NFF illustrative allocations'!$C149, 'Baselines+historic spend factor'!$C$9:$C$158, 0)) -> 11856000 | J149: 52039.491 | K149: 52039.491 | L149: 5735458.623 | M149: 9225 | N149: 9225 | O149: 1982697.48 | P149: 3516 | Q149: 3516 | R149: 113679.9948 | S149: 3336 | T149: 3336 | U149: 140574.6258 | V149: 3453 | W149: 3453 | X149: 204207.1788 | Y149: 3550 | Z149: 3550 | AA149: 205737.7366 | AB149: 9380 | AC149: 9380 | AD149: 635179.6484 | AE149: 12776 | AF149: 12776 | AG149: 1226982.164 | AH149: 2526361.348 | AI149: 355 | AJ149: 355 | AK149: 1015299.806 | AL149: 1870 | AM149: 1870 | AN149: =(AM149 / $AM$8) * 'National details'!$E$25 -> 971781.7999 | AO149: 884 | AP149: 884 | AQ149: =(AP149 / $AP$8) * 'National details'!$E$26 -> 1154859.579 | AR149: 823 | AS149: 823 | AT149: =(AS149/AS$8) *'National details'!$E$27 -> 1107492.669 | AU149: 26349951.3 | AV149: =INDEX('Baselines+historic spend factor'!$P$9:$P$158, MATCH($C149, 'Baselines+historic spend factor'!$C$9:$C$158, 0)) -> 23712000 | AW149: 2637951.305 | AX149: 0 | AY149: 348000 | AZ149: =INDEX('Import|export adjustments data'!$Q$9:$Q$158, MATCH($C149, 'Import|export adjustments data'!$C$9:$C$158, 0)) -> 18 | BA149: 108000 | BB149: 29137951.3 | BC149: 2637951.305 | BD149: 711360 | BE149: 27211360
A150: Westminster | B150: YORKSHIRE AND THE HUMBER | C150: 382 | D150: Kirklees | E150: 1.000240483 | F150: 719 | G150: 4000.961931 | H150: 2876691.628 | I150: =INDEX('Baselines+historic spend factor'!$Q$9:$Q$158, MATCH('HN NFF illustrative allocations'!$C150, 'Baselines+historic spend factor'!$C$9:$C$158, 0)) -> 14942402.24 | J150: 94135.215 | K150: 94157.85289 | L150: 10377474.08 | M150: 12758 | N150: 12761.06808 | O150: 2742692.414 | P150: 14443 | Q150: 14446.47329 | R150: 467086.18 | S150: 8691 | T150: 8693.090035 | U150: 366315.3114 | V150: 5342 | W150: 5343.284658 | X150: 315996.8392 | Y150: 4632 | Z150: 4633.113916 | AA150: 268508.8367 | AB150: 4712 | AC150: 4713.133154 | AD150: 319156.3177 | AE150: 896 | AF150: 896.2154724 | AG150: 86070.78896 | AH150: 1823134.274 | AI150: 604 | AJ150: 604.1452515 | AK150: 1727855.089 | AL150: 2360 | AM150: 2360.567539 | AN150: =(AM150 / $AM$8) * 'National details'!$E$25 -> 1226714.744 | AO150: 1379 | AP150: 1379.331626 | AQ150: =(AP150 / $AP$8) * 'National details'!$E$26 -> 1801961.923 | AR150: 895 | AS150: 895.215232 | AT150: =(AS150/AS$8) *'National details'!$E$27 -> 1204671.089 | AU150: 35846905.85 | AV150: =INDEX('Baselines+historic spend factor'!$P$9:$P$158, MATCH($C150, 'Baselines+historic spend factor'!$C$9:$C$158, 0)) -> 29884804.47 | AW150: 5962101.383 | AX150: 0 | AY150: 0 | AZ150: =INDEX('Import|export adjustments data'!$Q$9:$Q$158, MATCH($C150, 'Import|export adjustments data'!$C$9:$C$158, 0)) -> -25 | BA150: -150000 | BB150: 38573597.48 | BC150: 5962101.383 | BD150: 896544.1342 | BE150: 33508040.23
A151: Wigan | B151: YORKSHIRE AND THE HUMBER | C151: 383 | D151: Leeds | E151: 1.000240483 | F151: 1107 | G151: 4000.961931 | H151: 4429064.857 | I151: =INDEX('Baselines+historic spend factor'!$Q$9:$Q$158, MATCH('HN NFF illustrative allocations'!$C151, 'Baselines+historic spend factor'!$C$9:$C$158, 0)) -> 27460451.02 | J151: 155975.285 | K151: 156012.7943 | L151: 17194728.65 | M151: 19113 | N151: 19117.59634 | O151: 4108879.143 | P151: 9845 | Q151: 9847.367552 | R151: 318387.0001 | S151: 15525 | T151: 15528.73349 | U151: 654360.2818 | V151: 8520 | W151: 8522.048912 | X151: 503985.9734 | Y151: 10086 | Z151: 10088.42551 | AA151: 584667.5576 | AB151: 21359 | AC151: 21364.13647 | AD151: 1446701.993 | AE151: 8411 | AF151: 8413.0227 | AG151: 807970.3192 | AH151: 4316073.125 | AI151: 827 | AJ151: 827.1988791 | AK151: 2365788.342 | AL151: 3910 | AM151: 3910.940287 | AN151: =(AM151 / $AM$8) * 'National details'!$E$25 -> 2032396.038 | AO151: 2300 | AP151: 2300.55311 | AQ151: =(AP151 / $AP$8) * 'National details'!$E$26 -> 3005447.733 | AR151: 2435 | AS151: 2435.585575 | AT151: =(AS151/AS$8) *'National details'!$E$27 -> 3277512.964 | AU151: 63761277.01 | AV151: =INDEX('Baselines+historic spend factor'!$P$9:$P$158, MATCH($C151, 'Baselines+historic spend factor'!$C$9:$C$158, 0)) -> 54920902.05 | AW151: 8840374.967 | AX151: 0 | AY151: 785090 | AZ151: =INDEX('Import|export adjustments data'!$Q$9:$Q$158, MATCH($C151, 'Import|export adjustments data'!$C$9:$C$158, 0)) -> -29 | BA151: -174000 | BB151: 68801431.87 | BC151: 8840374.967 | BD151: 1647627.061 | BE151: 61608683.97
A152: Wiltshire | B152: YORKSHIRE AND THE HUMBER | C152: 812 | D152: North East Lincolnshire | E152: 1 | F152: 308 | G152: 4000 | H152: 1232000 | I152: =INDEX('Baselines+historic spend factor'!$Q$9:$Q$158, MATCH('HN NFF illustrative allocations'!$C152, 'Baselines+historic spend factor'!$C$9:$C$158, 0)) -> 7731000 | J152: 32284.743 | K152: 32284.743 | L152: 3558217.117 | M152: 3917 | N152: 3917 | O152: 841867.3202 | P152: 3178 | Q152: 3178 | R152: 102751.7132 | S152: 1501 | T152: 1501 | U152: 63250.15388 | V152: 2265 | W152: 2265 | X152: 133949.974 | Y152: 2516 | Z152: 2516 | AA152: 145812.9986 | AB152: 4471 | AC152: 4471 | AD152: 302759.9369 | AE152: 5418 | AF152: 5418 | AG152: 520334.1707 | AH152: 1268858.947 | AI152: 237 | AJ152: 237 | AK152: 677819.8705 | AL152: 1100 | AM152: 1100 | AN152: =(AM152 / $AM$8) * 'National details'!$E$25 -> 571636.3529 | AO152: 601 | AP152: 601 | AQ152: =(AP152 / $AP$8) * 'National details'!$E$26 -> 785147.7454 | AR152: 617 | AS152: 617 | AT152: =(AS152/AS$8) *'National details'!$E$27 -> 830283.0823 | AU152: 16264830.44 | AV152: =INDEX('Baselines+historic spend factor'!$P$9:$P$158, MATCH($C152, 'Baselines+historic spend factor'!$C$9:$C$158, 0)) -> 15462000 | AW152: 802830.4352 | AX152: 0 | AY152: 0 | AZ152: =INDEX('Import|export adjustments data'!$Q$9:$Q$158, MATCH($C152, 'Import|export adjustments data'!$C$9:$C$158, 0)) -> 23 | BA152: 138000 | BB152: 17634830.44 | BC152: 802830.4352 | BD152: 463860 | BE152: 17295860
A153: Windsor and Maidenhead | B153: YORKSHIRE AND THE HUMBER | C153: 813 | D153: North Lincolnshire | E153: 1 | F153: 335 | G153: 4000 | H153: 1340000 | I153: =INDEX('Baselines+historic spend factor'!$Q$9:$Q$158, MATCH('HN NFF illustrative allocations'!$C153, 'Baselines+historic spend factor'!$C$9:$C$158, 0)) -> 7033890.125 | J153: 33490.388 | K153: 33490.388 | L153: 3691095.569 | M153: 3303 | N153: 3303 | O153: 709902.4148 | P153: 3304 | Q153: 3304 | R153: 106825.5697 | S153: 3272 | T153: 3272 | U153: 137877.7505 | V153: 1080 | W153: 1080 | X153: 63870.18626 | Y153: 1669 | Z153: 1669 | AA153: 96725.71333 | AB153: 2371 | AC153: 2371 | AD153: 160555.538 | AE153: 1769 | AF153: 1769 | AG153: 169891.3156 | AH153: 735746.0733 | AI153: 191 | AJ153: 191 | AK153: 546259.8956 | AL153: 1040 | AM153: 1040 | AN153: =(AM153 / $AM$8) * 'National details'!$E$25 -> 540456.1882 | AO153: 575 | AP153: 575 | AQ153: =(AP153 / $AP$8) * 'National details'!$E$26 -> 751181.2872 | AR153: 507 | AS153: 507 | AT153: =(AS153/AS$8) *'National details'!$E$27 -> 682258.5458 | AU153: 14690790.1 | AV153: =INDEX('Baselines+historic spend factor'!$P$9:$P$158, MATCH($C153, 'Baselines+historic spend factor'!$C$9:$C$158, 0)) -> 14067780.25 | AW153: 623009.8488 | AX153: 0 | AY153: 0 | AZ153: =INDEX('Import|export adjustments data'!$Q$9:$Q$158, MATCH($C153, 'Import|export adjustments data'!$C$9:$C$158, 0)) -> -23 | BA153: -138000 | BB153: 15892790.1 | BC153: 623009.8488 | BD153: 422033.4075 | BE153: 15691813.66
A154: Wirral | B154: YORKSHIRE AND THE HUMBER | C154: 815 | D154: North Yorkshire | E154: 1 | F154: 782 | G154: 4000 | H154: 3128000 | I154: =INDEX('Baselines+historic spend factor'!$Q$9:$Q$158, MATCH('HN NFF illustrative allocations'!$C154, 'Baselines+historic spend factor'!$C$9:$C$158, 0)) -> 22094189.75 | J154: 111542.965 | K154: 111542.965 | L154: 12293549.54 | M154: 5805 | N154: 5805 | O154: 1247648.658 | P154: 7550 | Q154: 7550 | R154: 244108.0663 | S154: 2999 | T154: 2999 | U154: 126373.8917 | V154: 3186 | W154: 3186 | X154: 188417.0495 | Y154: 1216 | Z154: 1216 | AA154: 70472.41906 | AB154: 960 | AC154: 960 | AD154: 65007.72521 | AE154: 1597 | AF154: 1597 | AG154: 153372.7705 | AH154: 847751.9222 | AI154: 413 | AJ154: 413 | AK154: 1181179.774 | AL154: 2860 | AM154: 2860 | AN154: =(AM154 / $AM$8) * 'National details'!$E$25 -> 1486254.517 | AO154: 1488 | AP154: 1488 | AQ154: =(AP154 / $AP$8) * 'National details'!$E$26 -> 1943926.531 | AR154: 1160 | AS154: 1160 | AT154: =(AS154/AS$8) *'National details'!$E$27 -> 1560986.022 | AU154: 42655486.71 | AV154: =INDEX('Baselines+historic spend factor'!$P$9:$P$158, MATCH($C154, 'Baselines+historic spend factor'!$C$9:$C$158, 0)) -> 44188379.49 | AW154: -1532892.786 | AX154: 1532892.786 | AY154: 101624 | AZ154: =INDEX('Import|export adjustments data'!$Q$9:$Q$158, MATCH($C154, 'Import|export adjustments data'!$C$9:$C$158, 0)) -> -79 | BA154: -474000 | BB154: 46944003.49 | BC154: 0 | BD154: 0 | BE154: 46944003.49
A155: Wokingham | B155: YORKSHIRE AND THE HUMBER | C155: 372 | D155: Rotherham | E155: 1 | F155: 649 | G155: 4000 | H155: 2596000 | I155: =INDEX('Baselines+historic spend factor'!$Q$9:$Q$158, MATCH('HN NFF illustrative allocations'!$C155, 'Baselines+historic spend factor'!$C$9:$C$158, 0)) -> 11079822.03 | J155: 53508.732 | K155: 53508.732 | L155: 5897388.934 | M155: 6672 | N155: 6672 | O155: 1433989.982 | P155: 6711 | Q155: 6711 | R155: 216981.3553 | S155: 6256 | T155: 6256 | U155: 263619.5621 | V155: 4363 | W155: 4363 | X155: 258023.7247 | Y155: 4690 | Z155: 4690 | AA155: 271805.6294 | AB155: 3580 | AC155: 3580 | AD155: 242424.6419 | AE155: 4012 | AF155: 4012 | AG155: 385304.6683 | AH155: 1638159.582 | AI155: 413 | AJ155: 413 | AK155: 1181179.774 | AL155: 2470 | AM155: 2470 | AN155: =(AM155 / $AM$8) * 'National details'!$E$25 -> 1283583.447 | AO155: 1064 | AP155: 1064 | AQ155: =(AP155 / $AP$8) * 'National details'!$E$26 -> 1390011.982 | AR155: 859 | AS155: 859 | AT155: =(AS155/AS$8) *'National details'!$E$27 -> 1155937.063 | AU155: 25060072.79 | AV155: =INDEX('Baselines+historic spend factor'!$P$9:$P$158, MATCH($C155, 'Baselines+historic spend factor'!$C$9:$C$158, 0)) -> 22159644.06 | AW155: 2900428.732 | AX155: 0 | AY155: 0 | AZ155: =INDEX('Import|export adjustments data'!$Q$9:$Q$158, MATCH($C155, 'Import|export adjustments data'!$C$9:$C$158, 0)) -> 31 | BA155: 186000 | BB155: 27842072.79 | BC155: 2900428.732 | BD155: 664789.3219 | BE155: 25606433.38
A156: Wolverhampton | B156: YORKSHIRE AND THE HUMBER | C156: 373 | D156: Sheffield | E156: 1 | F156: 1077 | G156: 4000 | H156: 4308000 | I156: =INDEX('Baselines+historic spend factor'!$Q$9:$Q$158, MATCH('HN NFF illustrative allocations'!$C156, 'Baselines+historic spend factor'!$C$9:$C$158, 0)) -> 22627500.03 | J156: 111121.635 | K156: 111121.635 | L156: 12247113.25 | M156: 15071 | N156: 15071 | O156: 3239158.127 | P156: 7685 | Q156: 7685 | R156: 248472.9125 | S156: 8338 | T156: 8338 | U156: 351352.2872 | V156: 6994 | W156: 6994 | X156: 413618.5951 | Y156: 12183 | Z156: 12183 | AA156: 706057.1393 | AB156: 18108 | AC156: 18108 | AD156: 1226208.217 | AE156: 4354 | AF156: 4354 | AG156: 418149.6824 | AH156: 3363858.833 | AI156: 828 | AJ156: 828 | AK156: 2368079.548 | AL156: 5130 | AM156: 5130 | AN156: =(AM156 / $AM$8) * 'National details'!$E$25 -> 2665904.082 | AO156: 2050 | AP156: 2050 | AQ156: =(AP156 / $AP$8) * 'National details'!$E$26 -> 2678124.589 | AR156: 1966 | AS156: 1966 | AT156: =(AS156/AS$8) *'National details'!$E$27 -> 2645602.172 | AU156: 51835340.63 | AV156: =INDEX('Baselines+historic spend factor'!$P$9:$P$158, MATCH($C156, 'Baselines+historic spend factor'!$C$9:$C$158, 0)) -> 45255000.07 | AW156: 6580340.565 | AX156: 0 | AY156: 1561975 | AZ156: =INDEX('Import|export adjustments data'!$Q$9:$Q$158, MATCH($C156, 'Import|export adjustments data'!$C$9:$C$158, 0)) -> -66 | BA156: -396000 | BB156: 57309315.63 | BC156: 6580340.565 | BD156: 1357650.002 | BE156: 52086625.07
A157: Worcestershire | B157: YORKSHIRE AND THE HUMBER | C157: 384 | D157: Wakefield | E157: 1.000240483 | F157: 467 | G157: 4000.961931 | H157: 1868449.222 | I157: =INDEX('Baselines+historic spend factor'!$Q$9:$Q$158, MATCH('HN NFF illustrative allocations'!$C157, 'Baselines+historic spend factor'!$C$9:$C$158, 0)) -> 11740871.39 | J157: 66078.198 | K157: 66094.08866 | L157: 7284466.151 | M157: 6823 | N157: 6824.640813 | O157: 1466796.547 | P157: 7562 | Q157: 7563.81853 | R157: 244554.8496 | S157: 8101 | T157: 8102.94815 | U157: 341447.5132 | V157: 4783 | W157: 4784.150228 | X157: 282930.1539 | Y157: 5314 | Z157: 5315.277925 | AA157: 308043.1689 | AB157: 5483 | AC157: 5484.318566 | AD157: 371378.2024 | AE157: 2062 | AF157: 2062.495875 | AG157: 198078.088 | AH157: 1746431.976 | AI157: 364 | AJ157: 364.0875357 | AK157: 1041290.153 | AL157: 2490 | AM157: 2490.598802 | AN157: =(AM157 / $AM$8) * 'National details'!$E$25 -> 1294288.014 | AO157: 1197 | AP157: 1197.287858 | AQ157: =(AP157 / $AP$8) * 'National details'!$E$26 -> 1564139.538 | AR157: 976 | AS157: 976.2347111 | AT157: =(AS157/AS$8) *'National details'!$E$27 -> 1313697.188 | AU157: 27451980.95 | AV157: =INDEX('Baselines+historic spend factor'!$P$9:$P$158, MATCH($C157, 'Baselines+historic spend factor'!$C$9:$C$158, 0)) -> 23481742.78 | AW157: 3970238.178 | AX157: 0 | AY157: 681878 | AZ157: =INDEX('Import|export adjustments data'!$Q$9:$Q$158, MATCH($C157, 'Import|export adjustments data'!$C$9:$C$158, 0)) -> -18 | BA157: -108000 | BB157: 29894308.18 | BC157: 3970238.178 | BD157: 704452.2833 | BE157: 26628522.28
A158: York | B158: YORKSHIRE AND THE HUMBER | C158: 816 | D158: York | E158: 1 | F158: 245 | G158: 4000 | H158: 980000 | I158: =INDEX('Baselines+historic spend factor'!$Q$9:$Q$158, MATCH('HN NFF illustrative allocations'!$C158, 'Baselines+historic spend factor'!$C$9:$C$158, 0)) -> 7778804.009 | J158: 35901.843 | K158: 35901.843 | L158: =(K158 /$K$8) * L$8 -> 3956870.658 | M158: 2007 | N158: 2007 | O158: 431357.5981 | P158: 3379 | Q158: 3379 | R158: 109250.4842 | S158: 625 | T158: 625 | U158: 26336.673 | V158: 1525 | W158: 1525 | X158: 90187.06856 | Y158: 1186 | Z158: 1186 | AA158: 68733.7903 | AB158: 899 | AC158: 899 | AD158: 60877.026 | AE158: 0 | AF158: 0 | AG158: 0 | AH158: 355385.0421 | AI158: 139 | AJ158: 139 | AK158: 397539.9241 | AL158: 720 | AM158: 720 | AN158: =(AM158 / $AM$8) * 'National details'!$E$25 -> 374161.9764 | AO158: 419 | AP158: 419 | AQ158: =(AP158 / $AP$8) * 'National details'!$E$26 -> 547382.538 | AR158: 222 | AS158: 222 | AT158: =(AS158/AS$8) *'National details'!$E$27 -> 298740.4283 | AU158: 14140242.17 | AV158: =INDEX('Baselines+historic spend factor'!$P$9:$P$158, MATCH($C158, 'Baselines+historic spend factor'!$C$9:$C$158, 0)) -> 15557608.02 | AW158: -1417365.844 | AX158: 1417365.844 | AY158: 216225 | AZ158: =INDEX('Import|export adjustments data'!$Q$9:$Q$158, MATCH($C158, 'Import|export adjustments data'!$C$9:$C$158, 0)) -> 134 | BA158: 804000 | BB158: 17557833.02 | BC158: 0 | BD158: 0 | BE158: 17557833.02

Sheet Individual LA
B1: =MATCH(F4,'HN NFF illustrative allocations'!C:C,0) -> 77
C2: Select LA name (drop-down) | F2: Barking and Dagenham | H2: Area cost adjustment ('ACA')
C3: Region | F3: =INDEX('HN NFF illustrative allocations'!$B$9:$B$158, MATCH(F2,'HN NFF illustrative allocations'!$D$9:$D$158,0)) -> OUTER LONDON | H3: =INDEX('HN NFF illustrative allocations'!E:E,B1) -> 1.123376795
C4: LA code | F4: =INDEX('HN NFF illustrative allocations'!$C$9:$C$158, MATCH(F2,'HN NFF illustrative allocations'!$D$9:$D$158,0)) -> 301
C6: =HYPERLINK("#"& CELL("address",C22),C22 &" ("&100*ROUND(F6/$F$17,2)&"%)") -> (A) Basic entitlement factor (5%) | F6: =INDEX('HN NFF illustrative allocations'!H:H,$B$1) -> 1464883.341 | K6: ="Formula split for " & F2 -> Formula split for Barking and Dagenham
C7: =HYPERLINK("#"& CELL("address",C26),C26 & " (" & 100*ROUND(F7/$F$17, 2) & "%)") -> (B) Historic spend factor (40%) | F7: =INDEX('HN NFF illustrative allocations'!I:I,$B$1) -> 11894872.4 | N7: Average LA formula split
C8: =HYPERLINK("#"& CELL("address",C37),C37 & " (" & 100*ROUND(F8/$F$17, 2) & "%)") -> (C) Population factor (24%) | F8: =INDEX('HN NFF illustrative allocations'!L:L,$B$1) -> 7361485.209 | N8: (A) Basic entitlement factor | Q8: =N8 &" (" & 100*ROUND(R8,2)&"%)" -> (A) Basic entitlement factor (8%) | R8: ='HN NFF illustrative allocations'!H$8/'HN NFF illustrative allocations'!$BB$8 -> 0.08161683892
C9: =HYPERLINK("#"& CELL("address",C45),C45 & " (" & 100*ROUND(F9/$F$17, 2) & "%)") -> (D) FSM factor (7%) | F9: =INDEX('HN NFF illustrative allocations'!O:O,$B$1) -> 1959072.606 | N9: (B) historic factor | Q9: =N9 &" (" & 100*ROUND(R9,2)&"%)" -> (B) historic factor (44%) | R9: ='HN NFF illustrative allocations'!I$8/'HN NFF illustrative allocations'!$BB$8 -> 0.4400185521
C10: =HYPERLINK("#"& CELL("address",C101),C101 & " (" & 100*ROUND(F10/$F$17, 2) & "%)") -> (E) IDACI factor (10%) | F10: =INDEX('HN NFF illustrative allocations'!AH:AH,$B$1) -> 2955391.098 | N10: (C) population factor | Q10: (C) population factor (22%) | R10: ='HN NFF illustrative allocations'!L$8/'HN NFF illustrative allocations'!$BB$8 -> 0.2199298595
C11: =HYPERLINK("#"& CELL("address",C103),C103 & " (" & 100*ROUND(F11/$F$17, 2) & "%)") -> (F) Bad health factor (4%) | F11: =INDEX('HN NFF illustrative allocations'!AK:AK,$B$1) -> 1342974.234 | N11: (D) FSM factor | Q11: (D) FSM factor (4%) | R11: ='HN NFF illustrative allocations'!O$8/'HN NFF illustrative allocations'!$BB$8 -> 0.0439859719
C12: =HYPERLINK("#"& CELL("address",C111),C111 & " (" & 100*ROUND(F12/$F$17, 2) & "%)") -> (G) Disability factor (3%) | F12: =INDEX('HN NFF illustrative allocations'!AN:AN,$B$1) -> 992433.749 | N12: (E) IDACI factor | Q12: (E) IDACI factor (4%) | R12: ='HN NFF illustrative allocations'!AH$8/'HN NFF illustrative allocations'!$BB$8 -> 0.0439859719
C13: =HYPERLINK("#"& CELL("address",C119),C119 & " (" & 100*ROUND(F13/$F$17, 2) & "%)") -> (H) KS2 low attainment factor (4%) | F13: =INDEX('HN NFF illustrative allocations'!AQ:AQ,$B$1) -> 1074269.995 | N13: (F) Bad health factor | Q13: (F) Bad health factor (3%) | R13: ='HN NFF illustrative allocations'!AK$8/'HN NFF illustrative allocations'!$BB$8 -> 0.03298947893
C14: =HYPERLINK("#"& CELL("address",C127),C127 & " (" & 100*ROUND(F14/$F$17, 2) & "%)") -> (I) KS4 low attainment factor (3%) | F14: =INDEX('HN NFF illustrative allocations'!AT:AT,$B$1) -> 888881.3612 | N14: (G) Disability factor | Q14: (G) Disability factor (3%) | R14: ='HN NFF illustrative allocations'!AN$8/'HN NFF illustrative allocations'!$BB$8 -> 0.03298947893
C15: =HYPERLINK("#"& CELL("address",C137),C137 & " (" & 100*ROUND(F15/$F$17, 2) & "%)") -> (J) Funding floor factor (0%) | F15: =INDEX('HN NFF illustrative allocations'!AX:AX,$B$1) -> 0 | N15: (H) KS2 factor | Q15: (H) KS2 factor (3%) | R15: ='HN NFF illustrative allocations'!AQ$8/'HN NFF illustrative allocations'!$BB$8 -> 0.03298947893
C16: =HYPERLINK("#"& CELL("address",C141),C141 & " (" & 100*ROUND(F16/$F$17, 2) & "%)") -> (K) Hospital education funding (1%) | F16: =INDEX('HN NFF illustrative allocations'!AY:AY,$B$1) -> 157680 | N16: (I) KS4 factor | Q16: (I) KS4 factor (3%) | R16: ='HN NFF illustrative allocations'!AT$8/'HN NFF illustrative allocations'!$BB$8 -> 0.03298947893
C17: =HYPERLINK("#"& CELL("address",C143),C143 & " (" & 100*ROUND(F17/$F$17, 2) & "%)") -> NFF allocation before import/export adjustment (100%) | F17: =SUM(F6:F16) -> 30091944 | N17: (J) Funding floor factor | Q17: (J) Funding floor factor (3%) | R17: =SUM('HN NFF illustrative allocations'!$AX$9:$AX$158)/'HN NFF illustrative allocations'!$BB$8 -> 0.03296896648
C18: =HYPERLINK("#"& CELL("address",C145),C145 & " (" & 100*ROUND(F18/$F$17, 2) & "%)") -> (L) Import/export adjustment (1%) | F18: =INDEX('HN NFF illustrative allocations'!BA:BA,$B$1) -> 261000 | N18: (K) Hospital education Funding | Q18: (K) Hospital education Funding (1%) | R18: ='HN NFF illustrative allocations'!$AY$8/'HN NFF illustrative allocations'!$BB$8 -> 0.012542535
C19: =HYPERLINK("#"& CELL("address",C153),C153) -> Illustrative high needs NFF final allocation | F19: =SUM(F17:F18) -> 30352944
C20: =HYPERLINK("#"& CELL("address",C155),C155) -> Illustrative high needs NFF year 1 allocation | F20: =INDEX('HN NFF illustrative allocations'!BE:BE,$B$1) -> 26387000.49
C22: (A) Basic entitlement factor | F22: Number of pupils in special schools/academies | G22: x | H22: Basic entitlement unit rate | I22: x | K22: ACA | L22: = | M22: (A) Basic entitlement factor
F24: =INDEX('HN NFF illustrative allocations'!F:F,B1) -> 326 | G24: x | H24: 4000 | I24: x | K24: =$H$3 -> 1.123376795 | L24: = | M24: =F24*H24*K24 -> 1464883.341
C26: (B) Historic spend factor | F26: (B)[i] Published LA baseline after adjustments | M26: =INDEX('Baselines+historic spend factor'!$F$9:$F$158, MATCH('Individual LA'!$F$4, 'HN NFF illustrative allocations'!$C$9:$C$158, 0)) -> 27075351.31
F27: (B)[ii] Schools block transfer | M27: =-INDEX('Baselines+historic spend factor'!$G$9:$G$158, MATCH('Individual LA'!$F$4, 'HN NFF illustrative allocations'!$C$9:$C$158, 0)) -> -1402043.166
F28: (B)[iii] Baseline year basic entitlement | M28: =-INDEX('Baselines+historic spend factor'!$J$9:$J$158, MATCH('Individual LA'!$F$4, 'HN NFF illustrative allocations'!$C$9:$C$158, 0)) -> -1464883.341
F29: (B)[iv] Baseline year hospital education funding | M29: =-INDEX('Baselines+historic spend factor'!$K$9:$K$158, MATCH('Individual LA'!$F$4, 'HN NFF illustrative allocations'!$C$9:$C$158, 0)) -> -157680
F30: (B)[v] Baseline year import/export adjustment | H30: Net imported/exported pupils/students in baseline year | K30: Additional entitlement unit rate
H32: =-INDEX('Baselines+historic spend factor'!$N$9:$N$158, MATCH('Individual LA'!$F$4, 'HN NFF illustrative allocations'!$C$9:$C$158, 0)) -> -43.5 | I32: x | K32: 6000 | L32: = | M32: =-INDEX('Baselines+historic spend factor'!$O$9:$O$158, MATCH('Individual LA'!$F$4, 'HN NFF illustrative allocations'!$C$9:$C$158, 0)) -> -261000
F33: (B)[vi] Funding floor and year 1 gains baseline | M33: =INDEX('Baselines+historic spend factor'!$P$9:$P$158, MATCH('Individual LA'!$F$4, 'HN NFF illustrative allocations'!$C$9:$C$158, 0)) -> 23789744.81
F35: (B) Historic spend factor [m] = 50% x [l] | H35: 0.5 | I35: x | K35: =M33 -> 23789744.81 | L35: = | M35: =INDEX('HN NFF illustrative allocations'!$I$9:$I$158, MATCH('Individual LA'!$F$4, 'HN NFF illustrative allocations'!$C$9:$C$158, 0)) -> 11894872.4
C37: (C) Population factor | F37: ="2018 population in " & $F$2 -> 2018 population in Barking and Dagenham | G37: x | H37: ACA | J37: x | K37: Population factor funding | L37: = | M37: =C37 -> (C) Population factor
F39: Total of ACA-weighted population
E41: ( | F41: =INDEX('HN NFF illustrative allocations'!$J$9:$J$158, MATCH('Individual LA'!$F$4, 'HN NFF illustrative allocations'!$C$9:$C$158, 0)) -> 59457.259 | G41: x | H41: =$H$3 -> 1.123376795 | I41: ) | J41: x | K41: ='HN NFF illustrative allocations'!$L$8 -> 1273887289 | L41: = | M41: =INDEX('HN NFF illustrative allocations'!$L$9:$L$158, MATCH('Individual LA'!$F$4, 'HN NFF illustrative allocations'!$C$9:$C$158, 0)) -> 7361485.209
F43: ='HN NFF illustrative allocations'!$K$8 -> 11558351.38
C45: (D) FSM factor | F45: ="FSM pupil number in " & $F$2 -> FSM pupil number in Barking and Dagenham | G45: x | H45: ACA | J45: x | K45: FSM factor funding | L45: = | M45: =C45 -> (D) FSM factor
F47: Total of ACA-weighted FSM population
E49: ( | F49: =INDEX('HN NFF illustrative allocations'!$M$9:$M$158, MATCH('Individual LA'!$F$4, 'HN NFF illustrative allocations'!$C$9:$C$158, 0)) -> 8114 | G49: x | H49: =$H$3 -> 1.123376795 | I49: ) | J49: x | K49: ='HN NFF illustrative allocations'!$O$8 -> 254777457.8 | L49: = | M49: =INDEX('HN NFF illustrative allocations'!$O$9:$O$158, MATCH('Individual LA'!$F$4, 'HN NFF illustrative allocations'!$C$9:$C$158, 0)) -> 1959072.606
F51: ='HN NFF illustrative allocations'!$N$8 -> 1185416.369
C53: IDACI band F factor | F53: ="IDACI band F population for " & $F$2 -> IDACI band F population for Barking and Dagenham | G53: x | H53: ACA | J53: x | K53: =C53 & " funding" -> IDACI band F factor funding | L53: = | M53: =C53 -> IDACI band F factor
F55: Total of ACA-weighted IDACI band F population
E57: ( | F57: =INDEX('HN NFF illustrative allocations'!$P$9:$P$158, MATCH('Individual LA'!$F$4, 'HN NFF illustrative allocations'!$C$9:$C$158, 0)) -> 3505 | G57: x | H57: =$H$3 -> 1.123376795 | I57: ) | J57: x | K57: ='HN NFF illustrative allocations'!$R$8 -> 35668844.09 | L57: = | M57: =INDEX('HN NFF illustrative allocations'!$R$9:$R$158, MATCH('Individual LA'!$F$4, 'HN NFF illustrative allocations'!$C$9:$C$158, 0)) -> 127305.9347
F59: ='HN NFF illustrative allocations'!$Q$8 -> 1103198.993
C61: IDACI band E factor | F61: ="IDACI band E population for " & $F$2 -> IDACI band E population for Barking and Dagenham | G61: x | H61: ACA | J61: x | K61: =C61 & " funding" -> IDACI band E factor funding | L61: = | M61: =C61 -> IDACI band E factor
F63: Total of ACA-weighted IDACI band E population
E65: ( | F65: =INDEX('HN NFF illustrative allocations'!$S$9:$S$158, MATCH('Individual LA'!$F$4, 'HN NFF illustrative allocations'!$C$9:$C$158, 0)) -> 14888 | G65: x | H65: =$H$3 -> 1.123376795 | I65: ) | J65: x | K65: ='HN NFF illustrative allocations'!$U$8 -> 40764393.25 | L65: = | M65: =INDEX('HN NFF illustrative allocations'!$U$9:$U$158, MATCH('Individual LA'!$F$4, 'HN NFF illustrative allocations'!$C$9:$C$158, 0)) -> 704762.3629
F67: ='HN NFF illustrative allocations'!$T$8 -> 967386.6467
C69: IDACI band D factor | F69: ="IDACI band D population for " & $F$2 -> IDACI band D population for Barking and Dagenham | G69: x | H69: ACA | J69: x | K69: =C69 & " funding" -> IDACI band D factor funding | L69: = | M69: =C69 -> IDACI band D factor
F71: Total of ACA-weighted IDACI band D population
E73: ( | F73: =INDEX('HN NFF illustrative allocations'!$V$9:$V$158, MATCH('Individual LA'!$F$4, 'HN NFF illustrative allocations'!$C$9:$C$158, 0)) -> 12531 | G73: x | H73: =$H$3 -> 1.123376795 | I73: ) | J73: x | K73: ='HN NFF illustrative allocations'!$X$8 -> 48407716.98 | L73: = | M73: =INDEX('HN NFF illustrative allocations'!$X$9:$X$158, MATCH('Individual LA'!$F$4, 'HN NFF illustrative allocations'!$C$9:$C$158, 0)) -> 832502.614
F75: ='HN NFF illustrative allocations'!$W$8 -> 818540.5023
C77: IDACI band C factor | F77: ="IDACI band C population for " & $F$2 -> IDACI band C population for Barking and Dagenham | G77: x | H77: ACA | J77: x | K77: =C77 & " funding" -> IDACI band C factor funding | L77: = | M77: =C77 -> IDACI band C factor
F79: Total of ACA-weighted IDACI band C population
E81: ( | F81: =INDEX('HN NFF illustrative allocations'!$Y$9:$Y$158, MATCH('Individual LA'!$F$4, 'HN NFF illustrative allocations'!$C$9:$C$158, 0)) -> 12010 | G81: x | H81: =$H$3 -> 1.123376795 | I81: ) | J81: x | K81: ='HN NFF illustrative allocations'!$AA$8 -> 40764393.25 | L81: = | M81: =INDEX('HN NFF illustrative allocations'!$AA$9:$AA$158, MATCH('Individual LA'!$F$4, 'HN NFF illustrative allocations'!$C$9:$C$158, 0)) -> 781905.1266
F83: ='HN NFF illustrative allocations'!$Z$8 -> 703388.6852
C85: IDACI band B factor | F85: ="IDACI band B population for " & $F$2 -> IDACI band B population for Barking and Dagenham | G85: x | H85: ACA | J85: x | K85: =C85 & " funding" -> IDACI band B factor funding | L85: = | M85: =C85 -> IDACI band B factor
F87: Total of ACA-weighted IDACI band B population
E89: ( | F89: =INDEX('HN NFF illustrative allocations'!$AB$9:$AB$158, MATCH('Individual LA'!$F$4, 'HN NFF illustrative allocations'!$C$9:$C$158, 0)) -> 6690 | G89: x | H89: =$H$3 -> 1.123376795 | I89: ) | J89: x | K89: ='HN NFF illustrative allocations'!$AD$8 -> 58598815.29 | L89: = | M89: =INDEX('HN NFF illustrative allocations'!$AD$9:$AD$158, MATCH('Individual LA'!$F$4, 'HN NFF illustrative allocations'!$C$9:$C$158, 0)) -> 508915.0597
F91: ='HN NFF illustrative allocations'!$AC$8 -> 865356.5788
C93: IDACI band A factor | F93: ="IDACI band A population for " & $F$2 -> IDACI band A population for Barking and Dagenham | G93: x | H93: ACA | J93: x | K93: =C93 & " funding" -> IDACI band A factor funding | L93: = | M93: =C93 -> IDACI band A factor
F95: Total of ACA-weighted IDACI band A population
E97: ( | F97: =INDEX('HN NFF illustrative allocations'!$AE$9:$AE$158, MATCH('Individual LA'!$F$4, 'HN NFF illustrative allocations'!$C$9:$C$158, 0)) -> 0 | G97: x | H97: =$H$3 -> 1.123376795 | I97: ) | J97: x | K97: ='HN NFF illustrative allocations'!$AG$8 -> 30573294.93 | L97: = | M97: =INDEX('HN NFF illustrative allocations'!$AG$9:$AG$158, MATCH('Individual LA'!$F$4, 'HN NFF illustrative allocations'!$C$9:$C$158, 0)) -> 0
F99: ='HN NFF illustrative allocations'!$AF$8 -> 318345.635
C101: (E) IDACI factor | M101: =INDEX('HN NFF illustrative allocations'!$AH$9:$AH$158, MATCH('Individual LA'!$F$4, 'HN NFF illustrative allocations'!$C$9:$C$158, 0)) -> 2955391.098
C103: (F) Bad health factor | F103: ="Bad health population for " & $F$2 -> Bad health population for Barking and Dagenham | G103: x | H103: ACA | J103: x | K103: Bad health factor funding | L103: = | M103: =C103 -> (F) Bad health factor
F105: Total of ACA-weighted bad health population
E107: ( | F107: =INDEX('HN NFF illustrative allocations'!$AI$9:$AI$158, MATCH('Individual LA'!$F$4, 'HN NFF illustrative allocations'!$C$9:$C$158, 0)) -> 418 | G107: x | H107: =$H$3 -> 1.123376795 | I107: ) | J107: x | K107: ='HN NFF illustrative allocations'!$AK$8 -> 191083093.3 | L107: = | M107: =INDEX('HN NFF illustrative allocations'!$AK$9:$AK$158, MATCH('Individual LA'!$F$4, 'HN NFF illustrative allocations'!$C$9:$C$158, 0)) -> 1342974.234
F109: ='HN NFF illustrative allocations'!$AJ$8 -> 66812.28316
C111: (G) Disability factor | F111: ="DLA children in " & $F$2 -> DLA children in Barking and Dagenham | G111: x | H111: ACA | J111: x | K111: Disability factor funding | L111: = | M111: =C111 -> (G) Disability factor
F113: Total of ACA-weighted DLA children
E115: ( | F115: =INDEX('HN NFF illustrative allocations'!$AL$9:$AL$158, MATCH('Individual LA'!$F$4, 'HN NFF illustrative allocations'!$C$9:$C$158, 0)) -> 1700 | G115: x | H115: =$H$3 -> 1.123376795 | I115: ) | J115: x | K115: ='HN NFF illustrative allocations'!$AN$8 -> 191083093.3 | L115: = | M115: =INDEX('HN NFF illustrative allocations'!$AN$9:$AN$158, MATCH('Individual LA'!$F$4, 'HN NFF illustrative allocations'!$C$9:$C$158, 0)) -> 992433.749
F117: ='HN NFF illustrative allocations'!$AM$8 -> 367701.2521
C119: (H) KS2 low attainment factor | F119: ="Low KS2 attainers in " & $F$2 -> Low KS2 attainers in Barking and Dagenham | G119: x | H119: ACA | J119: x | K119: KS2 factor funding | L119: = | M119: =C119 -> (H) KS2 low attainment factor
F121: Total of ACA-weighted low KS2 attainers
E123: ( | F123: =INDEX('HN NFF illustrative allocations'!$AO$9:$AO$158, MATCH('Individual LA'!$F$4, 'HN NFF illustrative allocations'!$C$9:$C$158, 0)) -> 732 | G123: x | H123: =$H$3 -> 1.123376795 | I123: ) | J123: x | K123: ='HN NFF illustrative allocations'!$AQ$8 -> 191083093.3 | L123: = | M123: =INDEX('HN NFF illustrative allocations'!$AQ$9:$AQ$158, MATCH('Individual LA'!$F$4, 'HN NFF illustrative allocations'!$C$9:$C$158, 0)) -> 1074269.995
F125: ='HN NFF illustrative allocations'!$AP$8 -> 146266.661
C127: (I) KS4 low attainment factor | F127: ="Low KS4 attainers in " & $F$2 -> Low KS4 attainers in Barking and Dagenham | G127: x | H127: ACA | J127: x | K127: KS4 factor funding | L127: = | M127: =C127 -> (I) KS4 low attainment factor
F129: Total of ACA-weighted low KS4 attainers
E131: ( | F131: =INDEX('HN NFF illustrative allocations'!$AR$9:$AR$158, MATCH('Individual LA'!$F$4, 'HN NFF illustrative allocations'!$C$9:$C$158, 0)) -> 588 | G131: x | H131: =$H$3 -> 1.123376795 | I131: ) | J131: x | K131: ='HN NFF illustrative allocations'!$AT$8 -> 191083093.3 | L131: = | M131: =INDEX('HN NFF illustrative allocations'!$AT$9:$AT$158, MATCH('Individual LA'!$F$4, 'HN NFF illustrative allocations'!$C$9:$C$158, 0)) -> 888881.3612
F133: ='HN NFF illustrative allocations'!$AS$8 -> 141997.6766
C135: Total historic and proxy factor allocation (sum of (B) - (I)) | M135: =INDEX('HN NFF illustrative allocations'!$AU$9:$AU$158, MATCH('Individual LA'!$F$4, 'HN NFF illustrative allocations'!$C$9:$C$158, 0)) -> 28469380.66
C137: (J) Funding floor factor | F137: Funding floor baseline | H137: Total historic spend and proxy factor allocation (sum of (B) - (I)) | K137: Difference between historic spend/proxy factors allocation and funding floor baseline | M137: (J) Funding floor factor
F139: =M33 -> 23789744.81 | G139: – | H139: =M135 -> 28469380.66 | I139: = | K139: =F139-H139 -> -4679635.848 | M139: =INDEX('HN NFF illustrative allocations'!$AX$9:$AX$158, MATCH('Individual LA'!$F$4, 'HN NFF illustrative allocations'!$C$9:$C$158, 0)) -> 0
C141: (K) Hospital education funding | M141: =INDEX('HN NFF illustrative allocations'!$AY$9:$AY$158, MATCH('Individual LA'!$F$4, 'HN NFF illustrative allocations'!$C$9:$C$158, 0)) -> 157680
C143: NFF allocation before import/export adjustment | M143: =SUM(M24,M35,M41,M49,M57,M65,M73,M81,M89,M97,M107,M115,M123,M131,M139,M141) -> 30091944
C145: (L) Import/export adjustment | F145: Provider LA | H145: Resident LA | K145: Net imported/exported pupils/students
F147: =INDEX('Import|export adjustments data'!P9:$P$158, MATCH('Individual LA'!$F$4,'Import|export adjustments data'!$C$9:$C$158, 0)) -> 1155.5 | G147: – | H147: =INDEX('Import|export adjustments data'!K9:$K$158, MATCH('Individual LA'!$F$4,'Import|export adjustments data'!$C$9:$C$158, 0)) -> 1112 | I147: = | K147: =INDEX('HN NFF illustrative allocations'!$AZ$9:$AZ$158, MATCH('Individual LA'!$F$4, 'HN NFF illustrative allocations'!$C$9:$C$158, 0)) -> 43.5
H149: Additional entitlement unit rate | K149: = | M149: Import/export adjustment
H151: 6000 | I151: x | K151: =K147 -> 43.5 | L151: = | M151: =INDEX('HN NFF illustrative allocations'!$BA$9:$BA$158, MATCH('Individual LA'!$F$4, 'HN NFF illustrative allocations'!$C$9:$C$158, 0)) -> 261000
C153: Illustrative high needs NFF final allocation | M153: =SUM(M24,M135,M139,M141,M151) -> 30352944
C155: Illustrative high needs NFF year 1 allocation | F155: Gains due under the high needs NFF | H155: Year 1 gains available, up to 3% | K155: Total year 1 gain
F157: =MAX(-K139, 0) -> 4679635.848 | H157: =MIN(F157, H161*3%) -> 713692.3442 | K157: =MIN(F157, H157) -> 713692.3442
F159: Basic entitlement factor, hospital education funding and import/export total | H159: Funding floor/year 1 gain baseline | K159: =
F161: =SUM(M24,M141,M151) -> 1883563.341 | G161: + | H161: =M33 -> 23789744.81 | I161: + | K161: =K157 -> 713692.3442 | L161: = | M161: =SUM(F161,H161,K161) -> 26387000.49

Sheet Baselines+historic spend factor
B1: High needs national funding formula - illustrative allocations to local authorities (LAs)
B3: Step-by-step guide for LAs to understand the calculation of the high needs block illustrative allocations
B5: These columns set out identifying information for LAs | E5: This is a geographical cost adjustment | G5: The totals columns are all subtracted from the baseline funding
B6: Region | C6: LA code | D6: LA name | E6: Area cost adjustment (ACA) [a] | F6: (B)[i] Published LA baseline after adjustments [b] | G6: (B)[ii] Schools block transfer to reflect funding change for special units [c] | H6: (B)[iii] Baseline year basic entitlement | K6: (B)[iv] Baseline year hospital education funding [g] | L6: (B)[v] Baseline year import/export adjustment | P6: (B)[vi] Funding floor and year 1 gains baseline [l] = [b] - [c] - [f] - [g] - [k] | Q6: (B) Historic spend factor [m] = 50% x [l]
H7: Number of pupils in special schools/academies [d] | I7: ACA-weighted basic entitlement unit rate (£4k per pupil) [e] | J7: Baseline year basic entitlement [f] = [d] x [e] | L7: Provider LA [h] | M7: Resident LA [i] | N7: Net imported/exported pupils [j] = [h] - [i] | O7: Baseline year import/export adjustment [k] = [j] x £6k
B8: England total | F8: =SUM(F9:F158) -> 5694074633 | G8: =SUM(G9:G158) -> 91875459.93 | H8: =SUM(H9:H158) -> 114781 | J8: =SUM(J9:J158) -> 472744600.9 | K8: 72649416.22 | L8: 223631 | M8: 230395 | N8: -6764 | O8: -40584000 | P8: =SUM(P9:P158) -> 5097389156 | Q8: =SUM(Q9:Q158) -> 2548694578
B9: EAST MIDLANDS | C9: 831 | D9: Derby | E9: 1 | F9: 34577000 | G9: 1053681.761 | H9: 659 | I9: =4000 * E9 -> 4000 | J9: =H9*I9 -> 2636000 | K9: 239371 | L9: =INDEX('Import|export adjustments data'!$P$9:$P$158, MATCH($C9, 'Import|export adjustments data'!$C$9:$C$158, 0)) -> 1160 | M9: =INDEX('Import|export adjustments data'!$K$9:$K$158, MATCH($C9, 'Import|export adjustments data'!$C$9:$C$158, 0)) -> 1191 | N9: =L9-M9 -> -31 | O9: =N9 * 6000 -> -186000 | P9: =F9 - SUM(K9,O9,G9,J9) -> 30833947.24 | Q9: =P9*0.5 -> 15416973.62
B10: EAST MIDLANDS | C10: 830 | D10: Derbyshire | E10: 1 | F10: 68153000 | G10: 1051131.855 | H10: 978 | I10: 4000 | J10: 3912000 | K10: 50000 | L10: =INDEX('Import|export adjustments data'!$P$9:$P$158, MATCH($C10, 'Import|export adjustments data'!$C$9:$C$158, 0)) -> 2876 | M10: =INDEX('Import|export adjustments data'!$K$9:$K$158, MATCH($C10, 'Import|export adjustments data'!$C$9:$C$158, 0)) -> 3117 | N10: -241 | O10: -1446000 | P10: 64585868.15 | Q10: 32292934.07
B11: EAST MIDLANDS | C11: 856 | D11: Leicester | E11: 1 | F11: 47001000 | G11: 313174.0364 | H11: 992 | I11: 4000 | J11: 3968000 | K11: 750000 | L11: =INDEX('Import|export adjustments data'!$P$9:$P$158, MATCH($C11, 'Import|export adjustments data'!$C$9:$C$158, 0)) -> 1526 | M11: =INDEX('Import|export adjustments data'!$K$9:$K$158, MATCH($C11, 'Import|export adjustments data'!$C$9:$C$158, 0)) -> 1536 | N11: -10 | O11: -60000 | P11: 42029825.96 | Q11: 21014912.98
B12: EAST MIDLANDS | C12: 855 | D12: Leicestershire | E12: 1 | F12: 61876108.9 | G12: 974022.6338 | H12: 1371 | I12: 4000 | J12: 5484000 | K12: 754669 | L12: =INDEX('Import|export adjustments data'!$P$9:$P$158, MATCH($C12, 'Import|export adjustments data'!$C$9:$C$158, 0)) -> 2546 | M12: =INDEX('Import|export adjustments data'!$K$9:$K$158, MATCH($C12, 'Import|export adjustments data'!$C$9:$C$158, 0)) -> 2633 | N12: -87 | O12: -522000 | P12: 55185417.26 | Q12: 27592708.63
B13: EAST MIDLANDS | C13: 925 | D13: Lincolnshire | E13: 1 | F13: 74235000 | G13: 33286.94962 | H13: 1771 | I13: 4000 | J13: 7084000 | K13: 1322890 | L13: =INDEX('Import|export adjustments data'!$P$9:$P$158, MATCH($C13, 'Import|export adjustments data'!$C$9:$C$158, 0)) -> 2912 | M13: =INDEX('Import|export adjustments data'!$K$9:$K$158, MATCH($C13, 'Import|export adjustments data'!$C$9:$C$158, 0)) -> 2994 | N13: -82 | O13: -492000 | P13: 66286823.05 | Q13: 33143411.53
B14: EAST MIDLANDS | C14: 928 | D14: Northamptonshire | E14: 1.004888139 | F14: 64488700.51 | G14: 1423293.87 | H14: 1562 | I14: 4019.552554 | J14: 6278541.09 | K14: 1221320 | L14: =INDEX('Import|export adjustments data'!$P$9:$P$158, MATCH($C14, 'Import|export adjustments data'!$C$9:$C$158, 0)) -> 2775 | M14: =INDEX('Import|export adjustments data'!$K$9:$K$158, MATCH($C14, 'Import|export adjustments data'!$C$9:$C$158, 0)) -> 2834 | N14: -59 | O14: -354000 | P14: 55919545.55 | Q14: 27959772.77
B15: EAST MIDLANDS | C15: 892 | D15: Nottingham | E15: 1.004115668 | F15: 28738266.3 | G15: 149643.6818 | H15: 496 | I15: 4016.462673 | J15: 1992165.486 | K15: 1428807 | L15: =INDEX('Import|export adjustments data'!$P$9:$P$158, MATCH($C15, 'Import|export adjustments data'!$C$9:$C$158, 0)) -> 962 | M15: =INDEX('Import|export adjustments data'!$K$9:$K$158, MATCH($C15, 'Import|export adjustments data'!$C$9:$C$158, 0)) -> 1034 | N15: -72 | O15: -432000 | P15: 25599650.13 | Q15: 12799825.07
B16: EAST MIDLANDS | C16: 891 | D16: Nottinghamshire | E16: 1.004115668 | F16: 58860000 | G16: 0 | H16: 1039 | I16: 4016.462673 | J16: 4173104.717 | K16: 0 | L16: =INDEX('Import|export adjustments data'!$P$9:$P$158, MATCH($C16, 'Import|export adjustments data'!$C$9:$C$158, 0)) -> 2884 | M16: =INDEX('Import|export adjustments data'!$K$9:$K$158, MATCH($C16, 'Import|export adjustments data'!$C$9:$C$158, 0)) -> 3061 | N16: -177 | O16: -1062000 | P16: 55748895.28 | Q16: 27874447.64
B17: EAST MIDLANDS | C17: 857 | D17: Rutland | E17: 1 | F17: 3822000 | G17: 177690.6551 | H17: 27 | I17: 4000 | J17: 108000 | K17: 0 | L17: =INDEX('Import|export adjustments data'!$P$9:$P$158, MATCH($C17, 'Import|export adjustments data'!$C$9:$C$158, 0)) -> 102 | M17: =INDEX('Import|export adjustments data'!$K$9:$K$158, MATCH($C17, 'Import|export adjustments data'!$C$9:$C$158, 0)) -> 120 | N17: -18 | O17: -108000 | P17: 3644309.345 | Q17: 1822154.672
B18: EAST OF ENGLAND | C18: 822 | D18: Bedford Borough | E18: 1.023328634 | F18: 20750000 | G18: 265046.6314 | H18: 356 | I18: 4093.314537 | J18: 1457219.975 | K18: 666000 | L18: =INDEX('Import|export adjustments data'!$P$9:$P$158, MATCH($C18, 'Import|export adjustments data'!$C$9:$C$158, 0)) -> 786 | M18: =INDEX('Import|export adjustments data'!$K$9:$K$158, MATCH($C18, 'Import|export adjustments data'!$C$9:$C$158, 0)) -> 755 | N18: 31 | O18: 186000 | P18: 18175733.39 | Q18: 9087866.697
B19: EAST OF ENGLAND | C19: 873 | D19: Cambridgeshire | E19: 1.019104421 | F19: 62755619.8 | G19: 464247.4429 | H19: 1118 | I19: 4076.417684 | J19: 4557434.971 | K19: 47225 | L19: =INDEX('Import|export adjustments data'!$P$9:$P$158, MATCH($C19, 'Import|export adjustments data'!$C$9:$C$158, 0)) -> 2622 | M19: =INDEX('Import|export adjustments data'!$K$9:$K$158, MATCH($C19, 'Import|export adjustments data'!$C$9:$C$158, 0)) -> 2632 | N19: -10 | O19: -60000 | P19: 57746712.38 | Q19: 28873356.19
B20: EAST OF ENGLAND | C20: 823 | D20: Central Bedfordshire | E20: 1.023328634 | F20: 26564000 | G20: 332599.6489 | H20: 547 | I20: 4093.314537 | J20: 2239043.052 | K20: 667447 | L20: =INDEX('Import|export adjustments data'!$P$9:$P$158, MATCH($C20, 'Import|export adjustments data'!$C$9:$C$158, 0)) -> 1208 | M20: =INDEX('Import|export adjustments data'!$K$9:$K$158, MATCH($C20, 'Import|export adjustments data'!$C$9:$C$158, 0)) -> 1171 | N20: 37 | O20: 222000 | P20: 23102910.3 | Q20: 11551455.15
B21: EAST OF ENGLAND | C21: 881 | D21: Essex | E21: 1.018722488 | F21: 127174000 | G21: 1306559.712 | H21: 2636 | I21: 4074.88995 | J21: 10741409.91 | K21: 0 | L21: =INDEX('Import|export adjustments data'!$P$9:$P$158, MATCH($C21, 'Import|export adjustments data'!$C$9:$C$158, 0)) -> 6524 | M21: =INDEX('Import|export adjustments data'!$K$9:$K$158, MATCH($C21, 'Import|export adjustments data'!$C$9:$C$158, 0)) -> 6683 | N21: -159 | O21: -954000 | P21: 116080030.4 | Q21: 58040015.19
B22: EAST OF ENGLAND | C22: 919 | D22: Hertfordshire | E22: 1.051953649 | F22: 100504000 | G22: 834057.0022 | H22: 2231 | I22: 4207.814595 | J22: 9387634.362 | K22: 1328558 | L22: =INDEX('Import|export adjustments data'!$P$9:$P$158, MATCH($C22, 'Import|export adjustments data'!$C$9:$C$158, 0)) -> 3553 | M22: =INDEX('Import|export adjustments data'!$K$9:$K$158, MATCH($C22, 'Import|export adjustments data'!$C$9:$C$158, 0)) -> 3352 | N22: 201 | O22: 1206000 | P22: 87747750.64 | Q22: 43873875.32
B23: EAST OF ENGLAND | C23: 821 | D23: Luton | E23: 1.023328634 | F23: 25105044 | G23: 471639.2878 | H23: 446 | I23: 4093.314537 | J23: 1825618.284 | K23: 60130 | L23: =INDEX('Import|export adjustments data'!$P$9:$P$158, MATCH($C23, 'Import|export adjustments data'!$C$9:$C$158, 0)) -> 961 | M23: =INDEX('Import|export adjustments data'!$K$9:$K$158, MATCH($C23, 'Import|export adjustments data'!$C$9:$C$158, 0)) -> 1087 | N23: -126 | O23: -756000 | P23: 23503656.43 | Q23: 11751828.21
B24: EAST OF ENGLAND | C24: 926 | D24: Norfolk | E24: 1 | F24: 73585000 | G24: 641081.813 | H24: 1644 | I24: 4000 | J24: 6576000 | K24: 0 | L24: =INDEX('Import|export adjustments data'!$P$9:$P$158, MATCH($C24, 'Import|export adjustments data'!$C$9:$C$158, 0)) -> 2989 | M24: =INDEX('Import|export adjustments data'!$K$9:$K$158, MATCH($C24, 'Import|export adjustments data'!$C$9:$C$158, 0)) -> 2953 | N24: 36 | O24: 216000 | P24: 66151918.19 | Q24: 33075959.09
B25: EAST OF ENGLAND | C25: 874 | D25: Peterborough | E25: 1.019104421 | F25: 27268000 | G25: 699403.9579 | H25: 540 | I25: 4076.417684 | J25: 2201265.549 | K25: 246500 | L25: =INDEX('Import|export adjustments data'!$P$9:$P$158, MATCH($C25, 'Import|export adjustments data'!$C$9:$C$158, 0)) -> 951 | M25: =INDEX('Import|export adjustments data'!$K$9:$K$158, MATCH($C25, 'Import|export adjustments data'!$C$9:$C$158, 0)) -> 921 | N25: 30 | O25: 180000 | P25: 23940830.49 | Q25: 11970415.25
B26: EAST OF ENGLAND | C26: 882 | D26: Southend-on-Sea | E26: 1.005269219 | F26: 17360750 | G26: 244684.3202 | H26: 528 | I26: 4021.076877 | J26: 2123128.591 | K26: 32000 | L26: =INDEX('Import|export adjustments data'!$P$9:$P$158, MATCH($C26, 'Import|export adjustments data'!$C$9:$C$158, 0)) -> 995 | M26: =INDEX('Import|export adjustments data'!$K$9:$K$158, MATCH($C26, 'Import|export adjustments data'!$C$9:$C$158, 0)) -> 928 | N26: 67 | O26: 402000 | P26: 14558937.09 | Q26: 7279468.544
B27: EAST OF ENGLAND | C27: 935 | D27: Suffolk | E27: 1.000035564 | F27: 52837100 | G27: 530593.2348 | H27: 1176 | I27: 4000.142257 | J27: 4704167.295 | K27: 0 | L27: =INDEX('Import|export adjustments data'!$P$9:$P$158, MATCH($C27, 'Import|export adjustments data'!$C$9:$C$158, 0)) -> 2898.5 | M27: =INDEX('Import|export adjustments data'!$K$9:$K$158, MATCH($C27, 'Import|export adjustments data'!$C$9:$C$158, 0)) -> 2994 | N27: -95.5 | O27: -573000 | P27: 48175339.47 | Q27: 24087669.74
B28: EAST OF ENGLAND | C28: 883 | D28: Thurrock | E28: 1.044805065 | F28: 21175000 | G28: 480590.9195 | H28: 386 | I28: 4179.220261 | J28: 1613179.021 | K28: 0 | L28: =INDEX('Import|export adjustments data'!$P$9:$P$158, MATCH($C28, 'Import|export adjustments data'!$C$9:$C$158, 0)) -> 868 | M28: =INDEX('Import|export adjustments data'!$K$9:$K$158, MATCH($C28, 'Import|export adjustments data'!$C$9:$C$158, 0)) -> 914 | N28: -46 | O28: -276000 | P28: 19357230.06 | Q28: 9678615.03
B29: INNER LONDON | C29: 202 | D29: Camden | E29: 1.203818733 | F29: 32693000 | G29: 461314.7516 | H29: 345 | I29: 4815.274933 | J29: 1661269.852 | K29: 2163266 | L29: =INDEX('Import|export adjustments data'!$P$9:$P$158, MATCH($C29, 'Import|export adjustments data'!$C$9:$C$158, 0)) -> 1359 | M29: =INDEX('Import|export adjustments data'!$K$9:$K$158, MATCH($C29, 'Import|export adjustments data'!$C$9:$C$158, 0)) -> 1282 | N29: 77 | O29: 462000 | P29: 27945149.4 | Q29: 13972574.7
B30: INNER LONDON | C30: 204 | D30: Hackney | E30: 1.203818733 | F30: 41129000 | G30: 484698.0492 | H30: 574 | I30: 4815.274933 | J30: 2763967.811 | K30: 0 | L30: =INDEX('Import|export adjustments data'!$P$9:$P$158, MATCH($C30, 'Import|export adjustments data'!$C$9:$C$158, 0)) -> 1272 | M30: =INDEX('Import|export adjustments data'!$K$9:$K$158, MATCH($C30, 'Import|export adjustments data'!$C$9:$C$158, 0)) -> 1287 | N30: -15 | O30: -90000 | P30: 37970334.14 | Q30: 18985167.07
B31: INNER LONDON | C31: 205 | D31: Hammersmith and Fulham | E31: 1.203818733 | F31: 19642000 | G31: 0 | H31: 420 | I31: 4815.274933 | J31: 2022415.472 | K31: 300000 | L31: =INDEX('Import|export adjustments data'!$P$9:$P$158, MATCH($C31, 'Import|export adjustments data'!$C$9:$C$158, 0)) -> 871 | M31: =INDEX('Import|export adjustments data'!$K$9:$K$158, MATCH($C31, 'Import|export adjustments data'!$C$9:$C$158, 0)) -> 627 | N31: 244 | O31: 1464000 | P31: 15855584.53 | Q31: 7927792.264
B32: INNER LONDON | C32: 309 | D32: Haringey | E32: 1.123376795 | F32: 35339297 | G32: 307234.0247 | H32: 433 | I32: 4493.50718 | J32: 1945688.609 | K32: 185658.82 | L32: =INDEX('Import|export adjustments data'!$P$9:$P$158, MATCH($C32, 'Import|export adjustments data'!$C$9:$C$158, 0)) -> 1255 | M32: =INDEX('Import|export adjustments data'!$K$9:$K$158, MATCH($C32, 'Import|export adjustments data'!$C$9:$C$158, 0)) -> 1153 | N32: 102 | O32: 612000 | P32: 32288715.55 | Q32: 16144357.77
B33: INNER LONDON | C33: 206 | D33: Islington | E33: 1.203818733 | F33: 26628000 | G33: 402012.2259 | H33: 424 | I33: 4815.274933 | J33: 2041676.571 | K33: 64000 | L33: =INDEX('Import|export adjustments data'!$P$9:$P$158, MATCH($C33, 'Import|export adjustments data'!$C$9:$C$158, 0)) -> 636 | M33: =INDEX('Import|export adjustments data'!$K$9:$K$158, MATCH($C33, 'Import|export adjustments data'!$C$9:$C$158, 0)) -> 665 | N33: -29 | O33: -174000 | P33: 24294311.2 | Q33: 12147155.6
B34: INNER LONDON | C34: 207 | D34: Kensington and Chelsea | E34: 1.203818733 | F34: 15664000 | G34: 212536.2122 | H34: 144 | I34: 4815.274933 | J34: 693399.5903 | K34: 1165000 | L34: =INDEX('Import|export adjustments data'!$P$9:$P$158, MATCH($C34, 'Import|export adjustments data'!$C$9:$C$158, 0)) -> 373 | M34: =INDEX('Import|export adjustments data'!$K$9:$K$158, MATCH($C34, 'Import|export adjustments data'!$C$9:$C$158, 0)) -> 364 | N34: 9 | O34: 54000 | P34: 13539064.2 | Q34: 6769532.099
B35: INNER LONDON | C35: 208 | D35: Lambeth | E35: 1.203818733 | F35: 39553617 | G35: 648041.562 | H35: 465 | I35: 4815.274933 | J35: 2239102.844 | K35: 192472 | L35: =INDEX('Import|export adjustments data'!$P$9:$P$158, MATCH($C35, 'Import|export adjustments data'!$C$9:$C$158, 0)) -> 1274 | M35: =INDEX('Import|export adjustments data'!$K$9:$K$158, MATCH($C35, 'Import|export adjustments data'!$C$9:$C$158, 0)) -> 1355 | N35: -81 | O35: -486000 | P35: 36960000.59 | Q35: 18480000.3
B36: INNER LONDON | C36: 209 | D36: Lewisham | E36: 1.203818733 | F36: 49705000 | G36: 1053025.334 | H36: 629 | I36: 4815.274933 | J36: 3028807.933 | K36: 292855 | L36: =INDEX('Import|export adjustments data'!$P$9:$P$158, MATCH($C36, 'Import|export adjustments data'!$C$9:$C$158, 0)) -> 1294 | M36: =INDEX('Import|export adjustments data'!$K$9:$K$158, MATCH($C36, 'Import|export adjustments data'!$C$9:$C$158, 0)) -> 1309 | N36: -15 | O36: -90000 | P36: 45420311.73 | Q36: 22710155.87
B37: INNER LONDON | C37: 316 | D37: Newham | E37: 1.123376795 | F37: 46509000 | G37: 1691769.115 | H37: 153 | I37: 4493.50718 | J37: 687506.5986 | K37: 0 | L37: =INDEX('Import|export adjustments data'!$P$9:$P$158, MATCH($C37, 'Import|export adjustments data'!$C$9:$C$158, 0)) -> 1315 | M37: =INDEX('Import|export adjustments data'!$K$9:$K$158, MATCH($C37, 'Import|export adjustments data'!$C$9:$C$158, 0)) -> 1377 | N37: -62 | O37: -372000 | P37: 44501724.29 | Q37: 22250862.14
B38: INNER LONDON | C38: 210 | D38: Southwark | E38: 1.203818733 | F38: 44275000 | G38: 601757.8977 | H38: 540 | I38: 4815.274933 | J38: 2600248.464 | K38: 2120311 | L38: =INDEX('Import|export adjustments data'!$P$9:$P$158, MATCH($C38, 'Import|export adjustments data'!$C$9:$C$158, 0)) -> 1046.5 | M38: =INDEX('Import|export adjustments data'!$K$9:$K$158, MATCH($C38, 'Import|export adjustments data'!$C$9:$C$158, 0)) -> 1224 | N38: -177.5 | O38: -1065000 | P38: 40017682.64 | Q38: 20008841.32
B39: INNER LONDON | C39: 211 | D39: Tower Hamlets | E39: 1.203818733 | F39: 44029000 | G39: 923705.7788 | H39: 543 | I39: 4815.274933 | J39: 2614694.288 | K39: 460000 | L39: =INDEX('Import|export adjustments data'!$P$9:$P$158, MATCH($C39, 'Import|export adjustments data'!$C$9:$C$158, 0)) -> 1659 | M39: =INDEX('Import|export adjustments data'!$K$9:$K$158, MATCH($C39, 'Import|export adjustments data'!$C$9:$C$158, 0)) -> 1695 | N39: -36 | O39: -216000 | P39: 40246599.93 | Q39: 20123299.97
B40: INNER LONDON | C40: 212 | D40: Wandsworth | E40: 1.203818733 | F40: 41612060.01 | G40: 955963.8918 | H40: 913 | I40: 4815.274933 | J40: 4396346.013 | K40: 1713760 | L40: =INDEX('Import|export adjustments data'!$P$9:$P$158, MATCH($C40, 'Import|export adjustments data'!$C$9:$C$158, 0)) -> 1465.5 | M40: =INDEX('Import|export adjustments data'!$K$9:$K$158, MATCH($C40, 'Import|export adjustments data'!$C$9:$C$158, 0)) -> 1196 | N40: 269.5 | O40: 1617000 | P40: 32928990.11 | Q40: 16464495.05
B41: INNER LONDON | C41: 213 | D41: Westminster | E41: 1.203818733 | F41: 23921000 | G41: 421648.726 | H41: 235 | I41: =4000 * E41 -> 4815.274933 | J41: =H41*I41 -> 1131589.609 | K41: 297100 | L41: =INDEX('Import|export adjustments data'!$P$9:$P$158, MATCH($C41, 'Import|export adjustments data'!$C$9:$C$158, 0)) -> 742 | M41: =INDEX('Import|export adjustments data'!$K$9:$K$158, MATCH($C41, 'Import|export adjustments data'!$C$9:$C$158, 0)) -> 725 | N41: =L41-M41 -> 17 | O41: =N41 * 6000 -> 102000 | P41: =F41 - SUM(K41,O41,G41,J41) -> 21968661.66 | Q41: =P41*0.5 -> 10984330.83
B42: NORTH EAST | C42: 841 | D42: Darlington | E42: 1 | F42: 11801000 | G42: 215671.2737 | H42: 260 | I42: 4000 | J42: 1040000 | K42: 100850 | L42: =INDEX('Import|export adjustments data'!$P$9:$P$158, MATCH($C42, 'Import|export adjustments data'!$C$9:$C$158, 0)) -> 444 | M42: =INDEX('Import|export adjustments data'!$K$9:$K$158, MATCH($C42, 'Import|export adjustments data'!$C$9:$C$158, 0)) -> 424 | N42: 20 | O42: 120000 | P42: 10324478.73 | Q42: 5162239.363
B43: NORTH EAST | C43: 840 | D43: Durham | E43: 1 | F43: 48117000 | G43: 318581.4227 | H43: 1346 | I43: 4000 | J43: 5384000 | K43: 965720 | L43: =INDEX('Import|export adjustments data'!$P$9:$P$158, MATCH($C43, 'Import|export adjustments data'!$C$9:$C$158, 0)) -> 2122 | M43: =INDEX('Import|export adjustments data'!$K$9:$K$158, MATCH($C43, 'Import|export adjustments data'!$C$9:$C$158, 0)) -> 2211 | N43: -89 | O43: -534000 | P43: 41982698.58 | Q43: 20991349.29
B44: NORTH EAST | C44: 390 | D44: Gateshead | E44: 1 | F44: 21454000 | G44: 272651.3864 | H44: 566 | I44: 4000 | J44: 2264000 | K44: 550000 | L44: =INDEX('Import|export adjustments data'!$P$9:$P$158, MATCH($C44, 'Import|export adjustments data'!$C$9:$C$158, 0)) -> 737 | M44: =INDEX('Import|export adjustments data'!$K$9:$K$158, MATCH($C44, 'Import|export adjustments data'!$C$9:$C$158, 0)) -> 778 | N44: -41 | O44: -246000 | P44: 18613348.61 | Q44: 9306674.307
B45: NORTH EAST | C45: 805 | D45: Hartlepool | E45: 1 | F45: 10432000 | G45: 417906.9527 | H45: 215 | I45: 4000 | J45: 860000 | K45: 136918 | L45: =INDEX('Import|export adjustments data'!$P$9:$P$158, MATCH($C45, 'Import|export adjustments data'!$C$9:$C$158, 0)) -> 565 | M45: =INDEX('Import|export adjustments data'!$K$9:$K$158, MATCH($C45, 'Import|export adjustments data'!$C$9:$C$158, 0)) -> 605 | N45: -40 | O45: -240000 | P45: 9257175.047 | Q45: 4628587.524
B46: NORTH EAST | C46: 806 | D46: Middlesbrough | E46: 1 | F46: 22729000 | G46: 1379113.332 | H46: 507 | I46: 4000 | J46: 2028000 | K46: 1174537 | L46: =INDEX('Import|export adjustments data'!$P$9:$P$158, MATCH($C46, 'Import|export adjustments data'!$C$9:$C$158, 0)) -> 1122.5 | M46: =INDEX('Import|export adjustments data'!$K$9:$K$158, MATCH($C46, 'Import|export adjustments data'!$C$9:$C$158, 0)) -> 1040 | N46: 82.5 | O46: 495000 | P46: 17652349.67 | Q46: 8826174.834
B47: NORTH EAST | C47: 391 | D47: Newcastle upon Tyne | E47: 1 | F47: 35127000 | G47: 777870.2377 | H47: 659 | I47: 4000 | J47: 2636000 | K47: 3013672 | L47: =INDEX('Import|export adjustments data'!$P$9:$P$158, MATCH($C47, 'Import|export adjustments data'!$C$9:$C$158, 0)) -> 1253 | M47: =INDEX('Import|export adjustments data'!$K$9:$K$158, MATCH($C47, 'Import|export adjustments data'!$C$9:$C$158, 0)) -> 1240 | N47: 13 | O47: 78000 | P47: 28621457.76 | Q47: 14310728.88
B48: NORTH EAST | C48: 392 | D48: North Tyneside | E48: 1 | F48: 19506000 | G48: 714519.7656 | H48: 541 | I48: 4000 | J48: 2164000 | K48: 0 | L48: =INDEX('Import|export adjustments data'!$P$9:$P$158, MATCH($C48, 'Import|export adjustments data'!$C$9:$C$158, 0)) -> 850 | M48: =INDEX('Import|export adjustments data'!$K$9:$K$158, MATCH($C48, 'Import|export adjustments data'!$C$9:$C$158, 0)) -> 866 | N48: -16 | O48: -96000 | P48: 16723480.23 | Q48: 8361740.117
B49: NORTH EAST | C49: 929 | D49: Northumberland | E49: 1 | F49: 31746000 | G49: 452737.5232 | H49: 682 | I49: 4000 | J49: 2728000 | K49: 0 | L49: =INDEX('Import|export adjustments data'!$P$9:$P$158, MATCH($C49, 'Import|export adjustments data'!$C$9:$C$158, 0)) -> 1478 | M49: =INDEX('Import|export adjustments data'!$K$9:$K$158, MATCH($C49, 'Import|export adjustments data'!$C$9:$C$158, 0)) -> 1617 | N49: -139 | O49: -834000 | P49: 29399262.48 | Q49: 14699631.24
B50: NORTH EAST | C50: 807 | D50: Redcar and Cleveland | E50: 1 | F50: 15882550 | G50: 297661.8488 | H50: 377 | I50: 4000 | J50: 1508000 | K50: 166350 | L50: =INDEX('Import|export adjustments data'!$P$9:$P$158, MATCH($C50, 'Import|export adjustments data'!$C$9:$C$158, 0)) -> 765.5 | M50: =INDEX('Import|export adjustments data'!$K$9:$K$158, MATCH($C50, 'Import|export adjustments data'!$C$9:$C$158, 0)) -> 797 | N50: -31.5 | O50: -189000 | P50: 14099538.15 | Q50: 7049769.076
B51: NORTH EAST | C51: 393 | D51: South Tyneside | E51: 1 | F51: 16721000 | G51: 547301.9218 | H51: 483 | I51: 4000 | J51: 1932000 | K51: 133000 | L51: =INDEX('Import|export adjustments data'!$P$9:$P$158, MATCH($C51, 'Import|export adjustments data'!$C$9:$C$158, 0)) -> 700 | M51: =INDEX('Import|export adjustments data'!$K$9:$K$158, MATCH($C51, 'Import|export adjustments data'!$C$9:$C$158, 0)) -> 712 | N51: -12 | O51: -72000 | P51: 14180698.08 | Q51: 7090349.039
B52: NORTH EAST | C52: 808 | D52: Stockton-on-Tees | E52: 1 | F52: 24179000 | G52: 1265032.005 | H52: 550 | I52: 4000 | J52: 2200000 | K52: 25000 | L52: =INDEX('Import|export adjustments data'!$P$9:$P$158, MATCH($C52, 'Import|export adjustments data'!$C$9:$C$158, 0)) -> 994 | M52: =INDEX('Import|export adjustments data'!$K$9:$K$158, MATCH($C52, 'Import|export adjustments data'!$C$9:$C$158, 0)) -> 1104 | N52: -110 | O52: -660000 | P52: 21348968 | Q52: 10674484
B53: NORTH EAST | C53: 394 | D53: Sunderland | E53: 1 | F53: 22746712 | G53: 855219.5472 | H53: 695 | I53: 4000 | J53: 2780000 | K53: 0 | L53: =INDEX('Import|export adjustments data'!$P$9:$P$158, MATCH($C53, 'Import|export adjustments data'!$C$9:$C$158, 0)) -> 1132 | M53: =INDEX('Import|export adjustments data'!$K$9:$K$158, MATCH($C53, 'Import|export adjustments data'!$C$9:$C$158, 0)) -> 1186 | N53: -54 | O53: -324000 | P53: 19435492.45 | Q53: 9717746.226
B54: NORTH WEST | C54: 889 | D54: Blackburn with Darwen | E54: 1 | F54: 19788000 | G54: 153199.8638 | H54: 269 | I54: 4000 | J54: 1076000 | K54: 158400 | L54: =INDEX('Import|export adjustments data'!$P$9:$P$158, MATCH($C54, 'Import|export adjustments data'!$C$9:$C$158, 0)) -> 801 | M54: =INDEX('Import|export adjustments data'!$K$9:$K$158, MATCH($C54, 'Import|export adjustments data'!$C$9:$C$158, 0)) -> 801 | N54: 0 | O54: 0 | P54: 18400400.14 | Q54: 9200200.068
B55: NORTH WEST | C55: 890 | D55: Blackpool | E55: 1 | F55: 18449000 | G55: 75718.10251 | H55: 394 | I55: 4000 | J55: 1576000 | K55: 1143750 | L55: =INDEX('Import|export adjustments data'!$P$9:$P$158, MATCH($C55, 'Import|export adjustments data'!$C$9:$C$158, 0)) -> 546 | M55: =INDEX('Import|export adjustments data'!$K$9:$K$158, MATCH($C55, 'Import|export adjustments data'!$C$9:$C$158, 0)) -> 517 | N55: 29 | O55: 174000 | P55: 15479531.9 | Q55: 7739765.949
B56: NORTH WEST | C56: 350 | D56: Bolton | E56: 1.008123131 | F56: 31443000 | G56: 116381.5981 | H56: 758 | I56: 4032.492525 | J56: 3056629.334 | K56: 0 | L56: =INDEX('Import|export adjustments data'!$P$9:$P$158, MATCH($C56, 'Import|export adjustments data'!$C$9:$C$158, 0)) -> 1520.5 | M56: =INDEX('Import|export adjustments data'!$K$9:$K$158, MATCH($C56, 'Import|export adjustments data'!$C$9:$C$158, 0)) -> 1503 | N56: 17.5 | O56: 105000 | P56: 28164989.07 | Q56: 14082494.53
B57: NORTH WEST | C57: 351 | D57: Bury | E57: 1.008123131 | F57: 28709179.3 | G57: 174129.4932 | H57: 402 | I57: 4032.492525 | J57: 1621061.995 | K57: 0 | L57: =INDEX('Import|export adjustments data'!$P$9:$P$158, MATCH($C57, 'Import|export adjustments data'!$C$9:$C$158, 0)) -> 1066 | M57: =INDEX('Import|export adjustments data'!$K$9:$K$158, MATCH($C57, 'Import|export adjustments data'!$C$9:$C$158, 0)) -> 1073 | N57: -7 | O57: -42000 | P57: 26955987.81 | Q57: 13477993.91
B58: NORTH WEST | C58: 895 | D58: Cheshire East | E58: 1.005398882 | F58: 32435000 | G58: 442435.0256 | H58: 366 | I58: 4021.595529 | J58: 1471903.963 | K58: 0 | L58: =INDEX('Import|export adjustments data'!$P$9:$P$158, MATCH($C58, 'Import|export adjustments data'!$C$9:$C$158, 0)) -> 1281 | M58: =INDEX('Import|export adjustments data'!$K$9:$K$158, MATCH($C58, 'Import|export adjustments data'!$C$9:$C$158, 0)) -> 1439 | N58: -158 | O58: -948000 | P58: 31468661.01 | Q58: 15734330.51
B59: NORTH WEST | C59: 896 | D59: Cheshire West and Chester | E59: 1.005398882 | F59: 35808000 | G59: 411206.1334 | H59: 877 | I59: 4021.595529 | J59: 3526939.279 | K59: 368393 | L59: =INDEX('Import|export adjustments data'!$P$9:$P$158, MATCH($C59, 'Import|export adjustments data'!$C$9:$C$158, 0)) -> 1732 | M59: =INDEX('Import|export adjustments data'!$K$9:$K$158, MATCH($C59, 'Import|export adjustments data'!$C$9:$C$158, 0)) -> 1671 | N59: 61 | O59: 366000 | P59: 31135461.59 | Q59: 15567730.79
B60: NORTH WEST | C60: 909 | D60: Cumbria | E60: 1 | F60: 38747000 | G60: 368325.192 | H60: 543 | I60: 4000 | J60: 2172000 | K60: 782384 | L60: =INDEX('Import|export adjustments data'!$P$9:$P$158, MATCH($C60, 'Import|export adjustments data'!$C$9:$C$158, 0)) -> 1966 | M60: =INDEX('Import|export adjustments data'!$K$9:$K$158, MATCH($C60, 'Import|export adjustments data'!$C$9:$C$158, 0)) -> 2051 | N60: -85 | O60: -510000 | P60: 35934290.81 | Q60: 17967145.4
B61: NORTH WEST | C61: 876 | D61: Halton | E61: 1.005398882 | F61: 15559000 | G61: 524873.8036 | H61: 365 | I61: 4021.595529 | J61: 1467882.368 | K61: 0 | L61: =INDEX('Import|export adjustments data'!$P$9:$P$158, MATCH($C61, 'Import|export adjustments data'!$C$9:$C$158, 0)) -> 730 | M61: =INDEX('Import|export adjustments data'!$K$9:$K$158, MATCH($C61, 'Import|export adjustments data'!$C$9:$C$158, 0)) -> 764 | N61: -34 | O61: -204000 | P61: 13770243.83 | Q61: 6885121.914
B62: NORTH WEST | C62: 340 | D62: Knowsley | E62: 1.001667448 | F62: 19441237.53 | G62: 284429.238 | H62: 447 | I62: 4006.66979 | J62: 1790981.396 | K62: 116894 | L62: =INDEX('Import|export adjustments data'!$P$9:$P$158, MATCH($C62, 'Import|export adjustments data'!$C$9:$C$158, 0)) -> 862 | M62: =INDEX('Import|export adjustments data'!$K$9:$K$158, MATCH($C62, 'Import|export adjustments data'!$C$9:$C$158, 0)) -> 950 | N62: -88 | O62: -528000 | P62: 17776932.89 | Q62: 8888466.445
B63: NORTH WEST | C63: 888 | D63: Lancashire | E63: 1 | F63: 104538420 | G63: 471933.6351 | H63: 2794 | I63: 4000 | J63: 11176000 | K63: 610000 | L63: =INDEX('Import|export adjustments data'!$P$9:$P$158, MATCH($C63, 'Import|export adjustments data'!$C$9:$C$158, 0)) -> 3985 | M63: =INDEX('Import|export adjustments data'!$K$9:$K$158, MATCH($C63, 'Import|export adjustments data'!$C$9:$C$158, 0)) -> 4126 | N63: -141 | O63: -846000 | P63: 93126486.4 | Q63: 46563243.2
B64: NORTH WEST | C64: 341 | D64: Liverpool | E64: 1.001667448 | F64: 45147000 | G64: 1370025 | H64: 1327 | I64: 4006.66979 | J64: 5316850.812 | K64: 0 | L64: =INDEX('Import|export adjustments data'!$P$9:$P$158, MATCH($C64, 'Import|export adjustments data'!$C$9:$C$158, 0)) -> 1827 | M64: =INDEX('Import|export adjustments data'!$K$9:$K$158, MATCH($C64, 'Import|export adjustments data'!$C$9:$C$158, 0)) -> 1820 | N64: 7 | O64: 42000 | P64: 38418124.19 | Q64: 19209062.09
B65: NORTH WEST | C65: 352 | D65: Manchester | E65: 1.008123131 | F65: 69330000 | G65: 628496.4393 | H65: 1315 | I65: 4032.492525 | J65: 5302727.67 | K65: 1340275 | L65: =INDEX('Import|export adjustments data'!$P$9:$P$158, MATCH($C65, 'Import|export adjustments data'!$C$9:$C$158, 0)) -> 2379 | M65: =INDEX('Import|export adjustments data'!$K$9:$K$158, MATCH($C65, 'Import|export adjustments data'!$C$9:$C$158, 0)) -> 2478 | N65: -99 | O65: -594000 | P65: 62652500.89 | Q65: 31326250.45
B66: NORTH WEST | C66: 353 | D66: Oldham | E66: 1.008123131 | F66: 26961735.23 | G66: 166465.9378 | H66: 673 | I66: 4032.492525 | J66: 2713867.469 | K66: 445384 | L66: =INDEX('Import|export adjustments data'!$P$9:$P$158, MATCH($C66, 'Import|export adjustments data'!$C$9:$C$158, 0)) -> 1252 | M66: =INDEX('Import|export adjustments data'!$K$9:$K$158, MATCH($C66, 'Import|export adjustments data'!$C$9:$C$158, 0)) -> 1238 | N66: 14 | O66: 84000 | P66: 23552017.82 | Q66: 11776008.91
B67: NORTH WEST | C67: 354 | D67: Rochdale | E67: 1.008123131 | F67: 20778000 | G67: 122739.1221 | H67: 495 | I67: 4032.492525 | J67: 1996083.8 | K67: 0 | L67: =INDEX('Import|export adjustments data'!$P$9:$P$158, MATCH($C67, 'Import|export adjustments data'!$C$9:$C$158, 0)) -> 1107.5 | M67: =INDEX('Import|export adjustments data'!$K$9:$K$158, MATCH($C67, 'Import|export adjustments data'!$C$9:$C$158, 0)) -> 1164 | N67: -56.5 | O67: -339000 | P67: 18998177.08 | Q67: 9499088.539
B68: NORTH WEST | C68: 355 | D68: Salford | E68: 1.008123131 | F68: 30854000 | G68: 889013.8689 | H68: 627 | I68: 4032.492525 | J68: 2528372.813 | K68: 0 | L68: =INDEX('Import|export adjustments data'!$P$9:$P$158, MATCH($C68, 'Import|export adjustments data'!$C$9:$C$158, 0)) -> 1069 | M68: =INDEX('Import|export adjustments data'!$K$9:$K$158, MATCH($C68, 'Import|export adjustments data'!$C$9:$C$158, 0)) -> 1121 | N68: -52 | O68: -312000 | P68: 27748613.32 | Q68: 13874306.66
B69: NORTH WEST | C69: 343 | D69: Sefton | E69: 1.001667448 | F69: 26567000 | G69: 940828.3503 | H69: 571 | I69: 4006.66979 | J69: 2287808.45 | K69: 0 | L69: =INDEX('Import|export adjustments data'!$P$9:$P$158, MATCH($C69, 'Import|export adjustments data'!$C$9:$C$158, 0)) -> 1114 | M69: =INDEX('Import|export adjustments data'!$K$9:$K$158, MATCH($C69, 'Import|export adjustments data'!$C$9:$C$158, 0)) -> 1133 | N69: -19 | O69: -114000 | P69: 23452363.2 | Q69: 11726181.6
B70: NORTH WEST | C70: 342 | D70: St Helens | E70: 1.001667448 | F70: 18337000 | G70: 314192.1845 | H70: 372 | I70: 4006.66979 | J70: 1490481.162 | K70: 0 | L70: =INDEX('Import|export adjustments data'!$P$9:$P$158, MATCH($C70, 'Import|export adjustments data'!$C$9:$C$158, 0)) -> 899 | M70: =INDEX('Import|export adjustments data'!$K$9:$K$158, MATCH($C70, 'Import|export adjustments data'!$C$9:$C$158, 0)) -> 911 | N70: -12 | O70: -72000 | P70: 16604326.65 | Q70: 8302163.327
B71: NORTH WEST | C71: 356 | D71: Stockport | E71: 1.008123131 | F71: 29149000 | G71: 558091.1744 | H71: 543 | I71: 4032.492525 | J71: 2189643.441 | K71: 216725 | L71: =INDEX('Import|export adjustments data'!$P$9:$P$158, MATCH($C71, 'Import|export adjustments data'!$C$9:$C$158, 0)) -> 1426 | M71: =INDEX('Import|export adjustments data'!$K$9:$K$158, MATCH($C71, 'Import|export adjustments data'!$C$9:$C$158, 0)) -> 1482 | N71: -56 | O71: -336000 | P71: 26520540.38 | Q71: 13260270.19
B72: NORTH WEST | C72: 357 | D72: Tameside | E72: 1.008123131 | F72: 18544900 | G72: 324787.8653 | H72: 419 | I72: 4032.492525 | J72: 1689614.368 | K72: 50000 | L72: =INDEX('Import|export adjustments data'!$P$9:$P$158, MATCH($C72, 'Import|export adjustments data'!$C$9:$C$158, 0)) -> 674 | M72: =INDEX('Import|export adjustments data'!$K$9:$K$158, MATCH($C72, 'Import|export adjustments data'!$C$9:$C$158, 0)) -> 730 | N72: -56 | O72: -336000 | P72: 16816497.77 | Q72: 8408248.883
B73: NORTH WEST | C73: 358 | D73: Trafford | E73: 1.008123131 | F73: 24342000 | G73: 316337.7528 | H73: 611 | I73: =4000 * E73 -> 4032.492525 | J73: =H73*I73 -> 2463852.933 | K73: 0 | L73: =INDEX('Import|export adjustments data'!$P$9:$P$158, MATCH($C73, 'Import|export adjustments data'!$C$9:$C$158, 0)) -> 1145 | M73: =INDEX('Import|export adjustments data'!$K$9:$K$158, MATCH($C73, 'Import|export adjustments data'!$C$9:$C$158, 0)) -> 1201 | N73: =L73-M73 -> -56 | O73: =N73 * 6000 -> -336000 | P73: =F73 - SUM(K73,O73,G73,J73) -> 21897809.31 | Q73: =P73*0.5 -> 10948904.66
B74: NORTH WEST | C74: 877 | D74: Warrington | E74: 1.005398882 | F74: 20404000 | G74: 697387.8111 | H74: 350 | I74: 4021.595529 | J74: 1407558.435 | K74: 311525 | L74: =INDEX('Import|export adjustments data'!$P$9:$P$158, MATCH($C74, 'Import|export adjustments data'!$C$9:$C$158, 0)) -> 913 | M74: =INDEX('Import|export adjustments data'!$K$9:$K$158, MATCH($C74, 'Import|export adjustments data'!$C$9:$C$158, 0)) -> 978 | N74: -65 | O74: -390000 | P74: 18377528.75 | Q74: 9188764.377
B75: NORTH WEST | C75: 359 | D75: Wigan | E75: 1.008123131 | F75: 26846000 | G75: 218272.5885 | H75: 701 | I75: 4032.492525 | J75: 2826777.26 | K75: 31844 | L75: =INDEX('Import|export adjustments data'!$P$9:$P$158, MATCH($C75, 'Import|export adjustments data'!$C$9:$C$158, 0)) -> 1211 | M75: =INDEX('Import|export adjustments data'!$K$9:$K$158, MATCH($C75, 'Import|export adjustments data'!$C$9:$C$158, 0)) -> 1282 | N75: -71 | O75: -426000 | P75: 24195106.15 | Q75: 12097553.08
B76: NORTH WEST | C76: 344 | D76: Wirral | E76: 1.001667448 | F76: 34512000 | G76: 1286997.099 | H76: 956 | I76: 4006.66979 | J76: 3830376.32 | K76: 1356300 | L76: =INDEX('Import|export adjustments data'!$P$9:$P$158, MATCH($C76, 'Import|export adjustments data'!$C$9:$C$158, 0)) -> 1627 | M76: =INDEX('Import|export adjustments data'!$K$9:$K$158, MATCH($C76, 'Import|export adjustments data'!$C$9:$C$158, 0)) -> 1739 | N76: -112 | O76: -672000 | P76: 28710326.58 | Q76: 14355163.29
B77: OUTER LONDON | C77: 301 | D77: Barking and Dagenham | E77: 1.123376795 | F77: 27075351.31 | G77: 1402043.166 | H77: 326 | I77: 4493.50718 | J77: 1464883.341 | K77: 157680 | L77: =INDEX('Import|export adjustments data'!$P$9:$P$158, MATCH($C77, 'Import|export adjustments data'!$C$9:$C$158, 0)) -> 1155.5 | M77: =INDEX('Import|export adjustments data'!$K$9:$K$158, MATCH($C77, 'Import|export adjustments data'!$C$9:$C$158, 0)) -> 1112 | N77: 43.5 | O77: 261000 | P77: 23789744.81 | Q77: 11894872.4
B78: OUTER LONDON | C78: 302 | D78: Barnet | E78: 1.110558221 | F78: 47255190.83 | G78: 1154119.391 | H78: 610 | I78: 4442.232886 | J78: 2709762.06 | K78: 1071152 | L78: =INDEX('Import|export adjustments data'!$P$9:$P$158, MATCH($C78, 'Import|export adjustments data'!$C$9:$C$158, 0)) -> 1548 | M78: =INDEX('Import|export adjustments data'!$K$9:$K$158, MATCH($C78, 'Import|export adjustments data'!$C$9:$C$158, 0)) -> 1544 | N78: 4 | O78: 24000 | P78: 42296157.38 | Q78: 21148078.69
B79: OUTER LONDON | C79: 303 | D79: Bexley | E79: 1.086278751 | F79: 31343000 | G79: 877120.3246 | H79: 568 | I79: 4345.115005 | J79: 2468025.323 | K79: 295000 | L79: =INDEX('Import|export adjustments data'!$P$9:$P$158, MATCH($C79, 'Import|export adjustments data'!$C$9:$C$158, 0)) -> 1059 | M79: =INDEX('Import|export adjustments data'!$K$9:$K$158, MATCH($C79, 'Import|export adjustments data'!$C$9:$C$158, 0)) -> 1127 | N79: -68 | O79: -408000 | P79: 28110854.35 | Q79: 14055427.18
B80: OUTER LONDON | C80: 304 | D80: Brent | E80: 1.147656265 | F80: 52681000 | G80: 510870.2882 | H80: 758 | I80: 4590.625061 | J80: 3479693.796 | K80: 0 | L80: =INDEX('Import|export adjustments data'!$P$9:$P$158, MATCH($C80, 'Import|export adjustments data'!$C$9:$C$158, 0)) -> 1436 | M80: =INDEX('Import|export adjustments data'!$K$9:$K$158, MATCH($C80, 'Import|export adjustments data'!$C$9:$C$158, 0)) -> 1659 | N80: -223 | O80: -1338000 | P80: 50028435.92 | Q80: 25014217.96
B81: OUTER LONDON | C81: 305 | D81: Bromley | E81: 1.086278751 | F81: 44873000 | G81: 1474134.896 | H81: 624 | I81: 4345.115005 | J81: 2711351.763 | K81: 795360 | L81: =INDEX('Import|export adjustments data'!$P$9:$P$158, MATCH($C81, 'Import|export adjustments data'!$C$9:$C$158, 0)) -> 1378 | M81: =INDEX('Import|export adjustments data'!$K$9:$K$158, MATCH($C81, 'Import|export adjustments data'!$C$9:$C$158, 0)) -> 1424 | N81: -46 | O81: -276000 | P81: 40168153.34 | Q81: 20084076.67
B82: OUTER LONDON | C82: 306 | D82: Croydon | E82: 1.086278751 | F82: 57485047.27 | G82: 1059818.422 | H82: 1090 | I82: 4345.115005 | J82: 4736175.356 | K82: 420447 | L82: =INDEX('Import|export adjustments data'!$P$9:$P$158, MATCH($C82, 'Import|export adjustments data'!$C$9:$C$158, 0)) -> 1615 | M82: =INDEX('Import|export adjustments data'!$K$9:$K$158, MATCH($C82, 'Import|export adjustments data'!$C$9:$C$158, 0)) -> 1952 | N82: -337 | O82: -2022000 | P82: 53290606.49 | Q82: 26645303.24
B83: OUTER LONDON | C83: 307 | D83: Ealing | E83: 1.147656265 | F83: 50186327 | G83: 519949.6258 | H83: 796 | I83: 4590.625061 | J83: 3654137.549 | K83: 87099 | L83: =INDEX('Import|export adjustments data'!$P$9:$P$158, MATCH($C83, 'Import|export adjustments data'!$C$9:$C$158, 0)) -> 1386 | M83: =INDEX('Import|export adjustments data'!$K$9:$K$158, MATCH($C83, 'Import|export adjustments data'!$C$9:$C$158, 0)) -> 1498 | N83: -112 | O83: -672000 | P83: 46597140.83 | Q83: 23298570.41
B84: OUTER LONDON | C84: 308 | D84: Enfield | E84: 1.086278751 | F84: 40320253.51 | G84: 527107.1369 | H84: 617 | I84: 4345.115005 | J84: 2680935.958 | K84: 308850 | L84: =INDEX('Import|export adjustments data'!$P$9:$P$158, MATCH($C84, 'Import|export adjustments data'!$C$9:$C$158, 0)) -> 1278 | M84: =INDEX('Import|export adjustments data'!$K$9:$K$158, MATCH($C84, 'Import|export adjustments data'!$C$9:$C$158, 0)) -> 1479 | N84: -201 | O84: -1206000 | P84: 38009360.42 | Q84: 19004680.21
B85: OUTER LONDON | C85: 203 | D85: Greenwich | E85: 1.203818733 | F85: 44870123.44 | G85: 1140020.701 | H85: 537 | I85: 4815.274933 | J85: 2585802.639 | K85: 0 | L85: =INDEX('Import|export adjustments data'!$P$9:$P$158, MATCH($C85, 'Import|export adjustments data'!$C$9:$C$158, 0)) -> 1162 | M85: =INDEX('Import|export adjustments data'!$K$9:$K$158, MATCH($C85, 'Import|export adjustments data'!$C$9:$C$158, 0)) -> 1209 | N85: -47 | O85: -282000 | P85: 41426300.1 | Q85: 20713150.05
B86: OUTER LONDON | C86: 310 | D86: Harrow | E86: 1.110558221 | F86: 30666000 | G86: 432401.9091 | H86: 501 | I86: 4442.232886 | J86: 2225558.676 | K86: 92000 | L86: =INDEX('Import|export adjustments data'!$P$9:$P$158, MATCH($C86, 'Import|export adjustments data'!$C$9:$C$158, 0)) -> 1082 | M86: =INDEX('Import|export adjustments data'!$K$9:$K$158, MATCH($C86, 'Import|export adjustments data'!$C$9:$C$158, 0)) -> 1123 | N86: -41 | O86: -246000 | P86: 28162039.42 | Q86: 14081019.71
